Workbook

Sheet DATA-Original
A1: 3 Months Ending | C1: 08/31/2008 | D1: 11/30/2008 | E1: 02/28/2009 | F1: 05/31/2009 | G1: 08/31/2009 | H1: 11/30/2009 | I1: 02/28/2010 | J1: 05/31/2010 | K1: 08/31/2010 | L1: 11/30/2010 | M1: 02/28/2011 | N1: 05/31/2011 | O1: 08/31/2011 | P1: 11/30/2011 | Q1: 02/29/2012 | R1: 05/31/2012 | S1: 08/31/2012 | T1: 11/30/2012 | U1: 02/28/2013 | V1: 05/31/2013 | W1: 08/31/2013 | X1: 11/30/2013 | Y1: 02/28/2014 | Z1: 05/31/2014 | AA1: 08/31/2014 | AB1: 11/30/2014 | AC1: 02/28/2015 | AD1: 05/31/2015 | AE1: 08/31/2015 | AF1: 11/30/2015 | AG1: 02/29/2016 | AH1: 05/31/2016 | AI1: 08/31/2016 | AJ1: 11/30/2016 | AK1: 02/28/2017 | AL1: 05/31/2017 | AM1: 08/31/2017 | AN1: 11/30/2017 | AO1: 02/28/2018 | AP1: 05/31/2018
A2: Stock's Relative Performance (L1) | B2: =ROW(A2)&": "&A2&" (UNADJUSTED)" -> 2: Stock's Relative Performance (L1) (UNADJUSTED) | C2: 98.5814 | D2: 120.3698 | E2: 89.7575 | F2: 92.0856 | G2: 102.7974 | H2: 117.6966 | I2: 117.1807 | J2: 117.0235 | K2: 113.5771 | L2: 117.8573 | M2: 103.5674 | N2: 106.2928 | O2: 98.616 | P2: 101.7354 | Q2: 100.6173 | R2: 103.8773 | S2: 95.1301 | T2: 96.5336 | U2: 106.2849 | V2: 90.2091 | W2: 100.3905 | X2: 117.2824 | Y2: 109.4893 | Z2: 114.4366 | AA2: 112.7137 | AB2: 131.5919 | AC2: 128.4114 | AD2: 125.5109 | AE2: 116.6099 | AF2: 116.3639 | AG2: 108.1707 | AH2: 120.1277 | AI2: 116.0054 | AJ2: 133.1051 | AK2: 124.6692 | AL2: 122.7243 | AM2: 132.442 | AN2: 133.492 | AO2: 138.6449 | AP2: 140.6133
A3: FDX US Equity - Last Price (R3) | B3: =ROW(A3)&": "&A3&" (UNADJUSTED)" -> 3: FDX US Equity - Last Price (R3) (UNADJUSTED) | C3: 82.82 | D3: 70.65 | E3: 43.21 | F3: 55.43 | G3: 68.71 | H3: 84.45 | I3: 84.76 | J3: 83.49 | K3: 78.05 | L3: 91.12 | M3: 90.02 | N3: 93.64 | O3: 78.72 | P3: 83.08 | Q3: 89.99 | R3: 89.14 | S3: 87.63 | T3: 89.53 | U3: 105.43 | V3: 96.34 | W3: 107.36 | X3: 138.7 | Y3: 133.33 | Z3: 144.16 | AA3: 147.88 | AB3: 178.18 | AC3: 176.98 | AD3: 173.22 | AE3: 150.61 | AF3: 158.54 | AG3: 136.88 | AH3: 164.97 | AI3: 164.93 | AJ3: 191.67 | AK3: 192.98 | AL3: 193.84 | AM3: 214.38 | AN3: 231.46 | AO3: 246.41 | AP3: 249.12
A4: Stock's NTM Consensus EPS (R2) | B4: 4: Stock's NTM Consensus EPS (R2) (UNADJUSTED) | C4: 5.3 | D4: 5.513 | E4: 4.286 | F4: 3.326 | G4: 3.042 | H4: 3.766 | I4: 4.504 | J4: 5.067 | K4: 5.439 | L4: 5.732 | M4: 6.03 | N4: 6.533 | O4: 6.86 | P4: 6.814 | Q4: 7.095 | R4: 7.426 | S4: 7.614 | T4: 7.133 | U4: 7.423 | V4: 7.405 | W4: 7.423 | X4: 7.912 | Y4: 8.544 | Z4: 8.782 | AA4: 9.274 | AB4: 9.934 | AC4: 10.465 | AD4: 10.886 | AE4: 11.272 | AF4: 11.439 | AG4: 11.566 | AH4: 12.094 | AI4: 12.282 | AJ4: 12.888 | AK4: 13.14 | AL4: 13.578 | AM4: 13.99 | AN4: 13.812 | AO4: 16.023 | AP4: 17.403
A5: Stock's P/E Ratio Relative to Index (R1) | B5: 5: Stock's P/E Ratio Relative to Index (R1) (UNADJUSTED) | C5: 1.1885 | D5: 1.1745 | E5: 0.8919 | F5: 1.1587 | G5: 1.5418 | H5: 1.557 | I5: 1.3827 | J5: 1.3261 | K5: 1.2489 | L5: 1.2688 | M5: 1.1155 | N5: 1.1217 | O5: 1.0151 | P5: 1.0398 | Q5: 0.9984 | R5: 1.0179 | S5: 0.9135 | T5: 0.9897 | U5: 1.0691 | V5: 0.9231 | W5: 1.0466 | X5: 1.1629 | Y5: 1.0136 | Z5: 1.0589 | AA5: 1.019 | AB5: 1.106 | AC5: 0.9804 | AD5: 0.9419 | AE5: 0.8551 | AF5: 0.8382 | AG5: 0.7516 | AH5: 0.8114 | AI5: 0.7899 | AJ5: 0.8809 | AK5: 0.8261 | AL5: 0.8117 | AM5: 0.8717 | AN5: 0.9155 | AO5: 0.9075 | AP5: 0.8799
A6: Diluted EPS, GAAP | B6: 6: Diluted EPS, GAAP (UNADJUSTED) | C6: 1.23 | D6: 1.59 | E6: 0.31 | F6: -2.82 | G6: 0.58 | H6: 1.1 | I6: 0.76 | J6: 1.33 | K6: 1.2 | L6: 0.89 | M6: 0.73 | N6: 1.75 | O6: 1.46 | P6: 1.57 | Q6: 1.65 | R6: 1.73 | S6: 1.45 | T6: 1.39 | U6: 1.13 | V6: 0.95 | W6: 1.53 | X6: 1.75 | Y6: 1.23 | Z6: 2.46 | AA6: 2.26 | AB6: 2.31 | AC6: 2.18 | AD6: -3.16 | AE6: 2.42 | AF6: 2.44 | AG6: 1.84 | AH6: -0.26 | AI6: 2.65 | AJ6: 2.59 | AK6: 2.07 | AL6: 3.75 | AM6: 2.19 | AN6: 2.84 | AO6: 7.59 | AP6: 4.15
A7: Diluted EPS from Cont Ops | B7: 7: Diluted EPS from Cont Ops (UNADJUSTED) | C7: 1.23 | D7: 1.59 | E7: 0.31 | F7: -2.82 | G7: 0.58 | H7: 1.1 | I7: 0.76 | J7: 1.33 | K7: 1.2 | L7: 0.89 | M7: 0.73 | N7: 1.75 | O7: 1.46 | P7: 1.57 | Q7: 1.65 | R7: 1.73 | S7: 1.45 | T7: 1.39 | U7: 1.13 | V7: 0.95 | W7: 1.53 | X7: 1.75 | Y7: 1.23 | Z7: 2.46 | AA7: 2.26 | AB7: 2.31 | AC7: 2.18 | AD7: -3.16 | AE7: 2.42 | AF7: 2.44 | AG7: 1.84 | AH7: -0.26 | AI7: 2.65 | AJ7: 2.59 | AK7: 2.07 | AL7: 3.75 | AM7: 2.19 | AN7: 2.84 | AO7: 7.59 | AP7: 4.15
A8: Diluted EPS from Cont Ops, Adjusted | B8: 8: Diluted EPS from Cont Ops, Adjusted (UNADJUSTED) | C8: 1.23 | D8: 1.59 | E8: 0.31 | F8: 0.661 | G8: 0.58 | H8: 1.1 | I8: 0.76 | J8: 1.363 | K8: 1.2 | L8: 1.16 | M8: 0.7718 | N8: 1.7541 | O8: 1.46 | P8: 1.57 | Q8: 1.55 | R8: 1.995 | S8: 1.4582 | T8: 1.4168 | U8: 1.2246 | V8: 2.13 | W8: 1.53 | X8: 1.75 | Y8: 1.23 | Z8: 2.49 | AA8: 2.26 | AB8: 2.31 | AC8: 2.18 | AD8: 2.8092 | AE8: 2.42 | AF8: 2.5707 | AG8: 1.84 | AH8: 3.3317 | AI8: 2.8173 | AJ8: 2.8804 | AK8: 2.3025 | AL8: 4.1854 | AM8: 2.5099 | AN8: 3.1746 | AO8: 3.5827 | AP8: 5.9138
A9: ETSLTOTL Index - Last Price (R3) | B9: 9: ETSLTOTL Index - Last Price (R3) (UNADJUSTED) | C9: 4.27 | D9: 4.01 | E9: 3.86 | F9: 4.1 | G9: 4.62 | H9: 4.4 | I9: 4.49 | J9: 4.45 | K9: 3.84 | L9: 4.27 | M9: 4.26 | N9: 4.23 | O9: 4.33 | P9: 4.35 | Q9: 4.52 | R9: 4.47 | S9: 4.71 | T9: 4.89 | U9: 5.07 | V9: 5.11 | W9: 5.14 | X9: 4.86 | Y9: 4.75 | Z9: 4.94 | AA9: 5 | AB9: 5.09 | AC9: 5.25 | AD9: 5.36 | AE9: 5.41 | AF9: 5.44 | AG9: 5.38 | AH9: 5.46 | AI9: 5.47 | AJ9: 5.52 | AK9: 5.67 | AL9: 5.5 | AM9: 5.37 | AN9: 5.56 | AO9: 5.6 | AP9: 5.43
A10: NFP TYOY Index - Last Price (R4) | B10: 10: NFP TYOY Index - Last Price (R4) (UNADJUSTED) | C10: -0.97 | D10: -2.58 | E10: -4.15 | F10: -4.86 | G10: -4.77 | H10: -3.75 | I10: -1.98 | J10: -0.38 | K10: 0.08 | L10: 0.81 | M10: 1.07 | N10: 1.1 | O10: 1.54 | P10: 1.6 | Q10: 1.87 | R10: 1.57 | S10: 1.65 | T10: 1.62 | U10: 1.45 | V10: 1.68 | W10: 1.71 | X10: 1.7 | Y10: 1.69 | Z10: 1.89 | AA10: 1.98 | AB10: 2.19 | AC10: 2.13 | AD10: 2.07 | AE10: 1.92 | AF10: 1.93 | AG10: 1.95 | AH10: 1.73 | AI10: 1.9 | AJ10: 1.64 | AK10: 1.59 | AL10: 1.63 | AM10: 1.39 | AN10: 1.5 | AO10: 1.58 | AP10: 1.62
A11: IP Index - Last Price (L4) | B11: 11: IP Index - Last Price (L4) (UNADJUSTED) | C11: 99.7905 | D11: 95.5305 | E11: 90.1598 | F11: 87.591 | G11: 88.9168 | H11: 90.3211 | I11: 92.1008 | J11: 93.8969 | K11: 95.1094 | L11: 95.4235 | M11: 95.972 | N11: 96.352 | O11: 97.4595 | P11: 98.4318 | Q11: 99.3903 | R11: 100.0202 | S11: 100.0375 | T11: 100.552 | U11: 101.3743 | V11: 101.7984 | W11: 102.0998 | X11: 102.8604 | Y11: 103.6321 | Z11: 105.0693 | AA11: 105.6105 | AB11: 106.3272 | AC11: 105.4607 | AD11: 104.1057 | AE11: 104.0347 | AF11: 102.7863 | AG11: 102.3053 | AH11: 101.7655 | AI11: 102.0464 | AJ11: 102.2242 | AK11: 102.4734 | AL11: 103.7326 | AM11: 103.3307 | AN11: 105.2763 | AO11: 105.9068 | AP11: 107.4509
A12: NAPMNMAN Index - Last Price (R1) | B12: 12: NAPMNMAN Index - Last Price (R1) (UNADJUSTED) | C12: 50.6 | D12: 38.5 | E12: 43.2 | F12: 48.8 | G12: 53.5 | H12: 52.5 | I12: 57.8 | J12: 59.3 | K12: 52.9 | L12: 62.3 | M12: 58.6 | N12: 56.3 | O12: 56.2 | P12: 56 | Q12: 59.3 | R12: 55.3 | S12: 59.1 | T12: 60.7 | U12: 57.9 | V12: 55.6 | W12: 54.7 | X12: 55.3 | Y12: 55.2 | Z12: 60 | AA12: 61.6 | AB12: 59 | AC12: 59.1 | AD12: 61.4 | AE12: 59.6 | AF12: 59.5 | AG12: 60 | AH12: 58.9 | AI12: 59.6 | AJ12: 61.4 | AK12: 59.2 | AL12: 60.7 | AM12: 60.9 | AN12: 57.8 | AO12: 60.6 | AP12: 63.9
A13: PCE CHY% Index - Last Price (R2) | B13: 13: PCE CHY% Index - Last Price (R2) (UNADJUSTED) | C13: -1.1869 | D13: -2.4092 | E13: -2.3933 | F13: -2.672 | G13: -1.2968 | H13: 0.5552 | I13: 1.4041 | J13: 2.2451 | K13: 2.606 | L13: 2.9268 | M13: 2.8128 | N13: 2.2671 | O13: 2.0901 | P13: 1.2146 | Q13: 1.4105 | R13: 1.3848 | S13: 1.4212 | T13: 1.6328 | U13: 1.1332 | V13: 1.4778 | W13: 1.5037 | X13: 1.9454 | Y13: 2.526 | Z13: 2.7843 | AA13: 3.1521 | AB13: 3.6834 | AC13: 3.9037 | AD13: 3.7166 | AE13: 3.6772 | AF13: 3.0529 | AG13: 2.2913 | AH13: 2.9813 | AI13: 2.8107 | AJ13: 2.8572 | AK13: 3.2489 | AL13: 2.5604 | AM13: 2.6238 | AN13: 2.8999 | AO13: 2.4106 | AP13: 2.2825
A14: SPCS20Y% Index - Last Price (L3) | B14: 14: SPCS20Y% Index - Last Price (L3) (UNADJUSTED) | C14: -17.4 | D14: -18.61 | E14: -18.66 | F14: -15.38 | G14: -9.29 | H14: -3.09 | I14: 2.34 | J14: 4.24 | K14: 0.43 | L14: -2.4 | M14: -3.98 | N14: -4.39 | O14: -3.59 | P14: -4.07 | Q14: -2.59 | R14: 0.61 | S14: 3 | T14: 6.94 | U14: 10.72 | V14: 12.01 | W14: 13.25 | X14: 13.38 | Y14: 12.37 | Z14: 8.05 | AA14: 4.73 | AB14: 4.35 | AC14: 4.9 | AD14: 4.82 | AE14: 5.22 | AF14: 5.55 | AG14: 5.45 | AH14: 5.09 | AI14: 5 | AJ14: 5.43 | AK14: 5.88 | AL14: 5.6 | AM14: 6.08 | AN14: 6.3 | AO14: 6.73 | AP14: 6.56
A15: CNSTTOTA Index - Last Price (R1) | B15: 15: CNSTTOTA Index - Last Price (R1) (UNADJUSTED) | C15: 1059904 | D15: 999710 | E15: 958519 | F15: 907196 | G15: 882793 | H15: 838737 | I15: 815113 | J15: 822777 | K15: 803378 | L15: 786597 | M15: 766758 | N15: 792726 | O15: 811291 | P15: 818445 | Q15: 827489 | R15: 855069 | S15: 861404 | T15: 864836 | U15: 856946 | V15: 892255 | W15: 930605 | X15: 964929 | Y15: 984173 | Z15: 1000006 | AA15: 1011991 | AB15: 1043017 | AC15: 1079514 | AD15: 1144495 | AE15: 1141478 | AF15: 1122139 | AG15: 1183711 | AH15: 1195146 | AI15: 1204401 | AJ15: 1234637 | AK15: 1256852 | AL15: 1241302 | AM15: 1240443 | AN15: 1272639 | AO15: 1293125 | AP15: 1309490
A16: CONSSENT Index - Last Price (L4) | B16: 16: CONSSENT Index - Last Price (L4) (UNADJUSTED) | C16: 70.3 | D16: 60.1 | E16: 57.3 | F16: 70.8 | G16: 73.5 | H16: 72.5 | I16: 73.6 | J16: 76 | K16: 68.2 | L16: 74.5 | M16: 67.5 | N16: 71.5 | O16: 59.5 | P16: 69.9 | Q16: 76.2 | R16: 73.2 | S16: 78.3 | T16: 72.9 | U16: 78.6 | V16: 84.1 | W16: 77.5 | X16: 82.5 | Y16: 80 | Z16: 82.5 | AA16: 84.6 | AB16: 93.6 | AC16: 93 | AD16: 96.1 | AE16: 87.2 | AF16: 92.6 | AG16: 91 | AH16: 93.5 | AI16: 91.2 | AJ16: 98.2 | AK16: 96.9 | AL16: 95.1 | AM16: 95.1 | AN16: 95.9 | AO16: 101.4 | AP16: 98.2
A17: RSTAYOY Index - Last Price (L3) | B17: 17: RSTAYOY Index - Last Price (L3) (UNADJUSTED) | C17: -1.65 | D17: -11.28 | E17: -11.54 | F17: -9.71 | G17: -7.7 | H17: 4.21 | I17: 7.54 | J17: 4.19 | K17: 6.14 | L17: 6.7 | M17: 6.72 | N17: 8.21 | O17: 7.91 | P17: 6.12 | Q17: 6.17 | R17: 3.38 | S17: 4.56 | T17: 4.33 | U17: 3.06 | V17: 4.93 | W17: 2.97 | X17: 3.46 | Y17: 3.59 | Z17: 4.81 | AA17: 5.12 | AB17: 3.69 | AC17: 2.96 | AD17: 2.66 | AE17: 2.27 | AF17: 2.85 | AG17: 2.12 | AH17: 2.85 | AI17: 3.02 | AJ17: 3.74 | AK17: 4.66 | AL17: 3.35 | AM17: 5.16 | AN17: 5.28 | AO17: 5.09 | AP17: 6.6
A18: SAARTOTL Index - Last Price (L2) | B18: 18: SAARTOTL Index - Last Price (L2) (UNADJUSTED) | C18: 12.69 | D18: 10.18 | E18: 9.57 | F18: 9.98 | G18: 9.36 | H18: 11.1 | I18: 11.57 | J18: 11.41 | K18: 11.67 | L18: 12.43 | M18: 12.85 | N18: 11.68 | O18: 13.01 | P18: 13.46 | Q18: 14.22 | R18: 14.13 | S18: 14.81 | T18: 15.22 | U18: 15.5 | V18: 15.74 | W18: 15.28 | X18: 15.52 | Y18: 16.79 | Z18: 16.97 | AA18: 16.24 | AB18: 16.71 | AC18: 17.5 | AD18: 17.29 | AE18: 17.97 | AF18: 17.19 | AG18: 16.77 | AH18: 16.99 | AI18: 17.65 | AJ18: 18.05 | AK18: 16.72 | AL18: 16.59 | AM18: 18.47 | AN18: 17.76 | AO18: 17.4 | AP18: 17.38
A19: Revenue | B19: 19: Revenue (UNADJUSTED) | C19: 9970 | D19: 9538 | E19: 8137 | F19: 7852 | G19: 8009 | H19: 8596 | I19: 8701 | J19: 9428 | K19: 9457 | L19: 9632 | M19: 9663 | N19: 10552 | O19: 10521 | P19: 10587 | Q19: 10564 | R19: 11008 | S19: 10792 | T19: 11107 | U19: 10953 | V19: 11435 | W19: 11024 | X19: 11403 | Y19: 11301 | Z19: 11839 | AA19: 11684 | AB19: 11939 | AC19: 11716 | AD19: 12114 | AE19: 12279 | AF19: 12453 | AG19: 12654 | AH19: 12979 | AI19: 14663 | AJ19: 14931 | AK19: 14997 | AL19: 15728 | AM19: 15297 | AN19: 16313 | AO19: 16526 | AP19: 17314
A20: Sales & Services Revenue | B20: 20: Sales & Services Revenue (UNADJUSTED) | C20: 9970 | D20: 9538 | E20: 8137 | F20: 7852 | G20: 8009 | H20: 8596 | I20: 8701 | J20: 9428 | K20: 9457 | L20: 9632 | M20: 9663 | N20: 10552 | O20: 10521 | P20: 10587 | Q20: 10564 | R20: 11008 | S20: 10792 | T20: 11107 | U20: 10953 | V20: 11435 | W20: 11024 | X20: 11403 | Y20: 11301 | Z20: 11839 | AA20: 11684 | AB20: 11939 | AC20: 11716 | AD20: 12114 | AE20: 12279 | AF20: 12453 | AG20: 12796 | AH20: 13022 | AI20: 14663 | AJ20: 14931 | AK20: 15138 | AL20: 15885 | AM20: 15297 | AN20: 16313 | AO20: 16683 | AP20: 16694
A21: Cost of Revenue | B21: 21: Cost of Revenue (UNADJUSTED) | C21: 8037 | D21: 7414 | E21: 6664 | F21: 6299 | G21: 6571 | H21: 6813 | I21: 7064 | J21: 7445 | K21: 7614 | L21: 7710 | M21: 7917 | N21: 8274 | O21: 8446 | P21: 8410 | Q21: 8500 | R21: 8614 | S21: 8654 | T21: 8961 | U21: 8899 | V21: 8898 | W21: 8819 | X21: 9002 | Y21: 9145 | Z21: 9036 | AA21: 9155 | AB21: 9323 | AC21: 9153 | AD21: 9074 | AE21: 9472 | AF21: 9587 | AG21: 9783 | AH21: 9697 | AI21: 11328 | AJ21: 11563 | AK21: 11812 | AL21: 11832 | AM21: 11910 | AN21: 12656 | AO21: 13117 | AP21: 13077
A22: Cost of Goods & Services | B22: 22: Cost of Goods & Services (UNADJUSTED) | C22: 7545 | D22: 6923 | E22: 6168 | F22: 5803 | G22: 6076 | H22: 6326 | I22: 6576 | J22: 6957 | K22: 7135 | L22: 7208 | M22: 7424 | N22: 7775 | O22: 7937 | P22: 7892 | Q22: 7957 | R22: 8071 | S22: 8081 | T22: 8369 | U22: 8300 | V22: 8276 | W22: 8180 | X22: 8355 | Y22: 8493 | Z22: 8387 | AA22: 8504 | AB22: 8672 | AC22: 8501 | AD22: 8417 | AE22: 8824 | AF22: 8934 | AG22: 9120 | AH22: 9030 | AI22: 10589 | AJ22: 10823 | AK22: 11050 | AL22: 11078 | AM22: 11159 | AN22: 11900 | AO22: 12331 | AP22: 12275
A23: Depreciation & Amortization | B23: 23: Depreciation & Amortization (UNADJUSTED) | C23: 492 | D23: 491 | E23: 496 | F23: 496 | G23: 495 | H23: 487 | I23: 488 | J23: 488 | K23: 479 | L23: 502 | M23: 493 | N23: 499 | O23: 509 | P23: 518 | Q23: 543 | R23: 543 | S23: 573 | T23: 592 | U23: 599 | V23: 622 | W23: 639 | X23: 647 | Y23: 652 | Z23: 649 | AA23: 651 | AB23: 651 | AC23: 652 | AD23: 657 | AE23: 648 | AF23: 653 | AG23: 663 | AH23: 667 | AI23: 739 | AJ23: 740 | AK23: 762 | AL23: 754 | AM23: 751 | AN23: 756 | AO23: 786 | AP23: 802
A24: Gross Profit | B24: 24: Gross Profit (UNADJUSTED) | C24: 1933 | D24: 2124 | E24: 1473 | F24: 1553 | G24: 1438 | H24: 1783 | I24: 1637 | J24: 1983 | K24: 1843 | L24: 1922 | M24: 1746 | N24: 2278 | O24: 2075 | P24: 2177 | Q24: 2064 | R24: 2394 | S24: 2138 | T24: 2146 | U24: 2054 | V24: 2537 | W24: 2205 | X24: 2401 | Y24: 2156 | Z24: 2803 | AA24: 2529 | AB24: 2616 | AC24: 2563 | AD24: 3040 | AE24: 2807 | AF24: 2866 | AG24: 2871 | AH24: 3282 | AI24: 3335 | AJ24: 3368 | AK24: 3185 | AL24: 3896 | AM24: 3387 | AN24: 3657 | AO24: 3409 | AP24: 4237
A25: Operating Expenses | B25: 25: Operating Expenses (UNADJUSTED) | C25: 1303 | D25: 1340 | E25: 1291 | F25: 1198 | G25: 1123 | H25: 1212 | I25: 1221 | J25: 1269 | K25: 1215 | L25: 1320 | M25: 1332 | N25: 1388 | O25: 1338 | P25: 1397 | Q25: 1317 | R25: 1404 | S25: 1392 | T25: 1415 | U25: 1418 | V25: 1439 | W25: 1410 | X25: 1478 | Y25: 1515 | Z25: 1524 | AA25: 1467 | AB25: 1528 | AC25: 1525 | AD25: 1698 | AE25: 1663 | AF25: 1671 | AG25: 2007 | AH25: 1775 | AI25: 2003 | AJ25: 2085 | AK25: 2082 | AL25: 2154 | AM25: 2151 | AN25: 2273 | AO25: 2302 | AP25: 2240
A26: Other Operating Expense | B26: 26: Other Operating Expense (UNADJUSTED) | C26: 1303 | D26: 1340 | E26: 1291 | F26: 1198 | G26: 1123 | H26: 1212 | I26: 1221 | J26: 1269 | K26: 1215 | L26: 1320 | M26: 1332 | N26: 1388 | O26: 1338 | P26: 1397 | Q26: 1317 | R26: 1404 | S26: 1392 | T26: 1415 | U26: 1418 | V26: 1439 | W26: 1410 | X26: 1478 | Y26: 1515 | Z26: 1524 | AA26: 1467 | AB26: 1528 | AC26: 1525 | AD26: 1698 | AE26: 1663 | AF26: 1671 | AG26: 2007 | AH26: 1775 | AI26: 2003 | AJ26: 2085 | AK26: 2082 | AL26: 2154 | AM26: 2151 | AN26: 2273 | AO26: 2302 | AP26: 2240
A27: Operating Income (Loss) | B27: 27: Operating Income (Loss) (UNADJUSTED) | C27: 630 | D27: 784 | E27: 182 | F27: 355 | G27: 315 | H27: 571 | I27: 416 | J27: 714 | K27: 628 | L27: 602 | M27: 414 | N27: 890 | O27: 737 | P27: 780 | Q27: 747 | R27: 990 | S27: 746 | T27: 731 | U27: 636 | V27: 1098 | W27: 795 | X27: 923 | Y27: 641 | Z27: 1279 | AA27: 1062 | AB27: 1088 | AC27: 1038 | AD27: 1342 | AE27: 1144 | AF27: 1195 | AG27: 864 | AH27: 1507 | AI27: 1332 | AJ27: 1283 | AK27: 1103 | AL27: 1742 | AM27: 1236 | AN27: 1384 | AO27: 1107 | AP27: 1997
A28: Non-Operating (Income) Loss | B28: 28: Non-Operating (Income) Loss (UNADJUSTED) | C28: 12 | D28: 10 | E28: 23 | F28: 25 | G28: 21 | H28: 24 | I28: 35 | J28: 24 | K28: 25 | L28: 32 | M28: 33 | N28: 23 | O28: 13 | P28: 3 | Q28: 21 | R28: 8 | S28: 15 | T28: 26 | U28: 25 | V28: 30 | W28: 29 | X28: 35 | Y28: 47 | Z28: 46 | AA28: 50 | AB28: 42 | AC28: 53 | AD28: 95 | AE28: 60 | AF28: 82 | AG28: 82 | AH28: 113 | AI28: 122 | AJ28: 124 | AK28: 126 | AL28: 121 | AM28: 135 | AN28: 123 | AO28: 127 | AP28: 132
A29: Interest Expense, Net | B29: 29: Interest Expense, Net (UNADJUSTED) | C29: 9 | D29: 10 | E29: 19 | F29: 21 | G29: 18 | H29: 15 | I29: 19 | J29: 19 | K29: 18 | L29: 23 | M29: 24 | N29: 12 | O29: 11 | P29: 7 | Q29: 12 | R29: 9 | S29: 10 | T29: 18 | U29: 9 | V29: 24 | W29: 27 | X29: 30 | Y29: 38 | Z29: 47 | AA29: 48 | AB29: 47 | AC29: 58 | AD29: 68 | AE29: 63 | AF29: 74 | AG29: 81 | AH29: 97 | AI29: 113 | AJ29: 119 | AK29: 122 | AL29: 125 | AM29: 114 | AN29: 124 | AO29: 125 | AP29: 147
A30: Interest Expense | B30: 30: Interest Expense (UNADJUSTED) | C30: 18 | D30: 18 | E30: 25 | F30: 24 | G30: 21 | H30: 17 | I30: 20 | J30: 21 | K30: 19 | L30: 26 | M30: 26 | N30: 15 | O30: 13 | P30: 9 | Q30: 15 | R30: 15 | S30: 12 | T30: 23 | U30: 19 | V30: 28 | W30: 31 | X30: 33 | Y30: 42 | Z30: 54 | AA30: 51 | AB30: 51 | AC30: 62 | AD30: 71 | AE30: 68 | AF30: 78 | AG30: 87 | AH30: 103 | AI30: 119 | AJ30: 123 | AK30: 128 | AL30: 142 | AM30: 125 | AN30: 131 | AO30: 138 | AP30: 163
A31: Interest Income | B31: 31: Interest Income (UNADJUSTED) | C31: 9 | D31: 8 | E31: 6 | F31: 3 | G31: 3 | H31: 2 | I31: 1 | J31: 2 | K31: 1 | L31: 3 | M31: 2 | N31: 3 | O31: 2 | P31: 2 | Q31: 3 | R31: 6 | S31: 2 | T31: 5 | U31: 10 | V31: 4 | W31: 4 | X31: 3 | Y31: 4 | Z31: 7 | AA31: 3 | AB31: 4 | AC31: 4 | AD31: 3 | AE31: 5 | AF31: 4 | AG31: 6 | AH31: 6 | AI31: 6 | AJ31: 4 | AK31: 6 | AL31: 17 | AM31: 11 | AN31: 7 | AO31: 13 | AP31: 16
A32: Other Non-Op (Income) Loss | B32: 32: Other Non-Op (Income) Loss (UNADJUSTED) | C32: 3 | D32: 0 | E32: 4 | F32: 4 | G32: 3 | H32: 9 | I32: 16 | J32: 5 | K32: 7 | L32: 9 | M32: 9 | N32: 11 | O32: 2 | P32: -4 | Q32: 9 | R32: -1 | S32: 5 | T32: 8 | U32: 16 | V32: 6 | W32: 2 | X32: 5 | Y32: 9 | Z32: -1 | AA32: 2 | AB32: -5 | AC32: -5 | AD32: 27 | AE32: -3 | AF32: 8 | AG32: 1 | AH32: 16 | AI32: 9 | AJ32: 5 | AK32: 4 | AL32: -4 | AM32: 21 | AN32: -1 | AO32: 2 | AP32: -15
A33: Pretax Income (Loss), Adjusted | B33: 33: Pretax Income (Loss), Adjusted (UNADJUSTED) | C33: 618 | D33: 774 | E33: 159 | F33: 330 | G33: 294 | H33: 547 | I33: 381 | J33: 690 | K33: 603 | L33: 570 | M33: 381 | N33: 867 | O33: 724 | P33: 777 | Q33: 726 | R33: 982 | S33: 731 | T33: 705 | U33: 611 | V33: 1068 | W33: 766 | X33: 888 | Y33: 594 | Z33: 1233 | AA33: 1012 | AB33: 1046 | AC33: 985 | AD33: 1247 | AE33: 1084 | AF33: 1113 | AG33: 782 | AH33: 1394 | AI33: 1210 | AJ33: 1159 | AK33: 977 | AL33: 1621 | AM33: 1101 | AN33: 1261 | AO33: 980 | AP33: 1865
A34: Pretax Income (Loss), GAAP | B34: 34: Pretax Income (Loss), GAAP (UNADJUSTED) | C34: 618 | D34: 774 | E34: 159 | F34: -874 | G34: 294 | H34: 547 | I34: 381 | J34: 672 | K34: 603 | L34: 437 | M34: 360 | N34: 865 | O34: 724 | P34: 777 | Q34: 792 | R34: 848 | S34: 727 | T34: 692 | U34: 564 | V34: 472 | W34: 766 | X34: 888 | Y34: 594 | Z34: 1218 | AA34: 1012 | AB34: 1046 | AC34: 985 | AD34: -1416 | AE34: 1084 | AF34: 1055 | AG34: 782 | AH34: -181 | AI34: 1142 | AJ34: 1078 | AK34: 899 | AL34: 1460 | AM34: 982 | AN34: 1139 | AO34: 874 | AP34: 1358
A35: Income Tax Expense (Benefit) | B35: 35: Income Tax Expense (Benefit) (UNADJUSTED) | C35: 234 | D35: 281 | E35: 62 | F35: 2 | G35: 113 | H35: 202 | I35: 142 | J35: 253 | K35: 223 | L35: 154 | M35: 129 | N35: 307 | O35: 260 | P35: 280 | Q35: 271 | R35: 298 | S35: 268 | T35: 254 | U35: 203 | V35: 169 | W35: 277 | X35: 329 | Y35: 216 | Z35: 438 | AA35: 359 | AB35: 383 | AC35: 357 | AD35: -521 | AE35: 392 | AF35: 364 | AG35: 275 | AH35: -111 | AI35: 427 | AJ35: 378 | AK35: 337 | AL35: 440 | AM35: 386 | AN35: 364 | AO35: -1200 | AP35: 231
A36: Income (Loss) from Cont Ops | B36: 36: Income (Loss) from Cont Ops (UNADJUSTED) | C36: 384 | D36: 493 | E36: 97 | F36: -876 | G36: 181 | H36: 345 | I36: 239 | J36: 419 | K36: 380 | L36: 283 | M36: 231 | N36: 558 | O36: 464 | P36: 497 | Q36: 521 | R36: 550 | S36: 459 | T36: 438 | U36: 361 | V36: 303 | W36: 489 | X36: 559 | Y36: 378 | Z36: 780 | AA36: 653 | AB36: 663 | AC36: 628 | AD36: -895 | AE36: 692 | AF36: 691 | AG36: 507 | AH36: -70 | AI36: 715 | AJ36: 700 | AK36: 562 | AL36: 1020 | AM36: 596 | AN36: 775 | AO36: 2074 | AP36: 1127
A37: Income (Loss) Incl. MI | B37: 37: Income (Loss) Incl. MI (UNADJUSTED) | C37: 384 | D37: 493 | E37: 97 | F37: -876 | G37: 181 | H37: 345 | I37: 239 | J37: 419 | K37: 380 | L37: 283 | M37: 231 | N37: 558 | O37: 464 | P37: 497 | Q37: 521 | R37: 550 | S37: 459 | T37: 438 | U37: 361 | V37: 303 | W37: 489 | X37: 559 | Y37: 378 | Z37: 780 | AA37: 653 | AB37: 663 | AC37: 628 | AD37: -895 | AE37: 692 | AF37: 691 | AG37: 507 | AH37: -70 | AI37: 715 | AJ37: 700 | AK37: 562 | AL37: 1020 | AM37: 596 | AN37: 775 | AO37: 2074 | AP37: 1127
A38: Net Income, GAAP | B38: 38: Net Income, GAAP (UNADJUSTED) | C38: 384 | D38: 493 | E38: 97 | F38: -876 | G38: 181 | H38: 345 | I38: 239 | J38: 419 | K38: 380 | L38: 283 | M38: 231 | N38: 558 | O38: 464 | P38: 497 | Q38: 521 | R38: 550 | S38: 459 | T38: 438 | U38: 361 | V38: 303 | W38: 489 | X38: 559 | Y38: 378 | Z38: 780 | AA38: 653 | AB38: 663 | AC38: 628 | AD38: -895 | AE38: 692 | AF38: 691 | AG38: 507 | AH38: -70 | AI38: 715 | AJ38: 700 | AK38: 562 | AL38: 1020 | AM38: 596 | AN38: 775 | AO38: 2074 | AP38: 1127
A39: Net Income Avail to Common, GAAP | B39: 39: Net Income Avail to Common, GAAP (UNADJUSTED) | C39: 384 | D39: 493 | E39: 97 | F39: -876 | G39: 181 | H39: 345 | I39: 239 | J39: 419 | K39: 380 | L39: 283 | M39: 231 | N39: 558 | O39: 464 | P39: 497 | Q39: 521 | R39: 550 | S39: 459 | T39: 438 | U39: 361 | V39: 303 | W39: 489 | X39: 559 | Y39: 378 | Z39: 780 | AA39: 653 | AB39: 663 | AC39: 628 | AD39: -895 | AE39: 692 | AF39: 691 | AG39: 507 | AH39: -70 | AI39: 715 | AJ39: 700 | AK39: 562 | AL39: 1020 | AM39: 596 | AN39: 775 | AO39: 2074 | AP39: 1127
A40: Net Income Avail to Common, Adj | B40: 40: Net Income Avail to Common, Adj (UNADJUSTED) | C40: 384 | D40: 493 | E40: 97 | F40: 206.6 | G40: 181 | H40: 345 | I40: 239 | J40: 430.7 | K40: 380 | L40: 368.32 | M40: 244.65 | N40: 559.3 | O40: 464 | P40: 497 | Q40: 489.4 | R40: 634 | S40: 461.6 | T40: 446.45 | U40: 391 | V40: 679 | W40: 489 | X40: 559 | Y40: 378 | Z40: 788.88 | AA40: 653 | AB40: 663 | AC40: 628 | AD40: 795 | AE40: 692 | AF40: 728 | AG40: 507 | AH40: 897 | AI40: 760 | AJ40: 778.4 | AK40: 625 | AL40: 1138 | AM40: 683 | AN40: 866 | AO40: 980 | AP40: 1605
A41: Diluted Weighted Avg Shares | B41: 41: Diluted Weighted Avg Shares (UNADJUSTED) | C41: 313 | D41: 312 | E41: 312 | F41: 311 | G41: 312 | H41: 314 | I41: 315 | J41: 316 | K41: 315 | L41: 316 | M41: 317 | N41: 318 | O41: 318 | P41: 316 | Q41: 316 | R41: 317 | S41: 316 | T41: 315 | U41: 317 | V41: 319 | W41: 319 | X41: 319.4286 | Y41: 307 | Z41: 296 | AA41: 289 | AB41: 287 | AC41: 287 | AD41: 283 | AE41: 286 | AF41: 283 | AG41: 275 | AH41: 269.2308 | AI41: 269 | AJ41: 270 | AK41: 271 | AL41: 271 | AM41: 272 | AN41: 272 | AO41: 273 | AP41: 271
A42: Revenue | B42: 42: Revenue (UNADJUSTED) | C42: 9970 | D42: 9538 | E42: 8137 | F42: 7852 | G42: 8009 | H42: 8596 | I42: 8701 | J42: 9428 | K42: 9457 | L42: 9632 | M42: 9663 | N42: 10552 | O42: 10521 | P42: 10587 | Q42: 10564 | R42: 11008 | S42: 10792 | T42: 11107 | U42: 10953 | V42: 11435 | W42: 11024 | X42: 11403 | Y42: 11301 | Z42: 11839 | AA42: 11684 | AB42: 11939 | AC42: 11716 | AD42: 12114 | AE42: 12279 | AF42: 12453 | AG42: 12654 | AH42: 12979 | AI42: 14663 | AJ42: 14931 | AK42: 14997 | AL42: 15728 | AM42: 15297 | AN42: 16313 | AO42: 16526 | AP42: 17314
A43: FedEx Express | B43: 43: FedEx Express (UNADJUSTED) | C43: 6419 | D43: 6098 | E43: 5050 | F43: 4797 | G43: 4924 | H43: 5314 | I43: 5440 | J43: 5877 | K43: 5912 | L43: 5992 | M43: 6049 | N43: 6628 | O43: 6592 | P43: 6583 | Q43: 6543 | R43: 6797 | S43: 6632 | T43: 6858 | U43: 6704 | V43: 6977 | W43: 6605 | X43: 6844 | Y43: 6674 | Z43: 6998 | AA43: 6862 | AB43: 7024 | AC43: 6656 | AD43: 6697 | AE43: 6591 | AF43: 6588 | AG43: 6557 | AH43: 6715 | AI43: 8460 | AJ43: 8642 | AK43: 8569 | AL43: 8822 | AM43: 8400 | AN43: 9076 | AO43: 9098 | AP43: 9598
A44: Package | B44: 44: Package (UNADJUSTED) | C44: 5212 | D44: 4933 | E44: 4142 | F44: 3974 | G44: 4068 | H44: 4307 | I44: 4395 | J44: 4726 | K44: 4706 | L44: 4745 | M44: 4814 | N44: 5285 | O44: 5227 | P44: 5163 | Q44: 5126 | R44: 5339 | S44: 5193 | T44: 5326 | U44: 5234 | V44: 5515 | W44: 5185 | X44: 5388 | Y44: 5334 | Z44: 5598 | AA44: 5464 | AB44: 5569 | AC44: 5291 | AD44: 5309 | AE44: 5261 | AF44: 5242 | AG44: 5233 | AH44: 5332 | AI44: 6398 | AJ44: 6531 | AK44: 6510 | AL44: 6835 | AM44: 6633 | AN44: 7009 | AO44: 7001 | AP44: 7354
A45: Total U.S. Domestic package revenue | B45: 45: Total U.S. Domestic package revenue (UNADJUSTED) | C45: 2998 | D45: 2845 | E45: 2518 | F45: 2357 | G45: 2340 | H45: 2393 | I45: 2505 | J45: 2593 | K45: 2584 | L45: 2571 | M45: 2682 | N45: 2832 | O45: 2822 | P45: 2775 | Q45: 2837 | R45: 2860 | S45: 2736 | T45: 2750 | U45: 2834 | V45: 2918 | W45: 2732 | X45: 2794 | Y45: 2905 | Z45: 2948 | AA45: 2892 | AB45: 2939 | AC45: 2940 | AD45: 2904 | AE45: 2896 | AF45: 2905 | AG45: 3038 | AH45: 2965 | AI45: 2975 | AJ45: 2965 | AK45: 3118 | AL45: 3173 | AM45: 3078 | AN45: 3141 | AO45: 3267 | AP45: 3313
A46: U.S. Overnight Box | B46: 46: U.S. Overnight Box (UNADJUSTED) | C46: 1711 | D46: 1619 | E46: 1410 | F46: 1334 | G46: 1331 | H46: 1372 | I46: 1413 | J46: 1486 | K46: 1491 | L46: 1489 | M46: 1514 | N46: 1634 | O46: 1640 | P46: 1623 | Q46: 1619 | R46: 1664 | S46: 1604 | T46: 1609 | U46: 1609 | V46: 1691 | W46: 1584 | X46: 1625 | Y46: 1643 | Z46: 1703 | AA46: 1682 | AB46: 1705 | AC46: 1653 | AD46: 1664 | AE46: 1658 | AF46: 1682 | AG46: 1704 | AH46: 1719 | AI46: 1722 | AJ46: 1709 | AK46: 1742 | AL46: 1782 | AM46: 1750 | AN46: 1787 | AO46: 1836 | AP46: 1900
A47: U.S. Deferred | B47: 47: U.S. Deferred (UNADJUSTED) | C47: 762 | D47: 740 | E47: 682 | F47: 605 | G47: 601 | H47: 626 | I47: 692 | J47: 670 | K47: 661 | L47: 666 | M47: 743 | N47: 735 | O47: 731 | P47: 731 | Q47: 792 | R47: 747 | S47: 702 | T47: 732 | U47: 812 | V47: 774 | W47: 729 | X47: 771 | Y47: 869 | Z47: 819 | AA47: 795 | AB47: 834 | AC47: 895 | AD47: 818 | AE47: 816 | AF47: 826 | AG47: 926 | AH47: 811 | AI47: 810 | AJ47: 834 | AK47: 954 | AL47: 928 | AM47: 878 | AN47: 922 | AO47: 996 | AP47: 942
A48: U.S. Overnight Envelope | B48: 48: U.S. Overnight Envelope (UNADJUSTED) | C48: 525 | D48: 486 | E48: 426 | F48: 418 | G48: 408 | H48: 395 | I48: 400 | J48: 437 | K48: 432 | L48: 416 | M48: 425 | N48: 463 | O48: 451 | P48: 421 | Q48: 426 | R48: 449 | S48: 430 | T48: 409 | U48: 413 | V48: 453 | W48: 419 | X48: 398 | Y48: 393 | Z48: 426 | AA48: 415 | AB48: 400 | AC48: 392 | AD48: 422 | AE48: 422 | AF48: 397 | AG48: 408 | AH48: 435 | AI48: 443 | AJ48: 422 | AK48: 422 | AL48: 463 | AM48: 450 | AN48: 432 | AO48: 435 | AP48: 471
A49: International Export Package | B49: 49: International Export Package (UNADJUSTED) | C49: 2044 | D49: 1930 | E49: 1507 | F49: 1497 | G49: 1594 | H49: 1763 | I49: 1748 | J49: 1982 | K49: 1974 | L49: 2009 | M49: 1974 | N49: 2271 | O49: 2198 | P49: 2171 | Q49: 2079 | R49: 2260 | S49: 2148 | T49: 2192 | U49: 2058 | V49: 2234 | W49: 2108 | X49: 2209 | Y49: 2082 | Z49: 2281 | AA49: 2201 | AB49: 2247 | AC49: 2023 | AD49: 2081 | AE49: 2038 | AF49: 2001 | AG49: 1892 | AH49: 2048 | AI49: 2408 | AJ49: 2478 | AK49: 2359 | AL49: 2572 | AM49: 2511 | AN49: 2654 | AO49: 2606 | AP49: 2840
A50: International Priority | B50: 50: International Priority (UNADJUSTED) | C50: — | D50: — | E50: — | F50: — | G50: — | H50: — | I50: — | J50: — | K50: 1652 | L50: 1659 | M50: 1610 | N50: 1839 | O50: 1757 | P50: 1711 | Q50: 1625 | R50: 1756 | S50: 1661 | T50: 1678 | U50: 1567 | V50: 1680 | W50: 1576 | X50: 1642 | Y50: 1542 | Z50: 1691 | AA50: 1630 | AB50: 1649 | AC50: 1463 | AD50: 1509 | AE50: 1464 | AF50: 1433 | AG50: 1346 | AH50: 1454 | AI50: 1715 | AJ50: 1762 | AK50: 1667 | AL50: 1797 | AM50: 1741 | AN50: 1839 | AO50: 1813 | AP50: 1963
A51: International Economy | B51: 51: International Economy (UNADJUSTED) | C51: — | D51: — | E51: — | F51: — | G51: — | H51: — | I51: — | J51: — | K51: 322 | L51: 350 | M51: 364 | N51: 432 | O51: 441 | P51: 460 | Q51: 454 | R51: 504 | S51: 487 | T51: 514 | U51: 491 | V51: 554 | W51: 532 | X51: 567 | Y51: 540 | Z51: 590 | AA51: 571 | AB51: 598 | AC51: 560 | AD51: 572 | AE51: 574 | AF51: 568 | AG51: 546 | AH51: 594 | AI51: 693 | AJ51: 716 | AK51: 692 | AL51: 775 | AM51: 770 | AN51: 815 | AO51: 793 | AP51: 877
A52: International Domestic | B52: 52: International Domestic (UNADJUSTED) | C52: 170 | D52: 158 | E52: 117 | F52: 120 | G52: 134 | H52: 151 | I52: 142 | J52: 151 | K52: 148 | L52: 165 | M52: 158 | N52: 182 | O52: 207 | P52: 217 | Q52: 210 | R52: 219 | S52: 309 | T52: 384 | U52: 342 | V52: 363 | W52: 345 | X52: 385 | Y52: 347 | Z52: 369 | AA52: 371 | AB52: 383 | AC52: 328 | AD52: 324 | AE52: 327 | AF52: 336 | AG52: 303 | AH52: 319 | AI52: 1015 | AJ52: 1088 | AK52: 1033 | AL52: 1090 | AM52: 1044 | AN52: 1214 | AO52: 1128 | AP52: 1201
A53: Freight | B53: 53: Freight (UNADJUSTED) | C53: 1069 | D53: 1028 | E53: 813 | F53: 728 | G53: 770 | H53: 874 | I53: 915 | J53: 975 | K53: 999 | L53: 1034 | M53: 1045 | N53: 1115 | O53: 1117 | P53: 1172 | Q53: 1167 | R53: 1176 | S53: 1123 | T53: 1168 | U53: 1116 | V53: 1109 | W53: 1066 | X53: 1057 | Y53: 1004 | Z53: 1027 | AA53: 1020 | AB53: 1040 | AC53: 1000 | AD53: 1008 | AE53: 959 | AF53: 964 | AG53: 1002 | AH53: 1066 | AI53: 1567 | AJ53: 1600 | AK53: 1659 | AL53: 1706 | AM53: 1547 | AN53: 1829 | AO53: 1875 | AP53: 2009
A54: U.S. | B54: 54: U.S. (UNADJUSTED) | C54: 598 | D54: 594 | E54: 523 | F54: 450 | G54: 449 | H54: 490 | I54: 525 | J54: 516 | K54: 523 | L54: 530 | M54: 565 | N54: 570 | O54: 591 | P54: 628 | Q54: 647 | R54: 632 | S54: 610 | T54: 645 | U54: 668 | V54: 639 | W54: 624 | X54: 585 | Y54: 577 | Z54: 569 | AA54: 579 | AB54: 586 | AC54: 580 | AD54: 555 | AE54: 573 | AF54: 578 | AG54: 647 | AH54: 683 | AI54: 616 | AJ54: 612 | AK54: 667 | AL54: 632 | AM54: 613 | AN54: 688 | AO54: 739 | AP54: 757
A55: International Priority freight | B55: 55: International Priority freight (UNADJUSTED) | C55: 340 | D55: 323 | E55: 221 | F55: 220 | G55: 260 | H55: 321 | I55: 329 | J55: 393 | K55: 406 | L55: 435 | M55: 412 | N55: 469 | O55: 449 | P55: 470 | Q55: 443 | R55: 465 | S55: 439 | T55: 446 | U55: 384 | V55: 409 | W55: 388 | X55: 417 | Y55: 379 | Z55: 410 | AA55: 395 | AB55: 412 | AC55: 375 | AD55: 406 | AE55: 253 | AF55: 354 | AG55: 325 | AH55: 256 | AI55: 449 | AJ55: 476 | AK55: 471 | AL55: 516 | AM55: 470 | AN55: 560 | AO55: 551 | AP55: 598
A56: International Airfreight | B56: 56: International Airfreight (UNADJUSTED) | C56: 131 | D56: 111 | E56: 69 | F56: 58 | G56: 61 | H56: 63 | I56: 61 | J56: 66 | K56: 70 | L56: 69 | M56: 68 | N56: 76 | O56: 77 | P56: 74 | Q56: 77 | R56: 79 | S56: 74 | T56: 77 | U56: 64 | V56: 61 | W56: 54 | X56: 55 | Y56: 48 | Z56: 48 | AA56: 46 | AB56: 42 | AC56: 45 | AD56: 47 | AE56: 36 | AF56: 32 | AG56: 30 | AH56: 28 | AI56: 93 | AJ56: 93 | AK56: 84 | AL56: 85 | AM56: 83 | AN56: 100 | AO56: 93 | AP56: 92
A57: Other | B57: 57: Other (UNADJUSTED) | C57: 138 | D57: 137 | E57: 95 | F57: 95 | G57: 86 | H57: 133 | I57: 130 | J57: 176 | K57: 207 | L57: 213 | M57: 190 | N57: 228 | O57: 248 | P57: 248 | Q57: 250 | R57: 282 | S57: 316 | T57: 364 | U57: 354 | V57: 353 | W57: 354 | X57: 399 | Y57: 336 | Z57: 373 | AA57: 378 | AB57: 415 | AC57: 365 | AD57: 380 | AE57: 371 | AF57: 382 | AG57: 322 | AH57: 317 | AI57: 495 | AJ57: 511 | AK57: 400 | AL57: 281 | AM57: 220 | AN57: 238 | AO57: 222 | AP57: 235
A58: FedEx Ground | B58: 58: FedEx Ground (UNADJUSTED) | C58: 1761 | D58: 1789 | E58: 1793 | F58: 1704 | G58: 1730 | H58: 1837 | I58: 1910 | J58: 1962 | K58: 1961 | L58: 2077 | M58: 2184 | N58: 2263 | O58: 2278 | P58: 2339 | Q58: 2480 | R58: 2476 | S58: 2462 | T58: 2593 | U58: 2747 | V58: 2776 | W58: 2730 | X58: 2849 | Y58: 3031 | Z58: 3007 | AA58: 2960 | AB58: 3063 | AC58: 3393 | AD58: 3568 | AE58: 3830 | AF58: 4050 | AG58: 4408 | AH58: 4286 | AI58: 4290 | AJ58: 4419 | AK58: 4688 | AL58: 4296 | AM58: 4245 | AN58: 4525 | AO58: 4828 | AP58: 4797
A59: FedEx Ground | B59: 59: FedEx Ground (UNADJUSTED) | C59: 1681 | D59: 1681 | E59: 1689 | F59: 1612 | G59: 1637 | H59: 1712 | I59: 1768 | J59: 1840 | K59: 1839 | L59: 1916 | M59: 2001 | N59: 2099 | O59: 2116 | P59: 2143 | Q59: 2259 | R59: 2273 | S59: 2273 | T59: 2359 | U59: 2480 | V59: 2540 | W59: 2506 | X59: 2601 | Y59: 2751 | Z59: 2776 | AA59: 2960 | AB59: 3063 | AC59: 3306 | AD59: 3239 | AE59: 3460 | AF59: 3677 | AG59: 4025 | AH59: 3889 | AI59: 3891 | AJ59: 4015 | AK59: 4296 | AL59: — | AM59: 4245 | AN59: 4525 | AO59: 4828 | AP59: 4797
A60: FedEx SmartPost | B60: 60: FedEx SmartPost (UNADJUSTED) | C60: 80 | D60: 80 | E60: 104 | F60: 92 | G60: 93 | H60: 125 | I60: 142 | J60: 122 | K60: 122 | L60: 161 | M60: 183 | N60: 164 | O60: 162 | P60: 196 | Q60: 221 | R60: 203 | S60: 189 | T60: 234 | U60: 267 | V60: 236 | W60: 224 | X60: 248 | Y60: 280 | Z60: 231 | AA60: — | AB60: — | AC60: — | AD60: — | AE60: — | AF60: — | AG60: — | AH60: — | AI60: — | AJ60: — | AK60: — | AL60: — | AM60: — | AN60: — | AO60: — | AP60: —
A61: FedEx Freight | B61: 61: FedEx Freight (UNADJUSTED) | C61: 1353 | D61: 1200 | E61: 914 | F61: 948 | G61: 982 | H61: 1068 | I61: 1040 | J61: 1231 | K61: 1258 | L61: 1221 | M61: 1123 | N61: 1309 | O61: 1328 | P61: 1325 | Q61: 1234 | R61: 1395 | S61: 1399 | T61: 1377 | U61: 1237 | V61: 1388 | W61: 1424 | X61: 1434 | Y61: 1347 | Z61: 1552 | AA61: 1609 | AB61: 1585 | AC61: 1428 | AD61: 1569 | AE61: 1601 | AF61: 1547 | AG61: 1447 | AH61: 1605 | AI61: 1658 | AJ61: 1597 | AK61: 1492 | AL61: 1600 | AM61: 1664 | AN61: 1673 | AO61: 1613 | AP61: 1862
A62: Other and Eliminations | B62: 62: Other and Eliminations (UNADJUSTED) | C62: -76 | D62: -77 | E62: -78 | F62: -75 | G62: -78 | H62: -88 | I62: -95 | J62: -90 | K62: -89 | L62: -92 | M62: -90 | N62: -86 | O62: -88 | P62: -87 | Q62: -94 | R62: -92 | S62: -90 | T62: -126 | U62: -115 | V62: -112 | W62: -110 | X62: -115 | Y62: -119 | Z62: -120 | AA62: -121 | AB62: -127 | AC62: -131 | AD62: -127 | AE62: -133 | AF62: -135 | AG62: -142 | AH62: -43 | AI62: -140 | AJ62: -141 | AK62: -141 | AL62: 587 | AM62: 588 | AN62: 623 | AO62: 590 | AP62: 620
A63: FedEx Services | B63: 63: FedEx Services (UNADJUSTED) | C63: 513 | D63: 528 | E63: 458 | F63: 478 | G63: 451 | H63: 465 | I63: 406 | J63: 448 | K63: 415 | L63: 434 | M63: 397 | N63: 438 | O63: 411 | P63: 427 | Q63: 401 | R63: 432 | S63: 389 | T63: 405 | U63: 380 | V63: 406 | W63: 375 | X63: 391 | Y63: 368 | Z63: 402 | AA63: 374 | AB63: 394 | AC63: 370 | AD63: 407 | AE63: 390 | AF63: 403 | AG63: 384 | AH63: 416 | AI63: 395 | AJ63: 414 | AK63: 389 | AL63: 423 | AM63: 400 | AN63: 416 | AO63: 397 | AP63: 437
A64: Operating Income | B64: 64: Operating Income (UNADJUSTED) | C64: 630 | D64: 784 | E64: 182 | F64: -849 | G64: 315 | H64: 571 | I64: 416 | J64: 696 | K64: 628 | L64: 469 | M64: 393 | N64: 888 | O64: 737 | P64: 780 | Q64: 813 | R64: 856 | S64: 742 | T64: 718 | U64: 589 | V64: 1998 | W64: 887 | X64: 919 | Y64: 641 | Z64: 1264 | AA64: 1062 | AB64: 1088 | AC64: 1038 | AD64: -1321 | AE64: 1144 | AF64: 1137 | AG64: 864 | AH64: -68 | AI64: 1264 | AJ64: 1167 | AK64: 1025 | AL64: 1581 | AM64: 1117 | AN64: 1262 | AO64: 1001 | AP64: 1490
A65: FedEx Express | B65: 65: FedEx Express (UNADJUSTED) | C65: 345 | D65: 540 | E65: 45 | F65: -136 | G65: 104 | H65: 345 | I65: 265 | J65: 413 | K65: 357 | L65: 264 | M65: 178 | N65: 429 | O65: 288 | P65: 342 | Q65: 349 | R65: 281 | S65: 245 | T65: 230 | U65: 118 | V65: 94 | W65: 305 | X65: 389 | Y65: 168 | Z65: 534 | AA65: 377 | AB65: 492 | AC65: 393 | AD65: 322 | AE65: 545 | AF65: 622 | AG65: 595 | AH65: 757 | AI65: 610 | AJ65: 706 | AK65: 557 | AL65: 888 | AM65: 438 | AN65: 719 | AO65: 431 | AP65: 990
A66: FedEx Ground | B66: 66: FedEx Ground (UNADJUSTED) | C66: 196 | D66: 212 | E66: 196 | F66: 203 | G66: 209 | H66: 238 | I66: 258 | J66: 319 | K66: 287 | L66: 296 | M66: 325 | N66: 417 | O66: 407 | P66: 398 | Q66: 465 | R66: 494 | S66: 459 | T66: 412 | U66: 467 | V66: 482 | W66: 483 | X66: 439 | Y66: 490 | Z66: 601 | AA66: 545 | AB66: 465 | AC66: 559 | AD66: 603 | AE66: 537 | AF66: 526 | AG66: 557 | AH66: 656 | AI66: 610 | AJ66: 465 | AK66: 515 | AL66: 704 | AM66: 625 | AN66: 515 | AO66: 633 | AP66: 832
A67: FedEx Freight | B67: =ROW(A67)&": "&A67&" (UNADJUSTED)" -> 67: FedEx Freight (UNADJUSTED) | C67: 89 | D67: 32 | E67: -59 | F67: -106 | G67: 2 | H67: -12 | I67: -107 | J67: -36 | K67: -16 | L67: -91 | M67: -110 | N67: 42 | O67: 42 | P67: 40 | Q67: -1 | R67: 81 | S67: 98 | T67: 76 | U67: 4 | V67: 47 | W67: 99 | X67: 83 | Y67: 35 | Z67: 130 | AA67: 168 | AB67: 112 | AC67: 67 | AD67: 137 | AE67: 132 | AF67: 101 | AG67: 56 | AH67: 137 | AI67: 135 | AJ67: 88 | AK67: 41 | AL67: 130 | AM67: 171 | AN67: 115 | AO67: 56 | AP67: 175
A68: FedEx Ground | B68: 68: FedEx Ground (UNADJUSTED) | C68: 11.1 | D68: 11.9 | E68: 10.9 | F68: 11.9 | G68: 12.1 | H68: 13 | I68: 13.5 | J68: 16.3 | K68: 14.6 | L68: 14.3 | M68: 14.9 | N68: 18.4 | O68: 17.9 | P68: 17 | Q68: 18.8 | R68: 20 | S68: 18.6 | T68: 15.9 | U68: 17.6 | V68: 17.4 | W68: 17.7 | X68: 15.4 | Y68: 16.2 | Z68: 20 | AA68: 18.4 | AB68: 15.2 | AC68: 16.5 | AD68: 16.9 | AE68: 14 | AF68: 13 | AG68: 12.6 | AH68: 15.3 | AI68: 14.2 | AJ68: 10.5 | AK68: 11 | AL68: 16.4 | AM68: 13.5 | AN68: 10.6 | AO68: 12.1 | AP68: 17.3
A69: FedEx Express | B69: 69: FedEx Express (UNADJUSTED) | C69: 5.4 | D69: 8.9 | E69: 0.9 | F69: -2.8 | G69: 2.1 | H69: 6.5 | I69: 4.9 | J69: 7 | K69: 6 | L69: 4.4 | M69: 2.9 | N69: 6.5 | O69: 4.4 | P69: 5.2 | Q69: 5.3 | R69: 4.1 | S69: 3.7 | T69: 3.4 | U69: 3.1 | V69: 1.3 | W69: 4.6 | X69: 5.7 | Y69: 2.5 | Z69: 7.6 | AA69: 5.5 | AB69: 7 | AC69: 5.9 | AD69: 4.8 | AE69: 8.3 | AF69: 9.4 | AG69: 9.1 | AH69: 11.3 | AI69: 7.2 | AJ69: 8.2 | AK69: 6.5 | AL69: 11.5 | AM69: 5 | AN69: 7.7 | AO69: 4.5 | AP69: 10.3
A70: FedEx Freight | B70: 70: FedEx Freight (UNADJUSTED) | C70: 6.6 | D70: 2.7 | E70: -6.5 | F70: -11.2 | G70: 0.2 | H70: -1.1 | I70: -10.3 | J70: 2.9 | K70: -1.3 | L70: -7.5 | M70: -9.8 | N70: 3.2 | O70: 3.2 | P70: 3 | Q70: -0.1 | R70: 5.8 | S70: 7 | T70: 5.5 | U70: 1.1 | V70: 3.4 | W70: 7 | X70: 5.8 | Y70: 2.6 | Z70: 8.4 | AA70: 10.4 | AB70: 7.1 | AC70: 4.7 | AD70: 8.7 | AE70: 8.2 | AF70: 6.5 | AG70: 3.9 | AH70: 8.5 | AI70: 8.1 | AJ70: 5.5 | AK70: 2.7 | AL70: 8.1 | AM70: 10 | AN70: 6.7 | AO70: 3.2 | AP70: 9.4
A71: Freight | B71: 71: Freight (UNADJUSTED) | C71: 93.4 | D71: 97.3 | E71: 106.5 | F71: 111.2 | G71: 99.8 | H71: 101.1 | I71: 110.3 | J71: 102.9 | K71: 101.3 | L71: 107.5 | M71: 109.8 | N71: 96.8 | O71: 96.8 | P71: 97 | Q71: 100.1 | R71: 94 | S71: 93.6 | T71: 93.83 | U71: 98.95 | V71: 96.61 | W71: 93.05 | X71: 94.21 | Y71: 97.32 | Z71: 91.62 | AA71: 94.5 | AB71: 92.93 | AC71: 95.3 | AD71: 91.27 | AE71: 91.7 | AF71: 93.47 | AG71: 96.13 | AH71: 84.69 | AI71: 91.9 | AJ71: 94.49 | AK71: 97.25 | AL71: 92.158 | AM71: 89.95 | AN71: 93.3 | AO71: 96.75 | AP71: 90.6
A72: FedEx Express | B72: 72: FedEx Express (UNADJUSTED) | C72: 94.6 | D72: 91.1 | E72: 99.1 | F72: 102.9 | G72: 97.9 | H72: 93.5 | I72: 95.1 | J72: 93 | K72: 94 | L72: 95.6 | M72: 97.1 | N72: 93.6 | O72: 95.6 | P72: 94.8 | Q72: 94.7 | R72: 96 | S72: 96.9 | T72: 95.3 | U72: 96.85 | V72: 98.65 | W72: 95.87 | X72: 94.78 | Y72: 97 | Z72: 92.37 | AA72: 94.5 | AB72: 92.99 | AC72: 94.09 | AD72: 95.19 | AE72: 90.68 | AF72: 90.56 | AG72: 90.92 | AH72: 88.73 | AI72: 92.8 | AJ72: 91.83 | AK72: 93.5 | AL72: 87.98 | AM72: 95 | AN72: 92.33 | AO72: 95.47 | AP72: 89.68
A73: FedEx Ground | B73: 73: FedEx Ground (UNADJUSTED) | C73: 88.9 | D73: 88.1 | E73: 89.1 | F73: 88.1 | G73: 87.9 | H73: 87 | I73: 86.5 | J73: 83.8 | K73: 85.4 | L73: 85.7 | M73: 85.1 | N73: 81.6 | O73: 82.1 | P73: 83 | Q73: 81.2 | R73: 80 | S73: 81.9 | T73: 83.41 | U73: 82.38 | V73: 82.63 | W73: 82.31 | X73: 84.59 | Y73: 83.73 | Z73: 80.01 | AA73: 81.6 | AB73: 84.82 | AC73: 83.52 | AD73: 83.1 | AE73: 86 | AF73: 87.01 | AG73: 87.36 | AH73: 91.46 | AI73: 85.8 | AJ73: 89.48 | AK73: 89.01 | AL73: 84.99 | AM73: 86.51 | AN73: 89.43 | AO73: 87.86 | AP73: 82.65
A74: Salaries Wages and Employee Benefits | B74: 74: Salaries Wages and Employee Benefits (UNADJUSTED) | C74: 3010 | D74: 2930 | E74: 2871 | F74: 2755 | G74: 2832 | H74: 2837 | I74: 2957 | J74: 3062 | K74: 3165 | L74: 3155 | M74: 3212 | N74: 3236 | O74: 3342 | P74: 3316 | Q74: 3345 | R74: 3421 | S74: 3449 | T74: 3473 | U74: 3506 | V74: 3545 | W74: 3452 | X74: 3495 | Y74: 3536 | Z74: 3538 | AA74: 3582 | AB74: 3695 | AC74: 3800 | AD74: 3871 | AE74: 3897 | AF74: 3940 | AG74: 4074 | AH74: 4088 | AI74: 4647 | AJ74: 4695 | AK74: 4737 | AL74: 4566 | AM74: 4834 | AN74: 5068 | AO74: 5265 | AP74: 4984
A75: FedEx Express | B75: 75: FedEx Express (UNADJUSTED) | C75: 2129 | D75: 2059 | E75: 2064 | F75: 1965 | G75: 2043 | H75: 2036 | I75: 2136 | J75: 2187 | K75: 2258 | L75: 2253 | M75: 2321 | N75: 2351 | O75: 2413 | P75: 2377 | Q75: 2410 | R75: 2457 | S75: 2473 | T75: 2488 | U75: 2539 | V75: 2545 | W75: 2440 | X75: 2439 | Y75: 2480 | Z75: 2467 | AA75: 2478 | AB75: 2524 | AC75: 2572 | AD75: 2530 | AE75: 2523 | AF75: 2513 | AG75: 2602 | AH75: 2602 | AI75: 3109 | AJ75: 3114 | AK75: 3170 | AL75: 3135 | AM75: 3196 | AN75: 3321 | AO75: 3484 | AP75: 3365
A76: FedEx Freight | B76: 76: FedEx Freight (UNADJUSTED) | C76: 614 | D76: 592 | E76: 529 | F76: 512 | G76: 507 | H76: 513 | I76: 532 | J76: 576 | K76: 600 | L76: 584 | M76: 562 | N76: 557 | O76: 578 | P76: 577 | Q76: 566 | R76: 595 | S76: 599 | T76: 589 | U76: 562 | V76: 592 | W76: 598 | X76: 611 | Y76: 598 | Z76: 636 | AA76: 656 | AB76: 686 | AC76: 664 | AD76: 692 | AE76: 721 | AF76: 731 | AG76: 716 | AH76: 757 | AI76: 772 | AJ76: 761 | AK76: 733 | AL76: 778 | AM76: 802 | AN76: 828 | AO76: 825 | AP76: 874
A77: FedEx Ground | B77: 77: FedEx Ground (UNADJUSTED) | C77: 267 | D77: 279 | E77: 278 | F77: 278 | G77: 282 | H77: 288 | I77: 289 | J77: 299 | K77: 307 | L77: 318 | M77: 329 | N77: 328 | O77: 351 | P77: 362 | Q77: 369 | R77: 369 | S77: 377 | T77: 396 | U77: 405 | V77: 408 | W77: 414 | X77: 445 | Y77: 458 | Z77: 435 | AA77: 448 | AB77: 485 | AC77: 564 | AD77: 649 | AE77: 653 | AF77: 696 | AG77: 756 | AH77: 729 | AI77: 766 | AJ77: 820 | AK77: 834 | AL77: 653 | AM77: 836 | AN77: 919 | AO77: 956 | AP77: 745
A78: Rental Expense | B78: 78: Rental Expense (UNADJUSTED) | C78: 501 | D78: 496 | E78: 492 | F78: 485 | G78: 472 | H78: 486 | I78: 489 | J78: 490 | K78: 499 | L78: 525 | M78: 521 | N78: 512 | O78: 517 | P78: 522 | Q78: 528 | R78: 511 | S78: 518 | T78: 532 | U78: 545 | V78: 538 | W78: 545 | X78: 553 | Y78: 568 | Z78: 572 | AA78: 566 | AB78: 568 | AC78: 595 | AD78: 578 | AE78: 598 | AF78: 587 | AG78: 651 | AH78: 633 | AI78: 698 | AJ78: 709 | AK78: 744 | AL78: 697 | AM78: 727 | AN78: 742 | AO78: 782 | AP78: 712
A79: FedEx Express | B79: 79: FedEx Express (UNADJUSTED) | C79: 417 | D79: 403 | E79: 400 | F79: 393 | G79: 385 | H79: 396 | I79: 397 | J79: 399 | K79: 403 | L79: 427 | M79: 424 | N79: 418 | O79: 423 | P79: 421 | Q79: 425 | R79: 411 | S79: 415 | T79: 418 | U79: 429 | V79: 422 | W79: 421 | X79: 420 | Y79: 432 | Z79: 432 | AA79: 426 | AB79: 422 | AC79: 436 | AD79: 409 | AE79: 410 | AF79: 399 | AG79: 452 | AH79: 427 | AI79: 487 | AJ79: 485 | AK79: 511 | AL79: 482 | AM79: 490 | AN79: 498 | AO79: 532 | AP79: 485
A80: FedEx Ground | B80: 80: FedEx Ground (UNADJUSTED) | C80: 51 | D80: 58 | E80: 58 | F80: 55 | G80: 58 | H80: 63 | I80: 63 | J80: 60 | K80: 62 | L80: 67 | M80: 68 | N80: 66 | O80: 66 | P80: 72 | Q80: 74 | R80: 72 | S80: 74 | T80: 85 | U80: 86 | V80: 86 | W80: 92 | X80: 102 | Y80: 105 | Z80: 103 | AA80: 108 | AB80: 115 | AC80: 126 | AD80: 136 | AE80: 145 | AF80: 155 | AG80: 166 | AH80: 173 | AI80: 181 | AJ80: 189 | AK80: 197 | AL80: 180 | AM80: 201 | AN80: 207 | AO80: 209 | AP80: 188
A81: FedEx Freight | B81: 81: FedEx Freight (UNADJUSTED) | C81: 33 | D81: 35 | E81: 34 | F81: 37 | G81: 29 | H81: 27 | I81: 29 | J81: 31 | K81: 34 | L81: 31 | M81: 29 | N81: 28 | O81: 28 | P81: 29 | Q81: 29 | R81: 28 | S81: 29 | T81: 29 | U81: 30 | V81: 30 | W81: 32 | X81: 31 | Y81: 31 | Z81: 37 | AA81: 32 | AB81: 31 | AC81: 33 | AD81: 33 | AE81: 43 | AF81: 33 | AG81: 33 | AH81: 33 | AI81: 30 | AJ81: 35 | AK81: 36 | AL81: 35 | AM81: 36 | AN81: 37 | AO81: 41 | AP81: 39
A82: Transportation Fuel | B82: 82: Transportation Fuel (UNADJUSTED) | C82: 822 | D82: 1106 | E82: 637 | F82: 468 | G82: 666 | H82: 744 | I82: 809 | J82: 885 | K82: 886 | L82: 938 | M82: 1048 | N82: 1278 | O82: 1244 | P82: 1200 | Q82: 1231 | R82: 1279 | S82: 1137 | T82: 1235 | U82: 1214 | V82: 1159 | W82: 1104 | X82: 1135 | Y82: 1163 | Z82: 1153 | AA82: 1120 | AB82: 1052 | AC82: 809 | AD82: 738 | AE82: 712 | AF82: 614 | AG82: 538 | AH82: 532 | AI82: 648 | AJ82: 662.8 | AK82: 735 | AL82: 729 | AM82: 702 | AN82: 821.3 | AO82: 913 | AP82: 938
A83: FedEx Express | B83: 83: FedEx Express (UNADJUSTED) | C83: 614 | D83: 953 | E83: 551 | F83: 458 | G83: 571 | H83: 638 | I83: 694 | J83: 748 | K83: 754 | L83: 802 | M83: 898 | N83: 1099 | O83: 1077 | P83: 1039 | Q83: 1078 | R83: 1110 | S83: 986 | T83: 1074 | U83: 1066 | V83: 1004 | W83: 956 | X83: 986 | Y83: 1010 | Z83: 991 | AA83: 970 | AB83: 906 | AC83: 697 | AD83: 626 | AE83: 607 | AF83: 517 | AG83: 455 | AH83: 444 | AI83: 555 | AJ83: 565 | AK83: 633 | AL83: 625 | AM83: 603 | AN83: 703 | AO83: 782 | AP83: 801
A84: FedEx Freight | B84: 84: FedEx Freight (UNADJUSTED) | C84: 206 | D84: 150 | E84: 83 | F84: 81 | G84: 94 | H84: 104 | I84: 112 | J84: 135 | K84: 131 | L84: 133 | M84: 145 | N84: 176 | O84: 165 | P84: 156 | Q84: 149 | R84: 166 | S84: 148 | T84: 157 | U84: 142 | V84: 151 | W84: 145 | X84: 145 | Y84: 146 | Z84: 159 | AA84: 147 | AB84: 143 | AC84: 109 | AD84: 109 | AE84: 102 | AF84: 95 | AG84: 80 | AH84: 86 | AI84: 91 | AJ84: 5.8 | AK84: 99 | AL84: 102 | AM84: 97 | AN84: 6.3 | AO84: 127 | AP84: 135
A85: FedEx Ground | B85: 85: FedEx Ground (UNADJUSTED) | C85: 2 | D85: 3 | E85: 3 | F85: -71 | G85: 1 | H85: 2 | I85: 3 | J85: 2 | K85: 1 | L85: 3 | M85: 5 | N85: 3 | O85: 2 | P85: 5 | Q85: 4 | R85: 3 | S85: 3 | T85: 4 | U85: 6 | V85: 4 | W85: 3 | X85: 4 | Y85: 7 | Z85: 3 | AA85: 3 | AB85: 3 | AC85: 3 | AD85: 3 | AE85: 3 | AF85: 2 | AG85: 3 | AH85: 2 | AI85: 2 | AJ85: 92 | AK85: 3 | AL85: 2 | AM85: 2 | AN85: 112 | AO85: 4 | AP85: 2
A86: Maintenance Expense | B86: 86: Maintenance Expense (UNADJUSTED) | C86: 474 | D86: 459 | E86: 386 | F86: 332 | G86: 333 | H86: 342 | I86: 338 | J86: 432 | K86: 442 | L86: 407 | M86: 414 | N86: 441 | O86: 474 | P86: 445 | Q86: 391 | R86: 390 | S86: 466 | T86: 444 | U86: 355 | V86: 360 | W86: 406 | X86: 410 | Y86: 372 | Z86: 395 | AA86: 481 | AB86: 467 | AC86: 434 | AD86: 420 | AE86: 467 | AF86: 452 | AG86: 425 | AH86: 444 | AI86: 523 | AJ86: 512 | AK86: 519 | AL86: 532 | AM86: 599 | AN86: 592 | AO86: 554 | AP86: 572
A87: FedEx Express | B87: 87: FedEx Express (UNADJUSTED) | C87: 394 | D87: 381 | E87: 318 | F87: 258 | G87: 261 | H87: 267 | I87: 261 | J87: 342 | K87: 352 | L87: 320 | M87: 330 | N87: 351 | O87: 380 | P87: 354 | Q87: 303 | R87: 295 | S87: 372 | T87: 349 | U87: 262 | V87: 261 | W87: 307 | X87: 308 | Y87: 273 | Z87: 294 | AA87: 379 | AB87: 357 | AC87: 324 | AD87: 297 | AE87: 345 | AF87: 330 | AG87: 306 | AH87: 313 | AI87: 393 | AJ87: 379 | AK87: 386 | AL87: 398 | AM87: 460 | AN87: 447 | AO87: 420 | AP87: 430
A88: FedEx Ground | B88: 88: FedEx Ground (UNADJUSTED) | C88: 37 | D88: 37 | E88: 35 | F88: 38 | G88: 38 | H88: 40 | I88: 41 | J88: 47 | K88: 44 | L88: 42 | M88: 40 | N88: 43 | O88: 44 | P88: 43 | Q88: 43 | R88: 46 | S88: 46 | T88: 46 | U88: 48 | V88: 50 | W88: 53 | X88: 56 | Y88: 57 | Z88: 56 | AA88: 56 | AB88: 57 | AC88: 61 | AD88: 70 | AE88: 69 | AF88: 69 | AG88: 71 | AH88: 79 | AI88: 76 | AJ88: 78 | AK88: 83 | AL88: 78 | AM88: 82 | AN88: 85 | AO88: 82 | AP88: 82
A89: FedEx Freight | B89: 89: FedEx Freight (UNADJUSTED) | C89: 43 | D89: 41 | E89: 33 | F89: 36 | G89: 34 | H89: 35 | I89: 36 | J89: 43 | K89: 46 | L89: 45 | M89: 44 | N89: 47 | O89: 50 | P89: 48 | Q89: 45 | R89: 49 | S89: 48 | T89: 49 | U89: 45 | V89: 49 | W89: 46 | X89: 46 | Y89: 42 | Z89: 45 | AA89: 46 | AB89: 53 | AC89: 49 | AD89: 53 | AE89: 53 | AF89: 53 | AG89: 48 | AH89: 52 | AI89: 54 | AJ89: 55 | AK89: 50 | AL89: 56 | AM89: 57 | AN89: 60 | AO89: 52 | AP89: 60
A90: Other Operating Expense | B90: 90: Other Operating Expense (UNADJUSTED) | C90: 1731 | D90: 1747 | E90: 1734 | F90: 895 | G90: 1560 | H90: 1675 | I90: 1741 | J90: 1786 | K90: 1771 | L90: 1968 | M90: 1048 | N90: 2749 | O90: 1923 | P90: 1055 | Q90: 956 | R90: 1070 | S90: 1345 | T90: 1132 | U90: 1137 | V90: 1127 | W90: 1113 | X90: 1139 | Y90: 1191 | Z90: 1160 | AA90: 1123 | AB90: 1211 | AC90: 1220 | AD90: 1329 | AE90: 1348 | AF90: 1338 | AG90: 1403 | AH90: 1410 | AI90: 1701 | AJ90: 1794 | AK90: 1781 | AL90: 1691 | AM90: 1836 | AN90: 1938 | AO90: 1965 | AP90: 1773
A91: FedEx Express | B91: 91: FedEx Express (UNADJUSTED) | C91: 1240 | D91: 1227 | E91: 1190 | F91: 610 | G91: 1053 | H91: 1098 | I91: 1141 | J91: 1182 | K91: 1164 | L91: 1273 | M91: 747 | N91: 1776 | O91: 1280 | P91: 766 | Q91: 683 | R91: 777 | S91: 782 | T91: 820 | U91: 812 | V91: 797 | W91: 773 | X91: 790 | Y91: 826 | Z91: 790 | AA91: 763 | AB91: 822 | AC91: 796 | AD91: 799 | AE91: 768 | AF91: 780 | AG91: 796 | AH91: 811 | AI91: 1099 | AJ91: 1161 | AK91: 1133 | AL91: 1158 | AM91: 1199 | AN91: 1249 | AO91: 1297 | AP91: 1227
A92: FedEx Ground | B92: 92: FedEx Ground (UNADJUSTED) | C92: 357 | D92: 374 | E92: 413 | F92: 189 | G92: 364 | H92: 390 | I92: 402 | J92: 383 | K92: 396 | L92: 423 | M92: 201 | N92: 646 | O92: 429 | P92: 187 | Q92: 182 | R92: 198 | S92: 468 | T92: 221 | U92: 233 | V92: 233 | W92: 240 | X92: 249 | Y92: 264 | Z92: 255 | AA92: 252 | AB92: 271 | AC92: 315 | AD92: 413 | AE92: 453 | AF92: 443 | AG92: 493 | AH92: 483 | AI92: 475 | AJ92: 507 | AK92: 534 | AL92: 406 | AM92: 506 | AN92: 554 | AO92: 544 | AP92: 414
A93: FedEx Freight | B93: 93: FedEx Freight (UNADJUSTED) | C93: 134 | D93: 146 | E93: 131 | F93: 96 | G93: 143 | H93: 187 | I93: 198 | J93: 221 | K93: 211 | L93: 272 | M93: 100 | N93: 327 | O93: 214 | P93: 102 | Q93: 91 | R93: 95 | S93: 95 | T93: 91 | U93: 92 | V93: 97 | W93: 100 | X93: 100 | Y93: 101 | Z93: 115 | AA93: 108 | AB93: 118 | AC93: 109 | AD93: 117 | AE93: 127 | AF93: 115 | AG93: 114 | AH93: 116 | AI93: 127 | AJ93: 126 | AK93: 114 | AL93: 127 | AM93: 131 | AN93: 135 | AO93: 124 | AP93: 132
A94: Total Operating Expense | B94: 94: Total Operating Expense (UNADJUSTED) | C94: 8903 | D94: 8303 | E94: 7575 | F94: 7488 | G94: 7321 | H94: 7648 | I94: 7974 | J94: 8374 | K94: 8503 | L94: 8821 | M94: 8963 | N94: 9312 | O94: 9461 | P94: 9467 | Q94: 9444 | R94: 9812 | S94: 9691 | T94: 10110 | U94: 10099 | V94: 10518 | W94: 9872 | X94: 10216 | Y94: 10359 | Z94: 10292 | AA94: 10341 | AB94: 10603 | AC94: 10458 | AD94: 10772 | AE94: 10808 | AF94: 10936 | AG94: 11204 | AH94: 11056 | AI94: 13053 | AJ94: 13399 | AK94: 13636 | AL94: 12996 | AM94: 13808 | AN94: 14689 | AO94: 15173 | AP94: 14260
A95: FedEx Express | B95: 95: FedEx Express (UNADJUSTED) | C95: 6074 | D95: 5558 | E95: 5005 | F95: 4933 | G95: 4820 | H95: 4969 | I95: 5175 | J95: 5464 | K95: 5555 | L95: 5728 | M95: 5871 | N95: 6199 | O95: 6304 | P95: 6241 | Q95: 6194 | R95: 6516 | S95: 6387 | T95: 6628 | U95: 6586 | V95: 6883 | W95: 6300 | X95: 6455 | Y95: 6506 | Z95: 6464 | AA95: 6485 | AB95: 6532 | AC95: 6263 | AD95: 6375 | AE95: 6046 | AF95: 5966 | AG95: 5962 | AH95: 5958 | AI95: 7850 | AJ95: 7936 | AK95: 8012 | AL95: 7934 | AM95: 8219 | AN95: 8637 | AO95: 8946 | AP95: 8608
A96: FedEx Ground | B96: 96: FedEx Ground (UNADJUSTED) | C96: 1565 | D96: 1577 | E96: 1597 | F96: 1501 | G96: 1521 | H96: 1599 | I96: 1652 | J96: 1643 | K96: 1674 | L96: 1781 | M96: 1859 | N96: 1846 | O96: 1871 | P96: 1941 | Q96: 2015 | R96: 1982 | S96: 2003 | T96: 2181 | U96: 2280 | V96: 2294 | W96: 2247 | X96: 2410 | Y96: 2541 | Z96: 2406 | AA96: 2415 | AB96: 2598 | AC96: 2834 | AD96: 2965 | AE96: 3293 | AF96: 3524 | AG96: 3851 | AH96: 3630 | AI96: 3680 | AJ96: 3954 | AK96: 4173 | AL96: 3592 | AM96: 4013 | AN96: 4408 | AO96: 4588 | AP96: 3965
A97: FedEx Freight | B97: 97: FedEx Freight (UNADJUSTED) | C97: 1264 | D97: 1168 | E97: 973 | F97: 1054 | G97: 980 | H97: 1080 | I97: 1147 | J97: 1267 | K97: 1274 | L97: 1312 | M97: 1233 | N97: 1267 | O97: 1286 | P97: 1285 | Q97: 1235 | R97: 1314 | S97: 1301 | T97: 1301 | U97: 1233 | V97: 1341 | W97: 1325 | X97: 1351 | Y97: 1312 | Z97: 1422 | AA97: 1441 | AB97: 1473 | AC97: 1361 | AD97: 1432 | AE97: 1469 | AF97: 1446 | AG97: 1391 | AH97: 1468 | AI97: 1523 | AJ97: 1509 | AK97: 1451 | AL97: 1470 | AM97: 1576 | AN97: 1644 | AO97: 1639 | AP97: 1687
A98: Depreciation and Amortization | B98: 98: Depreciation and Amortization (UNADJUSTED) | C98: 492 | D98: 375 | E98: 385 | F98: 389 | G98: 392 | H98: 380 | I98: 303.000083 | J98: 390 | K98: 385 | L98: 410 | M98: 399 | N98: 407 | O98: 419 | P98: 426 | Q98: 448 | R98: 450 | S98: 479 | T98: 498 | U98: 500 | V98: 524 | W98: 537 | X98: 548 | Y98: 553 | Z98: 549 | AA98: 551 | AB98: 552 | AC98: 554 | AD98: 563 | AE98: 552 | AF98: 556 | AG98: 566 | AH98: 567 | AI98: 647 | AJ98: 646 | AK98: 666 | AL98: 647 | AM98: 659 | AN98: 662 | AO98: 689 | AP98: 688
A99: FedEx Express | B99: 99: FedEx Express (UNADJUSTED) | C99: 239 | D99: 241 | E99: 241 | F99: 240 | G99: 252 | H99: 251 | I99: 254 | J99: 259 | K99: 255 | L99: 265 | M99: 267 | N99: 272 | O99: 282 | P99: 288 | Q99: 299 | R99: 300 | S99: 323 | T99: 336 | U99: 334 | V99: 357 | W99: 369 | X99: 373 | Y99: 374 | Z99: 372 | AA99: 374 | AB99: 368 | AC99: 364 | AD99: 354 | AE99: 347 | AF99: 349 | AG99: 342 | AH99: 347 | AI99: 420 | AJ99: 412 | AK99: 420 | AL99: 416 | AM99: 417 | AN99: 412 | AO99: 425 | AP99: 431
A100: FedEx Ground | B100: 100: FedEx Ground (UNADJUSTED) | C100: 80 | D100: 81 | E100: 85 | F100: 91 | G100: 85 | H100: 83 | I100: 83 | J100: 83 | K100: 82 | L100: 83 | M100: 84 | N100: 88 | O100: 93 | P100: 94 | Q100: 102 | R100: 100 | S100: 103 | T100: 110 | U100: 111 | V100: 110 | W100: 111 | X100: 118 | Y100: 121 | Z100: 118 | AA100: 119 | AB100: 126 | AC100: 136 | AD100: 149 | AE100: 146 | AF100: 146 | AG100: 159 | AH100: 157 | AI100: 163 | AJ100: 168 | AK100: 177 | AL100: 162 | AM100: 173 | AN100: 177 | AO100: 187 | AP100: 177
A101: FedEx Freight | B101: 101: FedEx Freight (UNADJUSTED) | C101: 54 | D101: 53 | E101: 59 | F101: 58 | G101: 55 | H101: 46 | I101: 49 | J101: 48 | K101: 48 | L101: 62 | M101: 48 | N101: 47 | O101: 44 | P101: 44 | Q101: 47 | R101: 50 | S101: 53 | T101: 52 | U101: 55 | V101: 57 | W101: 57 | X101: 57 | Y101: 58 | Z101: 59 | AA101: 58 | AB101: 58 | AC101: 54 | AD101: 60 | AE101: 59 | AF101: 61 | AG101: 65 | AH101: 63 | AI101: 64 | AJ101: 66 | AK101: 69 | AL101: 69 | AM101: 69 | AN101: 73 | AO101: 77 | AP101: 80
A102: Capital Expenditures | B102: 102: Capital Expenditures (UNADJUSTED) | C102: -636 | D102: -750 | E102: -600 | F102: -473 | G102: -880 | H102: -668 | I102: -432 | J102: -836 | K102: -1012 | L102: -1047 | M102: -643 | N102: -732 | O102: -1110 | P102: -1107 | Q102: -729 | R102: -1061 | S102: -969 | T102: -916 | U102: -542 | V102: -945 | W102: -572 | X102: -1118 | Y102: -864 | Z102: -979 | AA102: -720 | AB102: -1170 | AC102: -1080 | AD102: -1378 | AE102: -1209 | AF102: -1353 | AG102: -1000 | AH102: -1256 | AI102: -1215 | AJ102: -1466 | AK102: -1109 | AL102: -1142 | AM102: -1044 | AN102: -1577 | AO102: -1372 | AP102: -1669
A103: FedEx Freight | B103: 103: FedEx Freight (UNADJUSTED) | C103: -100 | D103: -56 | E103: -58 | F103: -26 | G103: -67 | H103: -106 | I103: -28 | J103: -11 | K103: -32 | L103: -59 | M103: -40 | N103: -22 | O103: -29 | P103: -91 | Q103: -136 | R103: -84 | S103: -44 | T103: -139 | U103: -80 | V103: -63 | W103: -40 | X103: -100 | Y103: -110 | Z103: -75 | AA103: -36 | AB103: -102 | AC103: -147 | AD103: -52 | AE103: -63 | AF103: -144 | AG103: -161 | AH103: -66 | AI103: -45 | AJ103: -162 | AK103: -152 | AL103: -34 | AM103: -28 | AN103: -172 | AO103: -198 | AP103: -93
A104: FedEx Services | B104: 104: FedEx Services (UNADJUSTED) | C104: -69 | D104: -58 | E104: -45 | F104: -63 | G104: -61 | H104: -80 | I104: -91 | J104: -108 | K104: -64 | L104: -108 | M104: -89 | N104: -126 | O104: -115 | P104: -102 | Q104: -89 | R104: -131 | S104: -90 | T104: -83 | U104: -100 | V104: -151 | W104: -66 | X104: -79 | Y104: -83 | Z104: -135 | AA104: -77 | AB104: -90 | AC104: -73 | AD104: -141 | AE104: -91 | AF104: -98 | AG104: -107 | AH104: -135 | AI104: -102 | AJ104: -77 | AK104: -91 | AL104: -109 | AM104: -107 | AN104: -112 | AO104: -87 | AP104: -170
A105: FedEx Ground | B105: 105: FedEx Ground (UNADJUSTED) | C105: -134 | D105: -215 | E105: -163 | F105: -124 | G105: -111 | H105: -105 | I105: -87 | J105: -97 | K105: -72 | L105: -119 | M105: -74 | N105: -161 | O105: -94 | P105: -160 | Q105: -110 | R105: -172 | S105: -86 | T105: -177 | U105: -102 | V105: -190 | W105: -161 | X105: -249 | Y105: -199 | Z105: -241 | AA105: -140 | AB105: -363 | AC105: -291 | AD105: -454 | AE105: -221 | AF105: -425 | AG105: -387 | AH105: -564 | AI105: -237 | AJ105: -504 | AK105: -387 | AL105: -516 | AM105: -327 | AN105: -420 | AO105: -227 | AP105: -204
A106: FedEx Express | B106: 106: FedEx Express (UNADJUSTED) | C106: -333 | D106: -421 | E106: -334 | F106: -260 | G106: -641 | H106: -377 | I106: -226 | J106: -620 | K106: -844 | L106: -760 | M106: -440 | N106: -423 | O106: -872 | P106: -754 | Q106: -394 | R106: -669 | S106: -749 | T106: -517 | U106: -260 | V106: -541 | W106: -305 | X106: -690 | Y106: -472 | Z106: -527 | AA106: -467 | AB106: -614 | AC106: -569 | AD106: -731 | AE106: -834 | AF106: -686 | AG106: -345 | AH106: -491 | AI106: -831 | AJ106: -723 | AK106: -479 | AL106: -429 | AM106: -582 | AN106: -873 | AO106: -860 | AP106: -1145
A107: Capital Expenditures - Supplementary Breakdown | B107: 107: Capital Expenditures - Supplementary Breakdown (UNADJUSTED) | C107: -636 | D107: -750 | E107: -600 | F107: -326 | G107: -880 | H107: -668 | I107: -432 | J107: -836 | K107: -1012 | L107: -1047 | M107: -643 | N107: -497 | O107: -1110 | P107: -1107 | Q107: -729 | R107: -1061 | S107: -972 | T107: -916 | U107: -542 | V107: -945 | W107: -572 | X107: -1118 | Y107: -864 | Z107: -979 | AA107: -720 | AB107: -1170 | AC107: -1080 | AD107: -1378 | AE107: -1209 | AF107: -1353 | AG107: -1000 | AH107: -1256 | AI107: -1215 | AJ107: -1466 | AK107: -1109 | AL107: -1142 | AM107: -1044 | AN107: -1577 | AO107: -1372 | AP107: -1669
A108: Other Equipment | B108: 108: Other Equipment (UNADJUSTED) | C108: -43 | D108: -51 | E108: -41 | F108: -40 | G108: -27 | H108: -33 | I108: -27 | J108: -53 | K108: -20 | L108: -38 | M108: -41 | N108: -55 | O108: -13 | P108: -69 | Q108: -72 | R108: -76 | S108: -30 | T108: -66 | U108: -72 | V108: -104 | W108: -30 | X108: -51 | Y108: -40 | Z108: -79 | AA108: -71 | AB108: -80 | AC108: -71 | AD108: -87 | AE108: -47 | AF108: -61 | AG108: -92 | AH108: -105 | AI108: -197 | AJ108: -326 | AK108: -295 | AL108: -492 | AM108: -197 | AN108: -217 | AO108: -207 | AP108: -193
A109: Facilities and Sort Equipment | B109: 109: Facilities and Sort Equipment (UNADJUSTED) | C109: -153 | D109: -242 | E109: -200 | F109: — | G109: -186 | H109: -167 | I109: -138 | J109: -139 | K109: -70 | L109: -133 | M109: -117 | N109: — | O109: -95 | P109: -163 | Q109: -141 | R109: -239 | S109: -113 | T109: -173 | U109: -169 | V109: -273 | W109: -125 | X109: -205 | Y109: -215 | Z109: -274 | AA109: -147 | AB109: -305 | AC109: -294 | AD109: -478 | AE109: -249 | AF109: -410 | AG109: -408 | AH109: -624 | AI109: -118 | AJ109: -209 | AK109: -177 | AL109: -110 | AM109: -189 | AN109: -206 | AO109: -221 | AP109: -196
A110: Vehicles | B110: 110: Vehicles (UNADJUSTED) | C110: -133 | D110: -98 | E110: -53 | F110: -35 | G110: -56 | H110: -106 | I110: -32 | J110: -26 | K110: -104 | L110: -92 | M110: -42 | N110: -44 | O110: -174 | P110: -235 | Q110: -166 | R110: -148 | S110: -264 | T110: -240 | U110: -106 | V110: -124 | W110: -149 | X110: -277 | Y110: -210 | Z110: -148 | AA110: -129 | AB110: -210 | AC110: -184 | AD110: -78 | AE110: -220 | AF110: -257 | AG110: -175 | AH110: -78 | AI110: -149 | AJ110: -369 | AK110: -219 | AL110: -147 | AM110: -122 | AN110: -390 | AO110: -237 | AP110: -206
A111: Information and Technology Investments | B111: 111: Information and Technology Investments (UNADJUSTED) | C111: -67 | D111: -73 | E111: -73 | F111: -85 | G111: -56 | H111: -59 | I111: -77 | J111: -97 | K111: -71 | L111: -124 | M111: -91 | N111: -169 | O111: -128 | P111: -125 | Q111: -110 | R111: -178 | S111: -91 | T111: -80 | U111: -100 | V111: -180 | W111: -71 | X111: -90 | Y111: -91 | Z111: -151 | AA111: -74 | AB111: -76 | AC111: -59 | AD111: -139 | AE111: -71 | AF111: -89 | AG111: -95 | AH111: -140 | AI111: -159 | AJ111: -119 | AK111: -134 | AL111: -216 | AM111: -126 | AN111: -135 | AO111: -116 | AP111: -222
A112: Aircraft and Related Equipment | B112: 112: Aircraft and Related Equipment (UNADJUSTED) | C112: -240 | D112: -286 | E112: -233 | F112: -166 | G112: -555 | H112: -303 | I112: -158 | J112: -521 | K112: -747 | L112: -660 | M112: -352 | N112: -229 | O112: -700 | P112: -515 | Q112: -240 | R112: -420 | S112: -474 | T112: -357 | U112: -95 | V112: -264 | W112: -197 | X112: -495 | Y112: -308 | Z112: -327 | AA112: -299 | AB112: -499 | AC112: -472 | AD112: -596 | AE112: -622 | AF112: -536 | AG112: -230 | AH112: -309 | AI112: -592 | AJ112: -443 | AK112: -284 | AL112: -177 | AM112: -410 | AN112: -629 | AO112: -591 | AP112: -852
A113: Average Daily Package Volume | B113: 113: Average Daily Package Volume (UNADJUSTED) | C113: 7285 | D113: 7590 | E113: 7968 | F113: 7593 | G113: 7656 | H113: 8352 | I113: 8750 | J113: 8180 | K113: 8161 | L113: 8953 | M113: 9314 | N113: 8745 | O113: 8684 | P113: 9402 | Q113: 9767 | R113: 9086 | S113: 9223 | T113: 10340 | U113: 10998 | V113: 10227 | W113: 10230 | X113: 10856 | Y113: 11394 | Z113: 10517 | AA113: 10435 | AB113: 11183 | AC113: 11698 | AD113: 10841 | AE113: 10753 | AF113: 11886 | AG113: 12648 | AH113: 11557 | AI113: 13085 | AJ113: 14204 | AK113: 14677 | AL113: 13567 | AM113: 13484 | AN113: 14960 | AO113: 15115 | AP113: 13999
A114: FedEx Ground | B114: 114: FedEx Ground (UNADJUSTED) | C114: 3923 | D114: 4250 | E114: 4531 | F114: 4231 | G114: 4320 | H114: 4867 | I114: 5163 | J114: 4666 | K114: 4634 | L114: 5327 | M114: 5618 | N114: 5162 | O114: 5137 | P114: 5716 | Q114: 6032 | R114: 5525 | S114: 5562 | T114: 6321 | U114: 6953 | V114: 6324 | W114: 6405 | X114: 6845 | Y114: 7346 | Z114: 6517 | AA114: 6456 | AB114: 6967 | AC114: 7496 | AD114: 6746 | AE114: 6717 | AF114: 7623 | AG114: 8339 | AH114: 7453 | AI114: 7389 | AJ114: 8005 | AK114: 8522 | AL114: 7700 | AM114: 7688 | AN114: 8576 | AO114: 8993 | AP114: 8125
A115: Ground | B115: 115: Ground (UNADJUSTED) | C115: 3339 | D115: 3473 | E115: 3511 | F115: 3297 | G115: 3311 | H115: 3602 | I115: 3674 | J115: 3516 | K115: 3534 | L115: 3843 | M115: 3882 | N115: 3732 | O115: 3722 | P115: 3979 | Q115: 4072 | R115: 3861 | S115: 3898 | T115: 4283 | U115: 4476 | V115: 4246 | W115: 4313 | X115: 4627 | Y115: 4817 | Z115: 4597 | AA115: 4576 | AB115: 4845 | AC115: 5136 | AD115: 4847 | AE115: — | AF115: — | AG115: — | AH115: — | AI115: — | AJ115: — | AK115: — | AL115: 7700 | AM115: — | AN115: — | AO115: — | AP115: 8125
A116: SmartPost | B116: 116: SmartPost (UNADJUSTED) | C116: 584 | D116: 777 | E116: 1020 | F116: 934 | G116: 1009 | H116: 1265 | I116: 1489 | J116: 1150 | K116: 1100 | L116: 1484 | M116: 1736 | N116: 1430 | O116: 1415 | P116: 1737 | Q116: 1960 | R116: 1664 | S116: 1664 | T116: 2038 | U116: 2477 | V116: 2078 | W116: 2092 | X116: 2218 | Y116: 2529 | Z116: 1920 | AA116: 1880 | AB116: 2122 | AC116: 2360 | AD116: 1899 | AE116: — | AF116: — | AG116: — | AH116: — | AI116: — | AJ116: — | AK116: — | AL116: — | AM116: — | AN116: — | AO116: — | AP116: —
A117: FedEx Express | B117: 117: FedEx Express (UNADJUSTED) | C117: 3362 | D117: 3340 | E117: 3437 | F117: 3362 | G117: 3336 | H117: 3485 | I117: 3587 | J117: 3514 | K117: 3527 | L117: 3626 | M117: 3696 | N117: 3583 | O117: 3547 | P117: 3686 | Q117: 3735 | R117: 3561 | S117: 3661 | T117: 4019 | U117: 4045 | V117: 3903 | W117: 3825 | X117: 4011 | Y117: 4048 | Z117: 4000 | AA117: 3979 | AB117: 4216 | AC117: 4202 | AD117: 4095 | AE117: 4036 | AF117: 4263 | AG117: 4309 | AH117: 4104 | AI117: 5696 | AJ117: 6199 | AK117: 6155 | AL117: 5867 | AM117: 5796 | AN117: 6384 | AO117: 6122 | AP117: 5874
A118: Total U.S. Domestic | B118: 118: Total U.S. Domestic (UNADJUSTED) | C118: 2560 | D118: 2529 | E118: 2706 | F118: 2617 | G118: 2568 | H118: 2618 | I118: 2740 | J118: 2631 | K118: 2638 | L118: 2687 | M118: 2801 | N118: 2617 | O118: 2559 | P118: 2588 | Q118: 2675 | R118: 2490 | S118: 2429 | T118: 2533 | U118: 2689 | V118: 2528 | W118: 2465 | X118: 2522 | Y118: 2701 | Z118: 2598 | AA118: 2584 | AB118: 2695 | AC118: 2798 | AD118: 2659 | AE118: 2616 | AF118: 2721 | AG118: 2866 | AH118: 2652 | AI118: 2649 | AJ118: 2706 | AK118: 2896 | AL118: 2657 | AM118: 2621 | AN118: 2733 | AO118: 2882 | AP118: 2686
A119: U.S. Overnight Box | B119: 119: U.S. Overnight Box (UNADJUSTED) | C119: 1103 | D119: 1086 | E119: 1177 | F119: 1144 | G119: 1128 | H119: 1154 | I119: 1190 | J119: 1156 | K119: 1168 | L119: 1196 | M119: 1218 | N119: 1158 | O119: 1134 | P119: 1168 | Q119: 1171 | R119: 1113 | S119: 1092 | T119: 1141 | U119: 1176 | V119: 1131 | W119: 1112 | X119: 1146 | Y119: 1202 | Z119: 1195 | AA119: 1211 | AB119: 1259 | AC119: 1258 | AD119: 1231 | AE119: 1210 | AF119: 1290 | AG119: 1316 | AH119: 1269 | AI119: 1255 | AJ119: 1283 | AK119: 1322 | AL119: 1202 | AM119: 1188 | AN119: 1248 | AO119: 1315 | AP119: 1257
A120: U.S. Deferred | B120: 120: U.S. Deferred (UNADJUSTED) | C120: 828 | D120: 832 | E120: 907 | F120: 829 | G120: 823 | H120: 858 | I120: 949 | J120: 843 | K120: 846 | L120: 865 | M120: 952 | N120: 833 | O120: 829 | P120: 838 | Q120: 923 | R120: 793 | S120: 762 | T120: 828 | U120: 944 | V120: 811 | W120: 790 | X120: 841 | Y120: 984 | Z120: 864 | AA120: 846 | AB120: 915 | AC120: 1024 | AD120: 881 | AE120: 865 | AF120: 900 | AG120: 1015 | AH120: 825 | AI120: 824 | AJ120: 866 | AK120: 1025 | AL120: 890 | AM120: 876 | AN120: 938 | AO120: 1026 | AP120: 878
A121: U.S. Overnight Envelope | B121: 121: U.S. Overnight Envelope (UNADJUSTED) | C121: 629 | D121: 611 | E121: 622 | F121: 644 | G121: 617 | H121: 606 | I121: 601 | J121: 632 | K121: 624 | L121: 626 | M121: 631 | N121: 626 | O121: 596 | P121: 582 | Q121: 581 | R121: 584 | S121: 575 | T121: 564 | U121: 569 | V121: 586 | W121: 563 | X121: 535 | Y121: 515 | Z121: 539 | AA121: 527 | AB121: 521 | AC121: 516 | AD121: 547 | AE121: 541 | AF121: 531 | AG121: 535 | AH121: 558 | AI121: 570 | AJ121: 557 | AK121: 549 | AL121: 565 | AM121: 557 | AN121: 547 | AO121: 541 | AP121: 551
A122: International Domestic | B122: 122: International Domestic (UNADJUSTED) | C122: 307 | D122: 311 | E122: 281 | F122: 289 | G122: 293 | H122: 338 | I122: 317 | J122: 323 | K122: 323 | L122: 354 | M122: 337 | N122: 373 | O122: 445 | P122: 529 | Q122: 508 | R122: 498 | S122: 681 | T122: 884 | U122: 781 | V122: 796 | W122: 789 | X122: 896 | Y122: 780 | Z122: 813 | AA122: 816 | AB122: 917 | AC122: 831 | AD122: 850 | AE122: 855 | AF122: 954 | AG122: 878 | AH122: 869 | AI122: 2309 | AJ122: 2696 | AK122: 2471 | AL122: 2405 | AM122: 2421 | AN122: 2830 | AO122: 2445 | AP122: 2377
A123: International Export Package | B123: 123: International Export Package (UNADJUSTED) | C123: 495 | D123: 500 | E123: 450 | F123: 456 | G123: 475 | H123: 529 | I123: 530 | J123: 560 | K123: 566 | L123: 585 | M123: 558 | N123: 593 | O123: 543 | P123: 569 | Q123: 552 | R123: 573 | S123: 551 | T123: 602 | U123: 575 | V123: 579 | W123: 571 | X123: 593 | Y123: 567 | Z123: 589 | AA123: 579 | AB123: 604 | AC123: 573 | AD123: 586 | AE123: 565 | AF123: 588 | AG123: 565 | AH123: 583 | AI123: 738 | AJ123: 797 | AK123: 788 | AL123: 805 | AM123: 754 | AN123: 821 | AO123: 795 | AP123: 811
A124: International Priority | B124: 124: International Priority (UNADJUSTED) | C124: — | D124: — | E124: — | F124: — | G124: — | H124: — | I124: — | J124: — | K124: 462 | L124: 470 | M124: 438 | N124: 468 | O124: 417 | P124: 431 | Q124: 413 | R124: 425 | S124: 408 | T124: 445 | U124: 420 | V124: 415 | W124: 406 | X124: 421 | Y124: 399 | Z124: 416 | AA124: 409 | AB124: 424 | AC124: 398 | AD124: 408 | AE124: 389 | AF124: 402 | AG124: 386 | AH124: 399 | AI124: 500 | AJ124: 538 | AK124: 535 | AL124: 540 | AM124: 502 | AN124: 544 | AO124: 529 | AP124: 534
A125: International Economy | B125: 125: International Economy (UNADJUSTED) | C125: — | D125: — | E125: — | F125: — | G125: — | H125: — | I125: — | J125: — | K125: 104 | L125: 115 | M125: 120 | N125: 125 | O125: 126 | P125: 138 | Q125: 139 | R125: 148 | S125: 143 | T125: 157 | U125: 155 | V125: 164 | W125: 165 | X125: 172 | Y125: 168 | Z125: 173 | AA125: 170 | AB125: 180 | AC125: 175 | AD125: 178 | AE125: 176 | AF125: 186 | AG125: 179 | AH125: 184 | AI125: 238 | AJ125: 259 | AK125: 253 | AL125: 265 | AM125: 252 | AN125: 277 | AO125: 266 | AP125: 277
A126: FedEx Express Composite package yield | B126: 126: FedEx Express Composite package yield (UNADJUSTED) | C126: 24.23 | D126: 23.44 | E126: 19.13 | F126: 18.47 | G126: 18.76 | H126: 19.62 | I126: 19.76 | J126: 20.69 | K126: 20.52 | L126: 20.77 | M126: 21.01 | N126: 22.69 | O126: 22.67 | P126: 22.23 | Q126: 21.79 | R126: 23.07 | S126: 21.82 | T126: 21.04 | U126: 20.87 | V126: 21.74 | W126: 21.18 | X126: 21.32 | Y126: 20.91 | Z126: 21.87 | AA126: 21.46 | AB126: 20.97 | AC126: 19.99 | AD126: 20.66 | AE126: 20.05 | AF126: 19.52 | AG126: 19.27 | AH126: 19.99 | AI126: 17.28 | AJ126: 16.72 | AK126: 19.66 | AL126: 17.93 | AM126: 17.61 | AN126: 17.43 | AO126: 18.45 | AP126: 19.26
A127: International Export Package | B127: 127: International Export Package (UNADJUSTED) | C127: 64.54 | D127: 61.3 | E127: 53.12 | F127: 51.29 | G127: 51.61 | H127: 52.88 | I127: 53.23 | J127: 54.45 | K127: 53.7 | L127: 54.54 | M127: 57.07 | N127: 58.96 | O127: 62.3 | P127: 60.56 | Q127: 59.78 | R127: 60.71 | S127: 59.94 | T127: 57.84 | U127: 57.76 | V127: 59.37 | W127: 57.7 | X127: 57.84 | Y127: 58.3 | Z127: 60.52 | AA127: 59.38 | AB127: 59.04 | AC127: 56.01 | AD127: 55.49 | AE127: 55.47 | AF127: 54 | AG127: 53.14 | AH127: 54.02 | AI127: 50.2 | AJ127: 49.37 | AK127: 53.92 | AL127: 49.12 | AM127: 51.16 | AN127: 51.34 | AO127: 52.83 | AP127: 53.85
A128: International Priority | B128: 128: International Priority (UNADJUSTED) | C128: — | D128: — | E128: — | F128: — | G128: — | H128: — | I128: — | J128: — | K128: 54.98 | L128: 56.09 | M128: 59.31 | N128: 60.43 | O128: 64.82 | P128: 62.98 | Q128: 62.49 | R128: 63.54 | S128: 62.68 | T128: 59.91 | U128: 60.25 | V128: 62.32 | W128: 60.65 | X128: 61.87 | Y128: 61.38 | Z128: 63.57 | AA128: 62.19 | AB128: 61.64 | AC128: 58.4 | AD128: 57.85 | AE128: 57.86 | AF128: 56.52 | AG128: 55.35 | AH128: 56.12 | AI128: 52.78 | AJ128: 52.06 | AK128: 55.42 | AL128: 51.2 | AM128: 53.25 | AN128: 53.67 | AO128: 55.26 | AP128: 56.5
A129: International Economy | B129: 129: International Economy (UNADJUSTED) | C129: — | D129: — | E129: — | F129: — | G129: — | H129: — | I129: — | J129: — | K129: 47.98 | L129: 48.19 | M129: 48.88 | N129: 53.44 | O129: 53.91 | P129: 52.99 | Q129: 51.74 | R129: 52.54 | S129: 52.17 | T129: 51.97 | U129: 51.03 | V129: 51.9 | W129: 50.41 | X129: 52.27 | Y129: 51.01 | Z129: 53.21 | AA129: 52.6 | AB129: 52.88 | AC129: 50.6 | AD129: 50.1 | AE129: 50.18 | AF129: 48.53 | AG129: 48.36 | AH129: 49.49 | AI129: 44.78 | AJ129: 43.8 | AK129: 50.56 | AL129: 44.88 | AM129: 46.97 | AN129: 46.77 | AO129: 48.01 | AP129: 48.72
A130: Total U.S. domestic composite | B130: 130: Total U.S. domestic composite (UNADJUSTED) | C130: 18.3 | D130: 17.86 | E130: 14.77 | F130: 14.07 | G130: 14.02 | H130: 14.51 | I130: 14.74 | J130: 15.16 | K130: 15.07 | L130: 15.19 | M130: 15.45 | N130: 16.65 | O130: 16.97 | P130: 17.01 | Q130: 16.83 | R130: 17.67 | S130: 17.33 | T130: 17.24 | U130: 17 | V130: 17.76 | W130: 17.32 | X130: 17.59 | Y130: 17.07 | Z130: 17.73 | AA130: 17.49 | AB130: 17.31 | AC130: 16.68 | AD130: 17.07 | AE130: 17.03 | AF130: 16.94 | AG130: 16.83 | AH130: 17.2 | AI130: 17.28 | AJ130: 17.39 | AK130: 17.36 | AL130: 18.37 | AM130: 18.07 | AN130: 18.24 | AO130: 18.29 | AP130: 18.98
A131: U.S. Overnight Box | B131: =ROW(A131)&": "&A131&" (UNADJUSTED)" -> 131: U.S. Overnight Box (UNADJUSTED) | C131: 24.24 | D131: 23.66 | E131: 19.02 | F131: 18.22 | G131: 18.16 | H131: 18.87 | I131: 19.16 | J131: 19.77 | K131: 19.65 | L131: 19.75 | M131: 20.05 | N131: 21.72 | O131: 22.24 | P131: 22.05 | Q131: 21.93 | R131: 23.01 | S131: 22.59 | T131: 22.39 | U131: 22.08 | V131: 22.99 | W131: 22.27 | X131: 22.5 | Y131: 21.7 | Z131: 22.26 | AA131: 21.69 | AB131: 21.5 | AC131: 20.85 | AD131: 21.12 | AE131: 21.08 | AF131: 20.7 | AG131: 20.56 | AH131: 20.83 | AI131: 21.11 | AJ131: 21.15 | AK131: 21.24 | AL131: 22.81 | AM131: 22.67 | AN131: 22.73 | AO131: 22.53 | AP131: 23.26
A132: U.S. Deferred | B132: 132: U.S. Deferred (UNADJUSTED) | C132: 14.38 | D132: 14.13 | E132: 11.94 | F132: 11.39 | G132: 11.23 | H132: 11.58 | I132: 11.77 | J132: 12.23 | K132: 12.01 | L132: 12.24 | M132: 12.6 | N132: 13.56 | O132: 13.57 | P132: 13.84 | Q132: 13.62 | R132: 14.49 | S132: 14.17 | T132: 14.04 | U132: 13.87 | V132: 14.67 | W132: 14.42 | X132: 14.55 | Y132: 14.01 | Z132: 14.81 | AA132: 14.68 | AB132: 14.48 | AC132: 13.88 | AD132: 14.5 | AE132: 14.52 | AF132: 14.55 | AG132: 14.48 | AH132: 15.12 | AI132: 15.12 | AJ132: 15.3 | AK132: 15 | AL132: 16.04 | AM132: 15.42 | AN132: 15.58 | AO132: 15.66 | AP132: 16.52
A133: U.S. Overnight Envelope | B133: 133: U.S. Overnight Envelope (UNADJUSTED) | C133: 13.04 | D133: 12.62 | E133: 10.85 | F133: 10.15 | G133: 10.17 | H133: 10.36 | I133: 10.7 | J133: 10.64 | K133: 10.64 | L133: 10.54 | M133: 10.87 | N133: 11.37 | O133: 11.64 | P133: 11.48 | Q133: 11.65 | R133: 11.81 | S133: 11.51 | T133: 11.51 | U133: 11.69 | V133: 11.91 | W133: 11.61 | X133: 11.84 | Y133: 12.09 | Z133: 12.36 | AA133: 12.32 | AB133: 12.15 | AC133: 12.07 | AD133: 12.07 | AE133: 11.99 | AF133: 11.87 | AG133: 12.11 | AH133: 11.99 | AI133: 11.96 | AJ133: 12 | AK133: 12.41 | AL133: 12.6 | AM133: 12.43 | AN133: 12.53 | AO133: 12.97 | AP133: 13.15
A134: International Domestic | B134: 134: International Domestic (UNADJUSTED) | C134: 8.63 | D134: 8.06 | E134: 6.63 | F134: 6.52 | G134: 7.05 | H134: 7.09 | I134: 7.22 | J134: 7.22 | K134: 7.04 | L134: 7.39 | M134: 7.54 | N134: 7.51 | O134: 7.16 | P134: 6.51 | Q134: 6.57 | R134: 6.78 | S134: 7 | T134: 6.88 | U134: 7.06 | V134: 7.02 | W134: 6.84 | X134: 6.82 | Y134: 7.05 | Z134: 7.1 | AA134: 7.1 | AB134: 6.63 | AC134: 6.28 | AD134: 5.96 | AE134: 5.88 | AF134: 5.59 | AG134: 5.47 | AH134: 5.66 | AI134: 6.76 | AJ134: 6.4 | AK134: 5.34 | AL134: 6.98 | AM134: 6.64 | AN134: 6.81 | AO134: 7.44 | AP134: 7.77
A135: Ground | B135: 135: Ground (UNADJUSTED) | C135: 7.86 | D135: 7.7 | E135: 7.62 | F135: 7.63 | G135: 7.6 | H135: 7.54 | I135: 7.75 | J135: 8.04 | K135: 7.99 | L135: 7.89 | M135: 8.16 | N135: 8.64 | O135: 8.73 | P135: 8.53 | Q135: 8.79 | R135: 9.03 | S135: 8.94 | T135: 8.72 | U135: 8.92 | V135: 9.19 | W135: 9.05 | X135: 8.9 | Y135: 9.04 | Z135: 9.41 | AA135: 9.33 | AB135: 9.18 | AC135: 9.32 | AD135: 9.63 | AE135: 7.91 | AF135: 7.64 | AG135: 7.65 | AH135: 8.01 | AI135: 8.09 | AJ135: 7.95 | AK135: 8.12 | AL135: 8.57 | AM135: 8.47 | AN135: 8.35 | AO135: 8.64 | AP135: 9.05
A136: SmartPost | B136: 136: SmartPost (UNADJUSTED) | C136: 2.14 | D136: 2.07 | E136: 1.67 | F136: 1.54 | G136: 1.41 | H136: 1.57 | I136: 1.59 | J136: 1.63 | K136: 1.68 | L136: 1.72 | M136: 1.7 | N136: 1.76 | O136: 1.76 | P136: 1.79 | Q136: 1.79 | R136: 1.88 | S136: 1.75 | T136: 1.82 | U136: 1.77 | V136: 1.74 | W136: 1.67 | X136: 1.77 | Y136: 1.82 | Z136: 1.88 | AA136: 1.84 | AB136: 1.9 | AC136: 1.97 | AD136: 2.02 | AE136: — | AF136: — | AG136: — | AH136: — | AI136: — | AJ136: — | AK136: — | AL136: — | AM136: — | AN136: — | AO136: — | AP136: —
A137: Average Daily Freight Pounds | B137: 137: Average Daily Freight Pounds (UNADJUSTED) | C137: 11474 | D137: 11156 | E137: 10505 | F137: 9752 | G137: 10023 | H137: 10971 | I137: 11667 | J137: 11003 | K137: 11175 | L137: 12022 | M137: 12393 | N137: 11483 | O137: 11266 | P137: 12294 | Q137: 12530 | R137: 11781 | S137: 11365 | T137: 12097 | U137: 12253 | V137: 11223 | W137: 11135 | X137: 11847 | Y137: 11843 | Z137: 11478 | AA137: 10780 | AB137: 11652 | AC137: 11686 | AD137: 11505 | AE137: 10378 | AF137: 11496 | AG137: 11376 | AH137: 12001 | AI137: 25883 | AJ137: 28146 | AK137: 28269 | AL137: 28041 | AM137: 24692 | AN137: 29428 | AO137: 29153 | AP137: 29576
A138: FedEx Express | B138: 138: FedEx Express (UNADJUSTED) | C138: 11474 | D138: 11156 | E138: 10505 | F138: 9752 | G138: 10023 | H138: 10971 | I138: 11667 | J138: 11003 | K138: 11175 | L138: 12022 | M138: 12393 | N138: 11483 | O138: 11266 | P138: 12294 | Q138: 12530 | R138: 11781 | S138: 11365 | T138: 12097 | U138: 12253 | V138: 11223 | W138: 11135 | X138: 11847 | Y138: 11843 | Z138: 11478 | AA138: 10780 | AB138: 11652 | AC138: 11686 | AD138: 11505 | AE138: 10378 | AF138: 11496 | AG138: 11376 | AH138: 12001 | AI138: 25883 | AJ138: 28146 | AK138: 28269 | AL138: 28041 | AM138: 24692 | AN138: 29428 | AO138: 29153 | AP138: 29576
A139: U.S. | B139: 139: U.S. (UNADJUSTED) | C139: 7296 | D139: 7335 | E139: 7664 | F139: 6859 | G139: 6584 | H139: 7193 | I139: 7906 | J139: 6916 | K139: 6908 | L139: 7459 | M139: 8000 | N139: 7027 | O139: 6969 | P139: 7630 | Q139: 8104 | R139: 7270 | S139: 7077 | T139: 7719 | U139: 8324 | V139: 7363 | W139: 7423 | X139: 7872 | Y139: 8263 | Z139: 7865 | AA139: 7318 | AB139: 8039 | AC139: 8145 | AD139: 7836 | AE139: 7278 | AF139: 8213 | AG139: 8340 | AH139: 8885 | AI139: 8067 | AJ139: 8177 | AK139: 8458 | AL139: 8050 | AM139: 7727 | AN139: 8475 | AO139: 8757 | AP139: 8512
A140: International Priority | B140: 140: International Priority (UNADJUSTED) | C140: 2312 | D140: 2216 | E140: 1590 | F140: 1715 | G140: 2142 | H140: 2571 | I140: 2577 | J140: 2889 | K140: 3027 | L140: 3320 | M140: 3131 | N140: 3261 | O140: 3132 | P140: 3451 | Q140: 3257 | R140: 3373 | S140: 3184 | T140: 3212 | U140: 2894 | V140: 2899 | W140: 2862 | X140: 3068 | Y140: 2823 | Z140: 2936 | AA140: 2792 | AB140: 2983 | AC140: 2823 | AD140: 2953 | AE140: 2491 | AF140: 2605 | AG140: 2414 | AH140: 2530 | AI140: 4793 | AJ140: 5417 | AK140: 5238 | AL140: 5409 | AM140: 4906 | AN140: 5706 | AO140: 5430 | AP140: 5515
A141: International Airfreight | B141: 141: International Airfreight (UNADJUSTED) | C141: 1866 | D141: 1605 | E141: 1251 | F141: 1178 | G141: 1297 | H141: 1207 | I141: 1184 | J141: 1198 | K141: 1240 | L141: 1243 | M141: 1262 | N141: 1195 | O141: 1165 | P141: 1213 | Q141: 1169 | R141: 1138 | S141: 1104 | T141: 1166 | U141: 1035 | V141: 961 | W141: 850 | X141: 907 | Y141: 757 | Z141: 677 | AA141: 670 | AB141: 630 | AC141: 718 | AD141: 716 | AE141: 609 | AF141: 678 | AG141: 622 | AH141: 586 | AI141: 1869 | AJ141: 1959 | AK141: 1995 | AL141: 1787 | AM141: 1778 | AN141: 2016 | AO141: 1757 | AP141: 1811
A142: Revenue per Freight Pound (Yield) | B142: 142: Revenue per Freight Pound (Yield) (UNADJUSTED) | C142: — | D142: — | E142: — | F142: — | G142: — | H142: — | I142: — | J142: — | K142: — | L142: — | M142: — | N142: — | O142: — | P142: — | Q142: — | R142: — | S142: — | T142: — | U142: — | V142: — | W142: — | X142: — | Y142: — | Z142: — | AA142: — | AB142: — | AC142: — | AD142: — | AE142: — | AF142: — | AG142: — | AH142: — | AI142: — | AJ142: — | AK142: — | AL142: — | AM142: — | AN142: — | AO142: — | AP142: —
A143: FedEx Express | B143: 143: FedEx Express (UNADJUSTED) | C143: 1.46 | D143: 1.46 | E143: 1.23 | F143: 1.17 | G143: 1.18 | H143: 1.26 | I143: 1.26 | J143: 1.36 | K143: 1.38 | L143: 1.36 | M143: 1.36 | N143: 1.49 | O143: 1.53 | P143: 1.51 | Q143: 1.48 | R143: 1.54 | S143: 1.52 | T143: 1.53 | U143: 1.47 | V143: 1.52 | W143: 1.5 | X143: 1.42 | Y143: 1.35 | Z143: 1.4 | AA143: 1.48 | AB143: 1.42 | AC143: 1.36 | AD143: 1.37 | AE143: 1.42 | AF143: 1.33 | AG143: 1.4 | AH143: 1.37 | AI143: 0.93 | AJ143: 0.9 | AK143: 1.45 | AL143: 0.94 | AM143: 0.96 | AN143: 0.98 | AO143: 1.02 | AP143: 1.03
A144: International Priority | B144: 144: International Priority (UNADJUSTED) | C144: 2.3 | D144: 2.32 | E144: 2.21 | F144: 2.01 | G144: 1.87 | H144: 1.98 | I144: 2.06 | J144: 2.09 | K144: 2.06 | L144: 2.08 | M144: 2.12 | N144: 2.21 | O144: 2.21 | P144: 2.16 | Q144: 2.16 | R144: 2.12 | S144: 2.12 | T144: 2.21 | U144: 2.14 | V144: 2.18 | W144: 2.12 | X144: 2.16 | Y144: 2.13 | Z144: 2.18 | AA144: 2.21 | AB144: 2.19 | AC144: 2.11 | AD144: 2.15 | AE144: 2.16 | AF144: 2.16 | AG144: 2.14 | AH144: 2.16 | AI144: 1.44 | AJ144: 1.39 | AK144: 2.21 | AL144: 1.46 | AM144: 1.48 | AN144: 1.56 | AO144: 1.64 | AP144: 1.67
A145: U.S. | B145: 145: U.S. (UNADJUSTED) | C145: 1.28 | D145: 1.29 | E145: 1.08 | F145: 1.02 | G145: 1.05 | H145: 1.08 | I145: 1.07 | J145: 1.15 | K145: 1.16 | L145: 1.13 | M145: 1.14 | N145: 1.25 | O145: 1.31 | P145: 1.31 | Q145: 1.27 | R145: 1.34 | S145: 1.33 | T145: 1.32 | U145: 1.3 | V145: 1.33 | W145: 1.31 | X145: 1.18 | Y145: 1.11 | Z145: 1.13 | AA145: 1.24 | AB145: 1.16 | AC145: 1.13 | AD145: 1.11 | AE145: 1.21 | AF145: 1.12 | AG145: 1.23 | AH145: 1.18 | AI145: 1.18 | AJ145: 1.19 | AK145: 1.27 | AL145: 1.21 | AM145: 1.22 | AN145: 1.29 | AO145: 1.36 | AP145: 1.37
A146: International Airfreight | B146: 146: International Airfreight (UNADJUSTED) | C146: 1.1 | D146: 1.09 | E146: 0.88 | F146: 0.78 | G146: 0.72 | H146: 0.83 | I146: 0.84 | J146: 0.85 | K146: 0.87 | L146: 0.88 | M146: 0.88 | N146: 0.96 | O146: 1.02 | P146: 0.97 | Q146: 1.04 | R146: 1.07 | S146: 1.03 | T146: 1.05 | U146: 0.99 | V146: 0.97 | W146: 0.99 | X146: 0.97 | Y146: 1 | Z146: 1.12 | AA146: 1.07 | AB146: 1.07 | AC146: 1 | AD146: 1.01 | AE146: 0.92 | AF146: 0.75 | AG146: 0.76 | AH146: 0.73 | AI146: 0.76 | AJ146: 0.76 | AK146: 0.71 | AL146: 0.73 | AM146: 0.72 | AN146: 0.71 | AO146: 0.78 | AP146: 0.78
A147: International Economy | B147: 147: International Economy (UNADJUSTED) | C147: — | D147: — | E147: — | F147: — | G147: — | H147: — | I147: — | J147: — | K147: — | L147: — | M147: — | N147: — | O147: — | P147: — | Q147: — | R147: — | S147: — | T147: — | U147: — | V147: — | W147: — | X147: — | Y147: — | Z147: — | AA147: — | AB147: — | AC147: — | AD147: — | AE147: — | AF147: — | AG147: — | AH147: — | AI147: 0.57 | AJ147: 0.53 | AK147: — | AL147: 0.57 | AM147: 0.57 | AN147: 0.58 | AO147: 0.6 | AP147: 0.63
A148: Purchased Transportation | B148: 148: Purchased Transportation (UNADJUSTED) | C148: 1287 | D148: 1190 | E148: 1070 | F148: 1023 | G148: 1066 | H148: 1184 | I148: 1254 | J148: 1329 | K148: 1355 | L148: 1418 | M148: 1475 | N148: 1535 | O148: 1542 | P148: 1602 | Q148: 1645 | R148: 1652 | S148: 1709 | T148: 1889 | U148: 1901 | V148: 1888 | W148: 1906 | X148: 2069 | Y148: 2092 | Z148: 2060 | AA148: 2085 | AB148: 2217 | AC148: 2197 | AD148: 2111 | AE148: 2379 | AF148: 2574 | AG148: 2659 | AH148: 2468 | AI148: 3276 | AJ148: 3463 | AK148: 3531 | AL148: 3186 | AM148: 3483 | AN148: 3873 | AO148: 3976 | AP148: 3565
A149: FedEx Ground | B149: 149: FedEx Ground (UNADJUSTED) | C149: 771 | D149: 745 | E149: 725 | F149: 677 | G149: 693 | H149: 733 | I149: 771 | J149: 769 | K149: 782 | L149: 845 | M149: 911 | N149: 893 | O149: 886 | P149: 933 | Q149: 995 | R149: 948 | S149: 946 | T149: 1057 | U149: 1121 | V149: 1067 | W149: 1064 | X149: 1159 | Y149: 1253 | Z149: 1159 | AA149: 1154 | AB149: 1263 | AC149: 1348 | AD149: 1256 | AE149: 1527 | AF149: 1712 | AG149: 1891 | AH149: 1687 | AI149: 1692 | AJ149: 1861 | AK149: 2015 | AL149: 1778 | AM149: 1859 | AN149: 2100 | AO149: 2235 | AP149: 1992
A150: FedEx Express | B150: 150: FedEx Express (UNADJUSTED) | C150: 336 | D150: 294 | E150: 241 | F150: 241 | G150: 255 | H150: 283 | I150: 292 | J150: 347 | K150: 369 | L150: 388 | M150: 386 | N150: 430 | O150: 449 | P150: 448 | Q150: 449 | R150: 482 | S150: 537 | T150: 608 | U150: 583 | V150: 603 | W150: 608 | X150: 660 | Y150: 608 | Z150: 635 | AA150: 647 | AB150: 681 | AC150: 614 | AD150: 602 | AE150: 601 | AF150: 616 | AG150: 545 | AH150: 539 | AI150: 1325 | AJ150: 1352 | AK150: 1286 | AL150: 1228 | AM150: 1366 | AN150: 1502 | AO150: 1478 | AP150: 1336
A151: FedEx Freight | B151: 151: FedEx Freight (UNADJUSTED) | C151: 180 | D151: 151 | E151: 104 | F151: 105 | G151: 118 | H151: 168 | I151: 191 | J151: 213 | K151: 204 | L151: 185 | M151: 178 | N151: 212 | O151: 207 | P151: 221 | Q151: 201 | R151: 222 | S151: 226 | T151: 224 | U151: 197 | V151: 218 | W151: 234 | X151: 250 | Y151: 231 | Z151: 266 | AA151: 284 | AB151: 273 | AC151: 235 | AD151: 253 | AE151: 251 | AF151: 246 | AG151: 223 | AH151: 242 | AI151: 259 | AJ151: 250 | AK151: 230 | AL151: 180 | AM151: 258 | AN151: 271 | AO151: 263 | AP151: 237
A152: Weight Per Shipment | B152: 152: Weight Per Shipment (UNADJUSTED) | C152: — | D152: — | E152: — | F152: — | G152: — | H152: — | I152: — | J152: — | K152: — | L152: — | M152: — | N152: — | O152: — | P152: — | Q152: — | R152: — | S152: — | T152: — | U152: — | V152: — | W152: — | X152: — | Y152: — | Z152: — | AA152: — | AB152: — | AC152: — | AD152: — | AE152: — | AF152: — | AG152: — | AH152: — | AI152: — | AJ152: — | AK152: — | AL152: — | AM152: — | AN152: — | AO152: — | AP152: —
A153: FedEx Freight | B153: 153: FedEx Freight (UNADJUSTED) | C153: 1140 | D153: 1122 | E153: 1121 | F153: 1119 | G153: 1109 | H153: 1128 | I153: 1133 | J153: 1160 | K153: 1134 | L153: 1115 | M153: 1151 | N153: 1177 | O153: 1157 | P153: 1147 | Q153: 1157 | R153: 1163 | S153: 1150 | T153: 1146 | U153: 1168 | V153: 1181 | W153: 1166 | X153: 1165 | Y153: 1195 | Z153: 1200 | AA153: 1185 | AB153: 1176 | AC153: 1203 | AD153: 1204 | AE153: 1189 | AF153: 1167 | AG153: 1177 | AH153: 1173 | AI153: 1152 | AJ153: 1149 | AK153: 1172 | AL153: 1174 | AM153: 1173 | AN153: 1187 | AO153: 1202 | AP153: 1198
A154: Priority | B154: 154: Priority (UNADJUSTED) | C154: — | D154: — | E154: — | F154: — | G154: — | H154: — | I154: — | J154: — | K154: — | L154: — | M154: — | N154: 1208 | O154: 1186 | P154: 1184 | Q154: 1212 | R154: 1225 | S154: 1215 | T154: 1215 | U154: 1250 | V154: 1272 | W154: 1244 | X154: 1243 | Y154: 1280 | Z154: 1280 | AA154: 1258 | AB154: 1245 | AC154: 1287 | AD154: 1301 | AE154: 1198 | AF154: 1179 | AG154: 1189 | AH154: 1197 | AI154: 1176 | AJ154: 1165 | AK154: 1179 | AL154: 1183 | AM154: 1184 | AN154: 1201 | AO154: 1232 | AP154: 1237
A155: Economy | B155: 155: Economy (UNADJUSTED) | C155: — | D155: — | E155: — | F155: — | G155: — | H155: — | I155: — | J155: — | K155: — | L155: — | M155: — | N155: 1093 | O155: 1082 | P155: 1057 | Q155: 1025 | R155: 1018 | S155: 999 | T155: 989 | U155: 989 | V155: 981 | W155: 993 | X155: 992 | Y155: 1002 | Z155: 1013 | AA155: 1013 | AB155: 1010 | AC155: 1007 | AD155: 984 | AE155: 1168 | AF155: 1141 | AG155: 1152 | AH155: 1121 | AI155: 1098 | AJ155: 1113 | AK155: 1155 | AL155: 1152 | AM155: 1147 | AN155: 1153 | AO155: 1133 | AP155: 1107
A156: Revenue Per Shipment | B156: 156: Revenue Per Shipment (UNADJUSTED) | C156: — | D156: — | E156: — | F156: — | G156: — | H156: — | I156: — | J156: — | K156: — | L156: — | M156: — | N156: — | O156: — | P156: — | Q156: — | R156: — | S156: — | T156: — | U156: — | V156: — | W156: — | X156: — | Y156: — | Z156: — | AA156: — | AB156: — | AC156: — | AD156: — | AE156: — | AF156: — | AG156: — | AH156: — | AI156: — | AJ156: — | AK156: — | AL156: — | AM156: — | AN156: — | AO156: — | AP156: —
A157: FedEx Freight | B157: 157: FedEx Freight (UNADJUSTED) | C157: — | D157: — | E157: — | F157: — | G157: — | H157: — | I157: — | J157: — | K157: — | L157: — | M157: — | N157: — | O157: 223.2 | P157: 227.13 | Q157: 228.01 | R157: 226.8 | S157: 226.83 | T157: 232.49 | U157: 234.84 | V157: 232.45 | W157: 233.05 | X157: 232.73 | Y157: 235.14 | Z157: 235.91 | AA157: 239.16 | AB157: 239.49 | AC157: 242.52 | AD157: 239.46 | AE157: 237.81 | AF157: 232.6 | AG157: 231.61 | AH157: 226.71 | AI157: 229.2 | AJ157: 232.7 | AK157: 239.82 | AL157: 239.68 | AM157: 241.34 | AN157: 248.36 | AO157: 259.2 | AP157: 259.16
A158: Economy | B158: 158: Economy (UNADJUSTED) | C158: — | D158: — | E158: — | F158: — | G158: — | H158: — | I158: — | J158: — | K158: — | L158: — | M158: — | N158: — | O158: 250.18 | P158: 250.98 | Q158: 248.85 | R158: 251.05 | S158: 253.14 | T158: 259.98 | U158: 258.95 | V158: 253.87 | W158: 256.47 | X158: 257.15 | Y158: 257.74 | Z158: 260.71 | AA158: 265.42 | AB158: 265.46 | AC158: 265.66 | AD158: 261.02 | AE158: 269.33 | AF158: 263.47 | AG158: 258.35 | AH158: 254.11 | AI158: 255.46 | AJ158: 261.28 | AK158: 272.74 | AL158: 274.65 | AM158: 277.04 | AN158: 286.35 | AO158: 295.31 | AP158: 289.24
A159: Priority | B159: 159: Priority (UNADJUSTED) | C159: — | D159: — | E159: — | F159: — | G159: — | H159: — | I159: — | J159: — | K159: — | L159: — | M159: — | N159: — | O159: 212.75 | P159: 217.66 | Q159: 219.38 | R159: 216.46 | S159: 215.44 | T159: 220.38 | U159: 223.34 | V159: 222.69 | W159: 222.45 | X159: 221.99 | Y159: 224.63 | Z159: 225.29 | AA159: 228.07 | AB159: 228.62 | AC159: 231.92 | AD159: 229.97 | AE159: 223.26 | AF159: 218.52 | AG159: 218.15 | AH159: 214.32 | AI159: 217.5 | AJ159: 220.34 | AK159: 224.63 | AL159: 224.6 | AM159: 226.16 | AN159: 232.25 | AO159: 242.49 | AP159: 246.33
A160: Average Shipments Per Workday | B160: 160: Average Shipments Per Workday (UNADJUSTED) | C160: — | D160: — | E160: — | F160: — | G160: — | H160: — | I160: — | J160: — | K160: — | L160: — | M160: — | N160: — | O160: — | P160: — | Q160: — | R160: — | S160: — | T160: — | U160: — | V160: — | W160: — | X160: — | Y160: — | Z160: — | AA160: — | AB160: — | AC160: — | AD160: — | AE160: — | AF160: — | AG160: — | AH160: — | AI160: — | AJ160: — | AK160: — | AL160: — | AM160: — | AN160: — | AO160: — | AP160: —
A161: FedEx Freight | B161: 161: FedEx Freight (UNADJUSTED) | C161: 82700 | D161: 80300 | E161: 66000 | F161: 68400 | G161: 71400 | H161: 82900 | I161: 83400 | J161: 91500 | K161: 91800 | L161: 89400 | M161: 78300 | N161: 84265 | O161: 84955 | P161: 86800 | Q161: 79800 | R161: 87843 | S161: 87993 | T161: 88400 | U161: 80500 | V161: 85596 | W161: 88687 | X161: 91900 | Y161: 85800 | Z161: 95739 | AA161: 98100 | AB161: 99400 | AC161: 88800 | AD161: 95582 | AE161: 97153 | AF161: 100329 | AG161: 94744 | AH161: 102845 | AI161: 104800 | AJ161: 104100 | AK161: 94583 | AL161: 102709 | AM161: 106000 | AN161: 108600 | AO161: 100300 | AP161: 110572
A162: Priority | B162: 162: Priority (UNADJUSTED) | C162: — | D162: — | E162: — | F162: — | G162: — | H162: — | I162: — | J162: — | K162: — | L162: — | M162: — | N162: 60866 | O162: 61221 | P162: 62100 | Q162: 56400 | R162: 61580 | S162: 61415 | T162: 61600 | U162: 55300 | V162: 58788 | W162: 61044 | X162: 63800 | Y162: 59500 | Z162: 67031 | AA162: 69000 | AB162: 70100 | AC162: 62000 | AD162: 66366 | AE162: 66466 | AF162: 68889 | AG162: 64722 | AH162: 70810 | AI162: 72500 | AJ162: 72700 | AK162: 65547 | AL162: 71744 | AM162: 74400 | AN162: 76300 | AO162: 69700 | AP162: 77521
A163: Economy | B163: 163: Economy (UNADJUSTED) | C163: — | D163: — | E163: — | F163: — | G163: — | H163: — | I163: — | J163: — | K163: — | L163: — | M163: — | N163: 23399 | O163: 23734 | P163: 24700 | Q163: 23400 | R163: 26263 | S163: 26578 | T163: 26800 | U163: 25200 | V163: 26808 | W163: 27643 | X163: 28100 | Y163: 26300 | Z163: 28708 | AA163: 29100 | AB163: 29300 | AC163: 26800 | AD163: 29216 | AE163: 30687 | AF163: 31440 | AG163: 30022 | AH163: 32035 | AI163: 32300 | AJ163: 31400 | AK163: 29035 | AL163: 30965 | AM163: 31600 | AN163: 32300 | AO163: 30600 | AP163: 33051
A164: Revenue Per Hundredweight | B164: 164: Revenue Per Hundredweight (UNADJUSTED) | C164: — | D164: — | E164: — | F164: — | G164: — | H164: — | I164: — | J164: — | K164: — | L164: — | M164: — | N164: — | O164: — | P164: — | Q164: — | R164: — | S164: — | T164: — | U164: — | V164: — | W164: — | X164: — | Y164: — | Z164: — | AA164: — | AB164: — | AC164: — | AD164: — | AE164: — | AF164: — | AG164: — | AH164: — | AI164: — | AJ164: — | AK164: — | AL164: — | AM164: — | AN164: — | AO164: — | AP164: —
A165: FedEx Freight | B165: 165: FedEx Freight (UNADJUSTED) | C165: 20.44 | D165: 19.44 | E165: 18.21 | F165: 17.78 | G165: 17.87 | H165: 17.09 | I165: 16.82 | J165: 16.69 | K165: 17.32 | L165: 18.27 | M165: 18.66 | N165: 18.83 | O165: 19.29 | P165: 19.79 | Q165: 19.7 | R165: 19.5 | S165: 19.72 | T165: 20.28 | U165: 20.1 | V165: 19.68 | W165: 19.99 | X165: 19.98 | Y165: 19.67 | Z165: 19.66 | AA165: 20.18 | AB165: 20.37 | AC165: 20.17 | AD165: 19.89 | AE165: 20.01 | AF165: 19.93 | AG165: 19.67 | AH165: 19.33 | AI165: 19.89 | AJ165: 20.25 | AK165: 20.47 | AL165: 20.41 | AM165: 20.58 | AN165: 20.93 | AO165: 21.56 | AP165: 21.63
A166: Economy | B166: 166: Economy (UNADJUSTED) | C166: — | D166: — | E166: — | F166: — | G166: — | H166: — | I166: — | J166: — | K166: — | L166: — | M166: — | N166: 22.85 | O166: 23.13 | P166: 23.75 | Q166: 24.28 | R166: 24.67 | S166: 25.33 | T166: 26.29 | U166: 26.17 | V166: 25.87 | W166: 25.84 | X166: 25.92 | Y166: 25.71 | Z166: 25.73 | AA166: 26.19 | AB166: 26.29 | AC166: 26.38 | AD166: 26.52 | AE166: 23.06 | AF166: 23.09 | AG166: 22.42 | AH166: 22.66 | AI166: 23.26 | AJ166: 23.48 | AK166: 23.61 | AL166: 23.83 | AM166: 24.15 | AN166: 24.84 | AO166: 26.07 | AP166: 26.13
A167: Priority | B167: 167: Priority (UNADJUSTED) | C167: — | D167: — | E167: — | F167: — | G167: — | H167: — | I167: — | J167: — | K167: — | L167: — | M167: — | N167: 17.43 | O167: 17.94 | P167: 18.39 | Q167: 18.1 | R167: 17.67 | S167: 17.73 | T167: 18.15 | U167: 17.87 | V167: 17.5 | W167: 17.88 | X167: 17.89 | Y167: 17.54 | Z167: 17.6 | AA167: 18.14 | AB167: 18.36 | AC167: 18.02 | AD167: 17.68 | AE167: 18.63 | AF167: 18.53 | AG167: 18.35 | AH167: 17.91 | AI167: 18.49 | AJ167: 18.92 | AK167: 19.06 | AL167: 18.98 | AM167: 19.11 | AN167: 19.34 | AO167: 19.67 | AP167: 19.92
A168: Average Pounds per Package | B168: 168: Average Pounds per Package (UNADJUSTED) | C168: — | D168: — | E168: — | F168: — | G168: — | H168: — | I168: — | J168: — | K168: — | L168: — | M168: — | N168: — | O168: — | P168: — | Q168: — | R168: — | S168: — | T168: — | U168: — | V168: — | W168: — | X168: — | Y168: — | Z168: — | AA168: — | AB168: — | AC168: — | AD168: — | AE168: — | AF168: — | AG168: — | AH168: — | AI168: — | AJ168: — | AK168: — | AL168: — | AM168: — | AN168: — | AO168: — | AP168: —
A169: FedEx Express | B169: 169: FedEx Express (UNADJUSTED) | C169: 7.6 | D169: 7.7 | E169: 7.1 | F169: 7.1 | G169: 7.2 | H169: 7.6 | I169: 7.5 | J169: 7.6 | K169: 7.7 | L169: 7.9 | M169: 7.8 | N169: 8.6 | O169: 8.6 | P169: 9.1 | Q169: 8.7 | R169: 7.6 | S169: 9.9 | T169: 10.7 | U169: 10 | V169: 10.4 | W169: 10.5 | X169: 11 | Y169: 10.3 | Z169: 10.5 | AA169: 10.7 | AB169: 10.9 | AC169: 10.3 | AD169: 10.5 | AE169: 10.6 | AF169: 10.9 | AG169: 10.2 | AH169: 10.5 | AI169: 10.5 | AJ169: 11 | AK169: 10.7 | AL169: 14.1 | AM169: 13.6 | AN169: 14.5 | AO169: 13.5 | AP169: 15
A170: Average Revenue per Package per Pound | B170: 170: Average Revenue per Package per Pound (UNADJUSTED) | C170: — | D170: — | E170: — | F170: — | G170: — | H170: — | I170: — | J170: — | K170: — | L170: — | M170: — | N170: — | O170: — | P170: — | Q170: — | R170: — | S170: — | T170: — | U170: — | V170: — | W170: — | X170: — | Y170: — | Z170: — | AA170: — | AB170: — | AC170: — | AD170: — | AE170: — | AF170: — | AG170: — | AH170: — | AI170: — | AJ170: — | AK170: — | AL170: — | AM170: — | AN170: — | AO170: — | AP170: —
A171: FedEx Express | B171: 171: FedEx Express (UNADJUSTED) | C171: 3.19 | D171: 3.04 | E171: 2.69 | F171: 2.6 | G171: 2.61 | H171: 2.58 | I171: 2.63 | J171: 2.72 | K171: 2.66 | L171: 2.63 | M171: 2.69 | N171: 2.64 | O171: 2.64 | P171: 2.44 | Q171: 2.5 | R171: 2.72 | S171: 2.2 | T171: 1.97 | U171: 2.09 | V171: 2.09 | W171: 2.02 | X171: 1.94 | Y171: 2.03 | Z171: 2.08 | AA171: 2.01 | AB171: 1.92 | AC171: 1.94 | AD171: 1.97 | AE171: 1.89 | AF171: 1.79 | AG171: 1.89 | AH171: 1.9 | AI171: 1.9 | AJ171: 1.8 | AK171: 1.85 | AL171: 1.24 | AM171: 1.29 | AN171: 1.21 | AO171: 1.23 | AP171: 1.28
A172: Number of Workdays | B172: 172: Number of Workdays (UNADJUSTED) | C172: — | D172: — | E172: — | F172: — | G172: — | H172: — | I172: — | J172: — | K172: — | L172: — | M172: — | N172: — | O172: — | P172: — | Q172: — | R172: — | S172: — | T172: — | U172: — | V172: — | W172: — | X172: — | Y172: — | Z172: — | AA172: — | AB172: — | AC172: — | AD172: — | AE172: — | AF172: — | AG172: — | AH172: — | AI172: — | AJ172: — | AK172: — | AL172: — | AM172: — | AN172: — | AO172: — | AP172: —
A173: FedEx Ground | B173: 173: FedEx Ground (UNADJUSTED) | C173: 64 | D173: 63 | E173: 63 | F173: 64 | G173: 65 | H173: 63 | I173: 62 | J173: 65 | K173: 65 | L173: 63 | M173: 63 | N173: 65 | O173: 65 | P173: 63 | Q173: 63 | R173: 65 | S173: 65 | T173: 63 | U173: 62 | V173: 65 | W173: 64 | X173: 63 | Y173: 63 | Z173: 64 | AA173: 64 | AB173: 63 | AC173: 63 | AD173: 64 | AE173: 65 | AF173: 63 | AG173: 63 | AH173: 65 | AI173: 65 | AJ173: 63 | AK173: 62 | AL173: 65 | AM173: 65 | AN173: 63 | AO173: 62 | AP173: 65
A174: FedEx Freight | B174: 174: FedEx Freight (UNADJUSTED) | C174: 64 | D174: 62 | E174: 62 | F174: 64 | G174: 65 | H174: 62 | I174: 61 | J174: 65 | K174: 65 | L174: 62 | M174: 62 | N174: 65 | O174: 65 | P174: 62 | Q174: 63 | R174: 65 | S174: 65 | T174: 62 | U174: 61 | V174: 65 | W174: 64 | X174: 62 | Y174: 62 | Z174: 64 | AA174: 64 | AB174: 62 | AC174: 62 | AD174: 64 | AE174: 65 | AF174: 62 | AG174: 62 | AH174: 65 | AI174: 65 | AJ174: 62 | AK174: 62 | AL174: 65 | AM174: 65 | AN174: 62 | AO174: 62 | AP174: 65
A175: FedEx Express | B175: 175: FedEx Express (UNADJUSTED) | C175: 64 | D175: 63 | E175: 63 | F175: 64 | G175: 65 | H175: 63 | I175: 62 | J175: 65 | K175: 65 | L175: 63 | M175: 62 | N175: 65 | O175: 65 | P175: 63 | Q175: 63 | R175: 65 | S175: 65 | T175: 63 | U175: 62 | V175: 65 | W175: 64 | X175: 63 | Y175: 63 | Z175: 64 | AA175: 64 | AB175: 63 | AC175: 63 | AD175: 64 | AE175: 65 | AF175: 63 | AG175: 63 | AH175: 65 | AI175: 65 | AJ175: 63 | AK175: 62 | AL175: 65 | AM175: 65 | AN175: 63 | AO175: 62 | AP175: 65
A176: FedEx SmartPost | B176: 176: FedEx SmartPost (UNADJUSTED) | C176: 64 | D176: 63 | E176: 61 | F176: 64 | G176: 65 | H176: 63 | I176: 60 | J176: 65 | K176: 66 | L176: 63 | M176: 62 | N176: 65 | O176: 65 | P176: 62 | Q176: 63 | R176: 65 | S176: 65 | T176: 63 | U176: 61 | V176: 65 | W176: 64 | X176: 63 | Y176: 61 | Z176: 64 | AA176: 64 | AB176: 63 | AC176: 61 | AD176: 64 | AE176: — | AF176: — | AG176: — | AH176: — | AI176: — | AJ176: — | AK176: — | AL176: — | AM176: — | AN176: — | AO176: — | AP176: —
A177: Total Package Volume | B177: 177: Total Package Volume (UNADJUSTED) | C177: 251.063 | D177: 267.794 | E177: 283.358 | F177: 270.759 | G177: 280.754 | H177: 306.619 | I177: 317.109 | J177: 303.264 | K177: 302.253 | L177: 335.631 | M177: 352.198 | N177: 335.526 | O177: 333.892 | P177: 360.127 | Q177: 380.003 | R177: 359.118 | S177: 361.543 | T177: 398.218 | U177: 428.637 | V177: 411.038 | W177: 409.926 | X177: 431.227 | Y177: 457.78 | Z177: 417.029 | AA177: 413.14 | AB177: 438.891 | AC177: 467.557 | AD177: 431.726 | AE177: 436.628 | AF177: 480.229 | AG177: 525.363 | AH177: 484.447 | AI177: 480.256 | AJ177: 504.297 | AK177: 528.381 | AL177: 500.5 | AM177: 499.745 | AN177: 540.269 | AO177: 557.579 | AP177: 528.142
A178: FedEx Ground | B178: 178: FedEx Ground (UNADJUSTED) | C178: 213.676 | D178: 218.812 | E178: 221.169 | F178: 211.003 | G178: 215.2 | H178: 226.943 | I178: 227.797 | J178: 228.524 | K178: 229.683 | L178: 242.127 | M178: 244.585 | N178: 242.566 | O178: 241.938 | P178: 250.675 | Q178: 256.505 | R178: 250.981 | S178: 253.387 | T178: 269.807 | U178: 277.538 | V178: 275.977 | W178: 276.051 | X178: 291.488 | Y178: 303.498 | Z178: 294.18 | AA178: 292.845 | AB178: 305.231 | AC178: 323.568 | AD178: 310.193 | AE178: 436.628 | AF178: 480.229 | AG178: 525.363 | AH178: 484.447 | AI178: 480.256 | AJ178: 504.297 | AK178: 528.381 | AL178: 500.5 | AM178: 499.745 | AN178: 540.269 | AO178: 557.579 | AP178: 528.142
A179: FedEx SmartPost | B179: 179: FedEx SmartPost (UNADJUSTED) | C179: 37.387 | D179: 48.982 | E179: 62.189 | F179: 59.756 | G179: 65.554 | H179: 79.676 | I179: 89.312 | J179: 74.74 | K179: 72.57 | L179: 93.504 | M179: 107.613 | N179: 92.96 | O179: 91.954 | P179: 109.452 | Q179: 123.498 | R179: 108.137 | S179: 108.156 | T179: 128.411 | U179: 151.099 | V179: 135.061 | W179: 133.875 | X179: 139.739 | Y179: 154.282 | Z179: 122.849 | AA179: 120.295 | AB179: 133.66 | AC179: 143.989 | AD179: 121.533 | AE179: — | AF179: — | AG179: — | AH179: — | AI179: — | AJ179: — | AK179: — | AL179: — | AM179: — | AN179: — | AO179: — | AP179: —
A180: Average Fuel Surcharge % | B180: 180: Average Fuel Surcharge % (UNADJUSTED) | C180: — | D180: — | E180: — | F180: — | G180: — | H180: — | I180: — | J180: — | K180: — | L180: — | M180: — | N180: — | O180: — | P180: — | Q180: — | R180: — | S180: — | T180: — | U180: — | V180: — | W180: — | X180: — | Y180: — | Z180: — | AA180: — | AB180: — | AC180: — | AD180: — | AE180: — | AF180: — | AG180: — | AH180: — | AI180: — | AJ180: — | AK180: — | AL180: — | AM180: — | AN180: — | AO180: — | AP180: —
A181: FedEx Freight | B181: 181: FedEx Freight (UNADJUSTED) | C181: 22.9 | D181: 18 | E181: 10.6 | F181: — | G181: 12.4 | H181: 13.4 | I181: 14.3 | J181: — | K181: 15.4 | L181: 15.8 | M181: 17.1 | N181: — | O181: 22.9 | P181: 22.8 | Q181: 23 | R181: 22.9 | S181: 22.6 | T181: 24 | U181: 23.6 | V181: 23.38 | W181: 23 | X181: 23.1 | Y181: 23.2 | Z181: — | AA181: 26 | AB181: 25.2 | AC181: 22.7 | AD181: — | AE181: 22.4 | AF181: 21.14 | AG181: 19.5 | AH181: 20.6 | AI181: 20.5 | AJ181: 20.75 | AK181: 21.4 | AL181: 21 | AM181: 21.26 | AN181: 22.7 | AO181: 23.59 | AP181: 22.9
A182: FedEx Express - International | B182: 182: FedEx Express - International (UNADJUSTED) | C182: 25.26 | D182: 24.18 | E182: 10.57 | F182: — | G182: 7.3 | H182: 9.57 | I182: 10.25 | J182: — | K182: 11.08 | L182: 10.59 | M182: 12.04 | N182: — | O182: 17.8 | P182: 17.33 | Q182: 16.45 | R182: 17.45 | S182: 16.13 | T182: 17.22 | U182: 16.96 | V182: 17.02 | W182: 15.36 | X182: 16.79 | Y182: 16.31 | Z182: — | AA182: 16.26 | AB182: 15.59 | AC182: 11.57 | AD182: — | AE182: 8.82 | AF182: 6.58 | AG182: 5.83 | AH182: 6.09 | AI182: 6.75 | AJ182: 7.2 | AK182: 7.38 | AL182: 8 | AM182: 8.18 | AN182: 10.54 | AO182: 12.24 | AP182: 11.1
A183: Ground | B183: 183: Ground (UNADJUSTED) | C183: 9.43 | D183: 9.36 | E183: 5.07 | F183: — | G183: 3 | H183: 3.92 | I183: 4.61 | J183: — | K183: 5.83 | L183: 5.66 | M183: 5.85 | N183: — | O183: 9.32 | P183: 8.5 | Q183: 8.04 | R183: 8.46 | S183: 7.8 | T183: 7.88 | U183: 7.56 | V183: 7.6 | W183: 6.66 | X183: 6.67 | Y183: 6.5 | Z183: — | AA183: 6.83 | AB183: 6.5 | AC183: 5.85 | AD183: — | AE183: 4.3 | AF183: 3.92 | AG183: 4 | AH183: 3.82 | AI183: 3.7 | AJ183: 3.9 | AK183: 4.1 | AL183: 4 | AM183: 4.32 | AN183: 5.02 | AO183: 5.5 | AP183: 5.2
A184: FedEx Express - U.S. | B184: 184: FedEx Express - U.S. (UNADJUSTED) | C184: 31.67 | D184: 29.95 | E184: 8.24 | F184: — | G184: 3.29 | H184: 6.35 | I184: 7.42 | J184: — | K184: 8.5 | L184: 7.82 | M184: 9.7 | N184: — | O184: 15.52 | P184: 14.67 | Q184: 12.91 | R184: 14.23 | S184: 12.12 | T184: 13.04 | U184: 11.29 | V184: 11.84 | W184: 8.5 | X184: 10.02 | Y184: 9.49 | Z184: — | AA184: 9.5 | AB184: 8.69 | AC184: 4.8 | AD184: — | AE184: 3.34 | AF184: 1.89 | AG184: 2 | AH184: 1.84 | AI184: 1.83 | AJ184: 2.09 | AK184: 2.96 | AL184: 2.5 | AM184: 2.71 | AN184: 4.63 | AO184: 5.56 | AP184: 4.8
B185: 185: (UNADJUSTED)
A186: FedEx Express | B186: 186: FedEx Express (UNADJUSTED)
A187: Revenue | B187: 187: Revenue (UNADJUSTED) | C187: 6419 | D187: 6098 | E187: 5050 | F187: 4797 | G187: 4924 | H187: 5314 | I187: 5440 | J187: 5877 | K187: 5912 | L187: 5992 | M187: 6049 | N187: 6628 | O187: 6592 | P187: 6583 | Q187: 6543 | R187: 6797 | S187: 6632 | T187: 6858 | U187: 6704 | V187: 6977 | W187: 6605 | X187: 6844 | Y187: 6674 | Z187: 6998 | AA187: 6862 | AB187: 7024 | AC187: 6656 | AD187: 6697 | AE187: 6591 | AF187: 6588 | AG187: 6557 | AH187: 6715 | AI187: 8460 | AJ187: 8642 | AK187: 8569 | AL187: 8822 | AM187: 8400 | AN187: 9076 | AO187: 9098 | AP187: 9598
A188: Operating Income | B188: 188: Operating Income (UNADJUSTED) | C188: 345 | D188: 540 | E188: 45 | F188: -136 | G188: 104 | H188: 345 | I188: 265 | J188: 413 | K188: 357 | L188: 264 | M188: 178 | N188: 429 | O188: 288 | P188: 342 | Q188: 349 | R188: 281 | S188: 245 | T188: 230 | U188: 118 | V188: 94 | W188: 305 | X188: 389 | Y188: 168 | Z188: 534 | AA188: 377 | AB188: 492 | AC188: 393 | AD188: 322 | AE188: 545 | AF188: 622 | AG188: 595 | AH188: 757 | AI188: 610 | AJ188: 706 | AK188: 557 | AL188: 888 | AM188: 438 | AN188: 719 | AO188: 431 | AP188: 990
A189: Depreciation and Amortization | B189: 189: Depreciation and Amortization (UNADJUSTED) | C189: 239 | D189: 241 | E189: 241 | F189: 240 | G189: 252 | H189: 251 | I189: 254 | J189: 259 | K189: 255 | L189: 265 | M189: 267 | N189: 272 | O189: 282 | P189: 288 | Q189: 299 | R189: 300 | S189: 323 | T189: 336 | U189: 334 | V189: 357 | W189: 369 | X189: 373 | Y189: 374 | Z189: 372 | AA189: 374 | AB189: 368 | AC189: 364 | AD189: 354 | AE189: 347 | AF189: 349 | AG189: 342 | AH189: 347 | AI189: 420 | AJ189: 412 | AK189: 420 | AL189: 416 | AM189: 417 | AN189: 412 | AO189: 425 | AP189: 431
A190: Capital Expenditures | B190: 190: Capital Expenditures (UNADJUSTED) | C190: -333 | D190: -421 | E190: -334 | F190: -260 | G190: -641 | H190: -377 | I190: -226 | J190: -620 | K190: -844 | L190: -760 | M190: -440 | N190: -423 | O190: -872 | P190: -754 | Q190: -394 | R190: -669 | S190: -749 | T190: -517 | U190: -260 | V190: -541 | W190: -305 | X190: -690 | Y190: -472 | Z190: -527 | AA190: -467 | AB190: -614 | AC190: -569 | AD190: -731 | AE190: -834 | AF190: -686 | AG190: -345 | AH190: -491 | AI190: -831 | AJ190: -723 | AK190: -479 | AL190: -429 | AM190: -582 | AN190: -873 | AO190: -860 | AP190: -1145
A191: Size of Fleet | B191: 191: Size of Fleet (UNADJUSTED) | C191: — | D191: — | E191: — | F191: 42900 | G191: — | H191: — | I191: — | J191: 41300 | K191: — | L191: — | M191: — | N191: 42100 | O191: 43300 | P191: 45900 | Q191: 44100 | R191: 45300 | S191: 46700 | T191: 45600 | U191: 47500 | V191: 47500 | W191: 47100 | X191: 47600 | Y191: 47500 | Z191: 48300 | AA191: 47800 | AB191: 47900 | AC191: 47900 | AD191: 47900 | AE191: 49300 | AF191: 49800 | AG191: 48700 | AH191: 48400 | AI191: 49100 | AJ191: 49700 | AK191: 49000 | AL191: 56300 | AM191: 50300 | AN191: 52500 | AO191: 52100 | AP191: 59700
A192: Operating Margin | B192: 192: Operating Margin (UNADJUSTED) | C192: 5.4 | D192: 8.9 | E192: 0.9 | F192: -2.8 | G192: 2.1 | H192: 6.5 | I192: 4.9 | J192: 7 | K192: 6 | L192: 4.4 | M192: 2.9 | N192: 6.5 | O192: 4.4 | P192: 5.2 | Q192: 5.3 | R192: 4.1 | S192: 3.7 | T192: 3.4 | U192: 3.1 | V192: 1.3 | W192: 4.6 | X192: 5.7 | Y192: 2.5 | Z192: 7.6 | AA192: 5.5 | AB192: 7 | AC192: 5.9 | AD192: 4.8 | AE192: 8.3 | AF192: 9.4 | AG192: 9.1 | AH192: 11.3 | AI192: 7.2 | AJ192: 8.2 | AK192: 6.5 | AL192: 11.5 | AM192: 5 | AN192: 7.7 | AO192: 4.5 | AP192: 10.3
A193: Aircraft Operating Fleet by Aircraft Program & Model - Total | B193: 193: Aircraft Operating Fleet by Aircraft Program & Model - Total (UNADJUSTED) | C193: — | D193: — | E193: — | F193: 654 | G193: — | H193: — | I193: — | J193: 667 | K193: — | L193: — | M193: — | N193: 688 | O193: 687 | P193: 692 | Q193: 688 | R193: 660 | S193: 663 | T193: 666 | U193: 660 | V193: 647 | W193: 634 | X193: 643 | Y193: 649 | Z193: 650 | AA193: 656 | AB193: 666 | AC193: 673 | AD193: 647 | AE193: 652 | AF193: 656 | AG193: 657 | AH193: 643 | AI193: 650 | AJ193: 654 | AK193: 658 | AL193: 657 | AM193: 659 | AN193: 664 | AO193: 668 | AP193: 670
A194: Capital Expenditures - Supplementary Breakdown | B194: 194: Capital Expenditures - Supplementary Breakdown (UNADJUSTED) | C194: -240 | D194: -286 | E194: -233 | F194: -166 | G194: -555 | H194: -303 | I194: -158 | J194: -521 | K194: -747 | L194: -660 | M194: -352 | N194: -229 | O194: -700 | P194: -515 | Q194: -240 | R194: -420 | S194: -474 | T194: -357 | U194: -95 | V194: -264 | W194: -197 | X194: -495 | Y194: -308 | Z194: -327 | AA194: -299 | AB194: -499 | AC194: -472 | AD194: -596 | AE194: -622 | AF194: -536 | AG194: -230 | AH194: -309 | AI194: -592 | AJ194: -443 | AK194: -284 | AL194: -177 | AM194: -410 | AN194: -629 | AO194: -591 | AP194: -852
A195: Average Pounds per Package | B195: =ROW(A195)&": "&A195&" (UNADJUSTED)" -> 195: Average Pounds per Package (UNADJUSTED) | C195: 7.6 | D195: 7.7 | E195: 7.1 | F195: 7.1 | G195: 7.2 | H195: 7.6 | I195: 7.5 | J195: 7.6 | K195: 7.7 | L195: 7.9 | M195: 7.8 | N195: 8.6 | O195: 8.6 | P195: 9.1 | Q195: 8.7 | R195: 7.6 | S195: 9.9 | T195: 10.7 | U195: 10 | V195: 10.4 | W195: 10.5 | X195: 11 | Y195: 10.3 | Z195: 10.5 | AA195: 10.7 | AB195: 10.9 | AC195: 10.3 | AD195: 10.5 | AE195: 10.6 | AF195: 10.9 | AG195: 10.2 | AH195: 10.5 | AI195: 10.5 | AJ195: 11 | AK195: 10.7 | AL195: 14.1 | AM195: 13.6 | AN195: 14.5 | AO195: 13.5 | AP195: 15
A196: Average Revenue per Package per Pound | B196: 196: Average Revenue per Package per Pound (UNADJUSTED) | C196: 3.19 | D196: 3.04 | E196: 2.69 | F196: 2.6 | G196: 2.61 | H196: 2.58 | I196: 2.63 | J196: 2.72 | K196: 2.66 | L196: 2.63 | M196: 2.69 | N196: 2.64 | O196: 2.64 | P196: 2.44 | Q196: 2.5 | R196: 2.72 | S196: 2.2 | T196: 1.97 | U196: 2.09 | V196: 2.09 | W196: 2.02 | X196: 1.94 | Y196: 2.03 | Z196: 2.08 | AA196: 2.01 | AB196: 1.92 | AC196: 1.94 | AD196: 1.97 | AE196: 1.89 | AF196: 1.79 | AG196: 1.89 | AH196: 1.9 | AI196: 1.9 | AJ196: 1.8 | AK196: 1.85 | AL196: 1.24 | AM196: 1.29 | AN196: 1.21 | AO196: 1.23 | AP196: 1.28
A197: Number of Workdays | B197: 197: Number of Workdays (UNADJUSTED) | C197: 64 | D197: 63 | E197: 63 | F197: 64 | G197: 65 | H197: 63 | I197: 62 | J197: 65 | K197: 65 | L197: 63 | M197: 62 | N197: 65 | O197: 65 | P197: 63 | Q197: 63 | R197: 65 | S197: 65 | T197: 63 | U197: 62 | V197: 65 | W197: 64 | X197: 63 | Y197: 63 | Z197: 64 | AA197: 64 | AB197: 63 | AC197: 63 | AD197: 64 | AE197: 65 | AF197: 63 | AG197: 63 | AH197: 65 | AI197: 65 | AJ197: 63 | AK197: 62 | AL197: 65 | AM197: 65 | AN197: 63 | AO197: 62 | AP197: 65
A198: Average Fuel Surcharge % | B198: 198: Average Fuel Surcharge % (UNADJUSTED) | C198: 31.67 | D198: 29.95 | E198: 8.24 | F198: — | G198: 3.29 | H198: 6.35 | I198: 7.42 | J198: — | K198: 8.5 | L198: 7.82 | M198: 9.7 | N198: — | O198: 15.52 | P198: 14.67 | Q198: 12.91 | R198: 14.23 | S198: 12.12 | T198: 13.04 | U198: 11.29 | V198: 11.84 | W198: 8.5 | X198: 10.02 | Y198: 9.49 | Z198: — | AA198: 9.5 | AB198: 8.69 | AC198: 4.8 | AD198: — | AE198: 3.34 | AF198: 1.89 | AG198: 2 | AH198: 1.84 | AI198: 1.83 | AJ198: 2.09 | AK198: 2.96 | AL198: 2.5 | AM198: 2.71 | AN198: 4.63 | AO198: 5.56 | AP198: 4.8
A199: Average Daily Freight Pounds Growth% | B199: 199: Average Daily Freight Pounds Growth% (UNADJUSTED) | C199: -9 | D199: -14 | E199: -19 | F199: -20 | G199: -13 | H199: -2 | I199: 11 | J199: 13 | K199: 11 | L199: 10 | M199: 6 | N199: 4 | O199: 1 | P199: 2 | Q199: 1 | R199: 3 | S199: 1 | T199: -2 | U199: -2 | V199: -5 | W199: -2 | X199: -2 | Y199: -3 | Z199: 2 | AA199: -3 | AB199: -2 | AC199: -1 | AD199: 0 | AE199: -4 | AF199: -1 | AG199: -3 | AH199: 4 | AI199: 8 | AJ199: 0 | AK199: 3 | AL199: -3 | AM199: -5 | AN199: 5 | AO199: 3 | AP199: 5
A200: Operating Ratio | B200: 200: Operating Ratio (UNADJUSTED) | C200: 94.6 | D200: 91.1 | E200: 99.1 | F200: 102.9 | G200: 97.9 | H200: 93.5 | I200: 95.1 | J200: 93 | K200: 94 | L200: 95.6 | M200: 97.1 | N200: 93.6 | O200: 95.6 | P200: 94.8 | Q200: 94.7 | R200: 96 | S200: 96.9 | T200: 95.3 | U200: 96.85 | V200: 98.65 | W200: 95.87 | X200: 94.78 | Y200: 97 | Z200: 92.37 | AA200: 94.5 | AB200: 92.99 | AC200: 94.09 | AD200: 95.19 | AE200: 90.68 | AF200: 90.56 | AG200: 90.92 | AH200: 88.73 | AI200: 92.8 | AJ200: 91.83 | AK200: 93.5 | AL200: 87.98 | AM200: 95 | AN200: 92.33 | AO200: 95.47 | AP200: 89.68
... 300 more rows

Sheet DATA-Modified
B1: 08/31/2008 | C1: 11/30/2008 | D1: 02/28/2009 | E1: 05/31/2009 | F1: 08/31/2009 | G1: 11/30/2009 | H1: 02/28/2010 | I1: 05/31/2010 | J1: 08/31/2010 | K1: 11/30/2010 | L1: 02/28/2011 | M1: 05/31/2011 | N1: 08/31/2011 | O1: 11/30/2011 | P1: 02/29/2012 | Q1: 05/31/2012 | R1: 08/31/2012 | S1: 11/30/2012 | T1: 02/28/2013 | U1: 05/31/2013 | V1: 08/31/2013 | W1: 11/30/2013 | X1: 02/28/2014 | Y1: 05/31/2014 | Z1: 08/31/2014 | AA1: 11/30/2014 | AB1: 02/28/2015 | AC1: 05/31/2015 | AD1: 08/31/2015 | AE1: 11/30/2015 | AF1: 02/29/2016 | AG1: 05/31/2016 | AH1: 08/31/2016 | AI1: 11/30/2016 | AJ1: 02/28/2017 | AK1: 05/31/2017 | AL1: 08/31/2017 | AM1: 11/30/2017 | AN1: 02/28/2018 | AO1: 05/31/2018
A2: 2: Stock's Relative Performance (L1) (UNADJUSTED) | B2: 98.5814 | C2: 120.3698 | D2: 89.7575 | E2: 92.0856 | F2: 102.7974 | G2: 117.6966 | H2: 117.1807 | I2: 117.0235 | J2: 113.5771 | K2: 117.8573 | L2: 103.5674 | M2: 106.2928 | N2: 98.616 | O2: 101.7354 | P2: 100.6173 | Q2: 103.8773 | R2: 95.1301 | S2: 96.5336 | T2: 106.2849 | U2: 90.2091 | V2: 100.3905 | W2: 117.2824 | X2: 109.4893 | Y2: 114.4366 | Z2: 112.7137 | AA2: 131.5919 | AB2: 128.4114 | AC2: 125.5109 | AD2: 116.6099 | AE2: 116.3639 | AF2: 108.1707 | AG2: 120.1277 | AH2: 116.0054 | AI2: 133.1051 | AJ2: 124.6692 | AK2: 122.7243 | AL2: 132.442 | AM2: 133.492 | AN2: 138.6449 | AO2: 140.6133
A3: 3: FDX US Equity - Last Price (R3) (UNADJUSTED) | B3: 82.82 | C3: 70.65 | D3: 43.21 | E3: 55.43 | F3: 68.71 | G3: 84.45 | H3: 84.76 | I3: 83.49 | J3: 78.05 | K3: 91.12 | L3: 90.02 | M3: 93.64 | N3: 78.72 | O3: 83.08 | P3: 89.99 | Q3: 89.14 | R3: 87.63 | S3: 89.53 | T3: 105.43 | U3: 96.34 | V3: 107.36 | W3: 138.7 | X3: 133.33 | Y3: 144.16 | Z3: 147.88 | AA3: 178.18 | AB3: 176.98 | AC3: 173.22 | AD3: 150.61 | AE3: 158.54 | AF3: 136.88 | AG3: 164.97 | AH3: 164.93 | AI3: 191.67 | AJ3: 192.98 | AK3: 193.84 | AL3: 214.38 | AM3: 231.46 | AN3: 246.41 | AO3: 249.12
A4: 4: Stock's NTM Consensus EPS (R2) (UNADJUSTED) | B4: 5.3 | C4: 5.513 | D4: 4.286 | E4: 3.326 | F4: 3.042 | G4: 3.766 | H4: 4.504 | I4: 5.067 | J4: 5.439 | K4: 5.732 | L4: 6.03 | M4: 6.533 | N4: 6.86 | O4: 6.814 | P4: 7.095 | Q4: 7.426 | R4: 7.614 | S4: 7.133 | T4: 7.423 | U4: 7.405 | V4: 7.423 | W4: 7.912 | X4: 8.544 | Y4: 8.782 | Z4: 9.274 | AA4: 9.934 | AB4: 10.465 | AC4: 10.886 | AD4: 11.272 | AE4: 11.439 | AF4: 11.566 | AG4: 12.094 | AH4: 12.282 | AI4: 12.888 | AJ4: 13.14 | AK4: 13.578 | AL4: 13.99 | AM4: 13.812 | AN4: 16.023 | AO4: 17.403
A5: 5: Stock's P/E Ratio Relative to Index (R1) | B5: 1.1885 | C5: 1.1745 | D5: 0.8919 | E5: 1.1587 | F5: 1.5418 | G5: 1.557 | H5: 1.3827 | I5: 1.3261 | J5: 1.2489 | K5: 1.2688 | L5: 1.1155 | M5: 1.1217 | N5: 1.0151 | O5: 1.0398 | P5: 0.9984 | Q5: 1.0179 | R5: 0.9135 | S5: 0.9897 | T5: 1.0691 | U5: 0.9231 | V5: 1.0466 | W5: 1.1629 | X5: 1.0136 | Y5: 1.0589 | Z5: 1.019 | AA5: 1.106 | AB5: 0.9804 | AC5: 0.9419 | AD5: 0.8551 | AE5: 0.8382 | AF5: 0.7516 | AG5: 0.8114 | AH5: 0.7899 | AI5: 0.8809 | AJ5: 0.8261 | AK5: 0.8117 | AL5: 0.8717 | AM5: 0.9155 | AN5: 0.9075 | AO5: 0.8799
A6: 6: Diluted EPS, GAAP (UNADJUSTED) | B6: 1.23 | C6: 1.59 | D6: 0.31 | E6: -2.82 | F6: 0.58 | G6: 1.1 | H6: 0.76 | I6: 1.33 | J6: 1.2 | K6: 0.89 | L6: 0.73 | M6: 1.75 | N6: 1.46 | O6: 1.57 | P6: 1.65 | Q6: 1.73 | R6: 1.45 | S6: 1.39 | T6: 1.13 | U6: 0.95 | V6: 1.53 | W6: 1.75 | X6: 1.23 | Y6: 2.46 | Z6: 2.26 | AA6: 2.31 | AB6: 2.18 | AC6: -3.16 | AD6: 2.42 | AE6: 2.44 | AF6: 1.84 | AG6: -0.26 | AH6: 2.65 | AI6: 2.59 | AJ6: 2.07 | AK6: 3.75 | AL6: 2.19 | AM6: 2.84 | AN6: 7.59 | AO6: 4.15
A7: 7: Diluted EPS from Cont Ops (UNADJUSTED) | B7: 1.23 | C7: 1.59 | D7: 0.31 | E7: -2.82 | F7: 0.58 | G7: 1.1 | H7: 0.76 | I7: 1.33 | J7: 1.2 | K7: 0.89 | L7: 0.73 | M7: 1.75 | N7: 1.46 | O7: 1.57 | P7: 1.65 | Q7: 1.73 | R7: 1.45 | S7: 1.39 | T7: 1.13 | U7: 0.95 | V7: 1.53 | W7: 1.75 | X7: 1.23 | Y7: 2.46 | Z7: 2.26 | AA7: 2.31 | AB7: 2.18 | AC7: -3.16 | AD7: 2.42 | AE7: 2.44 | AF7: 1.84 | AG7: -0.26 | AH7: 2.65 | AI7: 2.59 | AJ7: 2.07 | AK7: 3.75 | AL7: 2.19 | AM7: 2.84 | AN7: 7.59 | AO7: 4.15
A8: 8: Diluted EPS from Cont Ops, Adjusted (UNADJUSTED) | B8: 1.23 | C8: 1.59 | D8: 0.31 | E8: 0.661 | F8: 0.58 | G8: 1.1 | H8: 0.76 | I8: 1.363 | J8: 1.2 | K8: 1.16 | L8: 0.7718 | M8: 1.7541 | N8: 1.46 | O8: 1.57 | P8: 1.55 | Q8: 1.995 | R8: 1.4582 | S8: 1.4168 | T8: 1.2246 | U8: 2.13 | V8: 1.53 | W8: 1.75 | X8: 1.23 | Y8: 2.49 | Z8: 2.26 | AA8: 2.31 | AB8: 2.18 | AC8: 2.8092 | AD8: 2.42 | AE8: 2.5707 | AF8: 1.84 | AG8: 3.3317 | AH8: 2.8173 | AI8: 2.8804 | AJ8: 2.3025 | AK8: 4.1854 | AL8: 2.5099 | AM8: 3.1746 | AN8: 3.5827 | AO8: 5.9138
A9: 9: ETSLTOTL Index - Last Price (R3) (UNADJUSTED) | B9: 4.27 | C9: 4.01 | D9: 3.86 | E9: 4.1 | F9: 4.62 | G9: 4.4 | H9: 4.49 | I9: 4.45 | J9: 3.84 | K9: 4.27 | L9: 4.26 | M9: 4.23 | N9: 4.33 | O9: 4.35 | P9: 4.52 | Q9: 4.47 | R9: 4.71 | S9: 4.89 | T9: 5.07 | U9: 5.11 | V9: 5.14 | W9: 4.86 | X9: 4.75 | Y9: 4.94 | Z9: 5 | AA9: 5.09 | AB9: 5.25 | AC9: 5.36 | AD9: 5.41 | AE9: 5.44 | AF9: 5.38 | AG9: 5.46 | AH9: 5.47 | AI9: 5.52 | AJ9: 5.67 | AK9: 5.5 | AL9: 5.37 | AM9: 5.56 | AN9: 5.6 | AO9: 5.43
A10: 10: NFP TYOY Index - Last Price (R4) (UNADJUSTED) | B10: -0.97 | C10: -2.58 | D10: -4.15 | E10: -4.86 | F10: -4.77 | G10: -3.75 | H10: -1.98 | I10: -0.38 | J10: 0.08 | K10: 0.81 | L10: 1.07 | M10: 1.1 | N10: 1.54 | O10: 1.6 | P10: 1.87 | Q10: 1.57 | R10: 1.65 | S10: 1.62 | T10: 1.45 | U10: 1.68 | V10: 1.71 | W10: 1.7 | X10: 1.69 | Y10: 1.89 | Z10: 1.98 | AA10: 2.19 | AB10: 2.13 | AC10: 2.07 | AD10: 1.92 | AE10: 1.93 | AF10: 1.95 | AG10: 1.73 | AH10: 1.9 | AI10: 1.64 | AJ10: 1.59 | AK10: 1.63 | AL10: 1.39 | AM10: 1.5 | AN10: 1.58 | AO10: 1.62
A11: 11: IP Index - Last Price (L4) (UNADJUSTED) | B11: 99.7905 | C11: 95.5305 | D11: 90.1598 | E11: 87.591 | F11: 88.9168 | G11: 90.3211 | H11: 92.1008 | I11: 93.8969 | J11: 95.1094 | K11: 95.4235 | L11: 95.972 | M11: 96.352 | N11: 97.4595 | O11: 98.4318 | P11: 99.3903 | Q11: 100.0202 | R11: 100.0375 | S11: 100.552 | T11: 101.3743 | U11: 101.7984 | V11: 102.0998 | W11: 102.8604 | X11: 103.6321 | Y11: 105.0693 | Z11: 105.6105 | AA11: 106.3272 | AB11: 105.4607 | AC11: 104.1057 | AD11: 104.0347 | AE11: 102.7863 | AF11: 102.3053 | AG11: 101.7655 | AH11: 102.0464 | AI11: 102.2242 | AJ11: 102.4734 | AK11: 103.7326 | AL11: 103.3307 | AM11: 105.2763 | AN11: 105.9068 | AO11: 107.4509
A12: 12: NAPMNMAN Index - Last Price (R1) (UNADJUSTED) | B12: 50.6 | C12: 38.5 | D12: 43.2 | E12: 48.8 | F12: 53.5 | G12: 52.5 | H12: 57.8 | I12: 59.3 | J12: 52.9 | K12: 62.3 | L12: 58.6 | M12: 56.3 | N12: 56.2 | O12: 56 | P12: 59.3 | Q12: 55.3 | R12: 59.1 | S12: 60.7 | T12: 57.9 | U12: 55.6 | V12: 54.7 | W12: 55.3 | X12: 55.2 | Y12: 60 | Z12: 61.6 | AA12: 59 | AB12: 59.1 | AC12: 61.4 | AD12: 59.6 | AE12: 59.5 | AF12: 60 | AG12: 58.9 | AH12: 59.6 | AI12: 61.4 | AJ12: 59.2 | AK12: 60.7 | AL12: 60.9 | AM12: 57.8 | AN12: 60.6 | AO12: 63.9
A13: 13: PCE CHY% Index - Last Price (R2) (UNADJUSTED) | B13: -1.1869 | C13: -2.4092 | D13: -2.3933 | E13: -2.672 | F13: -1.2968 | G13: 0.5552 | H13: 1.4041 | I13: 2.2451 | J13: 2.606 | K13: 2.9268 | L13: 2.8128 | M13: 2.2671 | N13: 2.0901 | O13: 1.2146 | P13: 1.4105 | Q13: 1.3848 | R13: 1.4212 | S13: 1.6328 | T13: 1.1332 | U13: 1.4778 | V13: 1.5037 | W13: 1.9454 | X13: 2.526 | Y13: 2.7843 | Z13: 3.1521 | AA13: 3.6834 | AB13: 3.9037 | AC13: 3.7166 | AD13: 3.6772 | AE13: 3.0529 | AF13: 2.2913 | AG13: 2.9813 | AH13: 2.8107 | AI13: 2.8572 | AJ13: 3.2489 | AK13: 2.5604 | AL13: 2.6238 | AM13: 2.8999 | AN13: 2.4106 | AO13: 2.2825
A14: 14: SPCS20Y% Index - Last Price (L3) (UNADJUSTED) | B14: -17.4 | C14: -18.61 | D14: -18.66 | E14: -15.38 | F14: -9.29 | G14: -3.09 | H14: 2.34 | I14: 4.24 | J14: 0.43 | K14: -2.4 | L14: -3.98 | M14: -4.39 | N14: -3.59 | O14: -4.07 | P14: -2.59 | Q14: 0.61 | R14: 3 | S14: 6.94 | T14: 10.72 | U14: 12.01 | V14: 13.25 | W14: 13.38 | X14: 12.37 | Y14: 8.05 | Z14: 4.73 | AA14: 4.35 | AB14: 4.9 | AC14: 4.82 | AD14: 5.22 | AE14: 5.55 | AF14: 5.45 | AG14: 5.09 | AH14: 5 | AI14: 5.43 | AJ14: 5.88 | AK14: 5.6 | AL14: 6.08 | AM14: 6.3 | AN14: 6.73 | AO14: 6.56
A15: 15: CNSTTOTA Index - Last Price (R1) (UNADJUSTED) | B15: 1059904 | C15: 999710 | D15: 958519 | E15: 907196 | F15: 882793 | G15: 838737 | H15: 815113 | I15: 822777 | J15: 803378 | K15: 786597 | L15: 766758 | M15: 792726 | N15: 811291 | O15: 818445 | P15: 827489 | Q15: 855069 | R15: 861404 | S15: 864836 | T15: 856946 | U15: 892255 | V15: 930605 | W15: 964929 | X15: 984173 | Y15: 1000006 | Z15: 1011991 | AA15: 1043017 | AB15: 1079514 | AC15: 1144495 | AD15: 1141478 | AE15: 1122139 | AF15: 1183711 | AG15: 1195146 | AH15: 1204401 | AI15: 1234637 | AJ15: 1256852 | AK15: 1241302 | AL15: 1240443 | AM15: 1272639 | AN15: 1293125 | AO15: 1309490
A16: 16: CONSSENT Index - Last Price (L4) (UNADJUSTED) | B16: 70.3 | C16: 60.1 | D16: 57.3 | E16: 70.8 | F16: 73.5 | G16: 72.5 | H16: 73.6 | I16: 76 | J16: 68.2 | K16: 74.5 | L16: 67.5 | M16: 71.5 | N16: 59.5 | O16: 69.9 | P16: 76.2 | Q16: 73.2 | R16: 78.3 | S16: 72.9 | T16: 78.6 | U16: 84.1 | V16: 77.5 | W16: 82.5 | X16: 80 | Y16: 82.5 | Z16: 84.6 | AA16: 93.6 | AB16: 93 | AC16: 96.1 | AD16: 87.2 | AE16: 92.6 | AF16: 91 | AG16: 93.5 | AH16: 91.2 | AI16: 98.2 | AJ16: 96.9 | AK16: 95.1 | AL16: 95.1 | AM16: 95.9 | AN16: 101.4 | AO16: 98.2
A17: 17: RSTAYOY Index - Last Price (L3) (UNADJUSTED) | B17: -1.65 | C17: -11.28 | D17: -11.54 | E17: -9.71 | F17: -7.7 | G17: 4.21 | H17: 7.54 | I17: 4.19 | J17: 6.14 | K17: 6.7 | L17: 6.72 | M17: 8.21 | N17: 7.91 | O17: 6.12 | P17: 6.17 | Q17: 3.38 | R17: 4.56 | S17: 4.33 | T17: 3.06 | U17: 4.93 | V17: 2.97 | W17: 3.46 | X17: 3.59 | Y17: 4.81 | Z17: 5.12 | AA17: 3.69 | AB17: 2.96 | AC17: 2.66 | AD17: 2.27 | AE17: 2.85 | AF17: 2.12 | AG17: 2.85 | AH17: 3.02 | AI17: 3.74 | AJ17: 4.66 | AK17: 3.35 | AL17: 5.16 | AM17: 5.28 | AN17: 5.09 | AO17: 6.6
A18: 18: SAARTOTL Index - Last Price (L2) (UNADJUSTED) | B18: 12.69 | C18: 10.18 | D18: 9.57 | E18: 9.98 | F18: 9.36 | G18: 11.1 | H18: 11.57 | I18: 11.41 | J18: 11.67 | K18: 12.43 | L18: 12.85 | M18: 11.68 | N18: 13.01 | O18: 13.46 | P18: 14.22 | Q18: 14.13 | R18: 14.81 | S18: 15.22 | T18: 15.5 | U18: 15.74 | V18: 15.28 | W18: 15.52 | X18: 16.79 | Y18: 16.97 | Z18: 16.24 | AA18: 16.71 | AB18: 17.5 | AC18: 17.29 | AD18: 17.97 | AE18: 17.19 | AF18: 16.77 | AG18: 16.99 | AH18: 17.65 | AI18: 18.05 | AJ18: 16.72 | AK18: 16.59 | AL18: 18.47 | AM18: 17.76 | AN18: 17.4 | AO18: 17.38
A19: 19: Revenue (UNADJUSTED) | B19: 9970 | C19: 9538 | D19: 8137 | E19: 7852 | F19: 8009 | G19: 8596 | H19: 8701 | I19: 9428 | J19: 9457 | K19: 9632 | L19: 9663 | M19: 10552 | N19: 10521 | O19: 10587 | P19: 10564 | Q19: 11008 | R19: 10792 | S19: 11107 | T19: 10953 | U19: 11435 | V19: 11024 | W19: 11403 | X19: 11301 | Y19: 11839 | Z19: 11684 | AA19: 11939 | AB19: 11716 | AC19: 12114 | AD19: 12279 | AE19: 12453 | AF19: 12654 | AG19: 12979 | AH19: 14663 | AI19: 14931 | AJ19: 14997 | AK19: 15728 | AL19: 15297 | AM19: 16313 | AN19: 16526 | AO19: 17314
A20: 20: Sales & Services Revenue (UNADJUSTED) | B20: 9970 | C20: 9538 | D20: 8137 | E20: 7852 | F20: 8009 | G20: 8596 | H20: 8701 | I20: 9428 | J20: 9457 | K20: 9632 | L20: 9663 | M20: 10552 | N20: 10521 | O20: 10587 | P20: 10564 | Q20: 11008 | R20: 10792 | S20: 11107 | T20: 10953 | U20: 11435 | V20: 11024 | W20: 11403 | X20: 11301 | Y20: 11839 | Z20: 11684 | AA20: 11939 | AB20: 11716 | AC20: 12114 | AD20: 12279 | AE20: 12453 | AF20: 12796 | AG20: 13022 | AH20: 14663 | AI20: 14931 | AJ20: 15138 | AK20: 15885 | AL20: 15297 | AM20: 16313 | AN20: 16683 | AO20: 16694
A21: 21: Cost of Revenue (UNADJUSTED) | B21: 8037 | C21: 7414 | D21: 6664 | E21: 6299 | F21: 6571 | G21: 6813 | H21: 7064 | I21: 7445 | J21: 7614 | K21: 7710 | L21: 7917 | M21: 8274 | N21: 8446 | O21: 8410 | P21: 8500 | Q21: 8614 | R21: 8654 | S21: 8961 | T21: 8899 | U21: 8898 | V21: 8819 | W21: 9002 | X21: 9145 | Y21: 9036 | Z21: 9155 | AA21: 9323 | AB21: 9153 | AC21: 9074 | AD21: 9472 | AE21: 9587 | AF21: 9783 | AG21: 9697 | AH21: 11328 | AI21: 11563 | AJ21: 11812 | AK21: 11832 | AL21: 11910 | AM21: 12656 | AN21: 13117 | AO21: 13077
A22: 22: Cost of Goods & Services (UNADJUSTED) | B22: 7545 | C22: 6923 | D22: 6168 | E22: 5803 | F22: 6076 | G22: 6326 | H22: 6576 | I22: 6957 | J22: 7135 | K22: 7208 | L22: 7424 | M22: 7775 | N22: 7937 | O22: 7892 | P22: 7957 | Q22: 8071 | R22: 8081 | S22: 8369 | T22: 8300 | U22: 8276 | V22: 8180 | W22: 8355 | X22: 8493 | Y22: 8387 | Z22: 8504 | AA22: 8672 | AB22: 8501 | AC22: 8417 | AD22: 8824 | AE22: 8934 | AF22: 9120 | AG22: 9030 | AH22: 10589 | AI22: 10823 | AJ22: 11050 | AK22: 11078 | AL22: 11159 | AM22: 11900 | AN22: 12331 | AO22: 12275
A23: 23: Depreciation & Amortization (UNADJUSTED) | B23: 492 | C23: 491 | D23: 496 | E23: 496 | F23: 495 | G23: 487 | H23: 488 | I23: 488 | J23: 479 | K23: 502 | L23: 493 | M23: 499 | N23: 509 | O23: 518 | P23: 543 | Q23: 543 | R23: 573 | S23: 592 | T23: 599 | U23: 622 | V23: 639 | W23: 647 | X23: 652 | Y23: 649 | Z23: 651 | AA23: 651 | AB23: 652 | AC23: 657 | AD23: 648 | AE23: 653 | AF23: 663 | AG23: 667 | AH23: 739 | AI23: 740 | AJ23: 762 | AK23: 754 | AL23: 751 | AM23: 756 | AN23: 786 | AO23: 802
A24: 24: Gross Profit (UNADJUSTED) | B24: 1933 | C24: 2124 | D24: 1473 | E24: 1553 | F24: 1438 | G24: 1783 | H24: 1637 | I24: 1983 | J24: 1843 | K24: 1922 | L24: 1746 | M24: 2278 | N24: 2075 | O24: 2177 | P24: 2064 | Q24: 2394 | R24: 2138 | S24: 2146 | T24: 2054 | U24: 2537 | V24: 2205 | W24: 2401 | X24: 2156 | Y24: 2803 | Z24: 2529 | AA24: 2616 | AB24: 2563 | AC24: 3040 | AD24: 2807 | AE24: 2866 | AF24: 2871 | AG24: 3282 | AH24: 3335 | AI24: 3368 | AJ24: 3185 | AK24: 3896 | AL24: 3387 | AM24: 3657 | AN24: 3409 | AO24: 4237
A25: 25: Operating Expenses (UNADJUSTED) | B25: 1303 | C25: 1340 | D25: 1291 | E25: 1198 | F25: 1123 | G25: 1212 | H25: 1221 | I25: 1269 | J25: 1215 | K25: 1320 | L25: 1332 | M25: 1388 | N25: 1338 | O25: 1397 | P25: 1317 | Q25: 1404 | R25: 1392 | S25: 1415 | T25: 1418 | U25: 1439 | V25: 1410 | W25: 1478 | X25: 1515 | Y25: 1524 | Z25: 1467 | AA25: 1528 | AB25: 1525 | AC25: 1698 | AD25: 1663 | AE25: 1671 | AF25: 2007 | AG25: 1775 | AH25: 2003 | AI25: 2085 | AJ25: 2082 | AK25: 2154 | AL25: 2151 | AM25: 2273 | AN25: 2302 | AO25: 2240
A26: 26: Other Operating Expense (UNADJUSTED) | B26: 1303 | C26: 1340 | D26: 1291 | E26: 1198 | F26: 1123 | G26: 1212 | H26: 1221 | I26: 1269 | J26: 1215 | K26: 1320 | L26: 1332 | M26: 1388 | N26: 1338 | O26: 1397 | P26: 1317 | Q26: 1404 | R26: 1392 | S26: 1415 | T26: 1418 | U26: 1439 | V26: 1410 | W26: 1478 | X26: 1515 | Y26: 1524 | Z26: 1467 | AA26: 1528 | AB26: 1525 | AC26: 1698 | AD26: 1663 | AE26: 1671 | AF26: 2007 | AG26: 1775 | AH26: 2003 | AI26: 2085 | AJ26: 2082 | AK26: 2154 | AL26: 2151 | AM26: 2273 | AN26: 2302 | AO26: 2240
A27: 27: Operating Income (Loss) (UNADJUSTED) | B27: 630 | C27: 784 | D27: 182 | E27: 355 | F27: 315 | G27: 571 | H27: 416 | I27: 714 | J27: 628 | K27: 602 | L27: 414 | M27: 890 | N27: 737 | O27: 780 | P27: 747 | Q27: 990 | R27: 746 | S27: 731 | T27: 636 | U27: 1098 | V27: 795 | W27: 923 | X27: 641 | Y27: 1279 | Z27: 1062 | AA27: 1088 | AB27: 1038 | AC27: 1342 | AD27: 1144 | AE27: 1195 | AF27: 864 | AG27: 1507 | AH27: 1332 | AI27: 1283 | AJ27: 1103 | AK27: 1742 | AL27: 1236 | AM27: 1384 | AN27: 1107 | AO27: 1997
A28: 28: Non-Operating (Income) Loss (UNADJUSTED) | B28: 12 | C28: 10 | D28: 23 | E28: 25 | F28: 21 | G28: 24 | H28: 35 | I28: 24 | J28: 25 | K28: 32 | L28: 33 | M28: 23 | N28: 13 | O28: 3 | P28: 21 | Q28: 8 | R28: 15 | S28: 26 | T28: 25 | U28: 30 | V28: 29 | W28: 35 | X28: 47 | Y28: 46 | Z28: 50 | AA28: 42 | AB28: 53 | AC28: 95 | AD28: 60 | AE28: 82 | AF28: 82 | AG28: 113 | AH28: 122 | AI28: 124 | AJ28: 126 | AK28: 121 | AL28: 135 | AM28: 123 | AN28: 127 | AO28: 132
A29: 29: Interest Expense, Net (UNADJUSTED) | B29: 9 | C29: 10 | D29: 19 | E29: 21 | F29: 18 | G29: 15 | H29: 19 | I29: 19 | J29: 18 | K29: 23 | L29: 24 | M29: 12 | N29: 11 | O29: 7 | P29: 12 | Q29: 9 | R29: 10 | S29: 18 | T29: 9 | U29: 24 | V29: 27 | W29: 30 | X29: 38 | Y29: 47 | Z29: 48 | AA29: 47 | AB29: 58 | AC29: 68 | AD29: 63 | AE29: 74 | AF29: 81 | AG29: 97 | AH29: 113 | AI29: 119 | AJ29: 122 | AK29: 125 | AL29: 114 | AM29: 124 | AN29: 125 | AO29: 147
A30: 30: Interest Expense (UNADJUSTED) | B30: 18 | C30: 18 | D30: 25 | E30: 24 | F30: 21 | G30: 17 | H30: 20 | I30: 21 | J30: 19 | K30: 26 | L30: 26 | M30: 15 | N30: 13 | O30: 9 | P30: 15 | Q30: 15 | R30: 12 | S30: 23 | T30: 19 | U30: 28 | V30: 31 | W30: 33 | X30: 42 | Y30: 54 | Z30: 51 | AA30: 51 | AB30: 62 | AC30: 71 | AD30: 68 | AE30: 78 | AF30: 87 | AG30: 103 | AH30: 119 | AI30: 123 | AJ30: 128 | AK30: 142 | AL30: 125 | AM30: 131 | AN30: 138 | AO30: 163
A31: 31: Interest Income (UNADJUSTED) | B31: 9 | C31: 8 | D31: 6 | E31: 3 | F31: 3 | G31: 2 | H31: 1 | I31: 2 | J31: 1 | K31: 3 | L31: 2 | M31: 3 | N31: 2 | O31: 2 | P31: 3 | Q31: 6 | R31: 2 | S31: 5 | T31: 10 | U31: 4 | V31: 4 | W31: 3 | X31: 4 | Y31: 7 | Z31: 3 | AA31: 4 | AB31: 4 | AC31: 3 | AD31: 5 | AE31: 4 | AF31: 6 | AG31: 6 | AH31: 6 | AI31: 4 | AJ31: 6 | AK31: 17 | AL31: 11 | AM31: 7 | AN31: 13 | AO31: 16
A32: 32: Other Non-Op (Income) Loss (UNADJUSTED) | B32: 3 | D32: 4 | E32: 4 | F32: 3 | G32: 9 | H32: 16 | I32: 5 | J32: 7 | K32: 9 | L32: 9 | M32: 11 | N32: 2 | O32: -4 | P32: 9 | Q32: -1 | R32: 5 | S32: 8 | T32: 16 | U32: 6 | V32: 2 | W32: 5 | X32: 9 | Y32: -1 | Z32: 2 | AA32: -5 | AB32: -5 | AC32: 27 | AD32: -3 | AE32: 8 | AF32: 1 | AG32: 16 | AH32: 9 | AI32: 5 | AJ32: 4 | AK32: -4 | AL32: 21 | AM32: -1 | AN32: 2 | AO32: -15
A33: 33: Pretax Income (Loss), Adjusted (UNADJUSTED) | B33: 618 | C33: 774 | D33: 159 | E33: 330 | F33: 294 | G33: 547 | H33: 381 | I33: 690 | J33: 603 | K33: 570 | L33: 381 | M33: 867 | N33: 724 | O33: 777 | P33: 726 | Q33: 982 | R33: 731 | S33: 705 | T33: 611 | U33: 1068 | V33: 766 | W33: 888 | X33: 594 | Y33: 1233 | Z33: 1012 | AA33: 1046 | AB33: 985 | AC33: 1247 | AD33: 1084 | AE33: 1113 | AF33: 782 | AG33: 1394 | AH33: 1210 | AI33: 1159 | AJ33: 977 | AK33: 1621 | AL33: 1101 | AM33: 1261 | AN33: 980 | AO33: 1865
A34: 34: Pretax Income (Loss), GAAP (UNADJUSTED) | B34: 618 | C34: 774 | D34: 159 | E34: -874 | F34: 294 | G34: 547 | H34: 381 | I34: 672 | J34: 603 | K34: 437 | L34: 360 | M34: 865 | N34: 724 | O34: 777 | P34: 792 | Q34: 848 | R34: 727 | S34: 692 | T34: 564 | U34: 472 | V34: 766 | W34: 888 | X34: 594 | Y34: 1218 | Z34: 1012 | AA34: 1046 | AB34: 985 | AC34: -1416 | AD34: 1084 | AE34: 1055 | AF34: 782 | AG34: -181 | AH34: 1142 | AI34: 1078 | AJ34: 899 | AK34: 1460 | AL34: 982 | AM34: 1139 | AN34: 874 | AO34: 1358
A35: 35: Income Tax Expense (Benefit) (UNADJUSTED) | B35: 234 | C35: 281 | D35: 62 | E35: 2 | F35: 113 | G35: 202 | H35: 142 | I35: 253 | J35: 223 | K35: 154 | L35: 129 | M35: 307 | N35: 260 | O35: 280 | P35: 271 | Q35: 298 | R35: 268 | S35: 254 | T35: 203 | U35: 169 | V35: 277 | W35: 329 | X35: 216 | Y35: 438 | Z35: 359 | AA35: 383 | AB35: 357 | AC35: -521 | AD35: 392 | AE35: 364 | AF35: 275 | AG35: -111 | AH35: 427 | AI35: 378 | AJ35: 337 | AK35: 440 | AL35: 386 | AM35: 364 | AN35: -1200 | AO35: 231
A36: 36: Income (Loss) from Cont Ops (UNADJUSTED) | B36: 384 | C36: 493 | D36: 97 | E36: -876 | F36: 181 | G36: 345 | H36: 239 | I36: 419 | J36: 380 | K36: 283 | L36: 231 | M36: 558 | N36: 464 | O36: 497 | P36: 521 | Q36: 550 | R36: 459 | S36: 438 | T36: 361 | U36: 303 | V36: 489 | W36: 559 | X36: 378 | Y36: 780 | Z36: 653 | AA36: 663 | AB36: 628 | AC36: -895 | AD36: 692 | AE36: 691 | AF36: 507 | AG36: -70 | AH36: 715 | AI36: 700 | AJ36: 562 | AK36: 1020 | AL36: 596 | AM36: 775 | AN36: 2074 | AO36: 1127
A37: 37: Income (Loss) Incl. MI (UNADJUSTED) | B37: 384 | C37: 493 | D37: 97 | E37: -876 | F37: 181 | G37: 345 | H37: 239 | I37: 419 | J37: 380 | K37: 283 | L37: 231 | M37: 558 | N37: 464 | O37: 497 | P37: 521 | Q37: 550 | R37: 459 | S37: 438 | T37: 361 | U37: 303 | V37: 489 | W37: 559 | X37: 378 | Y37: 780 | Z37: 653 | AA37: 663 | AB37: 628 | AC37: -895 | AD37: 692 | AE37: 691 | AF37: 507 | AG37: -70 | AH37: 715 | AI37: 700 | AJ37: 562 | AK37: 1020 | AL37: 596 | AM37: 775 | AN37: 2074 | AO37: 1127
A38: 38: Net Income, GAAP (UNADJUSTED) | B38: 384 | C38: 493 | D38: 97 | E38: -876 | F38: 181 | G38: 345 | H38: 239 | I38: 419 | J38: 380 | K38: 283 | L38: 231 | M38: 558 | N38: 464 | O38: 497 | P38: 521 | Q38: 550 | R38: 459 | S38: 438 | T38: 361 | U38: 303 | V38: 489 | W38: 559 | X38: 378 | Y38: 780 | Z38: 653 | AA38: 663 | AB38: 628 | AC38: -895 | AD38: 692 | AE38: 691 | AF38: 507 | AG38: -70 | AH38: 715 | AI38: 700 | AJ38: 562 | AK38: 1020 | AL38: 596 | AM38: 775 | AN38: 2074 | AO38: 1127
A39: 39: Net Income Avail to Common, GAAP (UNADJUSTED) | B39: 384 | C39: 493 | D39: 97 | E39: -876 | F39: 181 | G39: 345 | H39: 239 | I39: 419 | J39: 380 | K39: 283 | L39: 231 | M39: 558 | N39: 464 | O39: 497 | P39: 521 | Q39: 550 | R39: 459 | S39: 438 | T39: 361 | U39: 303 | V39: 489 | W39: 559 | X39: 378 | Y39: 780 | Z39: 653 | AA39: 663 | AB39: 628 | AC39: -895 | AD39: 692 | AE39: 691 | AF39: 507 | AG39: -70 | AH39: 715 | AI39: 700 | AJ39: 562 | AK39: 1020 | AL39: 596 | AM39: 775 | AN39: 2074 | AO39: 1127
A40: 40: Net Income Avail to Common, Adj (UNADJUSTED) | B40: 384 | C40: 493 | D40: 97 | E40: 206.6 | F40: 181 | G40: 345 | H40: 239 | I40: 430.7 | J40: 380 | K40: 368.32 | L40: 244.65 | M40: 559.3 | N40: 464 | O40: 497 | P40: 489.4 | Q40: 634 | R40: 461.6 | S40: 446.45 | T40: 391 | U40: 679 | V40: 489 | W40: 559 | X40: 378 | Y40: 788.88 | Z40: 653 | AA40: 663 | AB40: 628 | AC40: 795 | AD40: 692 | AE40: 728 | AF40: 507 | AG40: 897 | AH40: 760 | AI40: 778.4 | AJ40: 625 | AK40: 1138 | AL40: 683 | AM40: 866 | AN40: 980 | AO40: 1605
A41: 41: Diluted Weighted Avg Shares (UNADJUSTED) | B41: 313 | C41: 312 | D41: 312 | E41: 311 | F41: 312 | G41: 314 | H41: 315 | I41: 316 | J41: 315 | K41: 316 | L41: 317 | M41: 318 | N41: 318 | O41: 316 | P41: 316 | Q41: 317 | R41: 316 | S41: 315 | T41: 317 | U41: 319 | V41: 319 | W41: 319.4286 | X41: 307 | Y41: 296 | Z41: 289 | AA41: 287 | AB41: 287 | AC41: 283 | AD41: 286 | AE41: 283 | AF41: 275 | AG41: 269.2308 | AH41: 269 | AI41: 270 | AJ41: 271 | AK41: 271 | AL41: 272 | AM41: 272 | AN41: 273 | AO41: 271
A42: 42: Revenue (UNADJUSTED) | B42: 9970 | C42: 9538 | D42: 8137 | E42: 7852 | F42: 8009 | G42: 8596 | H42: 8701 | I42: 9428 | J42: 9457 | K42: 9632 | L42: 9663 | M42: 10552 | N42: 10521 | O42: 10587 | P42: 10564 | Q42: 11008 | R42: 10792 | S42: 11107 | T42: 10953 | U42: 11435 | V42: 11024 | W42: 11403 | X42: 11301 | Y42: 11839 | Z42: 11684 | AA42: 11939 | AB42: 11716 | AC42: 12114 | AD42: 12279 | AE42: 12453 | AF42: 12654 | AG42: 12979 | AH42: 14663 | AI42: 14931 | AJ42: 14997 | AK42: 15728 | AL42: 15297 | AM42: 16313 | AN42: 16526 | AO42: 17314
A43: 43: FedEx Express (UNADJUSTED) | B43: 6419 | C43: 6098 | D43: 5050 | E43: 4797 | F43: 4924 | G43: 5314 | H43: 5440 | I43: 5877 | J43: 5912 | K43: 5992 | L43: 6049 | M43: 6628 | N43: 6592 | O43: 6583 | P43: 6543 | Q43: 6797 | R43: 6632 | S43: 6858 | T43: 6704 | U43: 6977 | V43: 6605 | W43: 6844 | X43: 6674 | Y43: 6998 | Z43: 6862 | AA43: 7024 | AB43: 6656 | AC43: 6697 | AD43: 6591 | AE43: 6588 | AF43: 6557 | AG43: 6715 | AH43: 8460 | AI43: 8642 | AJ43: 8569 | AK43: 8822 | AL43: 8400 | AM43: 9076 | AN43: 9098 | AO43: 9598
A44: 44: Package (UNADJUSTED) | B44: 5212 | C44: 4933 | D44: 4142 | E44: 3974 | F44: 4068 | G44: 4307 | H44: 4395 | I44: 4726 | J44: 4706 | K44: 4745 | L44: 4814 | M44: 5285 | N44: 5227 | O44: 5163 | P44: 5126 | Q44: 5339 | R44: 5193 | S44: 5326 | T44: 5234 | U44: 5515 | V44: 5185 | W44: 5388 | X44: 5334 | Y44: 5598 | Z44: 5464 | AA44: 5569 | AB44: 5291 | AC44: 5309 | AD44: 5261 | AE44: 5242 | AF44: 5233 | AG44: 5332 | AH44: 6398 | AI44: 6531 | AJ44: 6510 | AK44: 6835 | AL44: 6633 | AM44: 7009 | AN44: 7001 | AO44: 7354
A45: 45: Total U.S. Domestic package revenue (UNADJUSTED) | B45: 2998 | C45: 2845 | D45: 2518 | E45: 2357 | F45: 2340 | G45: 2393 | H45: 2505 | I45: 2593 | J45: 2584 | K45: 2571 | L45: 2682 | M45: 2832 | N45: 2822 | O45: 2775 | P45: 2837 | Q45: 2860 | R45: 2736 | S45: 2750 | T45: 2834 | U45: 2918 | V45: 2732 | W45: 2794 | X45: 2905 | Y45: 2948 | Z45: 2892 | AA45: 2939 | AB45: 2940 | AC45: 2904 | AD45: 2896 | AE45: 2905 | AF45: 3038 | AG45: 2965 | AH45: 2975 | AI45: 2965 | AJ45: 3118 | AK45: 3173 | AL45: 3078 | AM45: 3141 | AN45: 3267 | AO45: 3313
A46: 46: U.S. Overnight Box (UNADJUSTED) | B46: 1711 | C46: 1619 | D46: 1410 | E46: 1334 | F46: 1331 | G46: 1372 | H46: 1413 | I46: 1486 | J46: 1491 | K46: 1489 | L46: 1514 | M46: 1634 | N46: 1640 | O46: 1623 | P46: 1619 | Q46: 1664 | R46: 1604 | S46: 1609 | T46: 1609 | U46: 1691 | V46: 1584 | W46: 1625 | X46: 1643 | Y46: 1703 | Z46: 1682 | AA46: 1705 | AB46: 1653 | AC46: 1664 | AD46: 1658 | AE46: 1682 | AF46: 1704 | AG46: 1719 | AH46: 1722 | AI46: 1709 | AJ46: 1742 | AK46: 1782 | AL46: 1750 | AM46: 1787 | AN46: 1836 | AO46: 1900
A47: 47: U.S. Deferred (UNADJUSTED) | B47: 762 | C47: 740 | D47: 682 | E47: 605 | F47: 601 | G47: 626 | H47: 692 | I47: 670 | J47: 661 | K47: 666 | L47: 743 | M47: 735 | N47: 731 | O47: 731 | P47: 792 | Q47: 747 | R47: 702 | S47: 732 | T47: 812 | U47: 774 | V47: 729 | W47: 771 | X47: 869 | Y47: 819 | Z47: 795 | AA47: 834 | AB47: 895 | AC47: 818 | AD47: 816 | AE47: 826 | AF47: 926 | AG47: 811 | AH47: 810 | AI47: 834 | AJ47: 954 | AK47: 928 | AL47: 878 | AM47: 922 | AN47: 996 | AO47: 942
A48: 48: U.S. Overnight Envelope (UNADJUSTED) | B48: 525 | C48: 486 | D48: 426 | E48: 418 | F48: 408 | G48: 395 | H48: 400 | I48: 437 | J48: 432 | K48: 416 | L48: 425 | M48: 463 | N48: 451 | O48: 421 | P48: 426 | Q48: 449 | R48: 430 | S48: 409 | T48: 413 | U48: 453 | V48: 419 | W48: 398 | X48: 393 | Y48: 426 | Z48: 415 | AA48: 400 | AB48: 392 | AC48: 422 | AD48: 422 | AE48: 397 | AF48: 408 | AG48: 435 | AH48: 443 | AI48: 422 | AJ48: 422 | AK48: 463 | AL48: 450 | AM48: 432 | AN48: 435 | AO48: 471
A49: 49: International Export Package (UNADJUSTED) | B49: 2044 | C49: 1930 | D49: 1507 | E49: 1497 | F49: 1594 | G49: 1763 | H49: 1748 | I49: 1982 | J49: 1974 | K49: 2009 | L49: 1974 | M49: 2271 | N49: 2198 | O49: 2171 | P49: 2079 | Q49: 2260 | R49: 2148 | S49: 2192 | T49: 2058 | U49: 2234 | V49: 2108 | W49: 2209 | X49: 2082 | Y49: 2281 | Z49: 2201 | AA49: 2247 | AB49: 2023 | AC49: 2081 | AD49: 2038 | AE49: 2001 | AF49: 1892 | AG49: 2048 | AH49: 2408 | AI49: 2478 | AJ49: 2359 | AK49: 2572 | AL49: 2511 | AM49: 2654 | AN49: 2606 | AO49: 2840
A50: 50: International Priority (UNADJUSTED) | J50: 1652 | K50: 1659 | L50: 1610 | M50: 1839 | N50: 1757 | O50: 1711 | P50: 1625 | Q50: 1756 | R50: 1661 | S50: 1678 | T50: 1567 | U50: 1680 | V50: 1576 | W50: 1642 | X50: 1542 | Y50: 1691 | Z50: 1630 | AA50: 1649 | AB50: 1463 | AC50: 1509 | AD50: 1464 | AE50: 1433 | AF50: 1346 | AG50: 1454 | AH50: 1715 | AI50: 1762 | AJ50: 1667 | AK50: 1797 | AL50: 1741 | AM50: 1839 | AN50: 1813 | AO50: 1963
A51: 51: International Economy (UNADJUSTED) | J51: 322 | K51: 350 | L51: 364 | M51: 432 | N51: 441 | O51: 460 | P51: 454 | Q51: 504 | R51: 487 | S51: 514 | T51: 491 | U51: 554 | V51: 532 | W51: 567 | X51: 540 | Y51: 590 | Z51: 571 | AA51: 598 | AB51: 560 | AC51: 572 | AD51: 574 | AE51: 568 | AF51: 546 | AG51: 594 | AH51: 693 | AI51: 716 | AJ51: 692 | AK51: 775 | AL51: 770 | AM51: 815 | AN51: 793 | AO51: 877
A52: 52: International Domestic (UNADJUSTED) | B52: 170 | C52: 158 | D52: 117 | E52: 120 | F52: 134 | G52: 151 | H52: 142 | I52: 151 | J52: 148 | K52: 165 | L52: 158 | M52: 182 | N52: 207 | O52: 217 | P52: 210 | Q52: 219 | R52: 309 | S52: 384 | T52: 342 | U52: 363 | V52: 345 | W52: 385 | X52: 347 | Y52: 369 | Z52: 371 | AA52: 383 | AB52: 328 | AC52: 324 | AD52: 327 | AE52: 336 | AF52: 303 | AG52: 319 | AH52: 1015 | AI52: 1088 | AJ52: 1033 | AK52: 1090 | AL52: 1044 | AM52: 1214 | AN52: 1128 | AO52: 1201
A53: 53: Freight (UNADJUSTED) | B53: 1069 | C53: 1028 | D53: 813 | E53: 728 | F53: 770 | G53: 874 | H53: 915 | I53: 975 | J53: 999 | K53: 1034 | L53: 1045 | M53: 1115 | N53: 1117 | O53: 1172 | P53: 1167 | Q53: 1176 | R53: 1123 | S53: 1168 | T53: 1116 | U53: 1109 | V53: 1066 | W53: 1057 | X53: 1004 | Y53: 1027 | Z53: 1020 | AA53: 1040 | AB53: 1000 | AC53: 1008 | AD53: 959 | AE53: 964 | AF53: 1002 | AG53: 1066 | AH53: 1567 | AI53: 1600 | AJ53: 1659 | AK53: 1706 | AL53: 1547 | AM53: 1829 | AN53: 1875 | AO53: 2009
A54: 54: U.S. (UNADJUSTED) | B54: 598 | C54: 594 | D54: 523 | E54: 450 | F54: 449 | G54: 490 | H54: 525 | I54: 516 | J54: 523 | K54: 530 | L54: 565 | M54: 570 | N54: 591 | O54: 628 | P54: 647 | Q54: 632 | R54: 610 | S54: 645 | T54: 668 | U54: 639 | V54: 624 | W54: 585 | X54: 577 | Y54: 569 | Z54: 579 | AA54: 586 | AB54: 580 | AC54: 555 | AD54: 573 | AE54: 578 | AF54: 647 | AG54: 683 | AH54: 616 | AI54: 612 | AJ54: 667 | AK54: 632 | AL54: 613 | AM54: 688 | AN54: 739 | AO54: 757
A55: 55: International Priority freight (UNADJUSTED) | B55: 340 | C55: 323 | D55: 221 | E55: 220 | F55: 260 | G55: 321 | H55: 329 | I55: 393 | J55: 406 | K55: 435 | L55: 412 | M55: 469 | N55: 449 | O55: 470 | P55: 443 | Q55: 465 | R55: 439 | S55: 446 | T55: 384 | U55: 409 | V55: 388 | W55: 417 | X55: 379 | Y55: 410 | Z55: 395 | AA55: 412 | AB55: 375 | AC55: 406 | AD55: 253 | AE55: 354 | AF55: 325 | AG55: 256 | AH55: 449 | AI55: 476 | AJ55: 471 | AK55: 516 | AL55: 470 | AM55: 560 | AN55: 551 | AO55: 598
A56: 56: International Airfreight (UNADJUSTED) | B56: 131 | C56: 111 | D56: 69 | E56: 58 | F56: 61 | G56: 63 | H56: 61 | I56: 66 | J56: 70 | K56: 69 | L56: 68 | M56: 76 | N56: 77 | O56: 74 | P56: 77 | Q56: 79 | R56: 74 | S56: 77 | T56: 64 | U56: 61 | V56: 54 | W56: 55 | X56: 48 | Y56: 48 | Z56: 46 | AA56: 42 | AB56: 45 | AC56: 47 | AD56: 36 | AE56: 32 | AF56: 30 | AG56: 28 | AH56: 93 | AI56: 93 | AJ56: 84 | AK56: 85 | AL56: 83 | AM56: 100 | AN56: 93 | AO56: 92
A57: 57: Other (UNADJUSTED) | B57: 138 | C57: 137 | D57: 95 | E57: 95 | F57: 86 | G57: 133 | H57: 130 | I57: 176 | J57: 207 | K57: 213 | L57: 190 | M57: 228 | N57: 248 | O57: 248 | P57: 250 | Q57: 282 | R57: 316 | S57: 364 | T57: 354 | U57: 353 | V57: 354 | W57: 399 | X57: 336 | Y57: 373 | Z57: 378 | AA57: 415 | AB57: 365 | AC57: 380 | AD57: 371 | AE57: 382 | AF57: 322 | AG57: 317 | AH57: 495 | AI57: 511 | AJ57: 400 | AK57: 281 | AL57: 220 | AM57: 238 | AN57: 222 | AO57: 235
A58: 58: FedEx Ground (UNADJUSTED) | B58: 1761 | C58: 1789 | D58: 1793 | E58: 1704 | F58: 1730 | G58: 1837 | H58: 1910 | I58: 1962 | J58: 1961 | K58: 2077 | L58: 2184 | M58: 2263 | N58: 2278 | O58: 2339 | P58: 2480 | Q58: 2476 | R58: 2462 | S58: 2593 | T58: 2747 | U58: 2776 | V58: 2730 | W58: 2849 | X58: 3031 | Y58: 3007 | Z58: 2960 | AA58: 3063 | AB58: 3393 | AC58: 3568 | AD58: 3830 | AE58: 4050 | AF58: 4408 | AG58: 4286 | AH58: 4290 | AI58: 4419 | AJ58: 4688 | AK58: 4296 | AL58: 4245 | AM58: 4525 | AN58: 4828 | AO58: 4797
A59: 59: FedEx Ground (UNADJUSTED) | B59: 1681 | C59: 1681 | D59: 1689 | E59: 1612 | F59: 1637 | G59: 1712 | H59: 1768 | I59: 1840 | J59: 1839 | K59: 1916 | L59: 2001 | M59: 2099 | N59: 2116 | O59: 2143 | P59: 2259 | Q59: 2273 | R59: 2273 | S59: 2359 | T59: 2480 | U59: 2540 | V59: 2506 | W59: 2601 | X59: 2751 | Y59: 2776 | Z59: 2960 | AA59: 3063 | AB59: 3306 | AC59: 3239 | AD59: 3460 | AE59: 3677 | AF59: 4025 | AG59: 3889 | AH59: 3891 | AI59: 4015 | AJ59: 4296 | AL59: 4245 | AM59: 4525 | AN59: 4828 | AO59: 4797
A60: 60: FedEx SmartPost (UNADJUSTED) | B60: 80 | C60: 80 | D60: 104 | E60: 92 | F60: 93 | G60: 125 | H60: 142 | I60: 122 | J60: 122 | K60: 161 | L60: 183 | M60: 164 | N60: 162 | O60: 196 | P60: 221 | Q60: 203 | R60: 189 | S60: 234 | T60: 267 | U60: 236 | V60: 224 | W60: 248 | X60: 280 | Y60: 231
A61: 61: FedEx Freight (UNADJUSTED) | B61: 1353 | C61: 1200 | D61: 914 | E61: 948 | F61: 982 | G61: 1068 | H61: 1040 | I61: 1231 | J61: 1258 | K61: 1221 | L61: 1123 | M61: 1309 | N61: 1328 | O61: 1325 | P61: 1234 | Q61: 1395 | R61: 1399 | S61: 1377 | T61: 1237 | U61: 1388 | V61: 1424 | W61: 1434 | X61: 1347 | Y61: 1552 | Z61: 1609 | AA61: 1585 | AB61: 1428 | AC61: 1569 | AD61: 1601 | AE61: 1547 | AF61: 1447 | AG61: 1605 | AH61: 1658 | AI61: 1597 | AJ61: 1492 | AK61: 1600 | AL61: 1664 | AM61: 1673 | AN61: 1613 | AO61: 1862
A62: 62: Other and Eliminations (UNADJUSTED) | B62: -76 | C62: -77 | D62: -78 | E62: -75 | F62: -78 | G62: -88 | H62: -95 | I62: -90 | J62: -89 | K62: -92 | L62: -90 | M62: -86 | N62: -88 | O62: -87 | P62: -94 | Q62: -92 | R62: -90 | S62: -126 | T62: -115 | U62: -112 | V62: -110 | W62: -115 | X62: -119 | Y62: -120 | Z62: -121 | AA62: -127 | AB62: -131 | AC62: -127 | AD62: -133 | AE62: -135 | AF62: -142 | AG62: -43 | AH62: -140 | AI62: -141 | AJ62: -141 | AK62: 587 | AL62: 588 | AM62: 623 | AN62: 590 | AO62: 620
A63: 63: FedEx Services (UNADJUSTED) | B63: 513 | C63: 528 | D63: 458 | E63: 478 | F63: 451 | G63: 465 | H63: 406 | I63: 448 | J63: 415 | K63: 434 | L63: 397 | M63: 438 | N63: 411 | O63: 427 | P63: 401 | Q63: 432 | R63: 389 | S63: 405 | T63: 380 | U63: 406 | V63: 375 | W63: 391 | X63: 368 | Y63: 402 | Z63: 374 | AA63: 394 | AB63: 370 | AC63: 407 | AD63: 390 | AE63: 403 | AF63: 384 | AG63: 416 | AH63: 395 | AI63: 414 | AJ63: 389 | AK63: 423 | AL63: 400 | AM63: 416 | AN63: 397 | AO63: 437
A64: 64: Operating Income (UNADJUSTED) | B64: 630 | C64: 784 | D64: 182 | E64: -849 | F64: 315 | G64: 571 | H64: 416 | I64: 696 | J64: 628 | K64: 469 | L64: 393 | M64: 888 | N64: 737 | O64: 780 | P64: 813 | Q64: 856 | R64: 742 | S64: 718 | T64: 589 | U64: 1998 | V64: 887 | W64: 919 | X64: 641 | Y64: 1264 | Z64: 1062 | AA64: 1088 | AB64: 1038 | AC64: -1321 | AD64: 1144 | AE64: 1137 | AF64: 864 | AG64: -68 | AH64: 1264 | AI64: 1167 | AJ64: 1025 | AK64: 1581 | AL64: 1117 | AM64: 1262 | AN64: 1001 | AO64: 1490
A65: 65: FedEx Express (UNADJUSTED) | B65: 345 | C65: 540 | D65: 45 | E65: -136 | F65: 104 | G65: 345 | H65: 265 | I65: 413 | J65: 357 | K65: 264 | L65: 178 | M65: 429 | N65: 288 | O65: 342 | P65: 349 | Q65: 281 | R65: 245 | S65: 230 | T65: 118 | U65: 94 | V65: 305 | W65: 389 | X65: 168 | Y65: 534 | Z65: 377 | AA65: 492 | AB65: 393 | AC65: 322 | AD65: 545 | AE65: 622 | AF65: 595 | AG65: 757 | AH65: 610 | AI65: 706 | AJ65: 557 | AK65: 888 | AL65: 438 | AM65: 719 | AN65: 431 | AO65: 990
A66: 66: FedEx Ground (UNADJUSTED) | B66: 196 | C66: 212 | D66: 196 | E66: 203 | F66: 209 | G66: 238 | H66: 258 | I66: 319 | J66: 287 | K66: 296 | L66: 325 | M66: 417 | N66: 407 | O66: 398 | P66: 465 | Q66: 494 | R66: 459 | S66: 412 | T66: 467 | U66: 482 | V66: 483 | W66: 439 | X66: 490 | Y66: 601 | Z66: 545 | AA66: 465 | AB66: 559 | AC66: 603 | AD66: 537 | AE66: 526 | AF66: 557 | AG66: 656 | AH66: 610 | AI66: 465 | AJ66: 515 | AK66: 704 | AL66: 625 | AM66: 515 | AN66: 633 | AO66: 832
A67: 67: FedEx Freight (UNADJUSTED) | B67: 89 | C67: 32 | D67: -59 | E67: -106 | F67: 2 | G67: -12 | H67: -107 | I67: -36 | J67: -16 | K67: -91 | L67: -110 | M67: 42 | N67: 42 | O67: 40 | P67: -1 | Q67: 81 | R67: 98 | S67: 76 | T67: 4 | U67: 47 | V67: 99 | W67: 83 | X67: 35 | Y67: 130 | Z67: 168 | AA67: 112 | AB67: 67 | AC67: 137 | AD67: 132 | AE67: 101 | AF67: 56 | AG67: 137 | AH67: 135 | AI67: 88 | AJ67: 41 | AK67: 130 | AL67: 171 | AM67: 115 | AN67: 56 | AO67: 175
A68: 68: FedEx Ground (UNADJUSTED) | B68: 11.1 | C68: 11.9 | D68: 10.9 | E68: 11.9 | F68: 12.1 | G68: 13 | H68: 13.5 | I68: 16.3 | J68: 14.6 | K68: 14.3 | L68: 14.9 | M68: 18.4 | N68: 17.9 | O68: 17 | P68: 18.8 | Q68: 20 | R68: 18.6 | S68: 15.9 | T68: 17.6 | U68: 17.4 | V68: 17.7 | W68: 15.4 | X68: 16.2 | Y68: 20 | Z68: 18.4 | AA68: 15.2 | AB68: 16.5 | AC68: 16.9 | AD68: 14 | AE68: 13 | AF68: 12.6 | AG68: 15.3 | AH68: 14.2 | AI68: 10.5 | AJ68: 11 | AK68: 16.4 | AL68: 13.5 | AM68: 10.6 | AN68: 12.1 | AO68: 17.3
A69: 69: FedEx Express (UNADJUSTED) | B69: 5.4 | C69: 8.9 | D69: 0.9 | E69: -2.8 | F69: 2.1 | G69: 6.5 | H69: 4.9 | I69: 7 | J69: 6 | K69: 4.4 | L69: 2.9 | M69: 6.5 | N69: 4.4 | O69: 5.2 | P69: 5.3 | Q69: 4.1 | R69: 3.7 | S69: 3.4 | T69: 3.1 | U69: 1.3 | V69: 4.6 | W69: 5.7 | X69: 2.5 | Y69: 7.6 | Z69: 5.5 | AA69: 7 | AB69: 5.9 | AC69: 4.8 | AD69: 8.3 | AE69: 9.4 | AF69: 9.1 | AG69: 11.3 | AH69: 7.2 | AI69: 8.2 | AJ69: 6.5 | AK69: 11.5 | AL69: 5 | AM69: 7.7 | AN69: 4.5 | AO69: 10.3
A70: 70: FedEx Freight (UNADJUSTED) | B70: 6.6 | C70: 2.7 | D70: -6.5 | E70: -11.2 | F70: 0.2 | G70: -1.1 | H70: -10.3 | I70: 2.9 | J70: -1.3 | K70: -7.5 | L70: -9.8 | M70: 3.2 | N70: 3.2 | O70: 3 | P70: -0.1 | Q70: 5.8 | R70: 7 | S70: 5.5 | T70: 1.1 | U70: 3.4 | V70: 7 | W70: 5.8 | X70: 2.6 | Y70: 8.4 | Z70: 10.4 | AA70: 7.1 | AB70: 4.7 | AC70: 8.7 | AD70: 8.2 | AE70: 6.5 | AF70: 3.9 | AG70: 8.5 | AH70: 8.1 | AI70: 5.5 | AJ70: 2.7 | AK70: 8.1 | AL70: 10 | AM70: 6.7 | AN70: 3.2 | AO70: 9.4
A71: 71: Freight (UNADJUSTED) | B71: 93.4 | C71: 97.3 | D71: 106.5 | E71: 111.2 | F71: 99.8 | G71: 101.1 | H71: 110.3 | I71: 102.9 | J71: 101.3 | K71: 107.5 | L71: 109.8 | M71: 96.8 | N71: 96.8 | O71: 97 | P71: 100.1 | Q71: 94 | R71: 93.6 | S71: 93.83 | T71: 98.95 | U71: 96.61 | V71: 93.05 | W71: 94.21 | X71: 97.32 | Y71: 91.62 | Z71: 94.5 | AA71: 92.93 | AB71: 95.3 | AC71: 91.27 | AD71: 91.7 | AE71: 93.47 | AF71: 96.13 | AG71: 84.69 | AH71: 91.9 | AI71: 94.49 | AJ71: 97.25 | AK71: 92.158 | AL71: 89.95 | AM71: 93.3 | AN71: 96.75 | AO71: 90.6
A72: 72: FedEx Express (UNADJUSTED) | B72: 94.6 | C72: 91.1 | D72: 99.1 | E72: 102.9 | F72: 97.9 | G72: 93.5 | H72: 95.1 | I72: 93 | J72: 94 | K72: 95.6 | L72: 97.1 | M72: 93.6 | N72: 95.6 | O72: 94.8 | P72: 94.7 | Q72: 96 | R72: 96.9 | S72: 95.3 | T72: 96.85 | U72: 98.65 | V72: 95.87 | W72: 94.78 | X72: 97 | Y72: 92.37 | Z72: 94.5 | AA72: 92.99 | AB72: 94.09 | AC72: 95.19 | AD72: 90.68 | AE72: 90.56 | AF72: 90.92 | AG72: 88.73 | AH72: 92.8 | AI72: 91.83 | AJ72: 93.5 | AK72: 87.98 | AL72: 95 | AM72: 92.33 | AN72: 95.47 | AO72: 89.68
A73: 73: FedEx Ground (UNADJUSTED) | B73: 88.9 | C73: 88.1 | D73: 89.1 | E73: 88.1 | F73: 87.9 | G73: 87 | H73: 86.5 | I73: 83.8 | J73: 85.4 | K73: 85.7 | L73: 85.1 | M73: 81.6 | N73: 82.1 | O73: 83 | P73: 81.2 | Q73: 80 | R73: 81.9 | S73: 83.41 | T73: 82.38 | U73: 82.63 | V73: 82.31 | W73: 84.59 | X73: 83.73 | Y73: 80.01 | Z73: 81.6 | AA73: 84.82 | AB73: 83.52 | AC73: 83.1 | AD73: 86 | AE73: 87.01 | AF73: 87.36 | AG73: 91.46 | AH73: 85.8 | AI73: 89.48 | AJ73: 89.01 | AK73: 84.99 | AL73: 86.51 | AM73: 89.43 | AN73: 87.86 | AO73: 82.65
A74: 74: Salaries Wages and Employee Benefits (UNADJUSTED) | B74: 3010 | C74: 2930 | D74: 2871 | E74: 2755 | F74: 2832 | G74: 2837 | H74: 2957 | I74: 3062 | J74: 3165 | K74: 3155 | L74: 3212 | M74: 3236 | N74: 3342 | O74: 3316 | P74: 3345 | Q74: 3421 | R74: 3449 | S74: 3473 | T74: 3506 | U74: 3545 | V74: 3452 | W74: 3495 | X74: 3536 | Y74: 3538 | Z74: 3582 | AA74: 3695 | AB74: 3800 | AC74: 3871 | AD74: 3897 | AE74: 3940 | AF74: 4074 | AG74: 4088 | AH74: 4647 | AI74: 4695 | AJ74: 4737 | AK74: 4566 | AL74: 4834 | AM74: 5068 | AN74: 5265 | AO74: 4984
A75: 75: FedEx Express (UNADJUSTED) | B75: 2129 | C75: 2059 | D75: 2064 | E75: 1965 | F75: 2043 | G75: 2036 | H75: 2136 | I75: 2187 | J75: 2258 | K75: 2253 | L75: 2321 | M75: 2351 | N75: 2413 | O75: 2377 | P75: 2410 | Q75: 2457 | R75: 2473 | S75: 2488 | T75: 2539 | U75: 2545 | V75: 2440 | W75: 2439 | X75: 2480 | Y75: 2467 | Z75: 2478 | AA75: 2524 | AB75: 2572 | AC75: 2530 | AD75: 2523 | AE75: 2513 | AF75: 2602 | AG75: 2602 | AH75: 3109 | AI75: 3114 | AJ75: 3170 | AK75: 3135 | AL75: 3196 | AM75: 3321 | AN75: 3484 | AO75: 3365
A76: 76: FedEx Freight (UNADJUSTED) | B76: 614 | C76: 592 | D76: 529 | E76: 512 | F76: 507 | G76: 513 | H76: 532 | I76: 576 | J76: 600 | K76: 584 | L76: 562 | M76: 557 | N76: 578 | O76: 577 | P76: 566 | Q76: 595 | R76: 599 | S76: 589 | T76: 562 | U76: 592 | V76: 598 | W76: 611 | X76: 598 | Y76: 636 | Z76: 656 | AA76: 686 | AB76: 664 | AC76: 692 | AD76: 721 | AE76: 731 | AF76: 716 | AG76: 757 | AH76: 772 | AI76: 761 | AJ76: 733 | AK76: 778 | AL76: 802 | AM76: 828 | AN76: 825 | AO76: 874
A77: 77: FedEx Ground (UNADJUSTED) | B77: 267 | C77: 279 | D77: 278 | E77: 278 | F77: 282 | G77: 288 | H77: 289 | I77: 299 | J77: 307 | K77: 318 | L77: 329 | M77: 328 | N77: 351 | O77: 362 | P77: 369 | Q77: 369 | R77: 377 | S77: 396 | T77: 405 | U77: 408 | V77: 414 | W77: 445 | X77: 458 | Y77: 435 | Z77: 448 | AA77: 485 | AB77: 564 | AC77: 649 | AD77: 653 | AE77: 696 | AF77: 756 | AG77: 729 | AH77: 766 | AI77: 820 | AJ77: 834 | AK77: 653 | AL77: 836 | AM77: 919 | AN77: 956 | AO77: 745
A78: 78: Rental Expense (UNADJUSTED) | B78: 501 | C78: 496 | D78: 492 | E78: 485 | F78: 472 | G78: 486 | H78: 489 | I78: 490 | J78: 499 | K78: 525 | L78: 521 | M78: 512 | N78: 517 | O78: 522 | P78: 528 | Q78: 511 | R78: 518 | S78: 532 | T78: 545 | U78: 538 | V78: 545 | W78: 553 | X78: 568 | Y78: 572 | Z78: 566 | AA78: 568 | AB78: 595 | AC78: 578 | AD78: 598 | AE78: 587 | AF78: 651 | AG78: 633 | AH78: 698 | AI78: 709 | AJ78: 744 | AK78: 697 | AL78: 727 | AM78: 742 | AN78: 782 | AO78: 712
A79: 79: FedEx Express (UNADJUSTED) | B79: 417 | C79: 403 | D79: 400 | E79: 393 | F79: 385 | G79: 396 | H79: 397 | I79: 399 | J79: 403 | K79: 427 | L79: 424 | M79: 418 | N79: 423 | O79: 421 | P79: 425 | Q79: 411 | R79: 415 | S79: 418 | T79: 429 | U79: 422 | V79: 421 | W79: 420 | X79: 432 | Y79: 432 | Z79: 426 | AA79: 422 | AB79: 436 | AC79: 409 | AD79: 410 | AE79: 399 | AF79: 452 | AG79: 427 | AH79: 487 | AI79: 485 | AJ79: 511 | AK79: 482 | AL79: 490 | AM79: 498 | AN79: 532 | AO79: 485
A80: 80: FedEx Ground (UNADJUSTED) | B80: 51 | C80: 58 | D80: 58 | E80: 55 | F80: 58 | G80: 63 | H80: 63 | I80: 60 | J80: 62 | K80: 67 | L80: 68 | M80: 66 | N80: 66 | O80: 72 | P80: 74 | Q80: 72 | R80: 74 | S80: 85 | T80: 86 | U80: 86 | V80: 92 | W80: 102 | X80: 105 | Y80: 103 | Z80: 108 | AA80: 115 | AB80: 126 | AC80: 136 | AD80: 145 | AE80: 155 | AF80: 166 | AG80: 173 | AH80: 181 | AI80: 189 | AJ80: 197 | AK80: 180 | AL80: 201 | AM80: 207 | AN80: 209 | AO80: 188
A81: 81: FedEx Freight (UNADJUSTED) | B81: 33 | C81: 35 | D81: 34 | E81: 37 | F81: 29 | G81: 27 | H81: 29 | I81: 31 | J81: 34 | K81: 31 | L81: 29 | M81: 28 | N81: 28 | O81: 29 | P81: 29 | Q81: 28 | R81: 29 | S81: 29 | T81: 30 | U81: 30 | V81: 32 | W81: 31 | X81: 31 | Y81: 37 | Z81: 32 | AA81: 31 | AB81: 33 | AC81: 33 | AD81: 43 | AE81: 33 | AF81: 33 | AG81: 33 | AH81: 30 | AI81: 35 | AJ81: 36 | AK81: 35 | AL81: 36 | AM81: 37 | AN81: 41 | AO81: 39
A82: 82: Transportation Fuel (UNADJUSTED) | B82: 822 | C82: 1106 | D82: 637 | E82: 468 | F82: 666 | G82: 744 | H82: 809 | I82: 885 | J82: 886 | K82: 938 | L82: 1048 | M82: 1278 | N82: 1244 | O82: 1200 | P82: 1231 | Q82: 1279 | R82: 1137 | S82: 1235 | T82: 1214 | U82: 1159 | V82: 1104 | W82: 1135 | X82: 1163 | Y82: 1153 | Z82: 1120 | AA82: 1052 | AB82: 809 | AC82: 738 | AD82: 712 | AE82: 614 | AF82: 538 | AG82: 532 | AH82: 648 | AI82: 662.8 | AJ82: 735 | AK82: 729 | AL82: 702 | AM82: 821.3 | AN82: 913 | AO82: 938
A83: 83: FedEx Express (UNADJUSTED) | B83: 614 | C83: 953 | D83: 551 | E83: 458 | F83: 571 | G83: 638 | H83: 694 | I83: 748 | J83: 754 | K83: 802 | L83: 898 | M83: 1099 | N83: 1077 | O83: 1039 | P83: 1078 | Q83: 1110 | R83: 986 | S83: 1074 | T83: 1066 | U83: 1004 | V83: 956 | W83: 986 | X83: 1010 | Y83: 991 | Z83: 970 | AA83: 906 | AB83: 697 | AC83: 626 | AD83: 607 | AE83: 517 | AF83: 455 | AG83: 444 | AH83: 555 | AI83: 565 | AJ83: 633 | AK83: 625 | AL83: 603 | AM83: 703 | AN83: 782 | AO83: 801
A84: 84: FedEx Freight (UNADJUSTED) | B84: 206 | C84: 150 | D84: 83 | E84: 81 | F84: 94 | G84: 104 | H84: 112 | I84: 135 | J84: 131 | K84: 133 | L84: 145 | M84: 176 | N84: 165 | O84: 156 | P84: 149 | Q84: 166 | R84: 148 | S84: 157 | T84: 142 | U84: 151 | V84: 145 | W84: 145 | X84: 146 | Y84: 159 | Z84: 147 | AA84: 143 | AB84: 109 | AC84: 109 | AD84: 102 | AE84: 95 | AF84: 80 | AG84: 86 | AH84: 91 | AI84: 5.8 | AJ84: 99 | AK84: 102 | AL84: 97 | AM84: 6.3 | AN84: 127 | AO84: 135
A85: 85: FedEx Ground (UNADJUSTED) | B85: 2 | C85: 3 | D85: 3 | E85: -71 | F85: 1 | G85: 2 | H85: 3 | I85: 2 | J85: 1 | K85: 3 | L85: 5 | M85: 3 | N85: 2 | O85: 5 | P85: 4 | Q85: 3 | R85: 3 | S85: 4 | T85: 6 | U85: 4 | V85: 3 | W85: 4 | X85: 7 | Y85: 3 | Z85: 3 | AA85: 3 | AB85: 3 | AC85: 3 | AD85: 3 | AE85: 2 | AF85: 3 | AG85: 2 | AH85: 2 | AI85: 92 | AJ85: 3 | AK85: 2 | AL85: 2 | AM85: 112 | AN85: 4 | AO85: 2
A86: 86: Maintenance Expense (UNADJUSTED) | B86: 474 | C86: 459 | D86: 386 | E86: 332 | F86: 333 | G86: 342 | H86: 338 | I86: 432 | J86: 442 | K86: 407 | L86: 414 | M86: 441 | N86: 474 | O86: 445 | P86: 391 | Q86: 390 | R86: 466 | S86: 444 | T86: 355 | U86: 360 | V86: 406 | W86: 410 | X86: 372 | Y86: 395 | Z86: 481 | AA86: 467 | AB86: 434 | AC86: 420 | AD86: 467 | AE86: 452 | AF86: 425 | AG86: 444 | AH86: 523 | AI86: 512 | AJ86: 519 | AK86: 532 | AL86: 599 | AM86: 592 | AN86: 554 | AO86: 572
A87: 87: FedEx Express (UNADJUSTED) | B87: 394 | C87: 381 | D87: 318 | E87: 258 | F87: 261 | G87: 267 | H87: 261 | I87: 342 | J87: 352 | K87: 320 | L87: 330 | M87: 351 | N87: 380 | O87: 354 | P87: 303 | Q87: 295 | R87: 372 | S87: 349 | T87: 262 | U87: 261 | V87: 307 | W87: 308 | X87: 273 | Y87: 294 | Z87: 379 | AA87: 357 | AB87: 324 | AC87: 297 | AD87: 345 | AE87: 330 | AF87: 306 | AG87: 313 | AH87: 393 | AI87: 379 | AJ87: 386 | AK87: 398 | AL87: 460 | AM87: 447 | AN87: 420 | AO87: 430
A88: 88: FedEx Ground (UNADJUSTED) | B88: 37 | C88: 37 | D88: 35 | E88: 38 | F88: 38 | G88: 40 | H88: 41 | I88: 47 | J88: 44 | K88: 42 | L88: 40 | M88: 43 | N88: 44 | O88: 43 | P88: 43 | Q88: 46 | R88: 46 | S88: 46 | T88: 48 | U88: 50 | V88: 53 | W88: 56 | X88: 57 | Y88: 56 | Z88: 56 | AA88: 57 | AB88: 61 | AC88: 70 | AD88: 69 | AE88: 69 | AF88: 71 | AG88: 79 | AH88: 76 | AI88: 78 | AJ88: 83 | AK88: 78 | AL88: 82 | AM88: 85 | AN88: 82 | AO88: 82
A89: 89: FedEx Freight (UNADJUSTED) | B89: 43 | C89: 41 | D89: 33 | E89: 36 | F89: 34 | G89: 35 | H89: 36 | I89: 43 | J89: 46 | K89: 45 | L89: 44 | M89: 47 | N89: 50 | O89: 48 | P89: 45 | Q89: 49 | R89: 48 | S89: 49 | T89: 45 | U89: 49 | V89: 46 | W89: 46 | X89: 42 | Y89: 45 | Z89: 46 | AA89: 53 | AB89: 49 | AC89: 53 | AD89: 53 | AE89: 53 | AF89: 48 | AG89: 52 | AH89: 54 | AI89: 55 | AJ89: 50 | AK89: 56 | AL89: 57 | AM89: 60 | AN89: 52 | AO89: 60
A90: 90: Other Operating Expense (UNADJUSTED) | B90: 1731 | C90: 1747 | D90: 1734 | E90: 895 | F90: 1560 | G90: 1675 | H90: 1741 | I90: 1786 | J90: 1771 | K90: 1968 | L90: 1048 | M90: 2749 | N90: 1923 | O90: 1055 | P90: 956 | Q90: 1070 | R90: 1345 | S90: 1132 | T90: 1137 | U90: 1127 | V90: 1113 | W90: 1139 | X90: 1191 | Y90: 1160 | Z90: 1123 | AA90: 1211 | AB90: 1220 | AC90: 1329 | AD90: 1348 | AE90: 1338 | AF90: 1403 | AG90: 1410 | AH90: 1701 | AI90: 1794 | AJ90: 1781 | AK90: 1691 | AL90: 1836 | AM90: 1938 | AN90: 1965 | AO90: 1773
A91: 91: FedEx Express (UNADJUSTED) | B91: 1240 | C91: 1227 | D91: 1190 | E91: 610 | F91: 1053 | G91: 1098 | H91: 1141 | I91: 1182 | J91: 1164 | K91: 1273 | L91: 747 | M91: 1776 | N91: 1280 | O91: 766 | P91: 683 | Q91: 777 | R91: 782 | S91: 820 | T91: 812 | U91: 797 | V91: 773 | W91: 790 | X91: 826 | Y91: 790 | Z91: 763 | AA91: 822 | AB91: 796 | AC91: 799 | AD91: 768 | AE91: 780 | AF91: 796 | AG91: 811 | AH91: 1099 | AI91: 1161 | AJ91: 1133 | AK91: 1158 | AL91: 1199 | AM91: 1249 | AN91: 1297 | AO91: 1227
A92: 92: FedEx Ground (UNADJUSTED) | B92: 357 | C92: 374 | D92: 413 | E92: 189 | F92: 364 | G92: 390 | H92: 402 | I92: 383 | J92: 396 | K92: 423 | L92: 201 | M92: 646 | N92: 429 | O92: 187 | P92: 182 | Q92: 198 | R92: 468 | S92: 221 | T92: 233 | U92: 233 | V92: 240 | W92: 249 | X92: 264 | Y92: 255 | Z92: 252 | AA92: 271 | AB92: 315 | AC92: 413 | AD92: 453 | AE92: 443 | AF92: 493 | AG92: 483 | AH92: 475 | AI92: 507 | AJ92: 534 | AK92: 406 | AL92: 506 | AM92: 554 | AN92: 544 | AO92: 414
A93: 93: FedEx Freight (UNADJUSTED) | B93: 134 | C93: 146 | D93: 131 | E93: 96 | F93: 143 | G93: 187 | H93: 198 | I93: 221 | J93: 211 | K93: 272 | L93: 100 | M93: 327 | N93: 214 | O93: 102 | P93: 91 | Q93: 95 | R93: 95 | S93: 91 | T93: 92 | U93: 97 | V93: 100 | W93: 100 | X93: 101 | Y93: 115 | Z93: 108 | AA93: 118 | AB93: 109 | AC93: 117 | AD93: 127 | AE93: 115 | AF93: 114 | AG93: 116 | AH93: 127 | AI93: 126 | AJ93: 114 | AK93: 127 | AL93: 131 | AM93: 135 | AN93: 124 | AO93: 132
A94: 94: Total Operating Expense (UNADJUSTED) | B94: 8903 | C94: 8303 | D94: 7575 | E94: 7488 | F94: 7321 | G94: 7648 | H94: 7974 | I94: 8374 | J94: 8503 | K94: 8821 | L94: 8963 | M94: 9312 | N94: 9461 | O94: 9467 | P94: 9444 | Q94: 9812 | R94: 9691 | S94: 10110 | T94: 10099 | U94: 10518 | V94: 9872 | W94: 10216 | X94: 10359 | Y94: 10292 | Z94: 10341 | AA94: 10603 | AB94: 10458 | AC94: 10772 | AD94: 10808 | AE94: 10936 | AF94: 11204 | AG94: 11056 | AH94: 13053 | AI94: 13399 | AJ94: 13636 | AK94: 12996 | AL94: 13808 | AM94: 14689 | AN94: 15173 | AO94: 14260
A95: 95: FedEx Express (UNADJUSTED) | B95: 6074 | C95: 5558 | D95: 5005 | E95: 4933 | F95: 4820 | G95: 4969 | H95: 5175 | I95: 5464 | J95: 5555 | K95: 5728 | L95: 5871 | M95: 6199 | N95: 6304 | O95: 6241 | P95: 6194 | Q95: 6516 | R95: 6387 | S95: 6628 | T95: 6586 | U95: 6883 | V95: 6300 | W95: 6455 | X95: 6506 | Y95: 6464 | Z95: 6485 | AA95: 6532 | AB95: 6263 | AC95: 6375 | AD95: 6046 | AE95: 5966 | AF95: 5962 | AG95: 5958 | AH95: 7850 | AI95: 7936 | AJ95: 8012 | AK95: 7934 | AL95: 8219 | AM95: 8637 | AN95: 8946 | AO95: 8608
A96: 96: FedEx Ground (UNADJUSTED) | B96: 1565 | C96: 1577 | D96: 1597 | E96: 1501 | F96: 1521 | G96: 1599 | H96: 1652 | I96: 1643 | J96: 1674 | K96: 1781 | L96: 1859 | M96: 1846 | N96: 1871 | O96: 1941 | P96: 2015 | Q96: 1982 | R96: 2003 | S96: 2181 | T96: 2280 | U96: 2294 | V96: 2247 | W96: 2410 | X96: 2541 | Y96: 2406 | Z96: 2415 | AA96: 2598 | AB96: 2834 | AC96: 2965 | AD96: 3293 | AE96: 3524 | AF96: 3851 | AG96: 3630 | AH96: 3680 | AI96: 3954 | AJ96: 4173 | AK96: 3592 | AL96: 4013 | AM96: 4408 | AN96: 4588 | AO96: 3965
A97: 97: FedEx Freight (UNADJUSTED) | B97: 1264 | C97: 1168 | D97: 973 | E97: 1054 | F97: 980 | G97: 1080 | H97: 1147 | I97: 1267 | J97: 1274 | K97: 1312 | L97: 1233 | M97: 1267 | N97: 1286 | O97: 1285 | P97: 1235 | Q97: 1314 | R97: 1301 | S97: 1301 | T97: 1233 | U97: 1341 | V97: 1325 | W97: 1351 | X97: 1312 | Y97: 1422 | Z97: 1441 | AA97: 1473 | AB97: 1361 | AC97: 1432 | AD97: 1469 | AE97: 1446 | AF97: 1391 | AG97: 1468 | AH97: 1523 | AI97: 1509 | AJ97: 1451 | AK97: 1470 | AL97: 1576 | AM97: 1644 | AN97: 1639 | AO97: 1687
A98: 98: Depreciation and Amortization (UNADJUSTED) | B98: 492 | C98: 375 | D98: 385 | E98: 389 | F98: 392 | G98: 380 | H98: 303.000083 | I98: 390 | J98: 385 | K98: 410 | L98: 399 | M98: 407 | N98: 419 | O98: 426 | P98: 448 | Q98: 450 | R98: 479 | S98: 498 | T98: 500 | U98: 524 | V98: 537 | W98: 548 | X98: 553 | Y98: 549 | Z98: 551 | AA98: 552 | AB98: 554 | AC98: 563 | AD98: 552 | AE98: 556 | AF98: 566 | AG98: 567 | AH98: 647 | AI98: 646 | AJ98: 666 | AK98: 647 | AL98: 659 | AM98: 662 | AN98: 689 | AO98: 688
A99: 99: FedEx Express (UNADJUSTED) | B99: 239 | C99: 241 | D99: 241 | E99: 240 | F99: 252 | G99: 251 | H99: 254 | I99: 259 | J99: 255 | K99: 265 | L99: 267 | M99: 272 | N99: 282 | O99: 288 | P99: 299 | Q99: 300 | R99: 323 | S99: 336 | T99: 334 | U99: 357 | V99: 369 | W99: 373 | X99: 374 | Y99: 372 | Z99: 374 | AA99: 368 | AB99: 364 | AC99: 354 | AD99: 347 | AE99: 349 | AF99: 342 | AG99: 347 | AH99: 420 | AI99: 412 | AJ99: 420 | AK99: 416 | AL99: 417 | AM99: 412 | AN99: 425 | AO99: 431
A100: 100: FedEx Ground (UNADJUSTED) | B100: 80 | C100: 81 | D100: 85 | E100: 91 | F100: 85 | G100: 83 | H100: 83 | I100: 83 | J100: 82 | K100: 83 | L100: 84 | M100: 88 | N100: 93 | O100: 94 | P100: 102 | Q100: 100 | R100: 103 | S100: 110 | T100: 111 | U100: 110 | V100: 111 | W100: 118 | X100: 121 | Y100: 118 | Z100: 119 | AA100: 126 | AB100: 136 | AC100: 149 | AD100: 146 | AE100: 146 | AF100: 159 | AG100: 157 | AH100: 163 | AI100: 168 | AJ100: 177 | AK100: 162 | AL100: 173 | AM100: 177 | AN100: 187 | AO100: 177
A101: 101: FedEx Freight (UNADJUSTED) | B101: 54 | C101: 53 | D101: 59 | E101: 58 | F101: 55 | G101: 46 | H101: 49 | I101: 48 | J101: 48 | K101: 62 | L101: 48 | M101: 47 | N101: 44 | O101: 44 | P101: 47 | Q101: 50 | R101: 53 | S101: 52 | T101: 55 | U101: 57 | V101: 57 | W101: 57 | X101: 58 | Y101: 59 | Z101: 58 | AA101: 58 | AB101: 54 | AC101: 60 | AD101: 59 | AE101: 61 | AF101: 65 | AG101: 63 | AH101: 64 | AI101: 66 | AJ101: 69 | AK101: 69 | AL101: 69 | AM101: 73 | AN101: 77 | AO101: 80
A102: 102: Capital Expenditures (UNADJUSTED) | B102: -636 | C102: -750 | D102: -600 | E102: -473 | F102: -880 | G102: -668 | H102: -432 | I102: -836 | J102: -1012 | K102: -1047 | L102: -643 | M102: -732 | N102: -1110 | O102: -1107 | P102: -729 | Q102: -1061 | R102: -969 | S102: -916 | T102: -542 | U102: -945 | V102: -572 | W102: -1118 | X102: -864 | Y102: -979 | Z102: -720 | AA102: -1170 | AB102: -1080 | AC102: -1378 | AD102: -1209 | AE102: -1353 | AF102: -1000 | AG102: -1256 | AH102: -1215 | AI102: -1466 | AJ102: -1109 | AK102: -1142 | AL102: -1044 | AM102: -1577 | AN102: -1372 | AO102: -1669
A103: 103: FedEx Freight (UNADJUSTED) | B103: -100 | C103: -56 | D103: -58 | E103: -26 | F103: -67 | G103: -106 | H103: -28 | I103: -11 | J103: -32 | K103: -59 | L103: -40 | M103: -22 | N103: -29 | O103: -91 | P103: -136 | Q103: -84 | R103: -44 | S103: -139 | T103: -80 | U103: -63 | V103: -40 | W103: -100 | X103: -110 | Y103: -75 | Z103: -36 | AA103: -102 | AB103: -147 | AC103: -52 | AD103: -63 | AE103: -144 | AF103: -161 | AG103: -66 | AH103: -45 | AI103: -162 | AJ103: -152 | AK103: -34 | AL103: -28 | AM103: -172 | AN103: -198 | AO103: -93
A104: 104: FedEx Services (UNADJUSTED) | B104: -69 | C104: -58 | D104: -45 | E104: -63 | F104: -61 | G104: -80 | H104: -91 | I104: -108 | J104: -64 | K104: -108 | L104: -89 | M104: -126 | N104: -115 | O104: -102 | P104: -89 | Q104: -131 | R104: -90 | S104: -83 | T104: -100 | U104: -151 | V104: -66 | W104: -79 | X104: -83 | Y104: -135 | Z104: -77 | AA104: -90 | AB104: -73 | AC104: -141 | AD104: -91 | AE104: -98 | AF104: -107 | AG104: -135 | AH104: -102 | AI104: -77 | AJ104: -91 | AK104: -109 | AL104: -107 | AM104: -112 | AN104: -87 | AO104: -170
A105: 105: FedEx Ground (UNADJUSTED) | B105: -134 | C105: -215 | D105: -163 | E105: -124 | F105: -111 | G105: -105 | H105: -87 | I105: -97 | J105: -72 | K105: -119 | L105: -74 | M105: -161 | N105: -94 | O105: -160 | P105: -110 | Q105: -172 | R105: -86 | S105: -177 | T105: -102 | U105: -190 | V105: -161 | W105: -249 | X105: -199 | Y105: -241 | Z105: -140 | AA105: -363 | AB105: -291 | AC105: -454 | AD105: -221 | AE105: -425 | AF105: -387 | AG105: -564 | AH105: -237 | AI105: -504 | AJ105: -387 | AK105: -516 | AL105: -327 | AM105: -420 | AN105: -227 | AO105: -204
A106: 106: FedEx Express (UNADJUSTED) | B106: -333 | C106: -421 | D106: -334 | E106: -260 | F106: -641 | G106: -377 | H106: -226 | I106: -620 | J106: -844 | K106: -760 | L106: -440 | M106: -423 | N106: -872 | O106: -754 | P106: -394 | Q106: -669 | R106: -749 | S106: -517 | T106: -260 | U106: -541 | V106: -305 | W106: -690 | X106: -472 | Y106: -527 | Z106: -467 | AA106: -614 | AB106: -569 | AC106: -731 | AD106: -834 | AE106: -686 | AF106: -345 | AG106: -491 | AH106: -831 | AI106: -723 | AJ106: -479 | AK106: -429 | AL106: -582 | AM106: -873 | AN106: -860 | AO106: -1145
A107: 107: Capital Expenditures - Supplementary Breakdown (UNADJUSTED) | B107: -636 | C107: -750 | D107: -600 | E107: -326 | F107: -880 | G107: -668 | H107: -432 | I107: -836 | J107: -1012 | K107: -1047 | L107: -643 | M107: -497 | N107: -1110 | O107: -1107 | P107: -729 | Q107: -1061 | R107: -972 | S107: -916 | T107: -542 | U107: -945 | V107: -572 | W107: -1118 | X107: -864 | Y107: -979 | Z107: -720 | AA107: -1170 | AB107: -1080 | AC107: -1378 | AD107: -1209 | AE107: -1353 | AF107: -1000 | AG107: -1256 | AH107: -1215 | AI107: -1466 | AJ107: -1109 | AK107: -1142 | AL107: -1044 | AM107: -1577 | AN107: -1372 | AO107: -1669
A108: 108: Other Equipment (UNADJUSTED) | B108: -43 | C108: -51 | D108: -41 | E108: -40 | F108: -27 | G108: -33 | H108: -27 | I108: -53 | J108: -20 | K108: -38 | L108: -41 | M108: -55 | N108: -13 | O108: -69 | P108: -72 | Q108: -76 | R108: -30 | S108: -66 | T108: -72 | U108: -104 | V108: -30 | W108: -51 | X108: -40 | Y108: -79 | Z108: -71 | AA108: -80 | AB108: -71 | AC108: -87 | AD108: -47 | AE108: -61 | AF108: -92 | AG108: -105 | AH108: -197 | AI108: -326 | AJ108: -295 | AK108: -492 | AL108: -197 | AM108: -217 | AN108: -207 | AO108: -193
A109: 109: Facilities and Sort Equipment (UNADJUSTED) | B109: -153 | C109: -242 | D109: -200 | F109: -186 | G109: -167 | H109: -138 | I109: -139 | J109: -70 | K109: -133 | L109: -117 | N109: -95 | O109: -163 | P109: -141 | Q109: -239 | R109: -113 | S109: -173 | T109: -169 | U109: -273 | V109: -125 | W109: -205 | X109: -215 | Y109: -274 | Z109: -147 | AA109: -305 | AB109: -294 | AC109: -478 | AD109: -249 | AE109: -410 | AF109: -408 | AG109: -624 | AH109: -118 | AI109: -209 | AJ109: -177 | AK109: -110 | AL109: -189 | AM109: -206 | AN109: -221 | AO109: -196
A110: 110: Vehicles (UNADJUSTED) | B110: -133 | C110: -98 | D110: -53 | E110: -35 | F110: -56 | G110: -106 | H110: -32 | I110: -26 | J110: -104 | K110: -92 | L110: -42 | M110: -44 | N110: -174 | O110: -235 | P110: -166 | Q110: -148 | R110: -264 | S110: -240 | T110: -106 | U110: -124 | V110: -149 | W110: -277 | X110: -210 | Y110: -148 | Z110: -129 | AA110: -210 | AB110: -184 | AC110: -78 | AD110: -220 | AE110: -257 | AF110: -175 | AG110: -78 | AH110: -149 | AI110: -369 | AJ110: -219 | AK110: -147 | AL110: -122 | AM110: -390 | AN110: -237 | AO110: -206
A111: 111: Information and Technology Investments (UNADJUSTED) | B111: -67 | C111: -73 | D111: -73 | E111: -85 | F111: -56 | G111: -59 | H111: -77 | I111: -97 | J111: -71 | K111: -124 | L111: -91 | M111: -169 | N111: -128 | O111: -125 | P111: -110 | Q111: -178 | R111: -91 | S111: -80 | T111: -100 | U111: -180 | V111: -71 | W111: -90 | X111: -91 | Y111: -151 | Z111: -74 | AA111: -76 | AB111: -59 | AC111: -139 | AD111: -71 | AE111: -89 | AF111: -95 | AG111: -140 | AH111: -159 | AI111: -119 | AJ111: -134 | AK111: -216 | AL111: -126 | AM111: -135 | AN111: -116 | AO111: -222
A112: 112: Aircraft and Related Equipment (UNADJUSTED) | B112: -240 | C112: -286 | D112: -233 | E112: -166 | F112: -555 | G112: -303 | H112: -158 | I112: -521 | J112: -747 | K112: -660 | L112: -352 | M112: -229 | N112: -700 | O112: -515 | P112: -240 | Q112: -420 | R112: -474 | S112: -357 | T112: -95 | U112: -264 | V112: -197 | W112: -495 | X112: -308 | Y112: -327 | Z112: -299 | AA112: -499 | AB112: -472 | AC112: -596 | AD112: -622 | AE112: -536 | AF112: -230 | AG112: -309 | AH112: -592 | AI112: -443 | AJ112: -284 | AK112: -177 | AL112: -410 | AM112: -629 | AN112: -591 | AO112: -852
A113: 113: Average Daily Package Volume (UNADJUSTED) | B113: 7285 | C113: 7590 | D113: 7968 | E113: 7593 | F113: 7656 | G113: 8352 | H113: 8750 | I113: 8180 | J113: 8161 | K113: 8953 | L113: 9314 | M113: 8745 | N113: 8684 | O113: 9402 | P113: 9767 | Q113: 9086 | R113: 9223 | S113: 10340 | T113: 10998 | U113: 10227 | V113: 10230 | W113: 10856 | X113: 11394 | Y113: 10517 | Z113: 10435 | AA113: 11183 | AB113: 11698 | AC113: 10841 | AD113: 10753 | AE113: 11886 | AF113: 12648 | AG113: 11557 | AH113: 13085 | AI113: 14204 | AJ113: 14677 | AK113: 13567 | AL113: 13484 | AM113: 14960 | AN113: 15115 | AO113: 13999
A114: 114: FedEx Ground (UNADJUSTED) | B114: 3923 | C114: 4250 | D114: 4531 | E114: 4231 | F114: 4320 | G114: 4867 | H114: 5163 | I114: 4666 | J114: 4634 | K114: 5327 | L114: 5618 | M114: 5162 | N114: 5137 | O114: 5716 | P114: 6032 | Q114: 5525 | R114: 5562 | S114: 6321 | T114: 6953 | U114: 6324 | V114: 6405 | W114: 6845 | X114: 7346 | Y114: 6517 | Z114: 6456 | AA114: 6967 | AB114: 7496 | AC114: 6746 | AD114: 6717 | AE114: 7623 | AF114: 8339 | AG114: 7453 | AH114: 7389 | AI114: 8005 | AJ114: 8522 | AK114: 7700 | AL114: 7688 | AM114: 8576 | AN114: 8993 | AO114: 8125
A115: 115: Ground (UNADJUSTED) | B115: 3339 | C115: 3473 | D115: 3511 | E115: 3297 | F115: 3311 | G115: 3602 | H115: 3674 | I115: 3516 | J115: 3534 | K115: 3843 | L115: 3882 | M115: 3732 | N115: 3722 | O115: 3979 | P115: 4072 | Q115: 3861 | R115: 3898 | S115: 4283 | T115: 4476 | U115: 4246 | V115: 4313 | W115: 4627 | X115: 4817 | Y115: 4597 | Z115: 4576 | AA115: 4845 | AB115: 5136 | AC115: 4847 | AK115: 7700 | AO115: 8125
A116: 116: SmartPost (UNADJUSTED) | B116: 584 | C116: 777 | D116: 1020 | E116: 934 | F116: 1009 | G116: 1265 | H116: 1489 | I116: 1150 | J116: 1100 | K116: 1484 | L116: 1736 | M116: 1430 | N116: 1415 | O116: 1737 | P116: 1960 | Q116: 1664 | R116: 1664 | S116: 2038 | T116: 2477 | U116: 2078 | V116: 2092 | W116: 2218 | X116: 2529 | Y116: 1920 | Z116: 1880 | AA116: 2122 | AB116: 2360 | AC116: 1899
A117: 117: FedEx Express (UNADJUSTED) | B117: 3362 | C117: 3340 | D117: 3437 | E117: 3362 | F117: 3336 | G117: 3485 | H117: 3587 | I117: 3514 | J117: 3527 | K117: 3626 | L117: 3696 | M117: 3583 | N117: 3547 | O117: 3686 | P117: 3735 | Q117: 3561 | R117: 3661 | S117: 4019 | T117: 4045 | U117: 3903 | V117: 3825 | W117: 4011 | X117: 4048 | Y117: 4000 | Z117: 3979 | AA117: 4216 | AB117: 4202 | AC117: 4095 | AD117: 4036 | AE117: 4263 | AF117: 4309 | AG117: 4104 | AH117: 5696 | AI117: 6199 | AJ117: 6155 | AK117: 5867 | AL117: 5796 | AM117: 6384 | AN117: 6122 | AO117: 5874
A118: 118: Total U.S. Domestic (UNADJUSTED) | B118: 2560 | C118: 2529 | D118: 2706 | E118: 2617 | F118: 2568 | G118: 2618 | H118: 2740 | I118: 2631 | J118: 2638 | K118: 2687 | L118: 2801 | M118: 2617 | N118: 2559 | O118: 2588 | P118: 2675 | Q118: 2490 | R118: 2429 | S118: 2533 | T118: 2689 | U118: 2528 | V118: 2465 | W118: 2522 | X118: 2701 | Y118: 2598 | Z118: 2584 | AA118: 2695 | AB118: 2798 | AC118: 2659 | AD118: 2616 | AE118: 2721 | AF118: 2866 | AG118: 2652 | AH118: 2649 | AI118: 2706 | AJ118: 2896 | AK118: 2657 | AL118: 2621 | AM118: 2733 | AN118: 2882 | AO118: 2686
A119: 119: U.S. Overnight Box (UNADJUSTED) | B119: 1103 | C119: 1086 | D119: 1177 | E119: 1144 | F119: 1128 | G119: 1154 | H119: 1190 | I119: 1156 | J119: 1168 | K119: 1196 | L119: 1218 | M119: 1158 | N119: 1134 | O119: 1168 | P119: 1171 | Q119: 1113 | R119: 1092 | S119: 1141 | T119: 1176 | U119: 1131 | V119: 1112 | W119: 1146 | X119: 1202 | Y119: 1195 | Z119: 1211 | AA119: 1259 | AB119: 1258 | AC119: 1231 | AD119: 1210 | AE119: 1290 | AF119: 1316 | AG119: 1269 | AH119: 1255 | AI119: 1283 | AJ119: 1322 | AK119: 1202 | AL119: 1188 | AM119: 1248 | AN119: 1315 | AO119: 1257
A120: 120: U.S. Deferred (UNADJUSTED) | B120: 828 | C120: 832 | D120: 907 | E120: 829 | F120: 823 | G120: 858 | H120: 949 | I120: 843 | J120: 846 | K120: 865 | L120: 952 | M120: 833 | N120: 829 | O120: 838 | P120: 923 | Q120: 793 | R120: 762 | S120: 828 | T120: 944 | U120: 811 | V120: 790 | W120: 841 | X120: 984 | Y120: 864 | Z120: 846 | AA120: 915 | AB120: 1024 | AC120: 881 | AD120: 865 | AE120: 900 | AF120: 1015 | AG120: 825 | AH120: 824 | AI120: 866 | AJ120: 1025 | AK120: 890 | AL120: 876 | AM120: 938 | AN120: 1026 | AO120: 878
A121: 121: U.S. Overnight Envelope (UNADJUSTED) | B121: 629 | C121: 611 | D121: 622 | E121: 644 | F121: 617 | G121: 606 | H121: 601 | I121: 632 | J121: 624 | K121: 626 | L121: 631 | M121: 626 | N121: 596 | O121: 582 | P121: 581 | Q121: 584 | R121: 575 | S121: 564 | T121: 569 | U121: 586 | V121: 563 | W121: 535 | X121: 515 | Y121: 539 | Z121: 527 | AA121: 521 | AB121: 516 | AC121: 547 | AD121: 541 | AE121: 531 | AF121: 535 | AG121: 558 | AH121: 570 | AI121: 557 | AJ121: 549 | AK121: 565 | AL121: 557 | AM121: 547 | AN121: 541 | AO121: 551
A122: 122: International Domestic (UNADJUSTED) | B122: 307 | C122: 311 | D122: 281 | E122: 289 | F122: 293 | G122: 338 | H122: 317 | I122: 323 | J122: 323 | K122: 354 | L122: 337 | M122: 373 | N122: 445 | O122: 529 | P122: 508 | Q122: 498 | R122: 681 | S122: 884 | T122: 781 | U122: 796 | V122: 789 | W122: 896 | X122: 780 | Y122: 813 | Z122: 816 | AA122: 917 | AB122: 831 | AC122: 850 | AD122: 855 | AE122: 954 | AF122: 878 | AG122: 869 | AH122: 2309 | AI122: 2696 | AJ122: 2471 | AK122: 2405 | AL122: 2421 | AM122: 2830 | AN122: 2445 | AO122: 2377
A123: 123: International Export Package (UNADJUSTED) | B123: 495 | C123: 500 | D123: 450 | E123: 456 | F123: 475 | G123: 529 | H123: 530 | I123: 560 | J123: 566 | K123: 585 | L123: 558 | M123: 593 | N123: 543 | O123: 569 | P123: 552 | Q123: 573 | R123: 551 | S123: 602 | T123: 575 | U123: 579 | V123: 571 | W123: 593 | X123: 567 | Y123: 589 | Z123: 579 | AA123: 604 | AB123: 573 | AC123: 586 | AD123: 565 | AE123: 588 | AF123: 565 | AG123: 583 | AH123: 738 | AI123: 797 | AJ123: 788 | AK123: 805 | AL123: 754 | AM123: 821 | AN123: 795 | AO123: 811
A124: 124: International Priority (UNADJUSTED) | J124: 462 | K124: 470 | L124: 438 | M124: 468 | N124: 417 | O124: 431 | P124: 413 | Q124: 425 | R124: 408 | S124: 445 | T124: 420 | U124: 415 | V124: 406 | W124: 421 | X124: 399 | Y124: 416 | Z124: 409 | AA124: 424 | AB124: 398 | AC124: 408 | AD124: 389 | AE124: 402 | AF124: 386 | AG124: 399 | AH124: 500 | AI124: 538 | AJ124: 535 | AK124: 540 | AL124: 502 | AM124: 544 | AN124: 529 | AO124: 534
A125: 125: International Economy (UNADJUSTED) | J125: 104 | K125: 115 | L125: 120 | M125: 125 | N125: 126 | O125: 138 | P125: 139 | Q125: 148 | R125: 143 | S125: 157 | T125: 155 | U125: 164 | V125: 165 | W125: 172 | X125: 168 | Y125: 173 | Z125: 170 | AA125: 180 | AB125: 175 | AC125: 178 | AD125: 176 | AE125: 186 | AF125: 179 | AG125: 184 | AH125: 238 | AI125: 259 | AJ125: 253 | AK125: 265 | AL125: 252 | AM125: 277 | AN125: 266 | AO125: 277
A126: 126: FedEx Express Composite package yield (UNADJUSTED) | B126: 24.23 | C126: 23.44 | D126: 19.13 | E126: 18.47 | F126: 18.76 | G126: 19.62 | H126: 19.76 | I126: 20.69 | J126: 20.52 | K126: 20.77 | L126: 21.01 | M126: 22.69 | N126: 22.67 | O126: 22.23 | P126: 21.79 | Q126: 23.07 | R126: 21.82 | S126: 21.04 | T126: 20.87 | U126: 21.74 | V126: 21.18 | W126: 21.32 | X126: 20.91 | Y126: 21.87 | Z126: 21.46 | AA126: 20.97 | AB126: 19.99 | AC126: 20.66 | AD126: 20.05 | AE126: 19.52 | AF126: 19.27 | AG126: 19.99 | AH126: 17.28 | AI126: 16.72 | AJ126: 19.66 | AK126: 17.93 | AL126: 17.61 | AM126: 17.43 | AN126: 18.45 | AO126: 19.26
A127: 127: International Export Package (UNADJUSTED) | B127: 64.54 | C127: 61.3 | D127: 53.12 | E127: 51.29 | F127: 51.61 | G127: 52.88 | H127: 53.23 | I127: 54.45 | J127: 53.7 | K127: 54.54 | L127: 57.07 | M127: 58.96 | N127: 62.3 | O127: 60.56 | P127: 59.78 | Q127: 60.71 | R127: 59.94 | S127: 57.84 | T127: 57.76 | U127: 59.37 | V127: 57.7 | W127: 57.84 | X127: 58.3 | Y127: 60.52 | Z127: 59.38 | AA127: 59.04 | AB127: 56.01 | AC127: 55.49 | AD127: 55.47 | AE127: 54 | AF127: 53.14 | AG127: 54.02 | AH127: 50.2 | AI127: 49.37 | AJ127: 53.92 | AK127: 49.12 | AL127: 51.16 | AM127: 51.34 | AN127: 52.83 | AO127: 53.85
A128: 128: International Priority (UNADJUSTED) | J128: 54.98 | K128: 56.09 | L128: 59.31 | M128: 60.43 | N128: 64.82 | O128: 62.98 | P128: 62.49 | Q128: 63.54 | R128: 62.68 | S128: 59.91 | T128: 60.25 | U128: 62.32 | V128: 60.65 | W128: 61.87 | X128: 61.38 | Y128: 63.57 | Z128: 62.19 | AA128: 61.64 | AB128: 58.4 | AC128: 57.85 | AD128: 57.86 | AE128: 56.52 | AF128: 55.35 | AG128: 56.12 | AH128: 52.78 | AI128: 52.06 | AJ128: 55.42 | AK128: 51.2 | AL128: 53.25 | AM128: 53.67 | AN128: 55.26 | AO128: 56.5
A129: 129: International Economy (UNADJUSTED) | J129: 47.98 | K129: 48.19 | L129: 48.88 | M129: 53.44 | N129: 53.91 | O129: 52.99 | P129: 51.74 | Q129: 52.54 | R129: 52.17 | S129: 51.97 | T129: 51.03 | U129: 51.9 | V129: 50.41 | W129: 52.27 | X129: 51.01 | Y129: 53.21 | Z129: 52.6 | AA129: 52.88 | AB129: 50.6 | AC129: 50.1 | AD129: 50.18 | AE129: 48.53 | AF129: 48.36 | AG129: 49.49 | AH129: 44.78 | AI129: 43.8 | AJ129: 50.56 | AK129: 44.88 | AL129: 46.97 | AM129: 46.77 | AN129: 48.01 | AO129: 48.72
A130: 130: Total U.S. domestic composite (UNADJUSTED) | B130: 18.3 | C130: 17.86 | D130: 14.77 | E130: 14.07 | F130: 14.02 | G130: 14.51 | H130: 14.74 | I130: 15.16 | J130: 15.07 | K130: 15.19 | L130: 15.45 | M130: 16.65 | N130: 16.97 | O130: 17.01 | P130: 16.83 | Q130: 17.67 | R130: 17.33 | S130: 17.24 | T130: 17 | U130: 17.76 | V130: 17.32 | W130: 17.59 | X130: 17.07 | Y130: 17.73 | Z130: 17.49 | AA130: 17.31 | AB130: 16.68 | AC130: 17.07 | AD130: 17.03 | AE130: 16.94 | AF130: 16.83 | AG130: 17.2 | AH130: 17.28 | AI130: 17.39 | AJ130: 17.36 | AK130: 18.37 | AL130: 18.07 | AM130: 18.24 | AN130: 18.29 | AO130: 18.98
A131: 131: U.S. Overnight Box (UNADJUSTED) | B131: 24.24 | C131: 23.66 | D131: 19.02 | E131: 18.22 | F131: 18.16 | G131: 18.87 | H131: 19.16 | I131: 19.77 | J131: 19.65 | K131: 19.75 | L131: 20.05 | M131: 21.72 | N131: 22.24 | O131: 22.05 | P131: 21.93 | Q131: 23.01 | R131: 22.59 | S131: 22.39 | T131: 22.08 | U131: 22.99 | V131: 22.27 | W131: 22.5 | X131: 21.7 | Y131: 22.26 | Z131: 21.69 | AA131: 21.5 | AB131: 20.85 | AC131: 21.12 | AD131: 21.08 | AE131: 20.7 | AF131: 20.56 | AG131: 20.83 | AH131: 21.11 | AI131: 21.15 | AJ131: 21.24 | AK131: 22.81 | AL131: 22.67 | AM131: 22.73 | AN131: 22.53 | AO131: 23.26
A132: 132: U.S. Deferred (UNADJUSTED) | B132: 14.38 | C132: 14.13 | D132: 11.94 | E132: 11.39 | F132: 11.23 | G132: 11.58 | H132: 11.77 | I132: 12.23 | J132: 12.01 | K132: 12.24 | L132: 12.6 | M132: 13.56 | N132: 13.57 | O132: 13.84 | P132: 13.62 | Q132: 14.49 | R132: 14.17 | S132: 14.04 | T132: 13.87 | U132: 14.67 | V132: 14.42 | W132: 14.55 | X132: 14.01 | Y132: 14.81 | Z132: 14.68 | AA132: 14.48 | AB132: 13.88 | AC132: 14.5 | AD132: 14.52 | AE132: 14.55 | AF132: 14.48 | AG132: 15.12 | AH132: 15.12 | AI132: 15.3 | AJ132: 15 | AK132: 16.04 | AL132: 15.42 | AM132: 15.58 | AN132: 15.66 | AO132: 16.52
A133: 133: U.S. Overnight Envelope (UNADJUSTED) | B133: 13.04 | C133: 12.62 | D133: 10.85 | E133: 10.15 | F133: 10.17 | G133: 10.36 | H133: 10.7 | I133: 10.64 | J133: 10.64 | K133: 10.54 | L133: 10.87 | M133: 11.37 | N133: 11.64 | O133: 11.48 | P133: 11.65 | Q133: 11.81 | R133: 11.51 | S133: 11.51 | T133: 11.69 | U133: 11.91 | V133: 11.61 | W133: 11.84 | X133: 12.09 | Y133: 12.36 | Z133: 12.32 | AA133: 12.15 | AB133: 12.07 | AC133: 12.07 | AD133: 11.99 | AE133: 11.87 | AF133: 12.11 | AG133: 11.99 | AH133: 11.96 | AI133: 12 | AJ133: 12.41 | AK133: 12.6 | AL133: 12.43 | AM133: 12.53 | AN133: 12.97 | AO133: 13.15
A134: 134: International Domestic (UNADJUSTED) | B134: 8.63 | C134: 8.06 | D134: 6.63 | E134: 6.52 | F134: 7.05 | G134: 7.09 | H134: 7.22 | I134: 7.22 | J134: 7.04 | K134: 7.39 | L134: 7.54 | M134: 7.51 | N134: 7.16 | O134: 6.51 | P134: 6.57 | Q134: 6.78 | R134: 7 | S134: 6.88 | T134: 7.06 | U134: 7.02 | V134: 6.84 | W134: 6.82 | X134: 7.05 | Y134: 7.1 | Z134: 7.1 | AA134: 6.63 | AB134: 6.28 | AC134: 5.96 | AD134: 5.88 | AE134: 5.59 | AF134: 5.47 | AG134: 5.66 | AH134: 6.76 | AI134: 6.4 | AJ134: 5.34 | AK134: 6.98 | AL134: 6.64 | AM134: 6.81 | AN134: 7.44 | AO134: 7.77
A135: 135: Ground (UNADJUSTED) | B135: 7.86 | C135: 7.7 | D135: 7.62 | E135: 7.63 | F135: 7.6 | G135: 7.54 | H135: 7.75 | I135: 8.04 | J135: 7.99 | K135: 7.89 | L135: 8.16 | M135: 8.64 | N135: 8.73 | O135: 8.53 | P135: 8.79 | Q135: 9.03 | R135: 8.94 | S135: 8.72 | T135: 8.92 | U135: 9.19 | V135: 9.05 | W135: 8.9 | X135: 9.04 | Y135: 9.41 | Z135: 9.33 | AA135: 9.18 | AB135: 9.32 | AC135: 9.63 | AD135: 7.91 | AE135: 7.64 | AF135: 7.65 | AG135: 8.01 | AH135: 8.09 | AI135: 7.95 | AJ135: 8.12 | AK135: 8.57 | AL135: 8.47 | AM135: 8.35 | AN135: 8.64 | AO135: 9.05
A136: 136: SmartPost (UNADJUSTED) | B136: 2.14 | C136: 2.07 | D136: 1.67 | E136: 1.54 | F136: 1.41 | G136: 1.57 | H136: 1.59 | I136: 1.63 | J136: 1.68 | K136: 1.72 | L136: 1.7 | M136: 1.76 | N136: 1.76 | O136: 1.79 | P136: 1.79 | Q136: 1.88 | R136: 1.75 | S136: 1.82 | T136: 1.77 | U136: 1.74 | V136: 1.67 | W136: 1.77 | X136: 1.82 | Y136: 1.88 | Z136: 1.84 | AA136: 1.9 | AB136: 1.97 | AC136: 2.02
A137: 137: Average Daily Freight Pounds (UNADJUSTED) | B137: 11474 | C137: 11156 | D137: 10505 | E137: 9752 | F137: 10023 | G137: 10971 | H137: 11667 | I137: 11003 | J137: 11175 | K137: 12022 | L137: 12393 | M137: 11483 | N137: 11266 | O137: 12294 | P137: 12530 | Q137: 11781 | R137: 11365 | S137: 12097 | T137: 12253 | U137: 11223 | V137: 11135 | W137: 11847 | X137: 11843 | Y137: 11478 | Z137: 10780 | AA137: 11652 | AB137: 11686 | AC137: 11505 | AD137: 10378 | AE137: 11496 | AF137: 11376 | AG137: 12001 | AH137: 25883 | AI137: 28146 | AJ137: 28269 | AK137: 28041 | AL137: 24692 | AM137: 29428 | AN137: 29153 | AO137: 29576
A138: 138: FedEx Express (UNADJUSTED) | B138: 11474 | C138: 11156 | D138: 10505 | E138: 9752 | F138: 10023 | G138: 10971 | H138: 11667 | I138: 11003 | J138: 11175 | K138: 12022 | L138: 12393 | M138: 11483 | N138: 11266 | O138: 12294 | P138: 12530 | Q138: 11781 | R138: 11365 | S138: 12097 | T138: 12253 | U138: 11223 | V138: 11135 | W138: 11847 | X138: 11843 | Y138: 11478 | Z138: 10780 | AA138: 11652 | AB138: 11686 | AC138: 11505 | AD138: 10378 | AE138: 11496 | AF138: 11376 | AG138: 12001 | AH138: 25883 | AI138: 28146 | AJ138: 28269 | AK138: 28041 | AL138: 24692 | AM138: 29428 | AN138: 29153 | AO138: 29576
A139: 139: U.S. (UNADJUSTED) | B139: 7296 | C139: 7335 | D139: 7664 | E139: 6859 | F139: 6584 | G139: 7193 | H139: 7906 | I139: 6916 | J139: 6908 | K139: 7459 | L139: 8000 | M139: 7027 | N139: 6969 | O139: 7630 | P139: 8104 | Q139: 7270 | R139: 7077 | S139: 7719 | T139: 8324 | U139: 7363 | V139: 7423 | W139: 7872 | X139: 8263 | Y139: 7865 | Z139: 7318 | AA139: 8039 | AB139: 8145 | AC139: 7836 | AD139: 7278 | AE139: 8213 | AF139: 8340 | AG139: 8885 | AH139: 8067 | AI139: 8177 | AJ139: 8458 | AK139: 8050 | AL139: 7727 | AM139: 8475 | AN139: 8757 | AO139: 8512
A140: 140: International Priority (UNADJUSTED) | B140: 2312 | C140: 2216 | D140: 1590 | E140: 1715 | F140: 2142 | G140: 2571 | H140: 2577 | I140: 2889 | J140: 3027 | K140: 3320 | L140: 3131 | M140: 3261 | N140: 3132 | O140: 3451 | P140: 3257 | Q140: 3373 | R140: 3184 | S140: 3212 | T140: 2894 | U140: 2899 | V140: 2862 | W140: 3068 | X140: 2823 | Y140: 2936 | Z140: 2792 | AA140: 2983 | AB140: 2823 | AC140: 2953 | AD140: 2491 | AE140: 2605 | AF140: 2414 | AG140: 2530 | AH140: 4793 | AI140: 5417 | AJ140: 5238 | AK140: 5409 | AL140: 4906 | AM140: 5706 | AN140: 5430 | AO140: 5515
A141: 141: International Airfreight (UNADJUSTED) | B141: 1866 | C141: 1605 | D141: 1251 | E141: 1178 | F141: 1297 | G141: 1207 | H141: 1184 | I141: 1198 | J141: 1240 | K141: 1243 | L141: 1262 | M141: 1195 | N141: 1165 | O141: 1213 | P141: 1169 | Q141: 1138 | R141: 1104 | S141: 1166 | T141: 1035 | U141: 961 | V141: 850 | W141: 907 | X141: 757 | Y141: 677 | Z141: 670 | AA141: 630 | AB141: 718 | AC141: 716 | AD141: 609 | AE141: 678 | AF141: 622 | AG141: 586 | AH141: 1869 | AI141: 1959 | AJ141: 1995 | AK141: 1787 | AL141: 1778 | AM141: 2016 | AN141: 1757 | AO141: 1811
A142: 142: Revenue per Freight Pound (Yield) (UNADJUSTED)
A143: 143: FedEx Express (UNADJUSTED) | B143: 1.46 | C143: 1.46 | D143: 1.23 | E143: 1.17 | F143: 1.18 | G143: 1.26 | H143: 1.26 | I143: 1.36 | J143: 1.38 | K143: 1.36 | L143: 1.36 | M143: 1.49 | N143: 1.53 | O143: 1.51 | P143: 1.48 | Q143: 1.54 | R143: 1.52 | S143: 1.53 | T143: 1.47 | U143: 1.52 | V143: 1.5 | W143: 1.42 | X143: 1.35 | Y143: 1.4 | Z143: 1.48 | AA143: 1.42 | AB143: 1.36 | AC143: 1.37 | AD143: 1.42 | AE143: 1.33 | AF143: 1.4 | AG143: 1.37 | AH143: 0.93 | AI143: 0.9 | AJ143: 1.45 | AK143: 0.94 | AL143: 0.96 | AM143: 0.98 | AN143: 1.02 | AO143: 1.03
A144: 144: International Priority (UNADJUSTED) | B144: 2.3 | C144: 2.32 | D144: 2.21 | E144: 2.01 | F144: 1.87 | G144: 1.98 | H144: 2.06 | I144: 2.09 | J144: 2.06 | K144: 2.08 | L144: 2.12 | M144: 2.21 | N144: 2.21 | O144: 2.16 | P144: 2.16 | Q144: 2.12 | R144: 2.12 | S144: 2.21 | T144: 2.14 | U144: 2.18 | V144: 2.12 | W144: 2.16 | X144: 2.13 | Y144: 2.18 | Z144: 2.21 | AA144: 2.19 | AB144: 2.11 | AC144: 2.15 | AD144: 2.16 | AE144: 2.16 | AF144: 2.14 | AG144: 2.16 | AH144: 1.44 | AI144: 1.39 | AJ144: 2.21 | AK144: 1.46 | AL144: 1.48 | AM144: 1.56 | AN144: 1.64 | AO144: 1.67
A145: 145: U.S. (UNADJUSTED) | B145: 1.28 | C145: 1.29 | D145: 1.08 | E145: 1.02 | F145: 1.05 | G145: 1.08 | H145: 1.07 | I145: 1.15 | J145: 1.16 | K145: 1.13 | L145: 1.14 | M145: 1.25 | N145: 1.31 | O145: 1.31 | P145: 1.27 | Q145: 1.34 | R145: 1.33 | S145: 1.32 | T145: 1.3 | U145: 1.33 | V145: 1.31 | W145: 1.18 | X145: 1.11 | Y145: 1.13 | Z145: 1.24 | AA145: 1.16 | AB145: 1.13 | AC145: 1.11 | AD145: 1.21 | AE145: 1.12 | AF145: 1.23 | AG145: 1.18 | AH145: 1.18 | AI145: 1.19 | AJ145: 1.27 | AK145: 1.21 | AL145: 1.22 | AM145: 1.29 | AN145: 1.36 | AO145: 1.37
A146: 146: International Airfreight (UNADJUSTED) | B146: 1.1 | C146: 1.09 | D146: 0.88 | E146: 0.78 | F146: 0.72 | G146: 0.83 | H146: 0.84 | I146: 0.85 | J146: 0.87 | K146: 0.88 | L146: 0.88 | M146: 0.96 | N146: 1.02 | O146: 0.97 | P146: 1.04 | Q146: 1.07 | R146: 1.03 | S146: 1.05 | T146: 0.99 | U146: 0.97 | V146: 0.99 | W146: 0.97 | X146: 1 | Y146: 1.12 | Z146: 1.07 | AA146: 1.07 | AB146: 1 | AC146: 1.01 | AD146: 0.92 | AE146: 0.75 | AF146: 0.76 | AG146: 0.73 | AH146: 0.76 | AI146: 0.76 | AJ146: 0.71 | AK146: 0.73 | AL146: 0.72 | AM146: 0.71 | AN146: 0.78 | AO146: 0.78
A147: 147: International Economy (UNADJUSTED) | AH147: 0.57 | AI147: 0.53 | AK147: 0.57 | AL147: 0.57 | AM147: 0.58 | AN147: 0.6 | AO147: 0.63
A148: 148: Purchased Transportation (UNADJUSTED) | B148: 1287 | C148: 1190 | D148: 1070 | E148: 1023 | F148: 1066 | G148: 1184 | H148: 1254 | I148: 1329 | J148: 1355 | K148: 1418 | L148: 1475 | M148: 1535 | N148: 1542 | O148: 1602 | P148: 1645 | Q148: 1652 | R148: 1709 | S148: 1889 | T148: 1901 | U148: 1888 | V148: 1906 | W148: 2069 | X148: 2092 | Y148: 2060 | Z148: 2085 | AA148: 2217 | AB148: 2197 | AC148: 2111 | AD148: 2379 | AE148: 2574 | AF148: 2659 | AG148: 2468 | AH148: 3276 | AI148: 3463 | AJ148: 3531 | AK148: 3186 | AL148: 3483 | AM148: 3873 | AN148: 3976 | AO148: 3565
A149: 149: FedEx Ground (UNADJUSTED) | B149: 771 | C149: 745 | D149: 725 | E149: 677 | F149: 693 | G149: 733 | H149: 771 | I149: 769 | J149: 782 | K149: 845 | L149: 911 | M149: 893 | N149: 886 | O149: 933 | P149: 995 | Q149: 948 | R149: 946 | S149: 1057 | T149: 1121 | U149: 1067 | V149: 1064 | W149: 1159 | X149: 1253 | Y149: 1159 | Z149: 1154 | AA149: 1263 | AB149: 1348 | AC149: 1256 | AD149: 1527 | AE149: 1712 | AF149: 1891 | AG149: 1687 | AH149: 1692 | AI149: 1861 | AJ149: 2015 | AK149: 1778 | AL149: 1859 | AM149: 2100 | AN149: 2235 | AO149: 1992
A150: 150: FedEx Express (UNADJUSTED) | B150: 336 | C150: 294 | D150: 241 | E150: 241 | F150: 255 | G150: 283 | H150: 292 | I150: 347 | J150: 369 | K150: 388 | L150: 386 | M150: 430 | N150: 449 | O150: 448 | P150: 449 | Q150: 482 | R150: 537 | S150: 608 | T150: 583 | U150: 603 | V150: 608 | W150: 660 | X150: 608 | Y150: 635 | Z150: 647 | AA150: 681 | AB150: 614 | AC150: 602 | AD150: 601 | AE150: 616 | AF150: 545 | AG150: 539 | AH150: 1325 | AI150: 1352 | AJ150: 1286 | AK150: 1228 | AL150: 1366 | AM150: 1502 | AN150: 1478 | AO150: 1336
A151: 151: FedEx Freight (UNADJUSTED) | B151: 180 | C151: 151 | D151: 104 | E151: 105 | F151: 118 | G151: 168 | H151: 191 | I151: 213 | J151: 204 | K151: 185 | L151: 178 | M151: 212 | N151: 207 | O151: 221 | P151: 201 | Q151: 222 | R151: 226 | S151: 224 | T151: 197 | U151: 218 | V151: 234 | W151: 250 | X151: 231 | Y151: 266 | Z151: 284 | AA151: 273 | AB151: 235 | AC151: 253 | AD151: 251 | AE151: 246 | AF151: 223 | AG151: 242 | AH151: 259 | AI151: 250 | AJ151: 230 | AK151: 180 | AL151: 258 | AM151: 271 | AN151: 263 | AO151: 237
A152: 152: Weight Per Shipment (UNADJUSTED)
A153: 153: FedEx Freight (UNADJUSTED) | B153: 1140 | C153: 1122 | D153: 1121 | E153: 1119 | F153: 1109 | G153: 1128 | H153: 1133 | I153: 1160 | J153: 1134 | K153: 1115 | L153: 1151 | M153: 1177 | N153: 1157 | O153: 1147 | P153: 1157 | Q153: 1163 | R153: 1150 | S153: 1146 | T153: 1168 | U153: 1181 | V153: 1166 | W153: 1165 | X153: 1195 | Y153: 1200 | Z153: 1185 | AA153: 1176 | AB153: 1203 | AC153: 1204 | AD153: 1189 | AE153: 1167 | AF153: 1177 | AG153: 1173 | AH153: 1152 | AI153: 1149 | AJ153: 1172 | AK153: 1174 | AL153: 1173 | AM153: 1187 | AN153: 1202 | AO153: 1198
A154: 154: Priority (UNADJUSTED) | M154: 1208 | N154: 1186 | O154: 1184 | P154: 1212 | Q154: 1225 | R154: 1215 | S154: 1215 | T154: 1250 | U154: 1272 | V154: 1244 | W154: 1243 | X154: 1280 | Y154: 1280 | Z154: 1258 | AA154: 1245 | AB154: 1287 | AC154: 1301 | AD154: 1198 | AE154: 1179 | AF154: 1189 | AG154: 1197 | AH154: 1176 | AI154: 1165 | AJ154: 1179 | AK154: 1183 | AL154: 1184 | AM154: 1201 | AN154: 1232 | AO154: 1237
A155: 155: Economy (UNADJUSTED) | M155: 1093 | N155: 1082 | O155: 1057 | P155: 1025 | Q155: 1018 | R155: 999 | S155: 989 | T155: 989 | U155: 981 | V155: 993 | W155: 992 | X155: 1002 | Y155: 1013 | Z155: 1013 | AA155: 1010 | AB155: 1007 | AC155: 984 | AD155: 1168 | AE155: 1141 | AF155: 1152 | AG155: 1121 | AH155: 1098 | AI155: 1113 | AJ155: 1155 | AK155: 1152 | AL155: 1147 | AM155: 1153 | AN155: 1133 | AO155: 1107
A156: 156: Revenue Per Shipment (UNADJUSTED)
A157: 157: FedEx Freight (UNADJUSTED) | N157: 223.2 | O157: 227.13 | P157: 228.01 | Q157: 226.8 | R157: 226.83 | S157: 232.49 | T157: 234.84 | U157: 232.45 | V157: 233.05 | W157: 232.73 | X157: 235.14 | Y157: 235.91 | Z157: 239.16 | AA157: 239.49 | AB157: 242.52 | AC157: 239.46 | AD157: 237.81 | AE157: 232.6 | AF157: 231.61 | AG157: 226.71 | AH157: 229.2 | AI157: 232.7 | AJ157: 239.82 | AK157: 239.68 | AL157: 241.34 | AM157: 248.36 | AN157: 259.2 | AO157: 259.16
A158: 158: Economy (UNADJUSTED) | N158: 250.18 | O158: 250.98 | P158: 248.85 | Q158: 251.05 | R158: 253.14 | S158: 259.98 | T158: 258.95 | U158: 253.87 | V158: 256.47 | W158: 257.15 | X158: 257.74 | Y158: 260.71 | Z158: 265.42 | AA158: 265.46 | AB158: 265.66 | AC158: 261.02 | AD158: 269.33 | AE158: 263.47 | AF158: 258.35 | AG158: 254.11 | AH158: 255.46 | AI158: 261.28 | AJ158: 272.74 | AK158: 274.65 | AL158: 277.04 | AM158: 286.35 | AN158: 295.31 | AO158: 289.24
A159: 159: Priority (UNADJUSTED) | N159: 212.75 | O159: 217.66 | P159: 219.38 | Q159: 216.46 | R159: 215.44 | S159: 220.38 | T159: 223.34 | U159: 222.69 | V159: 222.45 | W159: 221.99 | X159: 224.63 | Y159: 225.29 | Z159: 228.07 | AA159: 228.62 | AB159: 231.92 | AC159: 229.97 | AD159: 223.26 | AE159: 218.52 | AF159: 218.15 | AG159: 214.32 | AH159: 217.5 | AI159: 220.34 | AJ159: 224.63 | AK159: 224.6 | AL159: 226.16 | AM159: 232.25 | AN159: 242.49 | AO159: 246.33
A160: 160: Average Shipments Per Workday (UNADJUSTED)
A161: 161: FedEx Freight (UNADJUSTED) | B161: 82700 | C161: 80300 | D161: 66000 | E161: 68400 | F161: 71400 | G161: 82900 | H161: 83400 | I161: 91500 | J161: 91800 | K161: 89400 | L161: 78300 | M161: 84265 | N161: 84955 | O161: 86800 | P161: 79800 | Q161: 87843 | R161: 87993 | S161: 88400 | T161: 80500 | U161: 85596 | V161: 88687 | W161: 91900 | X161: 85800 | Y161: 95739 | Z161: 98100 | AA161: 99400 | AB161: 88800 | AC161: 95582 | AD161: 97153 | AE161: 100329 | AF161: 94744 | AG161: 102845 | AH161: 104800 | AI161: 104100 | AJ161: 94583 | AK161: 102709 | AL161: 106000 | AM161: 108600 | AN161: 100300 | AO161: 110572
A162: 162: Priority (UNADJUSTED) | M162: 60866 | N162: 61221 | O162: 62100 | P162: 56400 | Q162: 61580 | R162: 61415 | S162: 61600 | T162: 55300 | U162: 58788 | V162: 61044 | W162: 63800 | X162: 59500 | Y162: 67031 | Z162: 69000 | AA162: 70100 | AB162: 62000 | AC162: 66366 | AD162: 66466 | AE162: 68889 | AF162: 64722 | AG162: 70810 | AH162: 72500 | AI162: 72700 | AJ162: 65547 | AK162: 71744 | AL162: 74400 | AM162: 76300 | AN162: 69700 | AO162: 77521
A163: 163: Economy (UNADJUSTED) | M163: 23399 | N163: 23734 | O163: 24700 | P163: 23400 | Q163: 26263 | R163: 26578 | S163: 26800 | T163: 25200 | U163: 26808 | V163: 27643 | W163: 28100 | X163: 26300 | Y163: 28708 | Z163: 29100 | AA163: 29300 | AB163: 26800 | AC163: 29216 | AD163: 30687 | AE163: 31440 | AF163: 30022 | AG163: 32035 | AH163: 32300 | AI163: 31400 | AJ163: 29035 | AK163: 30965 | AL163: 31600 | AM163: 32300 | AN163: 30600 | AO163: 33051
A164: 164: Revenue Per Hundredweight (UNADJUSTED)
A165: 165: FedEx Freight (UNADJUSTED) | B165: 20.44 | C165: 19.44 | D165: 18.21 | E165: 17.78 | F165: 17.87 | G165: 17.09 | H165: 16.82 | I165: 16.69 | J165: 17.32 | K165: 18.27 | L165: 18.66 | M165: 18.83 | N165: 19.29 | O165: 19.79 | P165: 19.7 | Q165: 19.5 | R165: 19.72 | S165: 20.28 | T165: 20.1 | U165: 19.68 | V165: 19.99 | W165: 19.98 | X165: 19.67 | Y165: 19.66 | Z165: 20.18 | AA165: 20.37 | AB165: 20.17 | AC165: 19.89 | AD165: 20.01 | AE165: 19.93 | AF165: 19.67 | AG165: 19.33 | AH165: 19.89 | AI165: 20.25 | AJ165: 20.47 | AK165: 20.41 | AL165: 20.58 | AM165: 20.93 | AN165: 21.56 | AO165: 21.63
A166: 166: Economy (UNADJUSTED) | M166: 22.85 | N166: 23.13 | O166: 23.75 | P166: 24.28 | Q166: 24.67 | R166: 25.33 | S166: 26.29 | T166: 26.17 | U166: 25.87 | V166: 25.84 | W166: 25.92 | X166: 25.71 | Y166: 25.73 | Z166: 26.19 | AA166: 26.29 | AB166: 26.38 | AC166: 26.52 | AD166: 23.06 | AE166: 23.09 | AF166: 22.42 | AG166: 22.66 | AH166: 23.26 | AI166: 23.48 | AJ166: 23.61 | AK166: 23.83 | AL166: 24.15 | AM166: 24.84 | AN166: 26.07 | AO166: 26.13
A167: 167: Priority (UNADJUSTED) | M167: 17.43 | N167: 17.94 | O167: 18.39 | P167: 18.1 | Q167: 17.67 | R167: 17.73 | S167: 18.15 | T167: 17.87 | U167: 17.5 | V167: 17.88 | W167: 17.89 | X167: 17.54 | Y167: 17.6 | Z167: 18.14 | AA167: 18.36 | AB167: 18.02 | AC167: 17.68 | AD167: 18.63 | AE167: 18.53 | AF167: 18.35 | AG167: 17.91 | AH167: 18.49 | AI167: 18.92 | AJ167: 19.06 | AK167: 18.98 | AL167: 19.11 | AM167: 19.34 | AN167: 19.67 | AO167: 19.92
A168: 168: Average Pounds per Package (UNADJUSTED)
A169: 169: FedEx Express (UNADJUSTED) | B169: 7.6 | C169: 7.7 | D169: 7.1 | E169: 7.1 | F169: 7.2 | G169: 7.6 | H169: 7.5 | I169: 7.6 | J169: 7.7 | K169: 7.9 | L169: 7.8 | M169: 8.6 | N169: 8.6 | O169: 9.1 | P169: 8.7 | Q169: 7.6 | R169: 9.9 | S169: 10.7 | T169: 10 | U169: 10.4 | V169: 10.5 | W169: 11 | X169: 10.3 | Y169: 10.5 | Z169: 10.7 | AA169: 10.9 | AB169: 10.3 | AC169: 10.5 | AD169: 10.6 | AE169: 10.9 | AF169: 10.2 | AG169: 10.5 | AH169: 10.5 | AI169: 11 | AJ169: 10.7 | AK169: 14.1 | AL169: 13.6 | AM169: 14.5 | AN169: 13.5 | AO169: 15
A170: 170: Average Revenue per Package per Pound (UNADJUSTED)
A171: 171: FedEx Express (UNADJUSTED) | B171: 3.19 | C171: 3.04 | D171: 2.69 | E171: 2.6 | F171: 2.61 | G171: 2.58 | H171: 2.63 | I171: 2.72 | J171: 2.66 | K171: 2.63 | L171: 2.69 | M171: 2.64 | N171: 2.64 | O171: 2.44 | P171: 2.5 | Q171: 2.72 | R171: 2.2 | S171: 1.97 | T171: 2.09 | U171: 2.09 | V171: 2.02 | W171: 1.94 | X171: 2.03 | Y171: 2.08 | Z171: 2.01 | AA171: 1.92 | AB171: 1.94 | AC171: 1.97 | AD171: 1.89 | AE171: 1.79 | AF171: 1.89 | AG171: 1.9 | AH171: 1.9 | AI171: 1.8 | AJ171: 1.85 | AK171: 1.24 | AL171: 1.29 | AM171: 1.21 | AN171: 1.23 | AO171: 1.28
A172: 172: Number of Workdays (UNADJUSTED)
A173: 173: FedEx Ground (UNADJUSTED) | B173: 64 | C173: 63 | D173: 63 | E173: 64 | F173: 65 | G173: 63 | H173: 62 | I173: 65 | J173: 65 | K173: 63 | L173: 63 | M173: 65 | N173: 65 | O173: 63 | P173: 63 | Q173: 65 | R173: 65 | S173: 63 | T173: 62 | U173: 65 | V173: 64 | W173: 63 | X173: 63 | Y173: 64 | Z173: 64 | AA173: 63 | AB173: 63 | AC173: 64 | AD173: 65 | AE173: 63 | AF173: 63 | AG173: 65 | AH173: 65 | AI173: 63 | AJ173: 62 | AK173: 65 | AL173: 65 | AM173: 63 | AN173: 62 | AO173: 65
A174: 174: FedEx Freight (UNADJUSTED) | B174: 64 | C174: 62 | D174: 62 | E174: 64 | F174: 65 | G174: 62 | H174: 61 | I174: 65 | J174: 65 | K174: 62 | L174: 62 | M174: 65 | N174: 65 | O174: 62 | P174: 63 | Q174: 65 | R174: 65 | S174: 62 | T174: 61 | U174: 65 | V174: 64 | W174: 62 | X174: 62 | Y174: 64 | Z174: 64 | AA174: 62 | AB174: 62 | AC174: 64 | AD174: 65 | AE174: 62 | AF174: 62 | AG174: 65 | AH174: 65 | AI174: 62 | AJ174: 62 | AK174: 65 | AL174: 65 | AM174: 62 | AN174: 62 | AO174: 65
A175: 175: FedEx Express (UNADJUSTED) | B175: 64 | C175: 63 | D175: 63 | E175: 64 | F175: 65 | G175: 63 | H175: 62 | I175: 65 | J175: 65 | K175: 63 | L175: 62 | M175: 65 | N175: 65 | O175: 63 | P175: 63 | Q175: 65 | R175: 65 | S175: 63 | T175: 62 | U175: 65 | V175: 64 | W175: 63 | X175: 63 | Y175: 64 | Z175: 64 | AA175: 63 | AB175: 63 | AC175: 64 | AD175: 65 | AE175: 63 | AF175: 63 | AG175: 65 | AH175: 65 | AI175: 63 | AJ175: 62 | AK175: 65 | AL175: 65 | AM175: 63 | AN175: 62 | AO175: 65
A176: 176: FedEx SmartPost (UNADJUSTED) | B176: 64 | C176: 63 | D176: 61 | E176: 64 | F176: 65 | G176: 63 | H176: 60 | I176: 65 | J176: 66 | K176: 63 | L176: 62 | M176: 65 | N176: 65 | O176: 62 | P176: 63 | Q176: 65 | R176: 65 | S176: 63 | T176: 61 | U176: 65 | V176: 64 | W176: 63 | X176: 61 | Y176: 64 | Z176: 64 | AA176: 63 | AB176: 61 | AC176: 64
A177: 177: Total Package Volume (UNADJUSTED) | B177: 251.063 | C177: 267.794 | D177: 283.358 | E177: 270.759 | F177: 280.754 | G177: 306.619 | H177: 317.109 | I177: 303.264 | J177: 302.253 | K177: 335.631 | L177: 352.198 | M177: 335.526 | N177: 333.892 | O177: 360.127 | P177: 380.003 | Q177: 359.118 | R177: 361.543 | S177: 398.218 | T177: 428.637 | U177: 411.038 | V177: 409.926 | W177: 431.227 | X177: 457.78 | Y177: 417.029 | Z177: 413.14 | AA177: 438.891 | AB177: 467.557 | AC177: 431.726 | AD177: 436.628 | AE177: 480.229 | AF177: 525.363 | AG177: 484.447 | AH177: 480.256 | AI177: 504.297 | AJ177: 528.381 | AK177: 500.5 | AL177: 499.745 | AM177: 540.269 | AN177: 557.579 | AO177: 528.142
A178: 178: FedEx Ground (UNADJUSTED) | B178: 213.676 | C178: 218.812 | D178: 221.169 | E178: 211.003 | F178: 215.2 | G178: 226.943 | H178: 227.797 | I178: 228.524 | J178: 229.683 | K178: 242.127 | L178: 244.585 | M178: 242.566 | N178: 241.938 | O178: 250.675 | P178: 256.505 | Q178: 250.981 | R178: 253.387 | S178: 269.807 | T178: 277.538 | U178: 275.977 | V178: 276.051 | W178: 291.488 | X178: 303.498 | Y178: 294.18 | Z178: 292.845 | AA178: 305.231 | AB178: 323.568 | AC178: 310.193 | AD178: 436.628 | AE178: 480.229 | AF178: 525.363 | AG178: 484.447 | AH178: 480.256 | AI178: 504.297 | AJ178: 528.381 | AK178: 500.5 | AL178: 499.745 | AM178: 540.269 | AN178: 557.579 | AO178: 528.142
A179: 179: FedEx SmartPost (UNADJUSTED) | B179: 37.387 | C179: 48.982 | D179: 62.189 | E179: 59.756 | F179: 65.554 | G179: 79.676 | H179: 89.312 | I179: 74.74 | J179: 72.57 | K179: 93.504 | L179: 107.613 | M179: 92.96 | N179: 91.954 | O179: 109.452 | P179: 123.498 | Q179: 108.137 | R179: 108.156 | S179: 128.411 | T179: 151.099 | U179: 135.061 | V179: 133.875 | W179: 139.739 | X179: 154.282 | Y179: 122.849 | Z179: 120.295 | AA179: 133.66 | AB179: 143.989 | AC179: 121.533
A180: 180: Average Fuel Surcharge % (UNADJUSTED)
A181: 181: FedEx Freight (UNADJUSTED) | B181: 22.9 | C181: 18 | D181: 10.6 | F181: 12.4 | G181: 13.4 | H181: 14.3 | J181: 15.4 | K181: 15.8 | L181: 17.1 | N181: 22.9 | O181: 22.8 | P181: 23 | Q181: 22.9 | R181: 22.6 | S181: 24 | T181: 23.6 | U181: 23.38 | V181: 23 | W181: 23.1 | X181: 23.2 | Z181: 26 | AA181: 25.2 | AB181: 22.7 | AD181: 22.4 | AE181: 21.14 | AF181: 19.5 | AG181: 20.6 | AH181: 20.5 | AI181: 20.75 | AJ181: 21.4 | AK181: 21 | AL181: 21.26 | AM181: 22.7 | AN181: 23.59 | AO181: 22.9
A182: 182: FedEx Express - International (UNADJUSTED) | B182: 25.26 | C182: 24.18 | D182: 10.57 | F182: 7.3 | G182: 9.57 | H182: 10.25 | J182: 11.08 | K182: 10.59 | L182: 12.04 | N182: 17.8 | O182: 17.33 | P182: 16.45 | Q182: 17.45 | R182: 16.13 | S182: 17.22 | T182: 16.96 | U182: 17.02 | V182: 15.36 | W182: 16.79 | X182: 16.31 | Z182: 16.26 | AA182: 15.59 | AB182: 11.57 | AD182: 8.82 | AE182: 6.58 | AF182: 5.83 | AG182: 6.09 | AH182: 6.75 | AI182: 7.2 | AJ182: 7.38 | AK182: 8 | AL182: 8.18 | AM182: 10.54 | AN182: 12.24 | AO182: 11.1
A183: 183: Ground (UNADJUSTED) | B183: 9.43 | C183: 9.36 | D183: 5.07 | F183: 3 | G183: 3.92 | H183: 4.61 | J183: 5.83 | K183: 5.66 | L183: 5.85 | N183: 9.32 | O183: 8.5 | P183: 8.04 | Q183: 8.46 | R183: 7.8 | S183: 7.88 | T183: 7.56 | U183: 7.6 | V183: 6.66 | W183: 6.67 | X183: 6.5 | Z183: 6.83 | AA183: 6.5 | AB183: 5.85 | AD183: 4.3 | AE183: 3.92 | AF183: 4 | AG183: 3.82 | AH183: 3.7 | AI183: 3.9 | AJ183: 4.1 | AK183: 4 | AL183: 4.32 | AM183: 5.02 | AN183: 5.5 | AO183: 5.2
A184: 184: FedEx Express - U.S. (UNADJUSTED) | B184: 31.67 | C184: 29.95 | D184: 8.24 | F184: 3.29 | G184: 6.35 | H184: 7.42 | J184: 8.5 | K184: 7.82 | L184: 9.7 | N184: 15.52 | O184: 14.67 | P184: 12.91 | Q184: 14.23 | R184: 12.12 | S184: 13.04 | T184: 11.29 | U184: 11.84 | V184: 8.5 | W184: 10.02 | X184: 9.49 | Z184: 9.5 | AA184: 8.69 | AB184: 4.8 | AD184: 3.34 | AE184: 1.89 | AF184: 2 | AG184: 1.84 | AH184: 1.83 | AI184: 2.09 | AJ184: 2.96 | AK184: 2.5 | AL184: 2.71 | AM184: 4.63 | AN184: 5.56 | AO184: 4.8
A185: 185: (UNADJUSTED)
A186: 186: FedEx Express (UNADJUSTED)
A187: 187: Revenue (UNADJUSTED) | B187: 6419 | C187: 6098 | D187: 5050 | E187: 4797 | F187: 4924 | G187: 5314 | H187: 5440 | I187: 5877 | J187: 5912 | K187: 5992 | L187: 6049 | M187: 6628 | N187: 6592 | O187: 6583 | P187: 6543 | Q187: 6797 | R187: 6632 | S187: 6858 | T187: 6704 | U187: 6977 | V187: 6605 | W187: 6844 | X187: 6674 | Y187: 6998 | Z187: 6862 | AA187: 7024 | AB187: 6656 | AC187: 6697 | AD187: 6591 | AE187: 6588 | AF187: 6557 | AG187: 6715 | AH187: 8460 | AI187: 8642 | AJ187: 8569 | AK187: 8822 | AL187: 8400 | AM187: 9076 | AN187: 9098 | AO187: 9598
A188: 188: Operating Income (UNADJUSTED) | B188: 345 | C188: 540 | D188: 45 | E188: -136 | F188: 104 | G188: 345 | H188: 265 | I188: 413 | J188: 357 | K188: 264 | L188: 178 | M188: 429 | N188: 288 | O188: 342 | P188: 349 | Q188: 281 | R188: 245 | S188: 230 | T188: 118 | U188: 94 | V188: 305 | W188: 389 | X188: 168 | Y188: 534 | Z188: 377 | AA188: 492 | AB188: 393 | AC188: 322 | AD188: 545 | AE188: 622 | AF188: 595 | AG188: 757 | AH188: 610 | AI188: 706 | AJ188: 557 | AK188: 888 | AL188: 438 | AM188: 719 | AN188: 431 | AO188: 990
A189: 189: Depreciation and Amortization (UNADJUSTED) | B189: 239 | C189: 241 | D189: 241 | E189: 240 | F189: 252 | G189: 251 | H189: 254 | I189: 259 | J189: 255 | K189: 265 | L189: 267 | M189: 272 | N189: 282 | O189: 288 | P189: 299 | Q189: 300 | R189: 323 | S189: 336 | T189: 334 | U189: 357 | V189: 369 | W189: 373 | X189: 374 | Y189: 372 | Z189: 374 | AA189: 368 | AB189: 364 | AC189: 354 | AD189: 347 | AE189: 349 | AF189: 342 | AG189: 347 | AH189: 420 | AI189: 412 | AJ189: 420 | AK189: 416 | AL189: 417 | AM189: 412 | AN189: 425 | AO189: 431
A190: 190: Capital Expenditures (UNADJUSTED) | B190: -333 | C190: -421 | D190: -334 | E190: -260 | F190: -641 | G190: -377 | H190: -226 | I190: -620 | J190: -844 | K190: -760 | L190: -440 | M190: -423 | N190: -872 | O190: -754 | P190: -394 | Q190: -669 | R190: -749 | S190: -517 | T190: -260 | U190: -541 | V190: -305 | W190: -690 | X190: -472 | Y190: -527 | Z190: -467 | AA190: -614 | AB190: -569 | AC190: -731 | AD190: -834 | AE190: -686 | AF190: -345 | AG190: -491 | AH190: -831 | AI190: -723 | AJ190: -479 | AK190: -429 | AL190: -582 | AM190: -873 | AN190: -860 | AO190: -1145
A191: 191: Size of Fleet (UNADJUSTED) | E191: 42900 | I191: 41300 | M191: 42100 | N191: 43300 | O191: 45900 | P191: 44100 | Q191: 45300 | R191: 46700 | S191: 45600 | T191: 47500 | U191: 47500 | V191: 47100 | W191: 47600 | X191: 47500 | Y191: 48300 | Z191: 47800 | AA191: 47900 | AB191: 47900 | AC191: 47900 | AD191: 49300 | AE191: 49800 | AF191: 48700 | AG191: 48400 | AH191: 49100 | AI191: 49700 | AJ191: 49000 | AK191: 56300 | AL191: 50300 | AM191: 52500 | AN191: 52100 | AO191: 59700
A192: 192: Operating Margin (UNADJUSTED) | B192: 5.4 | C192: 8.9 | D192: 0.9 | E192: -2.8 | F192: 2.1 | G192: 6.5 | H192: 4.9 | I192: 7 | J192: 6 | K192: 4.4 | L192: 2.9 | M192: 6.5 | N192: 4.4 | O192: 5.2 | P192: 5.3 | Q192: 4.1 | R192: 3.7 | S192: 3.4 | T192: 3.1 | U192: 1.3 | V192: 4.6 | W192: 5.7 | X192: 2.5 | Y192: 7.6 | Z192: 5.5 | AA192: 7 | AB192: 5.9 | AC192: 4.8 | AD192: 8.3 | AE192: 9.4 | AF192: 9.1 | AG192: 11.3 | AH192: 7.2 | AI192: 8.2 | AJ192: 6.5 | AK192: 11.5 | AL192: 5 | AM192: 7.7 | AN192: 4.5 | AO192: 10.3
A193: 193: Aircraft Operating Fleet by Aircraft Program & Model - Total (UNADJUSTED) | E193: 654 | I193: 667 | M193: 688 | N193: 687 | O193: 692 | P193: 688 | Q193: 660 | R193: 663 | S193: 666 | T193: 660 | U193: 647 | V193: 634 | W193: 643 | X193: 649 | Y193: 650 | Z193: 656 | AA193: 666 | AB193: 673 | AC193: 647 | AD193: 652 | AE193: 656 | AF193: 657 | AG193: 643 | AH193: 650 | AI193: 654 | AJ193: 658 | AK193: 657 | AL193: 659 | AM193: 664 | AN193: 668 | AO193: 670
A194: 194: Capital Expenditures - Supplementary Breakdown (UNADJUSTED) | B194: -240 | C194: -286 | D194: -233 | E194: -166 | F194: -555 | G194: -303 | H194: -158 | I194: -521 | J194: -747 | K194: -660 | L194: -352 | M194: -229 | N194: -700 | O194: -515 | P194: -240 | Q194: -420 | R194: -474 | S194: -357 | T194: -95 | U194: -264 | V194: -197 | W194: -495 | X194: -308 | Y194: -327 | Z194: -299 | AA194: -499 | AB194: -472 | AC194: -596 | AD194: -622 | AE194: -536 | AF194: -230 | AG194: -309 | AH194: -592 | AI194: -443 | AJ194: -284 | AK194: -177 | AL194: -410 | AM194: -629 | AN194: -591 | AO194: -852
A195: 195: Average Pounds per Package (UNADJUSTED) | B195: 7.6 | C195: 7.7 | D195: 7.1 | E195: 7.1 | F195: 7.2 | G195: 7.6 | H195: 7.5 | I195: 7.6 | J195: 7.7 | K195: 7.9 | L195: 7.8 | M195: 8.6 | N195: 8.6 | O195: 9.1 | P195: 8.7 | Q195: 7.6 | R195: 9.9 | S195: 10.7 | T195: 10 | U195: 10.4 | V195: 10.5 | W195: 11 | X195: 10.3 | Y195: 10.5 | Z195: 10.7 | AA195: 10.9 | AB195: 10.3 | AC195: 10.5 | AD195: 10.6 | AE195: 10.9 | AF195: 10.2 | AG195: 10.5 | AH195: 10.5 | AI195: 11 | AJ195: 10.7 | AK195: 14.1 | AL195: 13.6 | AM195: 14.5 | AN195: 13.5 | AO195: 15
A196: 196: Average Revenue per Package per Pound (UNADJUSTED) | B196: 3.19 | C196: 3.04 | D196: 2.69 | E196: 2.6 | F196: 2.61 | G196: 2.58 | H196: 2.63 | I196: 2.72 | J196: 2.66 | K196: 2.63 | L196: 2.69 | M196: 2.64 | N196: 2.64 | O196: 2.44 | P196: 2.5 | Q196: 2.72 | R196: 2.2 | S196: 1.97 | T196: 2.09 | U196: 2.09 | V196: 2.02 | W196: 1.94 | X196: 2.03 | Y196: 2.08 | Z196: 2.01 | AA196: 1.92 | AB196: 1.94 | AC196: 1.97 | AD196: 1.89 | AE196: 1.79 | AF196: 1.89 | AG196: 1.9 | AH196: 1.9 | AI196: 1.8 | AJ196: 1.85 | AK196: 1.24 | AL196: 1.29 | AM196: 1.21 | AN196: 1.23 | AO196: 1.28
A197: 197: Number of Workdays (UNADJUSTED) | B197: 64 | C197: 63 | D197: 63 | E197: 64 | F197: 65 | G197: 63 | H197: 62 | I197: 65 | J197: 65 | K197: 63 | L197: 62 | M197: 65 | N197: 65 | O197: 63 | P197: 63 | Q197: 65 | R197: 65 | S197: 63 | T197: 62 | U197: 65 | V197: 64 | W197: 63 | X197: 63 | Y197: 64 | Z197: 64 | AA197: 63 | AB197: 63 | AC197: 64 | AD197: 65 | AE197: 63 | AF197: 63 | AG197: 65 | AH197: 65 | AI197: 63 | AJ197: 62 | AK197: 65 | AL197: 65 | AM197: 63 | AN197: 62 | AO197: 65
A198: 198: Average Fuel Surcharge % (UNADJUSTED) | B198: 31.67 | C198: 29.95 | D198: 8.24 | F198: 3.29 | G198: 6.35 | H198: 7.42 | J198: 8.5 | K198: 7.82 | L198: 9.7 | N198: 15.52 | O198: 14.67 | P198: 12.91 | Q198: 14.23 | R198: 12.12 | S198: 13.04 | T198: 11.29 | U198: 11.84 | V198: 8.5 | W198: 10.02 | X198: 9.49 | Z198: 9.5 | AA198: 8.69 | AB198: 4.8 | AD198: 3.34 | AE198: 1.89 | AF198: 2 | AG198: 1.84 | AH198: 1.83 | AI198: 2.09 | AJ198: 2.96 | AK198: 2.5 | AL198: 2.71 | AM198: 4.63 | AN198: 5.56 | AO198: 4.8
A199: 199: Average Daily Freight Pounds Growth% (UNADJUSTED) | B199: -9 | C199: -14 | D199: -19 | E199: -20 | F199: -13 | G199: -2 | H199: 11 | I199: 13 | J199: 11 | K199: 10 | L199: 6 | M199: 4 | N199: 1 | O199: 2 | P199: 1 | Q199: 3 | R199: 1 | S199: -2 | T199: -2 | U199: -5 | V199: -2 | W199: -2 | X199: -3 | Y199: 2 | Z199: -3 | AA199: -2 | AB199: -1 | AD199: -4 | AE199: -1 | AF199: -3 | AG199: 4 | AH199: 8 | AJ199: 3 | AK199: -3 | AL199: -5 | AM199: 5 | AN199: 3 | AO199: 5
A200: 200: Operating Ratio (UNADJUSTED) | B200: 94.6 | C200: 91.1 | D200: 99.1 | E200: 102.9 | F200: 97.9 | G200: 93.5 | H200: 95.1 | I200: 93 | J200: 94 | K200: 95.6 | L200: 97.1 | M200: 93.6 | N200: 95.6 | O200: 94.8 | P200: 94.7 | Q200: 96 | R200: 96.9 | S200: 95.3 | T200: 96.85 | U200: 98.65 | V200: 95.87 | W200: 94.78 | X200: 97 | Y200: 92.37 | Z200: 94.5 | AA200: 92.99 | AB200: 94.09 | AC200: 95.19 | AD200: 90.68 | AE200: 90.56 | AF200: 90.92 | AG200: 88.73 | AH200: 92.8 | AI200: 91.83 | AJ200: 93.5 | AK200: 87.98 | AL200: 95 | AM200: 92.33 | AN200: 95.47 | AO200: 89.68
... 300 more rows

Sheet Correlation-Original
B1: 2: Stock's Relative Performance (L1) (UNADJUSTED) | C1: 3: FDX US Equity - Last Price (R3) (UNADJUSTED) | D1: 4: Stock's NTM Consensus EPS (R2) (UNADJUSTED) | E1: Stock's P/E Ratio Relative to Index (R1) | F1: 6: Diluted EPS, GAAP (UNADJUSTED) | G1: 7: Diluted EPS from Cont Ops (UNADJUSTED) | H1: 8: Diluted EPS from Cont Ops, Adjusted (UNADJUSTED) | I1: 9: ETSLTOTL Index - Last Price (R3) (UNADJUSTED) | J1: 10: NFP TYOY Index - Last Price (R4) (UNADJUSTED) | K1: 11: IP Index - Last Price (L4) (UNADJUSTED) | L1: 12: NAPMNMAN Index - Last Price (R1) (UNADJUSTED) | M1: 13: PCE CHY% Index - Last Price (R2) (UNADJUSTED) | N1: 14: SPCS20Y% Index - Last Price (L3) (UNADJUSTED) | O1: 15: CNSTTOTA Index - Last Price (R1) (UNADJUSTED) | P1: 16: CONSSENT Index - Last Price (L4) (UNADJUSTED) | Q1: 17: RSTAYOY Index - Last Price (L3) (UNADJUSTED) | R1: 18: SAARTOTL Index - Last Price (L2) (UNADJUSTED) | S1: 19: Revenue (UNADJUSTED) | T1: 20: Sales & Services Revenue (UNADJUSTED) | U1: 21: Cost of Revenue (UNADJUSTED) | V1: 22: Cost of Goods & Services (UNADJUSTED) | W1: 23: Depreciation & Amortization (UNADJUSTED) | X1: 24: Gross Profit (UNADJUSTED) | Y1: 25: Operating Expenses (UNADJUSTED) | Z1: 26: Other Operating Expense (UNADJUSTED) | AA1: 27: Operating Income (Loss) (UNADJUSTED) | AB1: 28: Non-Operating (Income) Loss (UNADJUSTED) | AC1: 29: Interest Expense, Net (UNADJUSTED) | AD1: 30: Interest Expense (UNADJUSTED) | AE1: 31: Interest Income (UNADJUSTED) | AF1: 32: Other Non-Op (Income) Loss (UNADJUSTED) | AG1: 33: Pretax Income (Loss), Adjusted (UNADJUSTED) | AH1: 34: Pretax Income (Loss), GAAP (UNADJUSTED) | AI1: 35: Income Tax Expense (Benefit) (UNADJUSTED) | AJ1: 36: Income (Loss) from Cont Ops (UNADJUSTED) | AK1: 37: Income (Loss) Incl. MI (UNADJUSTED) | AL1: 38: Net Income, GAAP (UNADJUSTED) | AM1: 39: Net Income Avail to Common, GAAP (UNADJUSTED) | AN1: 40: Net Income Avail to Common, Adj (UNADJUSTED) | AO1: 41: Diluted Weighted Avg Shares (UNADJUSTED) | AP1: 42: Revenue (UNADJUSTED) | AQ1: 43: FedEx Express (UNADJUSTED) | AR1: 44: Package (UNADJUSTED) | AS1: 45: Total U.S. Domestic package revenue (UNADJUSTED) | AT1: 46: U.S. Overnight Box (UNADJUSTED) | AU1: 47: U.S. Deferred (UNADJUSTED) | AV1: 48: U.S. Overnight Envelope (UNADJUSTED) | AW1: 49: International Export Package (UNADJUSTED) | AX1: 50: International Priority (UNADJUSTED) | AY1: 51: International Economy (UNADJUSTED) | AZ1: 52: International Domestic (UNADJUSTED) | BA1: 53: Freight (UNADJUSTED) | BB1: 54: U.S. (UNADJUSTED) | BC1: 55: International Priority freight (UNADJUSTED) | BD1: 56: International Airfreight (UNADJUSTED) | BE1: 57: Other (UNADJUSTED) | BF1: 58: FedEx Ground (UNADJUSTED) | BG1: 59: FedEx Ground (UNADJUSTED) | BH1: 60: FedEx SmartPost (UNADJUSTED) | BI1: 61: FedEx Freight (UNADJUSTED) | BJ1: 62: Other and Eliminations (UNADJUSTED) | BK1: 63: FedEx Services (UNADJUSTED) | BL1: 64: Operating Income (UNADJUSTED) | BM1: 65: FedEx Express (UNADJUSTED) | BN1: 66: FedEx Ground (UNADJUSTED) | BO1: 67: FedEx Freight (UNADJUSTED) | BP1: 68: FedEx Ground (UNADJUSTED) | BQ1: 69: FedEx Express (UNADJUSTED) | BR1: 70: FedEx Freight (UNADJUSTED) | BS1: 71: Freight (UNADJUSTED) | BT1: 72: FedEx Express (UNADJUSTED) | BU1: 73: FedEx Ground (UNADJUSTED) | BV1: 74: Salaries Wages and Employee Benefits (UNADJUSTED) | BW1: 75: FedEx Express (UNADJUSTED) | BX1: 76: FedEx Freight (UNADJUSTED) | BY1: 77: FedEx Ground (UNADJUSTED) | BZ1: 78: Rental Expense (UNADJUSTED) | CA1: 79: FedEx Express (UNADJUSTED) | CB1: 80: FedEx Ground (UNADJUSTED) | CC1: 81: FedEx Freight (UNADJUSTED) | CD1: 82: Transportation Fuel (UNADJUSTED) | CE1: 83: FedEx Express (UNADJUSTED) | CF1: 84: FedEx Freight (UNADJUSTED) | CG1: 85: FedEx Ground (UNADJUSTED) | CH1: 86: Maintenance Expense (UNADJUSTED) | CI1: 87: FedEx Express (UNADJUSTED) | CJ1: 88: FedEx Ground (UNADJUSTED) | CK1: 89: FedEx Freight (UNADJUSTED) | CL1: 90: Other Operating Expense (UNADJUSTED) | CM1: 91: FedEx Express (UNADJUSTED) | CN1: 92: FedEx Ground (UNADJUSTED) | CO1: 93: FedEx Freight (UNADJUSTED) | CP1: 94: Total Operating Expense (UNADJUSTED) | CQ1: 95: FedEx Express (UNADJUSTED) | CR1: 96: FedEx Ground (UNADJUSTED) | CS1: 97: FedEx Freight (UNADJUSTED) | CT1: 98: Depreciation and Amortization (UNADJUSTED) | CU1: 99: FedEx Express (UNADJUSTED) | CV1: 100: FedEx Ground (UNADJUSTED) | CW1: 101: FedEx Freight (UNADJUSTED) | CX1: 102: Capital Expenditures (UNADJUSTED) | CY1: 103: FedEx Freight (UNADJUSTED) | CZ1: 104: FedEx Services (UNADJUSTED) | DA1: 105: FedEx Ground (UNADJUSTED) | DB1: 106: FedEx Express (UNADJUSTED) | DC1: 107: Capital Expenditures - Supplementary Breakdown (UNADJUSTED) | DD1: 108: Other Equipment (UNADJUSTED) | DE1: 109: Facilities and Sort Equipment (UNADJUSTED) | DF1: 110: Vehicles (UNADJUSTED) | DG1: 111: Information and Technology Investments (UNADJUSTED) | DH1: 112: Aircraft and Related Equipment (UNADJUSTED) | DI1: 113: Average Daily Package Volume (UNADJUSTED) | DJ1: 114: FedEx Ground (UNADJUSTED) | DK1: 115: Ground (UNADJUSTED) | DL1: 116: SmartPost (UNADJUSTED) | DM1: 117: FedEx Express (UNADJUSTED) | DN1: 118: Total U.S. Domestic (UNADJUSTED) | DO1: 119: U.S. Overnight Box (UNADJUSTED) | DP1: 120: U.S. Deferred (UNADJUSTED) | DQ1: 121: U.S. Overnight Envelope (UNADJUSTED) | DR1: 122: International Domestic (UNADJUSTED) | DS1: 123: International Export Package (UNADJUSTED) | DT1: 124: International Priority (UNADJUSTED) | DU1: 125: International Economy (UNADJUSTED) | DV1: 126: FedEx Express Composite package yield (UNADJUSTED) | DW1: 127: International Export Package (UNADJUSTED) | DX1: 128: International Priority (UNADJUSTED) | DY1: 129: International Economy (UNADJUSTED) | DZ1: 130: Total U.S. domestic composite (UNADJUSTED) | EA1: 131: U.S. Overnight Box (UNADJUSTED) | EB1: 132: U.S. Deferred (UNADJUSTED) | EC1: 133: U.S. Overnight Envelope (UNADJUSTED) | ED1: 134: International Domestic (UNADJUSTED) | EE1: 135: Ground (UNADJUSTED) | EF1: 136: SmartPost (UNADJUSTED) | EG1: 137: Average Daily Freight Pounds (UNADJUSTED) | EH1: 138: FedEx Express (UNADJUSTED) | EI1: 139: U.S. (UNADJUSTED) | EJ1: 140: International Priority (UNADJUSTED) | EK1: 141: International Airfreight (UNADJUSTED) | EL1: 142: Revenue per Freight Pound (Yield) (UNADJUSTED) | EM1: 143: FedEx Express (UNADJUSTED) | EN1: 144: International Priority (UNADJUSTED) | EO1: 145: U.S. (UNADJUSTED) | EP1: 146: International Airfreight (UNADJUSTED) | EQ1: 147: International Economy (UNADJUSTED) | ER1: 148: Purchased Transportation (UNADJUSTED) | ES1: 149: FedEx Ground (UNADJUSTED) | ET1: 150: FedEx Express (UNADJUSTED) | EU1: 151: FedEx Freight (UNADJUSTED) | EV1: 152: Weight Per Shipment (UNADJUSTED) | EW1: 153: FedEx Freight (UNADJUSTED) | EX1: 154: Priority (UNADJUSTED) | EY1: 155: Economy (UNADJUSTED) | EZ1: 156: Revenue Per Shipment (UNADJUSTED) | FA1: 157: FedEx Freight (UNADJUSTED) | FB1: 158: Economy (UNADJUSTED) | FC1: 159: Priority (UNADJUSTED) | FD1: 160: Average Shipments Per Workday (UNADJUSTED) | FE1: 161: FedEx Freight (UNADJUSTED) | FF1: 162: Priority (UNADJUSTED) | FG1: 163: Economy (UNADJUSTED) | FH1: 164: Revenue Per Hundredweight (UNADJUSTED) | FI1: 165: FedEx Freight (UNADJUSTED) | FJ1: 166: Economy (UNADJUSTED) | FK1: 167: Priority (UNADJUSTED) | FL1: 168: Average Pounds per Package (UNADJUSTED) | FM1: 169: FedEx Express (UNADJUSTED) | FN1: 170: Average Revenue per Package per Pound (UNADJUSTED) | FO1: 171: FedEx Express (UNADJUSTED) | FP1: 172: Number of Workdays (UNADJUSTED) | FQ1: 173: FedEx Ground (UNADJUSTED) | FR1: 174: FedEx Freight (UNADJUSTED) | FS1: 175: FedEx Express (UNADJUSTED) | FT1: 176: FedEx SmartPost (UNADJUSTED) | FU1: 177: Total Package Volume (UNADJUSTED) | FV1: 178: FedEx Ground (UNADJUSTED) | FW1: 179: FedEx SmartPost (UNADJUSTED) | FX1: 180: Average Fuel Surcharge % (UNADJUSTED) | FY1: 181: FedEx Freight (UNADJUSTED) | FZ1: 182: FedEx Express - International (UNADJUSTED) | GA1: 183: Ground (UNADJUSTED) | GB1: 184: FedEx Express - U.S. (UNADJUSTED) | GC1: 185: (UNADJUSTED) | GD1: 186: FedEx Express (UNADJUSTED) | GE1: 187: Revenue (UNADJUSTED) | GF1: 188: Operating Income (UNADJUSTED) | GG1: 189: Depreciation and Amortization (UNADJUSTED) | GH1: 190: Capital Expenditures (UNADJUSTED) | GI1: 191: Size of Fleet (UNADJUSTED) | GJ1: 192: Operating Margin (UNADJUSTED) | GK1: 193: Aircraft Operating Fleet by Aircraft Program & Model - Total (UNADJUSTED) | GL1: 194: Capital Expenditures - Supplementary Breakdown (UNADJUSTED) | GM1: 195: Average Pounds per Package (UNADJUSTED) | GN1: 196: Average Revenue per Package per Pound (UNADJUSTED) | GO1: 197: Number of Workdays (UNADJUSTED) | GP1: 198: Average Fuel Surcharge % (UNADJUSTED) | GQ1: 199: Average Daily Freight Pounds Growth% (UNADJUSTED) | GR1: 200: Operating Ratio (UNADJUSTED) | GS1: 201: Purchased Transportation (UNADJUSTED) | GT1: 202: Salaries Wages and Employee Benefits (UNADJUSTED) | GU1: 203: Rental Expense (UNADJUSTED) | GV1: 204: Transportation Fuel (UNADJUSTED) | GW1: 205: Maintenance Expense (UNADJUSTED) | GX1: 206: Other Operating Expense (UNADJUSTED) | GY1: 207: Total Operating Expense (UNADJUSTED) | GZ1: 208: Average Daily Package Volume (UNADJUSTED) | HA1: 209: Average Daily Package Volume Growth (UNADJUSTED) | HB1: 210: Revenue Per Package (Yield) (UNADJUSTED) | HC1: 211: Revenue Per Package (Yield) Growth % (UNADJUSTED) | HD1: 212: Average Daily Freight Pounds (UNADJUSTED) | HE1: 213: Revenue per Freight Pound (Yield) (UNADJUSTED) | HF1: 214: FedEx Ground (UNADJUSTED) | HG1: 215: Revenue (UNADJUSTED) | HH1: 216: Operating Income (UNADJUSTED) | HI1: 217: Depreciation and Amortization (UNADJUSTED) | HJ1: 218: Capital Expenditures (UNADJUSTED) | HK1: 219: Operating Margin (UNADJUSTED) | HL1: 220: Capital Expenditures - Supplementary Breakdown (UNADJUSTED) | HM1: 221: Operating Ratio (UNADJUSTED) | HN1: 222: Purchased Transportation (UNADJUSTED) | HO1: 223: Salaries Wages and Employee Benefits (UNADJUSTED) | HP1: 224: Rental Expense (UNADJUSTED) | HQ1: 225: Transportation Fuel (UNADJUSTED) | HR1: 226: Maintenance Expense (UNADJUSTED) | HS1: 227: Other Operating Expense (UNADJUSTED) | HT1: 228: Total Operating Expense (UNADJUSTED) | HU1: 229: Average Daily Package Volume (UNADJUSTED) | HV1: 230: Number of Workdays (UNADJUSTED) | HW1: 231: Total Package Volume (UNADJUSTED) | HX1: 232: FedEx Freight (UNADJUSTED) | HY1: 233: Revenue (UNADJUSTED) | HZ1: 234: Operating Income (UNADJUSTED) | IA1: 235: Depreciation and Amortization (UNADJUSTED) | IB1: 236: Capital Expenditures (UNADJUSTED) | IC1: 237: Operating Margin (UNADJUSTED) | ID1: 238: Weight Per Shipment (UNADJUSTED) | IE1: 239: Revenue Per Hundredweight (UNADJUSTED) | IF1: 240: Average Shipments Per Workday (UNADJUSTED) | IG1: 241: Revenue Per Shipment (UNADJUSTED) | IH1: 242: Number of Workdays (UNADJUSTED) | II1: 243: Average Fuel Surcharge % (UNADJUSTED) | IJ1: 244: Operating Ratio (UNADJUSTED) | IK1: 245: Purchased Transportation (UNADJUSTED) | IL1: 246: Salaries Wages and Employee Benefits (UNADJUSTED) | IM1: 247: Rental Expense (UNADJUSTED) | IN1: 248: Transportation Fuel (UNADJUSTED) | IO1: 249: Maintenance Expense (UNADJUSTED) | IP1: 250: Other Operating Expense (UNADJUSTED) | IQ1: 251: Total Operating Expense (UNADJUSTED) | IR1: 252: FedEx Ground (UNADJUSTED) | IS1: 253: Number of Workdays (UNADJUSTED) | IT1: 254: Average Fuel Surcharge % (UNADJUSTED) | IU1: 255: Total Package Volume (UNADJUSTED) | IV1: 256: FedEx Express - International (UNADJUSTED) | IW1: 257: Average Fuel Surcharge % (UNADJUSTED) | IX1: 258: Ground (UNADJUSTED) | IY1: 259: Revenue Per Package (Yield) (UNADJUSTED) | JA1: 261: Revenue (YOY CHANGE) | JB1: 262: Sales & Services Revenue (YOY CHANGE) | JC1: 263: Cost of Revenue (YOY CHANGE) | JD1: 264: Cost of Goods & Services (YOY CHANGE) | JE1: 265: Depreciation & Amortization (YOY CHANGE) | JF1: 266: Gross Profit (YOY CHANGE) | JG1: 267: Operating Expenses (YOY CHANGE) | JH1: 268: Other Operating Expense (YOY CHANGE) | JI1: 269: Operating Income (Loss) (YOY CHANGE) | JJ1: 270: Non-Operating (Income) Loss (YOY CHANGE) | JK1: 271: Interest Expense, Net (YOY CHANGE) | JL1: 272: Interest Expense (YOY CHANGE) | JM1: 273: Interest Income (YOY CHANGE) | JN1: 274: Other Non-Op (Income) Loss (YOY CHANGE) | JO1: 275: Pretax Income (Loss), Adjusted (YOY CHANGE) | JP1: 276: Pretax Income (Loss), GAAP (YOY CHANGE) | JQ1: 277: Income Tax Expense (Benefit) (YOY CHANGE) | JR1: 278: Income (Loss) from Cont Ops (YOY CHANGE) | JS1: 279: Income (Loss) Incl. MI (YOY CHANGE) | JT1: 280: Net Income, GAAP (YOY CHANGE) | JU1: 281: Net Income Avail to Common, GAAP (YOY CHANGE) | JV1: 282: Net Income Avail to Common, Adj (YOY CHANGE) | JW1: 283: Diluted Weighted Avg Shares (YOY CHANGE) | JX1: 284: Revenue (YOY CHANGE) | JY1: 285: FedEx Express (YOY CHANGE) | JZ1: 286: Package (YOY CHANGE) | KA1: 287: Total U.S. Domestic package revenue (YOY CHANGE) | KB1: 288: U.S. Overnight Box (YOY CHANGE) | KC1: 289: U.S. Deferred (YOY CHANGE) | KD1: 290: U.S. Overnight Envelope (YOY CHANGE) | KE1: 291: International Export Package (YOY CHANGE) | KF1: 292: International Priority (YOY CHANGE) | KG1: 293: International Economy (YOY CHANGE) | KH1: 294: International Domestic (YOY CHANGE) | KI1: 295: Freight (YOY CHANGE) | KJ1: 296: U.S. (YOY CHANGE) | KK1: 297: International Priority freight (YOY CHANGE) | KL1: 298: International Airfreight (YOY CHANGE) | KM1: 299: Other (YOY CHANGE) | KN1: 300: FedEx Ground (YOY CHANGE) | KO1: 301: FedEx Ground (YOY CHANGE) | KP1: 302: FedEx SmartPost (YOY CHANGE) | KQ1: 303: FedEx Freight (YOY CHANGE) | KR1: 304: Other and Eliminations (YOY CHANGE) | KS1: 305: FedEx Services (YOY CHANGE) | KT1: 306: Operating Income (YOY CHANGE) | KU1: 307: FedEx Express (YOY CHANGE) | KV1: 308: FedEx Ground (YOY CHANGE) | KW1: 309: FedEx Freight (YOY CHANGE) | KX1: 310: FedEx Ground (YOY CHANGE) | KY1: 311: FedEx Express (YOY CHANGE) | KZ1: 312: FedEx Freight (YOY CHANGE) | LA1: 313: Freight (YOY CHANGE) | LB1: 314: FedEx Express (YOY CHANGE) | LC1: 315: FedEx Ground (YOY CHANGE) | LD1: 316: Salaries Wages and Employee Benefits (YOY CHANGE) | LE1: 317: FedEx Express (YOY CHANGE) | LF1: 318: FedEx Freight (YOY CHANGE) | LG1: 319: FedEx Ground (YOY CHANGE) | LH1: 320: Rental Expense (YOY CHANGE) | LI1: 321: FedEx Express (YOY CHANGE) | LJ1: 322: FedEx Ground (YOY CHANGE) | LK1: 323: FedEx Freight (YOY CHANGE) | LL1: 324: Transportation Fuel (YOY CHANGE) | LM1: 325: FedEx Express (YOY CHANGE) | LN1: 326: FedEx Freight (YOY CHANGE) | LO1: 327: FedEx Ground (YOY CHANGE) | LP1: 328: Maintenance Expense (YOY CHANGE) | LQ1: 329: FedEx Express (YOY CHANGE) | LR1: 330: FedEx Ground (YOY CHANGE) | LS1: 331: FedEx Freight (YOY CHANGE) | LT1: 332: Other Operating Expense (YOY CHANGE) | LU1: 333: FedEx Express (YOY CHANGE) | LV1: 334: FedEx Ground (YOY CHANGE) | LW1: 335: FedEx Freight (YOY CHANGE) | LX1: 336: Total Operating Expense (YOY CHANGE) | LY1: 337: FedEx Express (YOY CHANGE) | LZ1: 338: FedEx Ground (YOY CHANGE) | MA1: 339: FedEx Freight (YOY CHANGE) | MB1: 340: Depreciation and Amortization (YOY CHANGE) | MC1: 341: FedEx Express (YOY CHANGE) | MD1: 342: FedEx Ground (YOY CHANGE) | ME1: 343: FedEx Freight (YOY CHANGE) | MF1: 344: Capital Expenditures (YOY CHANGE) | MG1: 345: FedEx Freight (YOY CHANGE) | MH1: 346: FedEx Services (YOY CHANGE) | MI1: 347: FedEx Ground (YOY CHANGE) | MJ1: 348: FedEx Express (YOY CHANGE) | MK1: 349: Capital Expenditures - Supplementary Breakdown (YOY CHANGE) | ML1: 350: Other Equipment (YOY CHANGE) | MM1: 351: Facilities and Sort Equipment (YOY CHANGE) | MN1: 352: Vehicles (YOY CHANGE) | MO1: 353: Information and Technology Investments (YOY CHANGE) | MP1: 354: Aircraft and Related Equipment (YOY CHANGE) | MQ1: 355: Average Daily Package Volume (YOY CHANGE) | MR1: 356: FedEx Ground (YOY CHANGE) | MS1: 357: Ground (YOY CHANGE) | MT1: 358: SmartPost (YOY CHANGE) | MU1: 359: FedEx Express (YOY CHANGE) | MV1: 360: Total U.S. Domestic (YOY CHANGE) | MW1: 361: U.S. Overnight Box (YOY CHANGE) | MX1: 362: U.S. Deferred (YOY CHANGE) | MY1: 363: U.S. Overnight Envelope (YOY CHANGE) | MZ1: 364: International Domestic (YOY CHANGE) | NA1: 365: International Export Package (YOY CHANGE) | NB1: 366: International Priority (YOY CHANGE) | NC1: 367: International Economy (YOY CHANGE) | ND1: 368: FedEx Express Composite package yield (YOY CHANGE) | NE1: 369: International Export Package (YOY CHANGE) | NF1: 370: International Priority (YOY CHANGE) | NG1: 371: International Economy (YOY CHANGE) | NH1: 372: Total U.S. domestic composite (YOY CHANGE) | NI1: 373: U.S. Overnight Box (YOY CHANGE) | NJ1: 374: U.S. Deferred (YOY CHANGE) | NK1: 375: U.S. Overnight Envelope (YOY CHANGE) | NL1: 376: International Domestic (YOY CHANGE) | NM1: 377: Ground (YOY CHANGE) | NN1: 378: SmartPost (YOY CHANGE) | NO1: 379: Average Daily Freight Pounds (YOY CHANGE) | NP1: 380: FedEx Express (YOY CHANGE) | NQ1: 381: U.S. (YOY CHANGE) | NR1: 382: International Priority (YOY CHANGE) | NS1: 383: International Airfreight (YOY CHANGE) | NT1: 384: Revenue per Freight Pound (Yield) (YOY CHANGE) | NU1: 385: FedEx Express (YOY CHANGE) | NV1: 386: International Priority (YOY CHANGE) | NW1: 387: U.S. (YOY CHANGE) | NX1: 388: International Airfreight (YOY CHANGE) | NY1: 389: International Economy (YOY CHANGE) | NZ1: 390: Purchased Transportation (YOY CHANGE) | OA1: 391: FedEx Ground (YOY CHANGE) | OB1: 392: FedEx Express (YOY CHANGE) | OC1: 393: FedEx Freight (YOY CHANGE) | OD1: 394: Weight Per Shipment (YOY CHANGE) | OE1: 395: FedEx Freight (YOY CHANGE) | OF1: 396: Priority (YOY CHANGE) | OG1: 397: Economy (YOY CHANGE) | OH1: 398: Revenue Per Shipment (YOY CHANGE) | OI1: 399: FedEx Freight (YOY CHANGE) | OJ1: 400: Economy (YOY CHANGE) | OK1: 401: Priority (YOY CHANGE) | OL1: 402: Average Shipments Per Workday (YOY CHANGE) | OM1: 403: FedEx Freight (YOY CHANGE) | ON1: 404: Priority (YOY CHANGE) | OO1: 405: Economy (YOY CHANGE) | OP1: 406: Revenue Per Hundredweight (YOY CHANGE) | OQ1: 407: FedEx Freight (YOY CHANGE) | OR1: 408: Economy (YOY CHANGE) | OS1: 409: Priority (YOY CHANGE) | OT1: 410: Average Pounds per Package (YOY CHANGE) | OU1: 411: FedEx Express (YOY CHANGE) | OV1: 412: Average Revenue per Package per Pound (YOY CHANGE) | OW1: 413: FedEx Express (YOY CHANGE) | OX1: 414: Number of Workdays (YOY CHANGE) | OY1: 415: FedEx Ground (YOY CHANGE) | OZ1: 416: FedEx Freight (YOY CHANGE) | PA1: 417: FedEx Express (YOY CHANGE) | PB1: 418: FedEx SmartPost (YOY CHANGE) | PC1: 419: Total Package Volume (YOY CHANGE) | PD1: 420: FedEx Ground (YOY CHANGE) | PE1: 421: FedEx SmartPost (YOY CHANGE) | PF1: 422: Average Fuel Surcharge % (YOY CHANGE) | PG1: 423: FedEx Freight (YOY CHANGE) | PH1: 424: FedEx Express - International (YOY CHANGE) | PI1: 425: Ground (YOY CHANGE) | PJ1: 426: FedEx Express - U.S. (YOY CHANGE) | PK1: 427: 0 (YOY CHANGE) | PL1: 428: FedEx Express (YOY CHANGE) | PM1: 429: Revenue (YOY CHANGE) | PN1: 430: Operating Income (YOY CHANGE) | PO1: 431: Depreciation and Amortization (YOY CHANGE) | PP1: 432: Capital Expenditures (YOY CHANGE) | PQ1: 433: Size of Fleet (YOY CHANGE) | PR1: 434: Operating Margin (YOY CHANGE) | PS1: 435: Aircraft Operating Fleet by Aircraft Program & Model - Total (YOY CHANGE) | PT1: 436: Capital Expenditures - Supplementary Breakdown (YOY CHANGE) | PU1: 437: Average Pounds per Package (YOY CHANGE) | PV1: 438: Average Revenue per Package per Pound (YOY CHANGE) | PW1: 439: Number of Workdays (YOY CHANGE) | PX1: 440: Average Fuel Surcharge % (YOY CHANGE) | PY1: 441: Average Daily Freight Pounds Growth% (YOY CHANGE) | PZ1: 442: Operating Ratio (YOY CHANGE) | QA1: 443: Purchased Transportation (YOY CHANGE) | QB1: 444: Salaries Wages and Employee Benefits (YOY CHANGE) | QC1: 445: Rental Expense (YOY CHANGE) | QD1: 446: Transportation Fuel (YOY CHANGE) | QE1: 447: Maintenance Expense (YOY CHANGE) | QF1: 448: Other Operating Expense (YOY CHANGE) | QG1: 449: Total Operating Expense (YOY CHANGE) | QH1: 450: Average Daily Package Volume (YOY CHANGE) | QI1: 451: Average Daily Package Volume Growth (YOY CHANGE) | QJ1: 452: Revenue Per Package (Yield) (YOY CHANGE) | QK1: 453: Revenue Per Package (Yield) Growth % (YOY CHANGE) | QL1: 454: Average Daily Freight Pounds (YOY CHANGE) | QM1: 455: Revenue per Freight Pound (Yield) (YOY CHANGE) | QN1: 456: FedEx Ground (YOY CHANGE) | QO1: 457: Revenue (YOY CHANGE) | QP1: 458: Operating Income (YOY CHANGE) | QQ1: 459: Depreciation and Amortization (YOY CHANGE) | QR1: 460: Capital Expenditures (YOY CHANGE) | QS1: 461: Operating Margin (YOY CHANGE) | QT1: 462: Capital Expenditures - Supplementary Breakdown (YOY CHANGE) | QU1: 463: Operating Ratio (YOY CHANGE) | QV1: 464: Purchased Transportation (YOY CHANGE) | QW1: 465: Salaries Wages and Employee Benefits (YOY CHANGE) | QX1: 466: Rental Expense (YOY CHANGE) | QY1: 467: Transportation Fuel (YOY CHANGE) | QZ1: 468: Maintenance Expense (YOY CHANGE) | RA1: 469: Other Operating Expense (YOY CHANGE) | RB1: 470: Total Operating Expense (YOY CHANGE) | RC1: 471: Average Daily Package Volume (YOY CHANGE) | RD1: 472: Number of Workdays (YOY CHANGE) | RE1: 473: Total Package Volume (YOY CHANGE) | RF1: 474: FedEx Freight (YOY CHANGE) | RG1: 475: Revenue (YOY CHANGE) | RH1: 476: Operating Income (YOY CHANGE) | RI1: 477: Depreciation and Amortization (YOY CHANGE) | RJ1: 478: Capital Expenditures (YOY CHANGE) | RK1: 479: Operating Margin (YOY CHANGE) | RL1: 480: Weight Per Shipment (YOY CHANGE) | RM1: 481: Revenue Per Hundredweight (YOY CHANGE) | RN1: 482: Average Shipments Per Workday (YOY CHANGE) | RO1: 483: Revenue Per Shipment (YOY CHANGE) | RP1: 484: Number of Workdays (YOY CHANGE) | RQ1: 485: Average Fuel Surcharge % (YOY CHANGE) | RR1: 486: Operating Ratio (YOY CHANGE) | RS1: 487: Purchased Transportation (YOY CHANGE) | RT1: 488: Salaries Wages and Employee Benefits (YOY CHANGE) | RU1: 489: Rental Expense (YOY CHANGE) | RV1: 490: Transportation Fuel (YOY CHANGE) | RW1: 491: Maintenance Expense (YOY CHANGE) | RX1: 492: Other Operating Expense (YOY CHANGE) | RY1: 493: Total Operating Expense (YOY CHANGE) | RZ1: 494: FedEx Ground (YOY CHANGE) | SA1: 495: Number of Workdays (YOY CHANGE) | SB1: 496: Average Fuel Surcharge % (YOY CHANGE) | SC1: 497: Total Package Volume (YOY CHANGE) | SD1: 498: FedEx Express - International (YOY CHANGE) | SE1: 499: Average Fuel Surcharge % (YOY CHANGE) | SF1: 500: Ground (YOY CHANGE) | SG1: 501: Revenue Per Package (Yield) (YOY CHANGE)
A2: 2: Stock's Relative Performance (L1) (UNADJUSTED) | B2: 1
A3: 3: FDX US Equity - Last Price (R3) (UNADJUSTED) | B3: 0.8384829986 | C3: 1
A4: 4: Stock's NTM Consensus EPS (R2) (UNADJUSTED) | B4: 0.7207161462 | C4: 0.9546608735 | D4: 1
A5: 5: Stock's P/E Ratio Relative to Index (R1) | B5: -0.1749693577 | C5: -0.5714724475 | D5: -0.7542701363 | E5: 1
A6: 6: Diluted EPS, GAAP (UNADJUSTED) | B6: 0.4888782305 | C6: 0.572258343 | D6: 0.5906188874 | E6: -0.2934593369 | F6: 1
A7: 7: Diluted EPS from Cont Ops (UNADJUSTED) | B7: 0.4888782305 | C7: 0.572258343 | D7: 0.5906188874 | E7: -0.2934593369 | F7: 1 | G7: 1
A8: 8: Diluted EPS from Cont Ops, Adjusted (UNADJUSTED) | B8: 0.6943124907 | C8: 0.8606980657 | D8: 0.8947740897 | E8: -0.5869543906 | F8: 0.5406302774 | G8: 0.5406302774 | H8: 1
A9: 9: ETSLTOTL Index - Last Price (R3) (UNADJUSTED) | B9: 0.5884409077 | C9: 0.8643014475 | D9: 0.8708564204 | E9: -0.6461020735 | F9: 0.4272810076 | G9: 0.4272810076 | H9: 0.7353894782 | I9: 1
A10: 10: NFP TYOY Index - Last Price (R4) (UNADJUSTED) | B10: 0.3040902301 | C10: 0.5613379585 | D10: 0.6438650731 | E10: -0.6405011579 | F10: 0.3961455415 | G10: 0.3961455415 | H10: 0.5338663364 | I10: 0.6017216801 | J10: 1
A11: 11: IP Index - Last Price (L4) (UNADJUSTED) | B11: 0.5175454491 | C11: 0.7960339512 | D11: 0.8203068882 | E11: -0.6780819978 | F11: 0.5211605445 | G11: 0.5211605445 | H11: 0.7311291663 | I11: 0.7778450188 | J11: 0.8602010415 | K11: 1
A12: 12: NAPMNMAN Index - Last Price (R1) (UNADJUSTED) | B12: 0.4276715801 | C12: 0.6032152334 | D12: 0.6013834208 | E12: -0.3537116704 | F12: 0.3251209665 | G12: 0.3251209665 | H12: 0.5307924027 | I12: 0.652411365 | J12: 0.7116160074 | K12: 0.5946684208 | L12: 1
A13: 13: PCE CHY% Index - Last Price (R2) (UNADJUSTED) | B13: 0.5435851526 | C13: 0.6349620637 | D13: 0.6161111042 | E13: -0.3991505379 | F13: 0.3287696017 | G13: 0.3287696017 | H13: 0.5022311416 | I13: 0.6170476288 | J13: 0.8285074933 | K13: 0.6950953113 | L13: 0.8292411337 | M13: 1
A14: 14: SPCS20Y% Index - Last Price (L3) (UNADJUSTED) | B14: 0.3625709014 | C14: 0.570026425 | D14: 0.5555761397 | E14: -0.3691871715 | F14: 0.3359999419 | G14: 0.3359999419 | H14: 0.4544880654 | I14: 0.7095806432 | J14: 0.7343273744 | K14: 0.6965113614 | L14: 0.7009544003 | M14: 0.749521912 | N14: 1
A15: 15: CNSTTOTA Index - Last Price (R1) (UNADJUSTED) | B15: 0.686359056 | C15: 0.8751035903 | D15: 0.8855776547 | E15: -0.6591256674 | F15: 0.4350324678 | G15: 0.4350324678 | H15: 0.7784443449 | I15: 0.8117808779 | J15: 0.3196645149 | K15: 0.6463277412 | L15: 0.3128644827 | M15: 0.3310097776 | N15: 0.300271936 | O15: 1
A16: 16: CONSSENT Index - Last Price (L4) (UNADJUSTED) | B16: 0.7288630431 | C16: 0.9230637707 | D16: 0.8841486565 | E16: -0.562643205 | F16: 0.4173885714 | G16: 0.4173885714 | H16: 0.7796608949 | I16: 0.9328631162 | J16: 0.5610273339 | K16: 0.7533651308 | L16: 0.6814613654 | M16: 0.6537202066 | N16: 0.6504965955 | O16: 0.8285990447 | P16: 1
A17: 17: RSTAYOY Index - Last Price (L3) (UNADJUSTED) | B17: 0.2770658493 | C17: 0.3472248029 | D17: 0.3457311085 | E17: -0.1346552053 | F17: 0.3455510878 | G17: 0.3455510878 | H17: 0.3183586424 | I17: 0.2997489882 | J17: 0.7129021824 | K17: 0.4520206704 | L17: 0.7614016172 | M17: 0.7872135521 | N17: 0.6405885735 | O17: -0.04084685314 | P17: 0.3262115362 | Q17: 1
A18: 18: SAARTOTL Index - Last Price (L2) (UNADJUSTED) | B18: 0.5436787106 | C18: 0.843585704 | D18: 0.8726791426 | E18: -0.7390374452 | F18: 0.4330806823 | G18: 0.4330806823 | H18: 0.7142991997 | I18: 0.8964808335 | J18: 0.8168749072 | K18: 0.9287198466 | L18: 0.6883314767 | M18: 0.7459804902 | N18: 0.7618468672 | O18: 0.7229136802 | P18: 0.8610132127 | Q18: 0.4562478101 | R18: 1
A19: 19: Revenue (UNADJUSTED) | B19: 0.6956748588 | C19: 0.9374186184 | D19: 0.9748314368 | E19: -0.7081110399 | F19: 0.6382078193 | G19: 0.6382078193 | H19: 0.8899045301 | I19: 0.8459021467 | J19: 0.6231697913 | K19: 0.7928935328 | L19: 0.5776582387 | M19: 0.5667262785 | N19: 0.5536472718 | O19: 0.8576167512 | P19: 0.8486679385 | Q19: 0.3747173551 | R19: 0.835615174 | S19: 1
A20: 20: Sales & Services Revenue (UNADJUSTED) | B20: 0.6912592678 | C20: 0.9357030059 | D20: 0.9731609202 | E20: -0.7138586545 | F20: 0.6397022573 | G20: 0.6397022573 | H20: 0.8772707357 | I20: 0.851763028 | J20: 0.6267105456 | K20: 0.7921815797 | L20: 0.5757607776 | M20: 0.571168112 | N20: 0.5560707317 | O20: 0.8597765354 | P20: 0.8521301956 | Q20: 0.372811459 | R20: 0.8389126904 | S20: 0.9989881797 | T20: 1
A21: 21: Cost of Revenue (UNADJUSTED) | B21: 0.6768389701 | C21: 0.9267111076 | D21: 0.9624892277 | E21: -0.697381034 | F21: 0.668995214 | G21: 0.668995214 | H21: 0.8514199695 | I21: 0.8322897908 | J21: 0.6229135013 | K21: 0.7852810123 | L21: 0.5754960667 | M21: 0.5564774482 | N21: 0.5567753818 | O21: 0.8357852947 | P21: 0.8288839655 | Q21: 0.3884446359 | R21: 0.8262963105 | S21: 0.9950044246 | T21: 0.9948149956 | U21: 1
A22: 22: Cost of Goods & Services (UNADJUSTED) | B22: 0.6755515707 | C22: 0.922456462 | D22: 0.9596447747 | E22: -0.693724823 | F22: 0.6741978124 | G22: 0.6741978124 | H22: 0.8498320872 | I22: 0.8234941555 | J22: 0.6222719227 | K22: 0.7800764065 | L22: 0.5738888454 | M22: 0.5541669992 | N22: 0.5487024103 | O22: 0.8298146957 | P22: 0.8209305135 | Q22: 0.3943597123 | R22: 0.8189498518 | S22: 0.9941178388 | T22: 0.9938559287 | U22: 0.9997826816 | V22: 1
A23: 23: Depreciation & Amortization (UNADJUSTED) | B23: 0.6541356005 | C23: 0.936878009 | D23: 0.9469853113 | E23: -0.7125548503 | F23: 0.5393672424 | G23: 0.5393672424 | H23: 0.8223377599 | I23: 0.9237679354 | J23: 0.5930260601 | K23: 0.820370645 | L23: 0.5646773211 | M23: 0.5585366322 | N23: 0.6542073301 | O23: 0.880270797 | P23: 0.9066421832 | Q23: 0.2652665876 | R23: 0.8941747064 | S23: 0.9449757375 | T23: 0.9459984691 | U23: 0.9385674743 | V23: 0.9311693587 | W23: 1
A24: 24: Gross Profit (UNADJUSTED) | B24: 0.7118792993 | C24: 0.9216101395 | D24: 0.9614893717 | E24: -0.7029466127 | F24: 0.529762354 | G24: 0.529762354 | H24: 0.9475485157 | I24: 0.8417707227 | J24: 0.5950576675 | K24: 0.7758174301 | L24: 0.5565365529 | M24: 0.5668546976 | N24: 0.5200624655 | O24: 0.8740296838 | P24: 0.8602414181 | Q24: 0.3222021453 | R24: 0.8209441916 | S24: 0.966649025 | T24: 0.9635741647 | U24: 0.936252903 | V24: 0.9336903173 | W24: 0.9177891356 | X24: 1
A25: 25: Operating Expenses (UNADJUSTED) | B25: 0.6948719968 | C25: 0.9135942311 | D25: 0.9545151562 | E25: -0.7118046892 | F25: 0.5735728328 | G25: 0.5735728328 | H25: 0.8244003826 | I25: 0.8272149149 | J25: 0.4947384475 | K25: 0.6832245881 | L25: 0.4985273916 | M25: 0.4802983497 | N25: 0.45518832 | O25: 0.906958926 | P25: 0.837201499 | Q25: 0.2467027444 | R25: 0.7718264913 | S25: 0.9677097699 | T25: 0.9707001062 | U25: 0.9612391734 | V25: 0.9598326397 | W25: 0.9220133964 | X25: 0.9396335249 | Y25: 1
A26: 26: Other Operating Expense (UNADJUSTED) | B26: 0.6948719968 | C26: 0.9135942311 | D26: 0.9545151562 | E26: -0.7118046892 | F26: 0.5735728328 | G26: 0.5735728328 | H26: 0.8244003826 | I26: 0.8272149149 | J26: 0.4947384475 | K26: 0.6832245881 | L26: 0.4985273916 | M26: 0.4802983497 | N26: 0.45518832 | O26: 0.906958926 | P26: 0.837201499 | Q26: 0.2467027444 | R26: 0.7718264913 | S26: 0.9677097699 | T26: 0.9707001062 | U26: 0.9612391734 | V26: 0.9598326397 | W26: 0.9220133964 | X26: 0.9396335249 | Y26: 1 | Z26: 1
A27: 27: Operating Income (Loss) (UNADJUSTED) | B27: 0.6555623146 | C27: 0.8363217196 | D27: 0.8712827578 | E27: -0.6246566812 | F27: 0.4379287726 | G27: 0.4379287726 | H27: 0.9614517937 | I27: 0.7702669311 | J27: 0.6241083965 | K27: 0.7799190098 | L27: 0.5520408696 | M27: 0.5865641528 | N27: 0.5252922016 | O27: 0.7573096473 | P27: 0.7943872948 | Q27: 0.3566580436 | R27: 0.7820850217 | S27: 0.868821315 | T27: 0.8606922489 | U27: 0.8203186631 | V27: 0.816990835 | W27: 0.8220618345 | X27: 0.9531389284 | Y27: 0.7920798223 | Z27: 0.7920798223 | AA27: 1
A28: 28: Non-Operating (Income) Loss (UNADJUSTED) | B28: 0.7368108643 | C28: 0.8995065145 | D28: 0.9018211747 | E28: -0.6160114852 | F28: 0.4095901151 | G28: 0.4095901151 | H28: 0.7831052677 | I28: 0.8232899697 | J28: 0.3778996116 | K28: 0.5687227814 | L28: 0.519763256 | M28: 0.4997474433 | N28: 0.4312189485 | O28: 0.9051739429 | P28: 0.8620677588 | Q28: 0.2060010288 | R28: 0.7208271762 | S28: 0.8926767212 | T28: 0.8949181026 | U28: 0.8765200845 | V28: 0.8725162476 | W28: 0.88579905 | X28: 0.8929129426 | Y28: 0.9397320694 | Z28: 0.9397320694 | AA28: 0.7620197556 | AB28: 1
A29: 29: Interest Expense, Net (UNADJUSTED) | B29: 0.7480280046 | C29: 0.9191381481 | D29: 0.9258954806 | E29: -0.6285020239 | F29: 0.4941839354 | G29: 0.4941839354 | H29: 0.831599843 | I29: 0.8239452439 | J29: 0.3829602941 | K29: 0.6017868597 | L29: 0.5034799884 | M29: 0.484347875 | N29: 0.4146512725 | O29: 0.9277267069 | P29: 0.861869772 | Q29: 0.1864999298 | R29: 0.7231262624 | S29: 0.9202046053 | T29: 0.9201265409 | U29: 0.9036828776 | V29: 0.9000001567 | W29: 0.9058797281 | X29: 0.9201065588 | Y29: 0.957212168 | Z29: 0.957212168 | AA29: 0.7950756698 | AB29: 0.9845168392 | AC29: 1
A30: 30: Interest Expense (UNADJUSTED) | B30: 0.7437464085 | C30: 0.9188144729 | D30: 0.9291070409 | E30: -0.6313585935 | F30: 0.5130246784 | G30: 0.5130246784 | H30: 0.8439452985 | I30: 0.8182979734 | J30: 0.3761165751 | K30: 0.6074200023 | L30: 0.4882717887 | M30: 0.4585580966 | N30: 0.4028239004 | O30: 0.9326308809 | P30: 0.85314026 | Q30: 0.1701892476 | R30: 0.7175087468 | S30: 0.9268195649 | T30: 0.9262600403 | U30: 0.9105038242 | V30: 0.9070934202 | W30: 0.907749207 | X30: 0.9258876919 | Y30: 0.9617523409 | Z30: 0.9617523409 | AA30: 0.8013745113 | AB30: 0.979517582 | AC30: 0.9979292476 | AD30: 1
A31: 31: Interest Income (UNADJUSTED) | B31: 0.4280330564 | C31: 0.5863577548 | D31: 0.6339545938 | E31: -0.4386094347 | F31: 0.5479247703 | G31: 0.5479247703 | H31: 0.6851548328 | I31: 0.4600807392 | J31: 0.1622176437 | K31: 0.4554255496 | L31: 0.1372743656 | M31: -0.00448883185 | N31: 0.1215915559 | O31: 0.6558414216 | P31: 0.4467237175 | Q31: -0.07979659088 | R31: 0.3956936355 | S31: 0.6719434066 | T31: 0.6660021518 | U31: 0.6638527403 | V31: 0.6648195581 | W31: 0.6046778105 | X31: 0.6616777854 | Y31: 0.6703246193 | Z31: 0.6703246193 | AA31: 0.5877111068 | AB31: 0.571137204 | AC31: 0.6169143015 | AD31: 0.6662595602 | AE31: 1
A32: 32: Other Non-Op (Income) Loss (UNADJUSTED) | B32: -0.0983391333 | C32: -0.1853403142 | D32: -0.2075294192 | E32: 0.1203804878 | F32: -0.5090301684 | G32: -0.5090301684 | H32: -0.3301788705 | I32: -0.08062240173 | J32: -0.081726498 | K32: -0.2395293446 | L32: -0.0003708033608 | M32: 0.01755459449 | N32: 0.03046969702 | O32: -0.1818392314 | P32: -0.08244870134 | Q32: 0.05591175363 | R32: -0.08702583345 | S32: -0.2263676419 | T32: -0.2131712607 | U32: -0.225826522 | V32: -0.2271174488 | W32: -0.18931443 | X32: -0.2175630761 | Y32: -0.1670726729 | Z32: -0.1670726729 | AA32: -0.2402196486 | AB32: 0.01360524749 | AC32: -0.1628780516 | AD32: -0.1772731944 | AE32: -0.2849733048 | AF32: 1
A33: 33: Pretax Income (Loss), Adjusted (UNADJUSTED) | B33: 0.624930428 | C33: 0.802126347 | D33: 0.8399157239 | E33: -0.6058533132 | F33: 0.4274343109 | G33: 0.4274343109 | H33: 0.9524240033 | I33: 0.73939636 | J33: 0.6339868977 | K33: 0.7806225006 | L33: 0.5383961304 | M33: 0.5784032384 | N33: 0.5199535859 | O33: 0.7154071964 | P33: 0.7609818085 | Q33: 0.36350465 | R33: 0.7646281122 | S33: 0.8383388586 | T33: 0.8292167686 | U33: 0.7874743519 | V33: 0.7843338223 | W33: 0.7882528697 | X33: 0.9301228156 | Y33: 0.7490982443 | Z33: 0.7490982443 | AA33: 0.996942873 | AB33: 0.7090942553 | AC33: 0.7469566523 | AD33: 0.7544185977 | AE33: 0.5710382466 | AF33: -0.2629919496 | AG33: 1
A34: 34: Pretax Income (Loss), GAAP (UNADJUSTED) | B34: 0.3146383789 | C34: 0.3784343944 | D34: 0.409520745 | E34: -0.23073589 | F34: 0.8300710866 | G34: 0.8300710866 | H34: 0.387252581 | I34: 0.3013013316 | J34: 0.4132431688 | K34: 0.4630051057 | L34: 0.2642556363 | M34: 0.3219973742 | N34: 0.321088059 | O34: 0.2568556645 | P34: 0.2482739754 | Q34: 0.3590681259 | R34: 0.3720750853 | S34: 0.4784539309 | T34: 0.4758378967 | U34: 0.4979988375 | V34: 0.5023916952 | W34: 0.392895115 | X34: 0.4062250944 | Y34: 0.3820965813 | Z34: 0.3820965813 | AA34: 0.3868407252 | AB34: 0.2132629222 | AC34: 0.3127389305 | AD34: 0.3266184732 | AE34: 0.3706864224 | AF34: -0.5799335405 | AG34: 0.3954939968 | AH34: 1
A35: 35: Income Tax Expense (Benefit) (UNADJUSTED) | B35: -0.1431148731 | C35: -0.1432783717 | D35: -0.1160987772 | E35: -0.008821932756 | F35: -0.04769808011 | G35: -0.04769808011 | H35: -0.08901094406 | I35: -0.06327811914 | J35: 0.1186774639 | K35: 0.04064450956 | L35: -0.007605786516 | M35: 0.07657592582 | N35: 0.05597649416 | O35: -0.1308879038 | P35: -0.135172507 | Q35: 0.08454010995 | R35: 0.03618834436 | S35: -0.06740332746 | T35: -0.07459563035 | U35: -0.08165131527 | V35: -0.08236710705 | W35: -0.06449239584 | X35: -0.02773993472 | Y35: -0.1276402852 | Z35: -0.1276402852 | AA35: 0.06336516742 | AB35: -0.1671473441 | AC35: -0.1172970004 | AD35: -0.1221817854 | AE35: -0.1351041561 | AF35: -0.2718928616 | AG35: 0.08916560426 | AH35: 0.5134520888 | AI35: 1
A36: 36: Income (Loss) from Cont Ops (UNADJUSTED) | B36: 0.4550655645 | C36: 0.5294958508 | D36: 0.5489115133 | E36: -0.2633780867 | F36: 0.9966103621 | G36: 0.9966103621 | H36: 0.5062201687 | I36: 0.3901689016 | J36: 0.408102543 | K36: 0.5143229471 | L36: 0.3125883178 | M36: 0.327819881 | N36: 0.3394956423 | O36: 0.3801834056 | P36: 0.372833692 | Q36: 0.3660875792 | R36: 0.4111346525 | S36: 0.5991210291 | T36: 0.6005195743 | U36: 0.6307014938 | V36: 0.6362621693 | W36: 0.4976361954 | X36: 0.4904455347 | Y36: 0.5240947388 | Z36: 0.5240947388 | AA36: 0.4115366485 | AB36: 0.351809898 | AC36: 0.4368910892 | AD36: 0.4560821727 | AE36: 0.5154150767 | AF36: -0.5074849317 | AG36: 0.4056680042 | AH36: 0.8476752539 | AI36: -0.02000438359 | AJ36: 1
A37: 37: Income (Loss) Incl. MI (UNADJUSTED) | B37: 0.4550655645 | C37: 0.5294958508 | D37: 0.5489115133 | E37: -0.2633780867 | F37: 0.9966103621 | G37: 0.9966103621 | H37: 0.5062201687 | I37: 0.3901689016 | J37: 0.408102543 | K37: 0.5143229471 | L37: 0.3125883178 | M37: 0.327819881 | N37: 0.3394956423 | O37: 0.3801834056 | P37: 0.372833692 | Q37: 0.3660875792 | R37: 0.4111346525 | S37: 0.5991210291 | T37: 0.6005195743 | U37: 0.6307014938 | V37: 0.6362621693 | W37: 0.4976361954 | X37: 0.4904455347 | Y37: 0.5240947388 | Z37: 0.5240947388 | AA37: 0.4115366485 | AB37: 0.351809898 | AC37: 0.4368910892 | AD37: 0.4560821727 | AE37: 0.5154150767 | AF37: -0.5074849317 | AG37: 0.4056680042 | AH37: 0.8476752539 | AI37: -0.02000438359 | AJ37: 1 | AK37: 1
A38: 38: Net Income, GAAP (UNADJUSTED) | B38: 0.4550655645 | C38: 0.5294958508 | D38: 0.5489115133 | E38: -0.2633780867 | F38: 0.9966103621 | G38: 0.9966103621 | H38: 0.5062201687 | I38: 0.3901689016 | J38: 0.408102543 | K38: 0.5143229471 | L38: 0.3125883178 | M38: 0.327819881 | N38: 0.3394956423 | O38: 0.3801834056 | P38: 0.372833692 | Q38: 0.3660875792 | R38: 0.4111346525 | S38: 0.5991210291 | T38: 0.6005195743 | U38: 0.6307014938 | V38: 0.6362621693 | W38: 0.4976361954 | X38: 0.4904455347 | Y38: 0.5240947388 | Z38: 0.5240947388 | AA38: 0.4115366485 | AB38: 0.351809898 | AC38: 0.4368910892 | AD38: 0.4560821727 | AE38: 0.5154150767 | AF38: -0.5074849317 | AG38: 0.4056680042 | AH38: 0.8476752539 | AI38: -0.02000438359 | AJ38: 1 | AK38: 1 | AL38: 1
A39: 39: Net Income Avail to Common, GAAP (UNADJUSTED) | B39: 0.4550655645 | C39: 0.5294958508 | D39: 0.5489115133 | E39: -0.2633780867 | F39: 0.9966103621 | G39: 0.9966103621 | H39: 0.5062201687 | I39: 0.3901689016 | J39: 0.408102543 | K39: 0.5143229471 | L39: 0.3125883178 | M39: 0.327819881 | N39: 0.3394956423 | O39: 0.3801834056 | P39: 0.372833692 | Q39: 0.3660875792 | R39: 0.4111346525 | S39: 0.5991210291 | T39: 0.6005195743 | U39: 0.6307014938 | V39: 0.6362621693 | W39: 0.4976361954 | X39: 0.4904455347 | Y39: 0.5240947388 | Z39: 0.5240947388 | AA39: 0.4115366485 | AB39: 0.351809898 | AC39: 0.4368910892 | AD39: 0.4560821727 | AE39: 0.5154150767 | AF39: -0.5074849317 | AG39: 0.4056680042 | AH39: 0.8476752539 | AI39: -0.02000438359 | AJ39: 1 | AK39: 1 | AL39: 1 | AM39: 1
A40: 40: Net Income Avail to Common, Adj (UNADJUSTED) | B40: 0.6636515742 | C40: 0.8322393104 | D40: 0.8679623257 | E40: -0.569340455 | F40: 0.5437851027 | G40: 0.5437851027 | H40: 0.9946777832 | I40: 0.7101197196 | J40: 0.5643538815 | K40: 0.746986715 | L40: 0.5294572104 | M40: 0.5075645199 | N40: 0.4752754338 | O40: 0.7294691212 | P40: 0.7510037534 | Q40: 0.3491209434 | R40: 0.7091653165 | S40: 0.8677823262 | T40: 0.8543778291 | U40: 0.8280420627 | V40: 0.8266639976 | W40: 0.7970068264 | X40: 0.9296689826 | Y40: 0.784921202 | Z40: 0.784921202 | AA40: 0.9644612186 | AB40: 0.7284673 | AC40: 0.7804744623 | AD40: 0.7941649065 | AE40: 0.6687766599 | AF40: -0.3460600988 | AG40: 0.9622935541 | AH40: 0.4048284072 | AI40: -0.0713841872 | AJ40: 0.5158004821 | AK40: 0.5158004821 | AL40: 0.5158004821 | AM40: 0.5158004821 | AN40: 1
A41: 41: Diluted Weighted Avg Shares (UNADJUSTED) | B41: -0.7293036865 | C41: -0.8809455245 | D41: -0.8892570406 | E41: 0.6464747635 | F41: -0.4010076639 | G41: -0.4010076639 | H41: -0.7724540195 | I41: -0.8209822686 | J41: -0.3775978147 | K41: -0.6126034305 | L41: -0.4777360062 | M41: -0.4973515256 | N41: -0.3379381685 | O41: -0.9389232979 | P41: -0.8636338256 | Q41: -0.1030353527 | R41: -0.7381013135 | S41: -0.842459617 | T41: -0.8466874457 | U41: -0.8145415097 | V41: -0.8089573415 | W41: -0.8540115646 | X41: -0.8751869215 | Y41: -0.8944402848 | Z41: -0.8944402848 | AA41: -0.7704421133 | AB41: -0.9381217828 | AC41: -0.9483032178 | AD41: -0.9420921347 | AE41: -0.5330511084 | AF41: 0.1242908571 | AG41: -0.7257314943 | AH41: -0.2499030654 | AI41: 0.08608996194 | AJ41: -0.3443873967 | AK41: -0.3443873967 | AL41: -0.3443873967 | AM41: -0.3443873967 | AN41: -0.7168511695 | AO41: 1
A42: 42: Revenue (UNADJUSTED) | B42: 0.6956748588 | C42: 0.9374186184 | D42: 0.9748314368 | E42: -0.7081110399 | F42: 0.6382078193 | G42: 0.6382078193 | H42: 0.8899045301 | I42: 0.8459021467 | J42: 0.6231697913 | K42: 0.7928935328 | L42: 0.5776582387 | M42: 0.5667262785 | N42: 0.5536472718 | O42: 0.8576167512 | P42: 0.8486679385 | Q42: 0.3747173551 | R42: 0.835615174 | S42: 1 | T42: 0.9989881797 | U42: 0.9950044246 | V42: 0.9941178388 | W42: 0.9449757375 | X42: 0.966649025 | Y42: 0.9677097699 | Z42: 0.9677097699 | AA42: 0.868821315 | AB42: 0.8926767212 | AC42: 0.9202046053 | AD42: 0.9268195649 | AE42: 0.6719434066 | AF42: -0.2263676419 | AG42: 0.8383388586 | AH42: 0.4784539309 | AI42: -0.06740332746 | AJ42: 0.5991210291 | AK42: 0.5991210291 | AL42: 0.5991210291 | AM42: 0.5991210291 | AN42: 0.8677823262 | AO42: -0.842459617 | AP42: 1
A43: 43: FedEx Express (UNADJUSTED) | B43: 0.6423960794 | C43: 0.8700308431 | D43: 0.9042835731 | E43: -0.6418578192 | F43: 0.6768582525 | G43: 0.6768582525 | H43: 0.8466504862 | I43: 0.748793906 | J43: 0.6266377357 | K43: 0.7673343375 | L43: 0.5383341294 | M43: 0.5188591923 | N43: 0.5198868828 | O43: 0.7559984146 | P43: 0.7497010371 | Q43: 0.421029517 | R43: 0.767537138 | S43: 0.9700916601 | T43: 0.9674490302 | U43: 0.9756942743 | V43: 0.9774031031 | W43: 0.8839571283 | X43: 0.910932985 | Y43: 0.9070625486 | Z43: 0.9070625486 | AA43: 0.8230496395 | AB43: 0.8008242016 | AC43: 0.8355549351 | AD43: 0.8461104665 | AE43: 0.6657935941 | AF43: -0.2577349029 | AG43: 0.7995815537 | AH43: 0.5458856498 | AI43: -0.01681079765 | AJ43: 0.6464083405 | AK43: 0.6464083405 | AL43: 0.6464083405 | AM43: 0.6464083405 | AN43: 0.8358191517 | AO43: -0.7237064827 | AP43: 0.9700916601 | AQ43: 1
A44: 44: Package (UNADJUSTED) | B44: 0.6530213699 | C44: 0.8818651157 | D44: 0.910519284 | E44: -0.6397792062 | F44: 0.6804643167 | G44: 0.6804643167 | H44: 0.8570559108 | I44: 0.7482807075 | J44: 0.6195947265 | K44: 0.7791925098 | L44: 0.5267969605 | M44: 0.5128385039 | N44: 0.5098108194 | O44: 0.7718728333 | P44: 0.7542398118 | Q44: 0.4075808953 | R44: 0.7710938395 | S44: 0.9729284705 | T44: 0.9701647339 | U44: 0.9763570766 | V44: 0.9779241924 | W44: 0.8869227295 | X44: 0.9192160032 | Y44: 0.9113629887 | Z44: 0.9113629887 | AA44: 0.834023535 | AB44: 0.8035354061 | AC44: 0.8395146641 | AD44: 0.85174917 | AE44: 0.688880569 | AF44: -0.2635787221 | AG44: 0.8112037655 | AH44: 0.5475888911 | AI44: -0.01922096702 | AJ44: 0.6498828414 | AK44: 0.6498828414 | AL44: 0.6498828414 | AM44: 0.6498828414 | AN44: 0.8468880734 | AO44: -0.7331839713 | AP44: 0.9729284705 | AQ44: 0.9973327597 | AR44: 1
A45: 45: Total U.S. Domestic package revenue (UNADJUSTED) | B45: 0.5603771086 | C45: 0.8244876957 | D45: 0.8932808335 | E45: -0.744600631 | F45: 0.6212538019 | G45: 0.6212538019 | H45: 0.8229507243 | I45: 0.7266290718 | J45: 0.7077654881 | K45: 0.8772481629 | L45: 0.4517155322 | M45: 0.5094443758 | N45: 0.4543741601 | O45: 0.7772567775 | P45: 0.7171600078 | Q45: 0.3427931072 | R45: 0.8065701062 | S45: 0.8999102039 | T45: 0.8999316468 | U45: 0.8930246672 | V45: 0.8935729096 | W45: 0.8258757405 | X45: 0.8760285143 | Y45: 0.8413503511 | Z45: 0.8413503511 | AA45: 0.8188816995 | AB45: 0.7028331886 | AC45: 0.7416106648 | AD45: 0.759130182 | AE45: 0.6906686192 | AF45: -0.2626586393 | AG45: 0.8068667393 | AH45: 0.4896393964 | AI45: -0.04698931037 | AJ45: 0.5995327151 | AK45: 0.5995327151 | AL45: 0.5995327151 | AM45: 0.5995327151 | AN45: 0.8216506419 | AO45: -0.7131099217 | AP45: 0.8999102039 | AQ45: 0.8888426661 | AR45: 0.9051708212 | AS45: 1
A46: 46: U.S. Overnight Box (UNADJUSTED) | B46: 0.5260859358 | C46: 0.7973714203 | D46: 0.8744509747 | E46: -0.7397297657 | F46: 0.608163533 | G46: 0.608163533 | H46: 0.8321544912 | I46: 0.7132041255 | J46: 0.7639419116 | K46: 0.9026013992 | L46: 0.4816062203 | M46: 0.5394966681 | N46: 0.4880887679 | O46: 0.7268413654 | P46: 0.6968698614 | Q46: 0.3959941764 | R46: 0.8207077254 | S46: 0.885304622 | T46: 0.8833414238 | U46: 0.8750729552 | V46: 0.8757914275 | W46: 0.8062734604 | X46: 0.8706813431 | Y46: 0.8004609519 | Z46: 0.8004609519 | AA46: 0.845494353 | AB46: 0.6550378616 | AC46: 0.6949156062 | AD46: 0.7101850315 | AE46: 0.6331466398 | AF46: -0.2676782964 | AG46: 0.8416119348 | AH46: 0.50625824 | AI46: -0.005152261657 | AJ46: 0.5930304837 | AK46: 0.5930304837 | AL46: 0.5930304837 | AM46: 0.5930304837 | AN46: 0.8407517378 | AO46: -0.6701244263 | AP46: 0.885304622 | AQ46: 0.8847640991 | AR46: 0.8986111503 | AS46: 0.985594666 | AT46: 1
A47: 47: U.S. Deferred (UNADJUSTED) | B47: 0.6258315949 | C47: 0.8744712378 | D47: 0.9072608171 | E47: -0.7259927193 | F47: 0.6063954471 | G47: 0.6063954471 | H47: 0.7490465697 | I47: 0.7971943102 | J47: 0.6551248843 | K47: 0.8476566094 | L47: 0.4887239563 | M47: 0.5580933134 | N47: 0.525052211 | O47: 0.8116331471 | P47: 0.7945221105 | Q47: 0.3123187373 | R47: 0.8343178674 | S47: 0.8844631769 | T47: 0.8893812571 | U47: 0.8860538981 | V47: 0.8833293451 | W47: 0.8735357614 | X47: 0.8395497357 | Y47: 0.8693982252 | Z47: 0.8693982252 | AA47: 0.729009497 | AB47: 0.76416531 | AC47: 0.7944883416 | AD47: 0.8053737936 | AE47: 0.6434553846 | AF47: -0.2263674127 | AG47: 0.7016056123 | AH47: 0.4384016485 | AI47: -0.1047919659 | AJ47: 0.5755706428 | AK47: 0.5755706428 | AL47: 0.5755706428 | AM47: 0.5755706428 | AN47: 0.7303499909 | AO47: -0.7759985779 | AP47: 0.8844631769 | AQ47: 0.8332201265 | AR47: 0.8469333509 | AS47: 0.9359639263 | AT47: 0.8817765873 | AU47: 1
A48: 48: U.S. Overnight Envelope (UNADJUSTED) | B48: -0.04036220983 | C48: -0.003773318411 | D48: 0.09078906924 | E48: -0.1332874427 | F48: 0.1522333737 | G48: 0.1522333737 | H48: 0.2704798189 | I48: -0.1498588049 | J48: -0.03924901455 | K48: 0.03518787093 | L48: -0.2523279439 | M48: -0.2920222849 | N48: -0.3926496386 | O48: 0.162261939 | P48: -0.1419969632 | Q48: -0.1260650043 | R48: -0.122735543 | S48: 0.1775214642 | T48: 0.1693222704 | U48: 0.162504259 | V48: 0.1735815612 | W48: -0.0314357837 | X48: 0.207850862 | Y48: 0.1430045031 | Z48: 0.1430045031 | AA48: 0.2443498541 | AB48: 0.04768796379 | AC48: 0.07525078534 | AD48: 0.111129406 | AE48: 0.487338603 | AF48: -0.1326599096 | AG48: 0.2603156529 | AH48: 0.1336427594 | AI48: 0.00552298366 | AJ48: 0.1522936801 | AK48: 0.1522936801 | AL48: 0.1522936801 | AM48: 0.1522936801 | AN48: 0.2858398506 | AO48: -0.01947970445 | AP48: 0.1775214642 | AQ48: 0.271879497 | AR48: 0.2942309268 | AS48: 0.3584127538 | AT48: 0.363153792 | AU48: 0.08191936487 | AV48: 1
A49: 49: International Export Package (UNADJUSTED) | B49: 0.5787538511 | C49: 0.7756669777 | D49: 0.8017138315 | E49: -0.5272300961 | F49: 0.671004123 | G49: 0.671004123 | H49: 0.8120410517 | I49: 0.6204118779 | J49: 0.7020222792 | K49: 0.7698092283 | L49: 0.5683921383 | M49: 0.5662571605 | N49: 0.5438505927 | O49: 0.5697791941 | P49: 0.6327124497 | Q49: 0.5671848903 | R49: 0.7087040236 | S49: 0.8833512757 | T49: 0.8770136843 | U49: 0.8871830398 | V49: 0.8913578679 | W49: 0.7603799081 | X49: 0.832740023 | Y49: 0.767858954 | Z49: 0.767858954 | AA49: 0.8066353534 | AB49: 0.6326309928 | AC49: 0.671905949 | AD49: 0.6838264258 | AE49: 0.577391111 | AF49: -0.2753687683 | AG49: 0.8020024416 | AH49: 0.5882033015 | AI49: 0.04219405829 | AJ49: 0.6592343055 | AK49: 0.6592343055 | AL49: 0.6592343055 | AM49: 0.6592343055 | AN49: 0.827016444 | AO49: -0.5474387633 | AP49: 0.8833512757 | AQ49: 0.9508466786 | AR49: 0.9513582073 | AS49: 0.8431350393 | AT49: 0.8747201074 | AU49: 0.723928942 | AV49: 0.3281469499 | AW49: 1
A50: 50: International Priority (UNADJUSTED) | B50: 0.233112986 | C50: 0.2353503578 | D50: 0.2169367285 | E50: 0.1181678004 | F50: 0.4724928257 | G50: 0.4724928257 | H50: 0.4037625433 | I50: -0.09750380411 | J50: -0.3128908698 | K50: -0.00439291389 | L50: 0.08355478778 | M50: -0.262362358 | N50: -0.1805494701 | O50: 0.06387057561 | P50: -0.01624243626 | Q50: 0.6186396247 | R50: -0.1467896133 | S50: 0.410308853 | T50: 0.3922221059 | U50: 0.4350488564 | V50: 0.4487476631 | W50: 0.1791921483 | X50: 0.3228249291 | Y50: 0.2919526007 | Z50: 0.2919526007 | AA50: 0.3095677296 | AB50: 0.1744555685 | AC50: 0.2285795306 | AD50: 0.2492579097 | AE50: 0.4105054065 | AF50: -0.3068152226 | AG50: 0.3168303448 | AH50: 0.400764161 | AI50: -0.0144083929 | AJ50: 0.4759753452 | AK50: 0.4759753452 | AL50: 0.4759753452 | AM50: 0.4759753452 | AN50: 0.4321532681 | AO50: -0.01879555386 | AP50: 0.410308853 | AQ50: 0.6217784257 | AR50: 0.6126947055 | AS50: 0.3180341869 | AT50: 0.383236071 | AU50: 0.07687586856 | AV50: 0.6907841007 | AW50: 0.831980853 | AX50: 1
A51: 51: International Economy (UNADJUSTED) | B51: 0.7189052956 | C51: 0.9216632325 | D51: 0.9347160532 | E51: -0.667951052 | F51: 0.5540528252 | G51: 0.5540528252 | H51: 0.8513124742 | I51: 0.8426049932 | J51: 0.4058024863 | K51: 0.7945261357 | L51: 0.4858621985 | M51: 0.2482776118 | N51: 0.4672107823 | O51: 0.9047196335 | P51: 0.8441918468 | Q51: -0.2589241242 | R51: 0.8146805368 | S51: 0.9708264439 | T51: 0.9670529948 | U51: 0.9588745936 | V51: 0.9538365618 | W51: 0.9595985782 | X51: 0.9381827734 | Y51: 0.9175629127 | Z51: 0.9175629127 | AA51: 0.8327839418 | AB51: 0.8552948692 | AC51: 0.8941875795 | AD51: 0.9052592274 | AE51: 0.7556259088 | AF51: -0.2655612311 | AG51: 0.7977950763 | AH51: 0.3674797412 | AI51: -0.1109663748 | AJ51: 0.5067722106 | AK51: 0.5067722106 | AL51: 0.5067722106 | AM51: 0.5067722106 | AN51: 0.8266216526 | AO51: -0.8094295238 | AP51: 0.9708264439 | AQ51: 0.9334869343 | AR51: 0.9481352668 | AS51: 0.9212178113 | AT51: 0.9328416918 | AU51: 0.8257642397 | AV51: 0.2852494293 | AW51: 0.8350933452 | AX51: 0.3895792177 | AY51: 1
A52: 52: International Domestic (UNADJUSTED) | B52: 0.6670787429 | C52: 0.8616795411 | D52: 0.8616905281 | E52: -0.5591072972 | F52: 0.6151055693 | G52: 0.6151055693 | H52: 0.7756014882 | I52: 0.7445735931 | J52: 0.3930311667 | K52: 0.595381924 | L52: 0.4550515465 | M52: 0.3870937593 | N52: 0.4342863146 | O52: 0.807646004 | P52: 0.754376505 | Q52: 0.2518456741 | R52: 0.6727814039 | S52: 0.9343307217 | T52: 0.9331435025 | U52: 0.9435686061 | V52: 0.9434005899 | W52: 0.8849896701 | X52: 0.8674971287 | Y52: 0.925168253 | Z52: 0.925168253 | AA52: 0.7295568882 | AB52: 0.8774562597 | AC52: 0.9030114849 | AD52: 0.910062821 | AE52: 0.666240569 | AF52: -0.2117032557 | AG52: 0.6885319615 | AH52: 0.4621055299 | AI52: -0.048428666 | AJ52: 0.5683426595 | AK52: 0.5683426595 | AL52: 0.5683426595 | AM52: 0.5683426595 | AN52: 0.7407030023 | AO52: -0.7784282121 | AP52: 0.9343307217 | AQ52: 0.9424173941 | AR52: 0.9375391247 | AS52: 0.7460089744 | AT52: 0.7143171664 | AU52: 0.7511293543 | AV52: 0.1764322412 | AW52: 0.8257356673 | AX52: 0.5442821202 | AY52: 0.9189681891 | AZ52: 1
A53: 53: Freight (UNADJUSTED) | B53: 0.6041605997 | C53: 0.7723152906 | D53: 0.8083237459 | E53: -0.5189693479 | F53: 0.6769195388 | G53: 0.6769195388 | H53: 0.7782589182 | I53: 0.6023422158 | J53: 0.4462309736 | K53: 0.5679159672 | L53: 0.4407246743 | M53: 0.3588553284 | N53: 0.3557531109 | O53: 0.6708006299 | P53: 0.6183691569 | Q53: 0.3696611999 | R53: 0.5712419744 | S53: 0.9003337991 | T53: 0.8952740946 | U53: 0.9159543691 | V53: 0.9215889146 | W53: 0.763116244 | X53: 0.8186956639 | Y53: 0.8586046867 | Z53: 0.8586046867 | AA53: 0.7013508912 | AB53: 0.7548779112 | AC53: 0.7917031756 | AD53: 0.8061006587 | AE53: 0.6846396087 | AF53: -0.2629160777 | AG53: 0.6726090997 | AH53: 0.5007112486 | AI53: -0.09585586839 | AJ53: 0.6426434416 | AK53: 0.6426434416 | AL53: 0.6426434416 | AM53: 0.6426434416 | AN53: 0.7590357989 | AO53: -0.6334915483 | AP53: 0.9003337991 | AQ53: 0.9537130581 | AR53: 0.94496343 | AS53: 0.7777091371 | AT53: 0.75792861 | AU53: 0.7211904401 | AV53: 0.3443774983 | AW53: 0.8962218587 | AX53: 0.7142514274 | AY53: 0.8154386802 | AZ53: 0.938674976 | BA53: 1
A54: 54: U.S. (UNADJUSTED) | B54: 0.3458637447 | C54: 0.6220633664 | D54: 0.7435208834 | E54: -0.6755243282 | F54: 0.5936147214 | G54: 0.5936147214 | H54: 0.6916188756 | I54: 0.6051707461 | J54: 0.6582427873 | K54: 0.7265265991 | L54: 0.3934845655 | M54: 0.3524002473 | N54: 0.4612498657 | O54: 0.5421284578 | P54: 0.5257071809 | Q54: 0.3845347221 | R54: 0.6530782946 | S54: 0.7741309082 | T54: 0.7701346881 | U54: 0.7873717509 | V54: 0.7909151597 | W54: 0.6775117894 | X54: 0.7044240501 | Y54: 0.6969445997 | Z54: 0.6969445997 | AA54: 0.6404304887 | AB54: 0.5201245823 | AC54: 0.5556010075 | AD54: 0.576584509 | AE54: 0.6135886663 | AF54: -0.2340715039 | AG54: 0.6345989515 | AH54: 0.4284657539 | AI54: -0.1365247652 | AJ54: 0.5836124651 | AK54: 0.5836124651 | AL54: 0.5836124651 | AM54: 0.5836124651 | AN54: 0.6978148355 | AO54: -0.4681439264 | AP54: 0.7741309082 | AQ54: 0.7943973668 | AR54: 0.7884070703 | AS54: 0.8438238782 | AT54: 0.851256372 | AU54: 0.7669506684 | AV54: 0.2909573491 | AW54: 0.7683977264 | AX54: 0.3550948157 | AY54: 0.6442241691 | AZ54: 0.6395144465 | BA54: 0.7649411632 | BB54: 1
A55: 55: International Priority freight (UNADJUSTED) | B55: 0.4498671641 | C55: 0.5638370888 | D55: 0.5745142349 | E55: -0.3066873785 | F55: 0.5992097343 | G55: 0.5992097343 | H55: 0.5952152017 | I55: 0.3627806915 | J55: 0.6031580884 | K55: 0.5481351834 | L55: 0.5366021497 | M55: 0.4880643493 | N55: 0.4346150735 | O55: 0.2720063495 | P55: 0.4131515511 | Q55: 0.6498064151 | R55: 0.459342662 | S55: 0.6811203468 | T55: 0.6740865433 | U55: 0.7035286874 | V55: 0.7121172039 | W55: 0.5156049039 | X55: 0.5921892802 | Y55: 0.5670369039 | Z55: 0.5670369039 | AA55: 0.5550704376 | AB55: 0.4167863757 | AC55: 0.4502328799 | AD55: 0.4588873046 | AE55: 0.395057944 | AF55: -0.2339141333 | AG55: 0.5541201933 | AH55: 0.5080172988 | AI55: -0.00904882151 | AJ55: 0.5974889509 | AK55: 0.5974889509 | AL55: 0.5974889509 | AM55: 0.5974889509 | AN55: 0.618051317 | AO55: -0.2823138599 | AP55: 0.6811203468 | AQ55: 0.7994814615 | AR55: 0.7870893516 | AS55: 0.6258636524 | AT55: 0.6540620911 | AU55: 0.5325566531 | AV55: 0.2381839153 | AW55: 0.8910124584 | AX55: 0.8953172426 | AY55: 0.4652443241 | AZ55: 0.6774798645 | BA55: 0.8251699018 | BB55: 0.6389669627 | BC55: 1
A56: 56: International Airfreight (UNADJUSTED) | B56: 0.08371092594 | C56: 0.03325716025 | D56: 0.05240021761 | E56: 0.04395142663 | F56: 0.3087724559 | G56: 0.3087724559 | H56: 0.1175129319 | I56: -0.1721502464 | J56: -0.1607770358 | K56: -0.08103687975 | L56: -0.2466345767 | M56: -0.3478847012 | N56: -0.383063176 | O56: 0.1130758035 | P56: -0.154735642 | Q56: -0.08408902028 | R56: -0.1813693827 | S56: 0.2093559344 | T56: 0.2042445356 | U56: 0.2423657152 | V56: 0.2559364223 | W56: 0.001956743027 | X56: 0.1150078047 | Y56: 0.1905986181 | Z56: 0.1905986181 | AA56: 0.03664833681 | AB56: 0.07921697505 | AC56: 0.1056008859 | AD56: 0.1326135954 | AE56: 0.3983482582 | AF56: -0.1293981686 | AG56: 0.0303476147 | AH56: 0.2516816189 | AI56: -0.0152239901 | AJ56: 0.3026480487 | AK56: 0.3026480487 | AL56: 0.3026480487 | AM56: 0.3026480487 | AN56: 0.1129064549 | AO56: 0.02827582408 | AP56: 0.2093559344 | AQ56: 0.376770453 | AR56: 0.3695121231 | AS56: 0.2315376895 | AT56: 0.2143872422 | AU56: 0.06023209328 | AV56: 0.7167883143 | AW56: 0.3829699487 | AX56: 0.852684531 | AY56: 0.3455098755 | AZ56: 0.3875252622 | BA56: 0.5455301432 | BB56: 0.2734005572 | BC56: 0.4702473616 | BD56: 1
A57: 57: Other (UNADJUSTED) | B57: 0.2494943756 | C57: 0.4865623479 | D57: 0.5352347949 | E57: -0.583024614 | F57: 0.2057853196 | G57: 0.2057853196 | H57: 0.4064817119 | I57: 0.6745869282 | J57: 0.7771268969 | K57: 0.7379162345 | L57: 0.5467827777 | M57: 0.6748506022 | N57: 0.7171594355 | O57: 0.3818230522 | P57: 0.5944973109 | Q57: 0.3902716528 | R57: 0.7912139242 | S57: 0.5093723777 | T57: 0.5161858636 | U57: 0.4992893736 | V57: 0.489863252 | W57: 0.622859529 | X57: 0.5117232206 | Y57: 0.4166659791 | Z57: 0.4166659791 | AA57: 0.5444745288 | AB57: 0.384901568 | AC57: 0.3816141016 | AD57: 0.3618622784 | AE57: 0.003410264177 | AF57: -0.02651214628 | AG57: 0.5464296571 | AH57: 0.3025326838 | AI57: 0.2351869971 | AJ57: 0.2070831168 | AK57: 0.2070831168 | AL57: 0.2070831168 | AM57: 0.2070831168 | AN57: 0.421466771 | AO57: -0.4326678373 | AP57: 0.5093723777 | AQ57: 0.4945921937 | AR57: 0.4709658887 | AS57: 0.4973001124 | AT57: 0.5587282157 | AU57: 0.5002297464 | AV57: -0.2779732412 | AW57: 0.4774418292 | AX57: -0.3187043855 | AY57: 0.2222175678 | AZ57: 0.3712970683 | BA57: 0.2629984046 | BB57: 0.401203871 | BC57: 0.295249527 | BD57: -0.2921272602 | BE57: 1
A58: 58: FedEx Ground (UNADJUSTED) | B58: 0.6712551414 | C58: 0.9240349699 | D58: 0.9730423222 | E58: -0.7636658062 | F58: 0.5203690939 | G58: 0.5203690939 | H58: 0.8260913038 | I58: 0.9207450186 | J58: 0.6062229437 | K58: 0.7649352022 | L58: 0.5972842064 | M58: 0.612256801 | N58: 0.5884757147 | O58: 0.8964636327 | P58: 0.9081151736 | Q58: 0.305039327 | R58: 0.8750235692 | S58: 0.9444536731 | T58: 0.9479980257 | U58: 0.9312664994 | V58: 0.926442758 | W58: 0.9505579102 | X58: 0.9346817068 | Y58: 0.9544814348 | Z58: 0.9544814348 | AA58: 0.8234905173 | AB58: 0.9275302171 | AC58: 0.9390155853 | AD58: 0.9352892565 | AE58: 0.557489412 | AF58: -0.1424423226 | AG58: 0.7847732583 | AH58: 0.3559167178 | AI58: -0.09806348197 | AJ58: 0.4753070855 | AK58: 0.4753070855 | AL58: 0.4753070855 | AM58: 0.4753070855 | AN58: 0.7908507825 | AO58: -0.9154872806 | AP58: 0.9444536731 | AQ58: 0.8479381084 | AR58: 0.8488133881 | AS58: 0.8301201754 | AT58: 0.8027187283 | AU58: 0.8855838532 | AV58: -0.02194825288 | AW58: 0.7062393853 | AX58: 0.05606840443 | AY58: 0.8865642674 | AZ58: 0.8387647767 | BA58: 0.7429590369 | BB58: 0.6890096066 | BC58: 0.4648977436 | BD58: -0.04576442408 | BE58: 0.5813455442 | BF58: 1
A59: 59: FedEx Ground (UNADJUSTED) | B59: 0.7051495785 | C59: 0.9495182568 | D59: 0.9835375239 | E59: -0.725321918 | F59: 0.5418860533 | G59: 0.5418860533 | H59: 0.8440942018 | I59: 0.902939013 | J59: 0.5808284184 | K59: 0.766813334 | L59: 0.5817754855 | M59: 0.5956988842 | N59: 0.5638293197 | O59: 0.9028572656 | P59: 0.9075662482 | Q59: 0.3057185291 | R59: 0.8624071561 | S59: 0.9599707663 | T59: 0.9628609699 | U59: 0.9473356879 | V59: 0.9429034847 | W59: 0.9552425814 | X59: 0.9472977708 | Y59: 0.9669518676 | Z59: 0.9669518676 | AA59: 0.8242456587 | AB59: 0.9300913399 | AC59: 0.9513200617 | AD59: 0.9523761714 | AE59: 0.5833778078 | AF59: -0.1491983072 | AG59: 0.7819823279 | AH59: 0.347435849 | AI59: -0.1505897927 | AJ59: 0.4948787608 | AK59: 0.4948787608 | AL59: 0.4948787608 | AM59: 0.4948787608 | AN59: 0.8046085428 | AO59: -0.9176077257 | AP59: 0.9599707663 | AQ59: 0.8637387845 | AR59: 0.8695600664 | AS59: 0.836410039 | AT59: 0.8059745454 | AU59: 0.8914967321 | AV59: -0.03947513847 | AW59: 0.7209348535 | AX59: 0.09794451726 | AY59: 0.9161019634 | AZ59: 0.8612316389 | BA59: 0.7643343138 | BB59: 0.6962613151 | BC59: 0.4788079342 | BD59: -0.03224136437 | BE59: 0.5366442374 | BF59: 0.9924806232 | BG59: 1
A60: 60: FedEx SmartPost (UNADJUSTED) | B60: -0.0588245041 | C60: 0.7740613474 | D60: 0.8663681153 | E60: -0.5270379615 | F60: 0.4236360456 | G60: 0.4236360456 | H60: 0.5263839199 | I60: 0.76444549 | J60: 0.8046923662 | K60: 0.8087710367 | L60: 0.5838039093 | M60: 0.63533208 | N60: 0.8472980621 | O60: -0.03184902516 | P60: 0.6539001303 | Q60: 0.5569048984 | R60: 0.9181972814 | S60: 0.8373067822 | T60: 0.8373067822 | U60: 0.866900019 | V60: 0.853457606 | W60: 0.8540475724 | X60: 0.6592135797 | Y60: 0.8171088455 | Z60: 0.8171088455 | AA60: 0.5385914825 | AB60: 0.4233798277 | AC60: 0.3783553723 | AD60: 0.3928289017 | AE60: 0.08802297887 | AF60: 0.1163462978 | AG60: 0.5209983919 | AH60: 0.4421212991 | AI60: 0.4383866641 | AJ60: 0.4284715617 | AK60: 0.4284715617 | AL60: 0.4284715617 | AM60: 0.4284715617 | AN60: 0.5308769747 | AO60: 0.05038303325 | AP60: 0.8373067822 | AQ60: 0.7596732757 | AR60: 0.724043124 | AS60: 0.5468500971 | AT60: 0.5706439199 | AU60: 0.7415944878 | AV60: -0.4132467258 | AW60: 0.6691964669 | AX60: -0.5317451302 | AY60: 0.8078179248 | AZ60: 0.8654950679 | BA60: 0.6057971352 | BB60: 0.6758499906 | BC60: 0.6026894303 | BD60: -0.4859962845 | BE60: 0.9160997603 | BF60: 0.9613432213 | BG60: 0.949273899 | BH60: 1
A61: 61: FedEx Freight (UNADJUSTED) | B61: 0.6295391825 | C61: 0.8644265915 | D61: 0.9016248693 | E61: -0.6775112904 | F61: 0.5265472465 | G61: 0.5265472465 | H61: 0.8732454573 | I61: 0.8085015856 | J61: 0.7704173666 | K61: 0.9109072238 | L61: 0.6282912932 | M61: 0.687446825 | N61: 0.618922611 | O61: 0.7592703111 | P61: 0.8104200394 | Q61: 0.4466493756 | R61: 0.8960290273 | S61: 0.8905616865 | T61: 0.8860076425 | U61: 0.8663740763 | V61: 0.8632116345 | W61: 0.8623844785 | X61: 0.9114981125 | Y61: 0.8011935184 | Z61: 0.8011935184 | AA61: 0.9176594943 | AB61: 0.7310212766 | AC61: 0.7612523891 | AD61: 0.7621386596 | AE61: 0.4997601484 | AF61: -0.2325746647 | AG61: 0.9110235428 | AH61: 0.4640285738 | AI61: 0.05564397657 | AJ61: 0.506242259 | AK61: 0.506242259 | AL61: 0.506242259 | AM61: 0.506242259 | AN61: 0.8758927212 | AO61: -0.7583867443 | AP61: 0.8905616865 | AQ61: 0.8508776251 | AR61: 0.8615214705 | AS61: 0.8705365333 | AT61: 0.9118639936 | AU61: 0.7813437879 | AV61: 0.174003312 | AW61: 0.8469707304 | AX61: 0.2392839095 | AY61: 0.8874307576 | AZ61: 0.7263110549 | BA61: 0.6895039933 | BB61: 0.6917860132 | BC61: 0.5873011057 | BD61: 0.02007080187 | BE61: 0.6684264474 | BF61: 0.8479446471 | BG61: 0.8521701736 | BH61: 0.6375539717 | BI61: 1
A62: 62: Other and Eliminations (UNADJUSTED) | B62: 0.5395435513 | C62: 0.6371115795 | D62: 0.6096812384 | E62: -0.2681187764 | F62: 0.541080976 | G62: 0.541080976 | H62: 0.6446435795 | I62: 0.3783938344 | J62: 0.1049358187 | K62: 0.3247913417 | L62: 0.2344447881 | M62: 0.1081550124 | N62: 0.1465795661 | O62: 0.5534819506 | P62: 0.4441578175 | Q62: 0.1435575668 | R62: 0.3135318275 | S62: 0.6715955894 | T62: 0.6643742411 | U62: 0.6761416876 | V62: 0.6812722063 | W62: 0.5472421801 | X62: 0.6289278253 | Y62: 0.6780089342 | Z62: 0.6780089342 | AA62: 0.5224947081 | AB62: 0.607521213 | AC62: 0.639157836 | AD62: 0.6673102429 | AE62: 0.7549714936 | AF62: -0.2210613623 | AG62: 0.495634777 | AH62: 0.3085207061 | AI62: -0.2315616073 | AJ62: 0.5026183482 | AK62: 0.5026183482 | AL62: 0.5026183482 | AM62: 0.5026183482 | AN62: 0.6206098091 | AO62: -0.4915795324 | AP62: 0.6715955894 | AQ62: 0.6646147684 | AR62: 0.6906580686 | AS62: 0.5437041961 | AT62: 0.4953629531 | AU62: 0.5230323381 | AV62: 0.338561226 | AW62: 0.6283195997 | AX62: 0.5909841457 | AY62: 0.715684245 | AZ62: 0.7240445264 | BA62: 0.7546368017 | BB62: 0.4914523682 | BC62: 0.5702697833 | BD62: 0.4079590147 | BE62: -0.2198523966 | BF62: 0.5134303648 | BG62: 0.5661384951 | BH62: -0.881521005 | BI62: 0.4533471475 | BJ62: 1
A63: 63: FedEx Services (UNADJUSTED) | B63: -0.1511228152 | C63: -0.4110628543 | D63: -0.4262763403 | E63: 0.4344483133 | F63: -0.2346299635 | G63: -0.2346299635 | H63: -0.1866331564 | I63: -0.5588602907 | J63: -0.7118460581 | K63: -0.5863715079 | L63: -0.6693830621 | M63: -0.7411081392 | N63: -0.8150050048 | O63: -0.1519867122 | P63: -0.4851240407 | Q63: -0.5896012347 | R63: -0.6703638746 | S63: -0.3691247788 | T63: -0.377894621 | U63: -0.3939861651 | V63: -0.3860031433 | W63: -0.5005152774 | X63: -0.2883044617 | Y63: -0.3003759768 | Z63: -0.3003759768 | AA63: -0.2487341577 | AB63: -0.2918008584 | AC63: -0.2688586871 | AD63: -0.2457713198 | AE63: 0.1098206333 | AF63: -0.07073088416 | AG63: -0.2356349804 | AH63: -0.2296053678 | AI63: -0.04766146039 | AJ63: -0.2380490998 | AK63: -0.2380490998 | AL63: -0.2380490998 | AM63: -0.2380490998 | AN63: -0.1898427434 | AO63: 0.2669566039 | AP63: -0.3691247788 | AQ63: -0.3198113526 | AR63: -0.3033663897 | AS63: -0.3046078921 | AT63: -0.3178131175 | AU63: -0.453218231 | AV63: 0.5850023543 | AW63: -0.3098879809 | AX63: 0.5862661441 | AY63: 0.02096186779 | AZ63: -0.2474534248 | BA63: -0.1595945921 | BB63: -0.3141215702 | BC63: -0.2699202755 | BD63: 0.5253338392 | BE63: -0.6848601659 | BF63: -0.4705100475 | BG63: -0.4617066592 | BH63: -0.8473045759 | BI63: -0.4235043404 | BJ63: 0.05061344288 | BK63: 1
A64: 64: Operating Income (UNADJUSTED) | B64: 0.2267118484 | C64: 0.3743147751 | D64: 0.4180213112 | E64: -0.2959371957 | F64: 0.7693595704 | G64: 0.7693595704 | H64: 0.4219335929 | I64: 0.3698057142 | J64: 0.4429254178 | K64: 0.4943498694 | L64: 0.2601200292 | M64: 0.3186270877 | N64: 0.4148084778 | O64: 0.2589707569 | P64: 0.304966257 | Q64: 0.3738937317 | R64: 0.4189245492 | S64: 0.4996838133 | T64: 0.497374722 | U64: 0.5132775439 | V64: 0.5158712096 | W64: 0.436963866 | X64: 0.4417419399 | Y64: 0.3931359578 | Z64: 0.3931359578 | AA64: 0.4404388249 | AB64: 0.2293440666 | AC64: 0.3192027858 | AD64: 0.3320502749 | AE64: 0.3622096996 | AF64: -0.5281631058 | AG64: 0.4519159858 | AH64: 0.9135313481 | AI64: 0.4534320776 | AJ64: 0.7840362349 | AK64: 0.7840362349 | AL64: 0.7840362349 | AM64: 0.7840362349 | AN64: 0.4490388529 | AO64: -0.228315774 | AP64: 0.4996838133 | AQ64: 0.5682842314 | AR64: 0.5718690885 | AS64: 0.5239359595 | AT64: 0.5460075498 | AU64: 0.4517514544 | AV64: 0.1852923028 | AW64: 0.6113846659 | AX64: 0.3970784069 | AY64: 0.3930056938 | AZ64: 0.4767965152 | BA64: 0.5037279208 | BB64: 0.4779902895 | BC64: 0.5032963732 | BD64: 0.2135699577 | BE64: 0.3508485937 | BF64: 0.379531618 | BG64: 0.3684298296 | BH64: 0.5092946346 | BI64: 0.4812741523 | BJ64: 0.302884165 | BK64: -0.2561219695 | BL64: 1
A65: 65: FedEx Express (UNADJUSTED) | B65: 0.7125437999 | C65: 0.7237184172 | D65: 0.7599497 | E65: -0.4566881168 | F65: 0.5438898901 | G65: 0.5438898901 | H65: 0.8311137325 | I65: 0.607121667 | J65: 0.4556560834 | K65: 0.5846169616 | L65: 0.4109600912 | M65: 0.493641154 | N65: 0.3185340852 | O65: 0.7113286418 | P65: 0.6352206888 | Q65: 0.2994727526 | R65: 0.5732627502 | S65: 0.7598609564 | T65: 0.7537375808 | U65: 0.7171924715 | V65: 0.7183469452 | W65: 0.6514424269 | X65: 0.8342419947 | Y65: 0.7333680019 | Z65: 0.7333680019 | AA65: 0.8398091141 | AB65: 0.7006701013 | AC65: 0.7522490473 | AD65: 0.7556521092 | AE65: 0.5247730429 | AF65: -0.3273194734 | AG65: 0.8299153538 | AH65: 0.5575910935 | AI65: 0.2023253295 | AJ65: 0.5245696515 | AK65: 0.5245696515 | AL65: 0.5245696515 | AM65: 0.5245696515 | AN65: 0.8156526077 | AO65: -0.7424802437 | AP65: 0.7598609564 | AQ65: 0.7101078856 | AR65: 0.7173585229 | AS65: 0.7085989419 | AT65: 0.7127065608 | AU65: 0.6438254632 | AV65: 0.2553962153 | AW65: 0.6672566821 | AX65: 0.2327068678 | AY65: 0.7032125201 | AZ65: 0.6465198448 | BA65: 0.6500273849 | BB65: 0.5504393017 | BC65: 0.4557808416 | BD65: 0.1345220069 | BE65: 0.3596306208 | BF65: 0.7323106969 | BG65: 0.7218956381 | BH65: 0.02101351791 | BI65: 0.7625704702 | BJ65: 0.4676406612 | BK65: -0.07111207718 | BL65: 0.475991631 | BM65: 1
A66: 66: FedEx Ground (UNADJUSTED) | B66: 0.5256929078 | C66: 0.8215362666 | D66: 0.8896900855 | E66: -0.730119634 | F66: 0.4674690548 | G66: 0.4674690548 | H66: 0.864821973 | I66: 0.8213746159 | J66: 0.7620157558 | K66: 0.8515501291 | L66: 0.6952448561 | M66: 0.6813496234 | N66: 0.7009062899 | O66: 0.6773393685 | P66: 0.8018585074 | Q66: 0.4674626698 | R66: 0.8769703868 | S66: 0.8512934778 | T66: 0.8464569633 | U66: 0.8248656016 | V66: 0.8193895313 | W66: 0.8618748409 | X66: 0.8797899328 | Y66: 0.7750956604 | Z66: 0.7750956604 | AA66: 0.8841692721 | AB66: 0.7243526018 | AC66: 0.7420107668 | AD66: 0.7481258015 | AE66: 0.5513810242 | AF66: -0.1755401457 | AG66: 0.875361076 | AH66: 0.3600406793 | AI66: -0.04187905445 | AJ66: 0.4453769782 | AK66: 0.4453769782 | AL66: 0.4453769782 | AM66: 0.4453769782 | AN66: 0.8681826414 | AO66: -0.7168859631 | AP66: 0.8512934778 | AQ66: 0.7844538429 | AR66: 0.7913354084 | AS66: 0.8161293372 | AT66: 0.8295484715 | AU66: 0.8054875285 | AV66: 0.02044693357 | AW66: 0.7582998873 | AX66: 0.1343223404 | AY66: 0.8193996334 | AZ66: 0.672553184 | BA66: 0.6422821359 | BB66: 0.7102442607 | BC66: 0.5460968557 | BD66: -0.1714596951 | BE66: 0.6195234967 | BF66: 0.8562850996 | BG66: 0.8478520112 | BH66: 0.8918549165 | BI66: 0.8821051409 | BJ66: 0.4720888595 | BK66: -0.5778863323 | BL66: 0.3997795583 | BM66: 0.6566458853 | BN66: 1
A67: 67: FedEx Freight (UNADJUSTED) | B67: 0.4115652725 | C67: 0.6674945119 | D67: 0.7083647034 | E67: -0.5792788012 | F67: 0.3726073662 | G67: 0.3726073662 | H67: 0.727579234 | I67: 0.6862378135 | J67: 0.5978190539 | K67: 0.803485444 | L67: 0.3977794778 | M67: 0.4458521562 | N67: 0.467349841 | O67: 0.6614208386 | P67: 0.6309716159 | Q67: 0.2083790669 | R67: 0.7573952224 | S67: 0.696741582 | T67: 0.6921187948 | U67: 0.6628377686 | V67: 0.65709772 | W67: 0.7147535435 | X67: 0.7515518443 | Y67: 0.6007269332 | Z67: 0.6007269332 | AA67: 0.8095702069 | AB67: 0.5289330159 | AC67: 0.5576930902 | AD67: 0.5654549579 | AE67: 0.4531531947 | AF67: -0.2006561805 | AG67: 0.8177103786 | AH67: 0.3991585169 | AI67: 0.1603373058 | AJ67: 0.3659369982 | AK67: 0.3659369982 | AL67: 0.3659369982 | AM67: 0.3659369982 | AN67: 0.7398589344 | AO67: -0.6124333941 | AP67: 0.696741582 | AQ67: 0.6563725667 | AR67: 0.67646812 | AS67: 0.7244985101 | AT67: 0.7844204487 | AU67: 0.5937639514 | AV67: 0.2268033658 | AW67: 0.6710264705 | AX67: 0.1130637594 | AY67: 0.6957462785 | AZ67: 0.5387779737 | BA67: 0.4712009665 | BB67: 0.5407343382 | BC67: 0.3700816977 | BD67: -0.007094039494 | BE67: 0.5979903826 | BF67: 0.656170549 | BG67: 0.6517735363 | BH67: 0.4195637343 | BI67: 0.884822793 | BJ67: 0.329368859 | BK67: -0.2878699247 | BL67: 0.40322629 | BM67: 0.6340833102 | BN67: 0.7623187115 | BO67: 1
A68: 68: FedEx Ground (UNADJUSTED) | B68: -0.2440532046 | C68: -0.1219722315 | D68: -0.06227773391 | E68: -0.05407220112 | F68: -0.02438994653 | G68: -0.02438994653 | H68: 0.1046700672 | I68: -0.06117209111 | J68: 0.4871853295 | K68: 0.2746842055 | L68: 0.3289805274 | M68: 0.3084721871 | N68: 0.3734351833 | O68: -0.3897131125 | P68: -0.09927538414 | Q68: 0.4748135922 | R68: 0.1390915787 | S68: -0.0713861896 | T68: -0.08156209563 | U68: -0.0889584051 | V68: -0.08951598393 | W68: -0.07394334481 | X68: -0.02301098896 | Y68: -0.2456428684 | Z68: -0.2456428684 | AA68: 0.1761304447 | AB68: -0.3213386681 | AC68: -0.3116845781 | AD68: -0.3028177019 | AE68: -0.09168544938 | AF68: -0.05758360521 | AG68: 0.2305591335 | AH68: 0.105412844 | AI68: 0.1624147048 | AJ68: 0.0224074437 | AK68: 0.0224074437 | AL68: 0.0224074437 | AM68: 0.0224074437 | AN68: 0.1811564628 | AO68: 0.3167494219 | AP68: -0.0713861896 | AQ68: -0.007678171382 | AR68: -0.008677430859 | AS68: 0.06541779831 | AT68: 0.1514838903 | AU68: -0.04540920444 | AV68: -0.008717934976 | AW68: 0.2105411557 | AX68: 0.07055929836 | AY68: -0.4039357883 | AZ68: -0.2353219225 | BA68: -0.103191437 | BB68: 0.1545563903 | BC68: 0.2769193539 | BD68: -0.2712434769 | BE68: 0.2742370822 | BF68: -0.147551845 | BG68: -0.1759817271 | BH68: 0.7335199585 | BI68: 0.1612367591 | BJ68: -0.1523098641 | BK68: -0.3773346264 | BL68: 0.1359210497 | BM68: -0.07338825103 | BN68: 0.3600799036 | BO68: 0.2374527795 | BP68: 1
A69: 69: FedEx Express (UNADJUSTED) | B69: 0.6204795683 | C69: 0.5424218691 | D69: 0.579910151 | E69: -0.3180774961 | F69: 0.4472117968 | G69: 0.4472117968 | H69: 0.6646005597 | I69: 0.4797742675 | J69: 0.4148183033 | K69: 0.4835129119 | L69: 0.329770004 | M69: 0.4759860003 | N69: 0.2708522989 | O69: 0.5417628965 | P69: 0.4906376397 | Q69: 0.2876937218 | R69: 0.4539187255 | S69: 0.5558674099 | T69: 0.5540055196 | U69: 0.5053875143 | V69: 0.5065579278 | W69: 0.4531472789 | X69: 0.6597054258 | Y69: 0.5315298588 | Z69: 0.5315298588 | AA69: 0.706904897 | AB69: 0.5132936349 | AC69: 0.5511650966 | AD69: 0.5531858405 | AE69: 0.3787125323 | AF69: -0.2313648979 | AG69: 0.7078063772 | AH69: 0.5159673431 | AI69: 0.25307654 | AJ69: 0.4446975331 | AK69: 0.4446975331 | AL69: 0.4446975331 | AM69: 0.4446975331 | AN69: 0.6578233931 | AO69: -0.5949504139 | AP69: 0.5558674099 | AQ69: 0.4917519485 | AR69: 0.5009633891 | AS69: 0.5630223088 | AT69: 0.5745960842 | AU69: 0.5015581104 | AV69: 0.1991774998 | AW69: 0.4769869297 | AX69: -0.01208672901 | AY69: 0.4863719746 | AZ69: 0.3981527639 | BA69: 0.4129567829 | BB69: 0.4162358431 | BC69: 0.2764288891 | BD69: 0.001354816817 | BE69: 0.3226291832 | BF69: 0.5682540278 | BG69: 0.527514041 | BH69: -0.03237630904 | BI69: 0.6289877558 | BJ69: 0.2685696032 | BK69: -0.03804252667 | BL69: 0.4121922408 | BM69: 0.9436918677 | BN69: 0.5243627486 | BO69: 0.5524057732 | BP69: -0.01545421004 | BQ69: 1
A70: 70: FedEx Freight (UNADJUSTED) | B70: 0.3678820635 | C70: 0.5881833191 | D70: 0.6311460195 | E70: -0.5072082043 | F70: 0.3817134803 | G70: 0.3817134803 | H70: 0.6558997515 | I70: 0.6395585738 | J70: 0.618628071 | K70: 0.7780010619 | L70: 0.3818515331 | M70: 0.4505157363 | N70: 0.4911909925 | O70: 0.5698350555 | P70: 0.5734029783 | Q70: 0.2346315375 | R70: 0.7064655304 | S70: 0.6300658454 | T70: 0.6280333843 | U70: 0.5991425356 | V70: 0.5945773292 | W70: 0.6357522057 | X70: 0.6803081499 | Y70: 0.5215119294 | Z70: 0.5215119294 | AA70: 0.7525151171 | AB70: 0.4287840341 | AC70: 0.4580490021 | AD70: 0.4658241053 | AE70: 0.3893185381 | AF70: -0.1944594782 | AG70: 0.7676677484 | AH70: 0.4293877261 | AI70: 0.1842563005 | AJ70: 0.3863698035 | AK70: 0.3863698035 | AL70: 0.3863698035 | AM70: 0.3863698035 | AN70: 0.678117622 | AO70: -0.5147881803 | AP70: 0.6300658454 | AQ70: 0.6058517462 | AR70: 0.6238903256 | AS70: 0.6892125112 | AT70: 0.7552659014 | AU70: 0.5467125022 | AV70: 0.2379391942 | AW70: 0.6471094248 | AX70: 0.06809753391 | AY70: 0.634635214 | AZ70: 0.4600638639 | BA70: 0.4178019733 | BB70: 0.522050228 | BC70: 0.374881719 | BD70: 0.001019858071 | BE70: 0.6040964819 | BF70: 0.5832625012 | BG70: 0.5724643075 | BH70: 0.3917601846 | BI70: 0.8395698975 | BJ70: 0.2462797228 | BK70: -0.2717423307 | BL70: 0.4316215251 | BM70: 0.6072826135 | BN70: 0.7048717278 | BO70: 0.9679530545 | BP70: 0.2942408773 | BQ70: 0.5679918704 | BR70: 1
A71: 71: Freight (UNADJUSTED) | B71: -0.3614570425 | C71: -0.5962519364 | D71: -0.6543821936 | E71: 0.5560391112 | F71: -0.3273432432 | G71: -0.3273432432 | H71: -0.6734382989 | I71: -0.6593323041 | J71: -0.6086188979 | K71: -0.7627815973 | L71: -0.346729716 | M71: -0.42990734 | N71: -0.468641217 | O71: -0.6036966552 | P71: -0.5832326265 | Q71: -0.2081737518 | R71: -0.7219036705 | S71: -0.6422598012 | T71: -0.6409861249 | U71: -0.6073636759 | V71: -0.6025831503 | W71: -0.6470030961 | X71: -0.7021309649 | Y71: -0.5454420983 | Z71: -0.5454420983 | AA71: -0.7702874021 | AB71: -0.4709372651 | AC71: -0.4889971182 | AD71: -0.4970773687 | AE71: -0.4129287878 | AF71: 0.1322856447 | AG71: -0.7819335673 | AH71: -0.3493398086 | AI71: -0.1259696459 | AJ71: -0.3291400142 | AK71: -0.3291400142 | AL71: -0.3291400142 | AM71: -0.3291400142 | AN71: -0.6899363301 | AO71: 0.5484118853 | AP71: -0.6422598012 | AQ71: -0.5976464771 | AR71: -0.6140961862 | AS71: -0.6987494795 | AT71: -0.7632251233 | AU71: -0.5593372986 | AV71: -0.2348809803 | AW71: -0.6194103204 | AX71: -0.002153343288 | AY71: -0.6112180211 | AZ71: -0.4540090734 | BA71: -0.4157637881 | BB71: -0.5764985364 | BC71: -0.3135978908 | BD71: 0.02889480105 | BE71: -0.5957514661 | BF71: -0.6228205386 | BG71: -0.6040288744 | BH71: -0.4293855748 | BI71: -0.8303986321 | BJ71: -0.2471936764 | BK71: 0.2573873074 | BL71: -0.3615976293 | BM71: -0.6261853577 | BN71: -0.7224255461 | BO71: -0.9568340385 | BP71: -0.2444256599 | BQ71: -0.5890071239 | BR71: -0.9601739746 | BS71: 1
A72: 72: FedEx Express (UNADJUSTED) | B72: -0.6119930616 | C72: -0.5419945621 | D72: -0.5838312491 | E72: 0.3302051907 | F72: -0.451143166 | G72: -0.451143166 | H72: -0.664540725 | I72: -0.4886031896 | J72: -0.4187835605 | K72: -0.4900138197 | L72: -0.3424678348 | M72: -0.4846789923 | N72: -0.2764482974 | O72: -0.5453931709 | P72: -0.4882646964 | Q72: -0.2854083234 | R72: -0.4662338646 | S72: -0.5587996919 | T72: -0.5572787844 | U72: -0.509056021 | V72: -0.5101685993 | W72: -0.4575346188 | X72: -0.6606136327 | Y72: -0.5340165903 | Z72: -0.5340165903 | AA72: -0.7063264547 | AB72: -0.5153474329 | AC72: -0.5535738066 | AD72: -0.5567604812 | AE72: -0.39452579 | AF72: 0.2338895936 | AG72: -0.7069287067 | AH72: -0.5199979617 | AI72: -0.2555725003 | AJ72: -0.447850556 | AK72: -0.447850556 | AL72: -0.447850556 | AM72: -0.447850556 | AN72: -0.6567819128 | AO72: 0.601107815 | AP72: -0.5587996919 | AQ72: -0.4926544235 | AR72: -0.5022181031 | AS72: -0.5668162183 | AT72: -0.5762433313 | AU72: -0.5108145529 | AV72: -0.1899212065 | AW72: -0.4751806889 | AX72: 0.02414482622 | AY72: -0.4868198342 | AZ72: -0.4000638462 | BA72: -0.4107447751 | BB72: -0.4160814597 | BC72: -0.2659009693 | BD72: 0.004778396551 | BE72: -0.329092353 | BF72: -0.5737930874 | BG72: -0.5313599617 | BH72: 0.009994089685 | BI72: -0.6304113162 | BJ72: -0.2699089084 | BK72: 0.04396484267 | BL72: -0.4173061996 | BM72: -0.9373411 | BN72: -0.5278119296 | BO72: -0.5535799001 | BP72: 0.02213332166 | BQ72: -0.9939787312 | BR72: -0.5682844 | BS72: 0.5903454168 | BT72: 1
A73: 73: FedEx Ground (UNADJUSTED) | B73: 0.2691976154 | C73: 0.1681840146 | D73: 0.1294619759 | E73: -0.03146974139 | F73: -0.03022537046 | G73: -0.03022537046 | H73: 0.0003955753953 | I73: 0.1344710965 | J73: -0.4246952318 | K73: -0.231533414 | L73: -0.2821873695 | M73: -0.244763437 | N73: -0.3262300677 | O73: 0.4496749914 | P73: 0.1696739276 | Q73: -0.4479163429 | R73: -0.07805483292 | S73: 0.1180211682 | T73: 0.1297689875 | U73: 0.1179553183 | V73: 0.1174469154 | W73: 0.1187007282 | X73: 0.112741467 | Y73: 0.2853251888 | Z73: 0.2853251888 | AA73: -0.05114494274 | AB73: 0.4007032392 | AC73: 0.3784162221 | AD73: 0.3692076385 | AE73: 0.1303628643 | AF73: 0.1238017496 | AG73: -0.1040400255 | AH73: -0.1768715539 | AI73: -0.2069755111 | AJ73: -0.07811563154 | AK73: -0.07811563154 | AL73: -0.07811563154 | AM73: -0.07811563154 | AN73: -0.07947381133 | AO73: -0.4069596772 | AP73: 0.1180211682 | AQ73: 0.01891785535 | AR73: 0.02256643184 | AS73: -0.01385290914 | AT73: -0.08865903313 | AU73: 0.07347081519 | AV73: 0.0426684336 | AW73: -0.1991034139 | AX73: -0.1595567609 | AY73: 0.3992271016 | AZ73: 0.2244618243 | BA73: 0.09761450924 | BB73: -0.0681120759 | BC73: -0.3463181074 | BD73: 0.157075386 | BE73: -0.2427338894 | BF73: 0.2259675231 | BG73: 0.2303499895 | BH73: -0.7494047299 | BI73: -0.08365823541 | BJ73: 0.1680860258 | BK73: 0.3584488514 | BL73: -0.1963827307 | BM73: 0.1889492983 | BN73: -0.2410419035 | BO73: -0.1490325669 | BP73: -0.9268428402 | BQ73: 0.1582381237 | BR73: -0.2112000977 | BS73: 0.09940578015 | BT73: -0.1590747071 | BU73: 1
A74: 74: Salaries Wages and Employee Benefits (UNADJUSTED) | B74: 0.7021013396 | C74: 0.9366228358 | D74: 0.9694093018 | E74: -0.7083778373 | F74: 0.6113408806 | G74: 0.6113408806 | H74: 0.8317593372 | I74: 0.8581493212 | J74: 0.5778529759 | K74: 0.7380487977 | L74: 0.5765643162 | M74: 0.5662617622 | N74: 0.5402543296 | O74: 0.8684660811 | P74: 0.8635024793 | Q74: 0.3444660527 | R74: 0.8241045833 | S74: 0.9843440509 | T74: 0.9863907296 | U74: 0.9856297115 | V74: 0.9844002602 | W74: 0.9418864173 | X74: 0.9356020518 | Y74: 0.9784092089 | Z74: 0.9784092089 | AA74: 0.8039771116 | AB74: 0.9260472045 | AC74: 0.9410992542 | AD74: 0.9420818638 | AE74: 0.6164459397 | AF74: -0.1610812534 | AG74: 0.7637042804 | AH74: 0.4139050467 | AI74: -0.1355133663 | AJ74: 0.5660223998 | AK74: 0.5660223998 | AL74: 0.5660223998 | AM74: 0.5660223998 | AN74: 0.7981320157 | AO74: -0.870695711 | AP74: 0.9843440509 | AQ74: 0.9374698155 | AR74: 0.9366193694 | AS74: 0.8470506249 | AT74: 0.8209252297 | AU74: 0.8685079786 | AV74: 0.0961626193 | AW74: 0.8194838455 | AX74: 0.3328496819 | AY74: 0.9334810488 | AZ74: 0.9373493624 | BA74: 0.8800659814 | BB74: 0.7301339793 | BC74: 0.6286001487 | BD74: 0.1763125052 | BE74: 0.4908556751 | BF74: 0.9597301706 | BG74: 0.9722275981 | BH74: 0.9183196729 | BI74: 0.8410462007 | BJ74: 0.6559534804 | BK74: -0.4051297551 | BL74: 0.4346466693 | BM74: 0.7011867907 | BN74: 0.8122821359 | BO74: 0.6280858666 | BP74: -0.1646443202 | BQ74: 0.4920577625 | BR74: 0.5557488689 | BS74: -0.5760344295 | BT74: -0.4944659042 | BU74: 0.2047295943 | BV74: 1
A75: 75: FedEx Express (UNADJUSTED) | B75: 0.6583666723 | C75: 0.9027943086 | D75: 0.9364162328 | E75: -0.674849576 | F75: 0.6535249543 | G75: 0.6535249543 | H75: 0.8166220371 | I75: 0.8091564818 | J75: 0.5868846115 | K75: 0.7233140831 | L75: 0.5817122123 | M75: 0.5446376006 | N75: 0.5512036481 | O75: 0.7946744833 | P75: 0.8097508768 | Q75: 0.3974483536 | R75: 0.7873063462 | S75: 0.9781323785 | T75: 0.9786797477 | U75: 0.9882177311 | V75: 0.9884880895 | W75: 0.9194784601 | X75: 0.907102529 | Y75: 0.9501847148 | Z75: 0.9501847148 | AA75: 0.7780910135 | AB75: 0.8763521119 | AC75: 0.896734742 | AD75: 0.9018860312 | AE75: 0.6389604596 | AF75: -0.1920022088 | AG75: 0.7415134274 | AH75: 0.4636701375 | AI75: -0.117528876 | AJ75: 0.6128855 | AK75: 0.6128855 | AL75: 0.6128855 | AM75: 0.6128855 | AN75: 0.7902579865 | AO75: -0.7917010701 | AP75: 0.9781323785 | AQ75: 0.9685035295 | AR75: 0.9637274685 | AS75: 0.8405833406 | AT75: 0.8177845396 | AU75: 0.8472077119 | AV75: 0.1335599558 | AW75: 0.8745547235 | AX75: 0.4898666805 | AY75: 0.9278154224 | AZ75: 0.9588802317 | BA75: 0.932320337 | BB75: 0.7602010766 | BC75: 0.7249836588 | BD75: 0.2633883651 | BE75: 0.4710142709 | BF75: 0.9092464059 | BG75: 0.9257630409 | BH75: 0.9122853224 | BI75: 0.8110888717 | BJ75: 0.6875668831 | BK75: -0.4129031826 | BL75: 0.4912284218 | BM75: 0.6547892791 | BN75: 0.800740825 | BO75: 0.5926426464 | BP75: -0.08810567694 | BQ75: 0.4277211625 | BR75: 0.526663367 | BS75: -0.5348376778 | BT75: -0.4299291097 | BU75: 0.1088878452 | BV75: 0.9840434451 | BW75: 1
A76: 76: FedEx Freight (UNADJUSTED) | B76: 0.7527423868 | C76: 0.936761966 | D76: 0.9696631316 | E76: -0.695855344 | F76: 0.5676944769 | G76: 0.5676944769 | H76: 0.8890250673 | I76: 0.823391768 | J76: 0.5485403026 | K76: 0.7546249955 | L76: 0.5278150041 | M76: 0.5547201434 | N76: 0.4506068556 | O76: 0.9203471059 | P76: 0.8579971512 | Q76: 0.2638148796 | R76: 0.8089052635 | S76: 0.9531937673 | T76: 0.9511334912 | U76: 0.9346858527 | V76: 0.9329342614 | W76: 0.9028988816 | X76: 0.9566680642 | Y76: 0.9484632296 | Z76: 0.9484632296 | AA76: 0.8680327275 | AB76: 0.9168923297 | AC76: 0.9429330044 | AD76: 0.9455851852 | AE76: 0.6380524419 | AF76: -0.2121570776 | AG76: 0.8345583169 | AH76: 0.3994434495 | AI76: -0.09140359138 | AJ76: 0.5219030483 | AK76: 0.5219030483 | AL76: 0.5219030483 | AM76: 0.5219030483 | AN76: 0.8546917967 | AO76: -0.9175285193 | AP76: 0.9531937673 | AQ76: 0.8768077276 | AR76: 0.8873221196 | AS76: 0.8558582483 | AT76: 0.8398273064 | AU76: 0.8390472306 | AV76: 0.1868195685 | AW76: 0.7681488867 | AX76: 0.2191314235 | AY76: 0.8996704133 | AZ76: 0.8600510684 | BA76: 0.7965072097 | BB76: 0.6737897098 | BC76: 0.5193346945 | BD76: 0.128341554 | BE76: 0.4496357244 | BF76: 0.9411493939 | BG76: 0.9569493389 | BH76: 0.4625809456 | BI76: 0.895605974 | BJ76: 0.6436502332 | BK76: -0.2821902162 | BL76: 0.39847975 | BM76: 0.8098364509 | BN76: 0.805061161 | BO76: 0.708197948 | BP76: -0.1927037893 | BQ76: 0.6355908367 | BR76: 0.6281412006 | BS76: -0.650173842 | BT76: -0.6375134964 | BU76: 0.2656379004 | BV76: 0.9505408149 | BW76: 0.9010412174 | BX76: 1
A77: 77: FedEx Ground (UNADJUSTED) | B77: 0.6971305556 | C77: 0.9154410204 | D77: 0.9436193986 | E77: -0.7133101258 | F77: 0.4967275808 | G77: 0.4967275808 | H77: 0.7578815749 | I77: 0.8891716514 | J77: 0.5221496298 | K77: 0.6910823656 | L77: 0.5374691487 | M77: 0.5611458565 | N77: 0.5127607311 | O77: 0.9045854364 | P77: 0.88924919 | Q77: 0.2511098027 | R77: 0.8259701432 | S77: 0.9214031478 | T77: 0.9280305984 | U77: 0.9152736134 | V77: 0.9115686964 | W77: 0.9170841515 | X77: 0.8945897637 | Y77: 0.9570199321 | Z77: 0.9570199321 | AA77: 0.7497263523 | AB77: 0.9401735258 | AC77: 0.9386144175 | AD77: 0.9308471726 | AE77: 0.5077873551 | AF77: -0.064006568 | AG77: 0.7029267819 | AH77: 0.2891458985 | AI77: -0.1779610523 | AJ77: 0.4469070828 | AK77: 0.4469070828 | AL77: 0.4469070828 | AM77: 0.4469070828 | AN77: 0.7139194046 | AO77: -0.9188186035 | AP77: 0.9214031478 | AQ77: 0.8223313395 | AR77: 0.8236200652 | AS77: 0.7782331238 | AT77: 0.7434406839 | AU77: 0.8437864167 | AV77: -0.02590785996 | AW77: 0.6652573842 | AX77: 0.06962211277 | AY77: 0.8527793427 | AZ77: 0.8480079222 | BA77: 0.7408390488 | BB77: 0.6336069751 | BC77: 0.4409508661 | BD77: 0.01842632999 | BE77: 0.5031960524 | BF77: 0.9767287449 | BG77: 0.9793305525 | BH77: 0.9552292542 | BI77: 0.7955937385 | BJ77: 0.5424943392 | BK77: -0.4115815555 | BL77: 0.3053525963 | BM77: 0.6740052586 | BN77: 0.7637547693 | BO77: 0.6002898739 | BP77: -0.2810575876 | BQ77: 0.5013126795 | BR77: 0.5261458175 | BS77: -0.5666442147 | BT77: -0.5041090636 | BU77: 0.3384935051 | BV77: 0.9626692139 | BW77: 0.9036797567 | BX77: 0.9344658219 | BY77: 1
A78: 78: Rental Expense (UNADJUSTED) | B78: 0.7083414572 | C78: 0.9243469354 | D78: 0.9450560112 | E78: -0.6837104803 | F78: 0.5968324725 | G78: 0.5968324725 | H78: 0.7813011669 | I78: 0.8409710684 | J78: 0.5019787992 | K78: 0.6848775864 | L78: 0.5216013688 | M78: 0.5162982823 | N78: 0.4839916106 | O78: 0.8939126778 | P78: 0.8513283433 | Q78: 0.273767534 | R78: 0.7862140278 | S78: 0.9595402049 | T78: 0.9649646306 | U78: 0.9623911307 | V78: 0.96034997 | W78: 0.9335959839 | X78: 0.9079278022 | Y78: 0.9822326251 | Z78: 0.9822326251 | AA78: 0.7512287734 | AB78: 0.9439975521 | AC78: 0.9577940379 | AD78: 0.9585501443 | AE78: 0.6243967162 | AF78: -0.1508539838 | AG78: 0.7041013431 | AH78: 0.3960420944 | AI78: -0.1391573646 | AJ78: 0.5474629763 | AK78: 0.5474629763 | AL78: 0.5474629763 | AM78: 0.5474629763 | AN78: 0.7391748227 | AO78: -0.8948657999 | AP78: 0.9595402049 | AQ78: 0.9042391194 | AR78: 0.9048073993 | AS78: 0.8188969949 | AT78: 0.7739101534 | AU78: 0.8705459772 | AV78: 0.07588261389 | AW78: 0.7559515673 | AX78: 0.2704739964 | AY78: 0.9010488658 | AZ78: 0.9344110623 | BA78: 0.8540839388 | BB78: 0.6793842385 | BC78: 0.5560452411 | BD78: 0.1756887836 | BE78: 0.4483727009 | BF78: 0.9533356966 | BG78: 0.9642449547 | BH78: 0.8950647603 | BI78: 0.7831560712 | BJ78: 0.6399017537 | BK78: -0.3688206537 | BL78: 0.4041550827 | BM78: 0.6875973689 | BN78: 0.7581401089 | BO78: 0.5645058464 | BP78: -0.2632437958 | BQ78: 0.4824914255 | BR78: 0.4854055844 | BS78: -0.5117156431 | BT78: -0.4848890105 | BU78: 0.3026268726 | BV78: 0.9838285011 | BW78: 0.9603115032 | BX78: 0.9314843463 | BY78: 0.9636054473 | BZ78: 1
